Workbook

Sheet quinary 2011 (hidden)
A1: 2011 Birmingaham Ward Population (experimental statistics) | B1: mid-2011 Birmingham ward population
A2: five-year age groups | B2: five-year age groups
A3: ward code | B3: Ward Name | C3: Constituency | D3: All Ages | E3: 0-4 | F3: 5-9 | G3: 10-14 | H3: 15-19 | I3: 20-24 | J3: 25-29 | K3: 30-34 | L3: 35-39 | M3: 40-44 | N3: 45-49 | O3: 50-54 | P3: 55-59 | Q3: 60-64 | R3: 65-69 | S3: 70-74 | T3: 75-79 | U3: 80-84 | V3: 85-89 | W3: 90+
A5: E05001178 | B5: Acocks Green | C5: Yardley | D5: =SUM('2011 syoa'!D5)+SUM('2011 syoa'!CR5) -> 28430 | E5: =SUM('2011 syoa'!E5:I5)+SUM('2011 syoa'!CS5:CW5) -> 2327 | F5: =SUM('2011 syoa'!J5:N5)+SUM('2011 syoa'!CX5:DB5) -> 2023 | G5: =SUM('2011 syoa'!O5:S5)+SUM('2011 syoa'!DC5:DG5) -> 2022 | H5: =SUM('2011 syoa'!T5:X5)+SUM('2011 syoa'!DH5:DL5) -> 2039 | I5: =SUM('2011 syoa'!Y5:AC5)+SUM('2011 syoa'!DM5:DQ5) -> 1974 | J5: =SUM('2011 syoa'!AD5:AH5)+SUM('2011 syoa'!DR5:DV5) -> 2220 | K5: =SUM('2011 syoa'!AI5:AM5)+SUM('2011 syoa'!DW5:EA5) -> 2246 | L5: =SUM('2011 syoa'!AN5:AR5)+SUM('2011 syoa'!EB5:EF5) -> 1939 | M5: =SUM('2011 syoa'!AS5:AW5)+SUM('2011 syoa'!EG5:EK5) -> 2036 | N5: =SUM('2011 syoa'!AX5:BB5)+SUM('2011 syoa'!EL5:EP5) -> 1893 | O5: =SUM('2011 syoa'!BC5:BG5)+SUM('2011 syoa'!EQ5:EU5) -> 1578 | P5: =SUM('2011 syoa'!BH5:BL5)+SUM('2011 syoa'!EV5:EZ5) -> 1259 | Q5: =SUM('2011 syoa'!BM5:BQ5)+SUM('2011 syoa'!FA5:FE5) -> 1172 | R5: =SUM('2011 syoa'!BR5:BV5)+SUM('2011 syoa'!FF5:FJ5) -> 966 | S5: =SUM('2011 syoa'!BW5:CA5)+SUM('2011 syoa'!FK5:FO5) -> 841 | T5: =SUM('2011 syoa'!CB5:CF5)+SUM('2011 syoa'!FP5:FT5) -> 711 | U5: =SUM('2011 syoa'!CG5:CK5)+SUM('2011 syoa'!FU5:FY5) -> 609 | V5: =SUM('2011 syoa'!CL5:CP5)+SUM('2011 syoa'!FZ5:GD5) -> 337 | W5: =SUM('2011 syoa'!CQ5)+SUM('2011 syoa'!GE5) -> 238
A6: E05001179 | B6: Aston | C6: Ladywood | D6: =SUM('2011 syoa'!D6)+SUM('2011 syoa'!CR6) -> 32376 | E6: =SUM('2011 syoa'!E6:I6)+SUM('2011 syoa'!CS6:CW6) -> 3184 | F6: =SUM('2011 syoa'!J6:N6)+SUM('2011 syoa'!CX6:DB6) -> 2845 | G6: =SUM('2011 syoa'!O6:S6)+SUM('2011 syoa'!DC6:DG6) -> 2684 | H6: =SUM('2011 syoa'!T6:X6)+SUM('2011 syoa'!DH6:DL6) -> 2928 | I6: =SUM('2011 syoa'!Y6:AC6)+SUM('2011 syoa'!DM6:DQ6) -> 4314 | J6: =SUM('2011 syoa'!AD6:AH6)+SUM('2011 syoa'!DR6:DV6) -> 2816 | K6: =SUM('2011 syoa'!AI6:AM6)+SUM('2011 syoa'!DW6:EA6) -> 2527 | L6: =SUM('2011 syoa'!AN6:AR6)+SUM('2011 syoa'!EB6:EF6) -> 2166 | M6: =SUM('2011 syoa'!AS6:AW6)+SUM('2011 syoa'!EG6:EK6) -> 1964 | N6: =SUM('2011 syoa'!AX6:BB6)+SUM('2011 syoa'!EL6:EP6) -> 1574 | O6: =SUM('2011 syoa'!BC6:BG6)+SUM('2011 syoa'!EQ6:EU6) -> 1225 | P6: =SUM('2011 syoa'!BH6:BL6)+SUM('2011 syoa'!EV6:EZ6) -> 1012 | Q6: =SUM('2011 syoa'!BM6:BQ6)+SUM('2011 syoa'!FA6:FE6) -> 732 | R6: =SUM('2011 syoa'!BR6:BV6)+SUM('2011 syoa'!FF6:FJ6) -> 560 | S6: =SUM('2011 syoa'!BW6:CA6)+SUM('2011 syoa'!FK6:FO6) -> 688 | T6: =SUM('2011 syoa'!CB6:CF6)+SUM('2011 syoa'!FP6:FT6) -> 549 | U6: =SUM('2011 syoa'!CG6:CK6)+SUM('2011 syoa'!FU6:FY6) -> 380 | V6: =SUM('2011 syoa'!CL6:CP6)+SUM('2011 syoa'!FZ6:GD6) -> 154 | W6: =SUM('2011 syoa'!CQ6)+SUM('2011 syoa'!GE6) -> 74
A7: E05001180 | B7: Bartley Green | C7: Edgbaston | D7: =SUM('2011 syoa'!D7)+SUM('2011 syoa'!CR7) -> 25000 | E7: =SUM('2011 syoa'!E7:I7)+SUM('2011 syoa'!CS7:CW7) -> 1819 | F7: =SUM('2011 syoa'!J7:N7)+SUM('2011 syoa'!CX7:DB7) -> 1602 | G7: =SUM('2011 syoa'!O7:S7)+SUM('2011 syoa'!DC7:DG7) -> 1720 | H7: =SUM('2011 syoa'!T7:X7)+SUM('2011 syoa'!DH7:DL7) -> 1799 | I7: =SUM('2011 syoa'!Y7:AC7)+SUM('2011 syoa'!DM7:DQ7) -> 1742 | J7: =SUM('2011 syoa'!AD7:AH7)+SUM('2011 syoa'!DR7:DV7) -> 1643 | K7: =SUM('2011 syoa'!AI7:AM7)+SUM('2011 syoa'!DW7:EA7) -> 1744 | L7: =SUM('2011 syoa'!AN7:AR7)+SUM('2011 syoa'!EB7:EF7) -> 1668 | M7: =SUM('2011 syoa'!AS7:AW7)+SUM('2011 syoa'!EG7:EK7) -> 1690 | N7: =SUM('2011 syoa'!AX7:BB7)+SUM('2011 syoa'!EL7:EP7) -> 1599 | O7: =SUM('2011 syoa'!BC7:BG7)+SUM('2011 syoa'!EQ7:EU7) -> 1478 | P7: =SUM('2011 syoa'!BH7:BL7)+SUM('2011 syoa'!EV7:EZ7) -> 1402 | Q7: =SUM('2011 syoa'!BM7:BQ7)+SUM('2011 syoa'!FA7:FE7) -> 1477 | R7: =SUM('2011 syoa'!BR7:BV7)+SUM('2011 syoa'!FF7:FJ7) -> 1121 | S7: =SUM('2011 syoa'!BW7:CA7)+SUM('2011 syoa'!FK7:FO7) -> 773 | T7: =SUM('2011 syoa'!CB7:CF7)+SUM('2011 syoa'!FP7:FT7) -> 651 | U7: =SUM('2011 syoa'!CG7:CK7)+SUM('2011 syoa'!FU7:FY7) -> 568 | V7: =SUM('2011 syoa'!CL7:CP7)+SUM('2011 syoa'!FZ7:GD7) -> 335 | W7: =SUM('2011 syoa'!CQ7)+SUM('2011 syoa'!GE7) -> 169
A8: E05001181 | B8: Billesley | C8: Selly Oak | D8: =SUM('2011 syoa'!D8)+SUM('2011 syoa'!CR8) -> 26559 | E8: =SUM('2011 syoa'!E8:I8)+SUM('2011 syoa'!CS8:CW8) -> 1858 | F8: =SUM('2011 syoa'!J8:N8)+SUM('2011 syoa'!CX8:DB8) -> 1690 | G8: =SUM('2011 syoa'!O8:S8)+SUM('2011 syoa'!DC8:DG8) -> 1873 | H8: =SUM('2011 syoa'!T8:X8)+SUM('2011 syoa'!DH8:DL8) -> 1869 | I8: =SUM('2011 syoa'!Y8:AC8)+SUM('2011 syoa'!DM8:DQ8) -> 1713 | J8: =SUM('2011 syoa'!AD8:AH8)+SUM('2011 syoa'!DR8:DV8) -> 1857 | K8: =SUM('2011 syoa'!AI8:AM8)+SUM('2011 syoa'!DW8:EA8) -> 1755 | L8: =SUM('2011 syoa'!AN8:AR8)+SUM('2011 syoa'!EB8:EF8) -> 1660 | M8: =SUM('2011 syoa'!AS8:AW8)+SUM('2011 syoa'!EG8:EK8) -> 1856 | N8: =SUM('2011 syoa'!AX8:BB8)+SUM('2011 syoa'!EL8:EP8) -> 1903 | O8: =SUM('2011 syoa'!BC8:BG8)+SUM('2011 syoa'!EQ8:EU8) -> 1662 | P8: =SUM('2011 syoa'!BH8:BL8)+SUM('2011 syoa'!EV8:EZ8) -> 1421 | Q8: =SUM('2011 syoa'!BM8:BQ8)+SUM('2011 syoa'!FA8:FE8) -> 1328 | R8: =SUM('2011 syoa'!BR8:BV8)+SUM('2011 syoa'!FF8:FJ8) -> 1041 | S8: =SUM('2011 syoa'!BW8:CA8)+SUM('2011 syoa'!FK8:FO8) -> 956 | T8: =SUM('2011 syoa'!CB8:CF8)+SUM('2011 syoa'!FP8:FT8) -> 828 | U8: =SUM('2011 syoa'!CG8:CK8)+SUM('2011 syoa'!FU8:FY8) -> 648 | V8: =SUM('2011 syoa'!CL8:CP8)+SUM('2011 syoa'!FZ8:GD8) -> 438 | W8: =SUM('2011 syoa'!CQ8)+SUM('2011 syoa'!GE8) -> 203
A9: E05001182 | B9: Bordesley Green | C9: Hodge Hill | D9: =SUM('2011 syoa'!D9)+SUM('2011 syoa'!CR9) -> 34041 | E9: =SUM('2011 syoa'!E9:I9)+SUM('2011 syoa'!CS9:CW9) -> 3671 | F9: =SUM('2011 syoa'!J9:N9)+SUM('2011 syoa'!CX9:DB9) -> 3641 | G9: =SUM('2011 syoa'!O9:S9)+SUM('2011 syoa'!DC9:DG9) -> 3496 | H9: =SUM('2011 syoa'!T9:X9)+SUM('2011 syoa'!DH9:DL9) -> 3031 | I9: =SUM('2011 syoa'!Y9:AC9)+SUM('2011 syoa'!DM9:DQ9) -> 2591 | J9: =SUM('2011 syoa'!AD9:AH9)+SUM('2011 syoa'!DR9:DV9) -> 2777 | K9: =SUM('2011 syoa'!AI9:AM9)+SUM('2011 syoa'!DW9:EA9) -> 2698 | L9: =SUM('2011 syoa'!AN9:AR9)+SUM('2011 syoa'!EB9:EF9) -> 2379 | M9: =SUM('2011 syoa'!AS9:AW9)+SUM('2011 syoa'!EG9:EK9) -> 2164 | N9: =SUM('2011 syoa'!AX9:BB9)+SUM('2011 syoa'!EL9:EP9) -> 1472 | O9: =SUM('2011 syoa'!BC9:BG9)+SUM('2011 syoa'!EQ9:EU9) -> 1327 | P9: =SUM('2011 syoa'!BH9:BL9)+SUM('2011 syoa'!EV9:EZ9) -> 1134 | Q9: =SUM('2011 syoa'!BM9:BQ9)+SUM('2011 syoa'!FA9:FE9) -> 792 | R9: =SUM('2011 syoa'!BR9:BV9)+SUM('2011 syoa'!FF9:FJ9) -> 627 | S9: =SUM('2011 syoa'!BW9:CA9)+SUM('2011 syoa'!FK9:FO9) -> 755 | T9: =SUM('2011 syoa'!CB9:CF9)+SUM('2011 syoa'!FP9:FT9) -> 715 | U9: =SUM('2011 syoa'!CG9:CK9)+SUM('2011 syoa'!FU9:FY9) -> 463 | V9: =SUM('2011 syoa'!CL9:CP9)+SUM('2011 syoa'!FZ9:GD9) -> 200 | W9: =SUM('2011 syoa'!CQ9)+SUM('2011 syoa'!GE9) -> 108
A10: E05001183 | B10: Bournville | C10: Selly Oak | D10: =SUM('2011 syoa'!D10)+SUM('2011 syoa'!CR10) -> 25954 | E10: =SUM('2011 syoa'!E10:I10)+SUM('2011 syoa'!CS10:CW10) -> 1653 | F10: =SUM('2011 syoa'!J10:N10)+SUM('2011 syoa'!CX10:DB10) -> 1475 | G10: =SUM('2011 syoa'!O10:S10)+SUM('2011 syoa'!DC10:DG10) -> 1526 | H10: =SUM('2011 syoa'!T10:X10)+SUM('2011 syoa'!DH10:DL10) -> 1583 | I10: =SUM('2011 syoa'!Y10:AC10)+SUM('2011 syoa'!DM10:DQ10) -> 1504 | J10: =SUM('2011 syoa'!AD10:AH10)+SUM('2011 syoa'!DR10:DV10) -> 1826 | K10: =SUM('2011 syoa'!AI10:AM10)+SUM('2011 syoa'!DW10:EA10) -> 1845 | L10: =SUM('2011 syoa'!AN10:AR10)+SUM('2011 syoa'!EB10:EF10) -> 1861 | M10: =SUM('2011 syoa'!AS10:AW10)+SUM('2011 syoa'!EG10:EK10) -> 1965 | N10: =SUM('2011 syoa'!AX10:BB10)+SUM('2011 syoa'!EL10:EP10) -> 1941 | O10: =SUM('2011 syoa'!BC10:BG10)+SUM('2011 syoa'!EQ10:EU10) -> 1704 | P10: =SUM('2011 syoa'!BH10:BL10)+SUM('2011 syoa'!EV10:EZ10) -> 1493 | Q10: =SUM('2011 syoa'!BM10:BQ10)+SUM('2011 syoa'!FA10:FE10) -> 1488 | R10: =SUM('2011 syoa'!BR10:BV10)+SUM('2011 syoa'!FF10:FJ10) -> 1143 | S10: =SUM('2011 syoa'!BW10:CA10)+SUM('2011 syoa'!FK10:FO10) -> 886 | T10: =SUM('2011 syoa'!CB10:CF10)+SUM('2011 syoa'!FP10:FT10) -> 734 | U10: =SUM('2011 syoa'!CG10:CK10)+SUM('2011 syoa'!FU10:FY10) -> 628 | V10: =SUM('2011 syoa'!CL10:CP10)+SUM('2011 syoa'!FZ10:GD10) -> 441 | W10: =SUM('2011 syoa'!CQ10)+SUM('2011 syoa'!GE10) -> 258
A11: E05001184 | B11: Brandwood | C11: Selly Oak | D11: =SUM('2011 syoa'!D11)+SUM('2011 syoa'!CR11) -> 25715 | E11: =SUM('2011 syoa'!E11:I11)+SUM('2011 syoa'!CS11:CW11) -> 1921 | F11: =SUM('2011 syoa'!J11:N11)+SUM('2011 syoa'!CX11:DB11) -> 1637 | G11: =SUM('2011 syoa'!O11:S11)+SUM('2011 syoa'!DC11:DG11) -> 1661 | H11: =SUM('2011 syoa'!T11:X11)+SUM('2011 syoa'!DH11:DL11) -> 1685 | I11: =SUM('2011 syoa'!Y11:AC11)+SUM('2011 syoa'!DM11:DQ11) -> 1514 | J11: =SUM('2011 syoa'!AD11:AH11)+SUM('2011 syoa'!DR11:DV11) -> 1638 | K11: =SUM('2011 syoa'!AI11:AM11)+SUM('2011 syoa'!DW11:EA11) -> 1859 | L11: =SUM('2011 syoa'!AN11:AR11)+SUM('2011 syoa'!EB11:EF11) -> 1749 | M11: =SUM('2011 syoa'!AS11:AW11)+SUM('2011 syoa'!EG11:EK11) -> 1968 | N11: =SUM('2011 syoa'!AX11:BB11)+SUM('2011 syoa'!EL11:EP11) -> 1848 | O11: =SUM('2011 syoa'!BC11:BG11)+SUM('2011 syoa'!EQ11:EU11) -> 1571 | P11: =SUM('2011 syoa'!BH11:BL11)+SUM('2011 syoa'!EV11:EZ11) -> 1348 | Q11: =SUM('2011 syoa'!BM11:BQ11)+SUM('2011 syoa'!FA11:FE11) -> 1347 | R11: =SUM('2011 syoa'!BR11:BV11)+SUM('2011 syoa'!FF11:FJ11) -> 1151 | S11: =SUM('2011 syoa'!BW11:CA11)+SUM('2011 syoa'!FK11:FO11) -> 953 | T11: =SUM('2011 syoa'!CB11:CF11)+SUM('2011 syoa'!FP11:FT11) -> 757 | U11: =SUM('2011 syoa'!CG11:CK11)+SUM('2011 syoa'!FU11:FY11) -> 602 | V11: =SUM('2011 syoa'!CL11:CP11)+SUM('2011 syoa'!FZ11:GD11) -> 333 | W11: =SUM('2011 syoa'!CQ11)+SUM('2011 syoa'!GE11) -> 173
A12: E05001185 | B12: Edgbaston | C12: Edgbaston | D12: =SUM('2011 syoa'!D12)+SUM('2011 syoa'!CR12) -> 24499 | E12: =SUM('2011 syoa'!E12:I12)+SUM('2011 syoa'!CS12:CW12) -> 1156 | F12: =SUM('2011 syoa'!J12:N12)+SUM('2011 syoa'!CX12:DB12) -> 835 | G12: =SUM('2011 syoa'!O12:S12)+SUM('2011 syoa'!DC12:DG12) -> 907 | H12: =SUM('2011 syoa'!T12:X12)+SUM('2011 syoa'!DH12:DL12) -> 4181 | I12: =SUM('2011 syoa'!Y12:AC12)+SUM('2011 syoa'!DM12:DQ12) -> 3717 | J12: =SUM('2011 syoa'!AD12:AH12)+SUM('2011 syoa'!DR12:DV12) -> 2269 | K12: =SUM('2011 syoa'!AI12:AM12)+SUM('2011 syoa'!DW12:EA12) -> 1810 | L12: =SUM('2011 syoa'!AN12:AR12)+SUM('2011 syoa'!EB12:EF12) -> 1370 | M12: =SUM('2011 syoa'!AS12:AW12)+SUM('2011 syoa'!EG12:EK12) -> 1246 | N12: =SUM('2011 syoa'!AX12:BB12)+SUM('2011 syoa'!EL12:EP12) -> 1309 | O12: =SUM('2011 syoa'!BC12:BG12)+SUM('2011 syoa'!EQ12:EU12) -> 1026 | P12: =SUM('2011 syoa'!BH12:BL12)+SUM('2011 syoa'!EV12:EZ12) -> 949 | Q12: =SUM('2011 syoa'!BM12:BQ12)+SUM('2011 syoa'!FA12:FE12) -> 958 | R12: =SUM('2011 syoa'!BR12:BV12)+SUM('2011 syoa'!FF12:FJ12) -> 790 | S12: =SUM('2011 syoa'!BW12:CA12)+SUM('2011 syoa'!FK12:FO12) -> 672 | T12: =SUM('2011 syoa'!CB12:CF12)+SUM('2011 syoa'!FP12:FT12) -> 468 | U12: =SUM('2011 syoa'!CG12:CK12)+SUM('2011 syoa'!FU12:FY12) -> 409 | V12: =SUM('2011 syoa'!CL12:CP12)+SUM('2011 syoa'!FZ12:GD12) -> 278 | W12: =SUM('2011 syoa'!CQ12)+SUM('2011 syoa'!GE12) -> 149
A13: E05001186 | B13: Erdington | C13: Erdington | D13: =SUM('2011 syoa'!D13)+SUM('2011 syoa'!CR13) -> 22802 | E13: =SUM('2011 syoa'!E13:I13)+SUM('2011 syoa'!CS13:CW13) -> 1688 | F13: =SUM('2011 syoa'!J13:N13)+SUM('2011 syoa'!CX13:DB13) -> 1278 | G13: =SUM('2011 syoa'!O13:S13)+SUM('2011 syoa'!DC13:DG13) -> 1236 | H13: =SUM('2011 syoa'!T13:X13)+SUM('2011 syoa'!DH13:DL13) -> 1380 | I13: =SUM('2011 syoa'!Y13:AC13)+SUM('2011 syoa'!DM13:DQ13) -> 1421 | J13: =SUM('2011 syoa'!AD13:AH13)+SUM('2011 syoa'!DR13:DV13) -> 1763 | K13: =SUM('2011 syoa'!AI13:AM13)+SUM('2011 syoa'!DW13:EA13) -> 1647 | L13: =SUM('2011 syoa'!AN13:AR13)+SUM('2011 syoa'!EB13:EF13) -> 1500 | M13: =SUM('2011 syoa'!AS13:AW13)+SUM('2011 syoa'!EG13:EK13) -> 1603 | N13: =SUM('2011 syoa'!AX13:BB13)+SUM('2011 syoa'!EL13:EP13) -> 1686 | O13: =SUM('2011 syoa'!BC13:BG13)+SUM('2011 syoa'!EQ13:EU13) -> 1521 | P13: =SUM('2011 syoa'!BH13:BL13)+SUM('2011 syoa'!EV13:EZ13) -> 1205 | Q13: =SUM('2011 syoa'!BM13:BQ13)+SUM('2011 syoa'!FA13:FE13) -> 1165 | R13: =SUM('2011 syoa'!BR13:BV13)+SUM('2011 syoa'!FF13:FJ13) -> 1002 | S13: =SUM('2011 syoa'!BW13:CA13)+SUM('2011 syoa'!FK13:FO13) -> 807 | T13: =SUM('2011 syoa'!CB13:CF13)+SUM('2011 syoa'!FP13:FT13) -> 749 | U13: =SUM('2011 syoa'!CG13:CK13)+SUM('2011 syoa'!FU13:FY13) -> 563 | V13: =SUM('2011 syoa'!CL13:CP13)+SUM('2011 syoa'!FZ13:GD13) -> 400 | W13: =SUM('2011 syoa'!CQ13)+SUM('2011 syoa'!GE13) -> 188
A14: E05001187 | B14: Hall Green | C14: Hall Green | D14: =SUM('2011 syoa'!D14)+SUM('2011 syoa'!CR14) -> 26452 | E14: =SUM('2011 syoa'!E14:I14)+SUM('2011 syoa'!CS14:CW14) -> 1823 | F14: =SUM('2011 syoa'!J14:N14)+SUM('2011 syoa'!CX14:DB14) -> 1817 | G14: =SUM('2011 syoa'!O14:S14)+SUM('2011 syoa'!DC14:DG14) -> 1829 | H14: =SUM('2011 syoa'!T14:X14)+SUM('2011 syoa'!DH14:DL14) -> 1835 | I14: =SUM('2011 syoa'!Y14:AC14)+SUM('2011 syoa'!DM14:DQ14) -> 1583 | J14: =SUM('2011 syoa'!AD14:AH14)+SUM('2011 syoa'!DR14:DV14) -> 1681 | K14: =SUM('2011 syoa'!AI14:AM14)+SUM('2011 syoa'!DW14:EA14) -> 1796 | L14: =SUM('2011 syoa'!AN14:AR14)+SUM('2011 syoa'!EB14:EF14) -> 1778 | M14: =SUM('2011 syoa'!AS14:AW14)+SUM('2011 syoa'!EG14:EK14) -> 1890 | N14: =SUM('2011 syoa'!AX14:BB14)+SUM('2011 syoa'!EL14:EP14) -> 1838 | O14: =SUM('2011 syoa'!BC14:BG14)+SUM('2011 syoa'!EQ14:EU14) -> 1702 | P14: =SUM('2011 syoa'!BH14:BL14)+SUM('2011 syoa'!EV14:EZ14) -> 1475 | Q14: =SUM('2011 syoa'!BM14:BQ14)+SUM('2011 syoa'!FA14:FE14) -> 1355 | R14: =SUM('2011 syoa'!BR14:BV14)+SUM('2011 syoa'!FF14:FJ14) -> 1139 | S14: =SUM('2011 syoa'!BW14:CA14)+SUM('2011 syoa'!FK14:FO14) -> 884 | T14: =SUM('2011 syoa'!CB14:CF14)+SUM('2011 syoa'!FP14:FT14) -> 835 | U14: =SUM('2011 syoa'!CG14:CK14)+SUM('2011 syoa'!FU14:FY14) -> 648 | V14: =SUM('2011 syoa'!CL14:CP14)+SUM('2011 syoa'!FZ14:GD14) -> 352 | W14: =SUM('2011 syoa'!CQ14)+SUM('2011 syoa'!GE14) -> 192
A15: E05001188 | B15: Handsworth Wood | C15: Perry Barr | D15: =SUM('2011 syoa'!D15)+SUM('2011 syoa'!CR15) -> 27838 | E15: =SUM('2011 syoa'!E15:I15)+SUM('2011 syoa'!CS15:CW15) -> 1905 | F15: =SUM('2011 syoa'!J15:N15)+SUM('2011 syoa'!CX15:DB15) -> 1770 | G15: =SUM('2011 syoa'!O15:S15)+SUM('2011 syoa'!DC15:DG15) -> 1894 | H15: =SUM('2011 syoa'!T15:X15)+SUM('2011 syoa'!DH15:DL15) -> 2200 | I15: =SUM('2011 syoa'!Y15:AC15)+SUM('2011 syoa'!DM15:DQ15) -> 2306 | J15: =SUM('2011 syoa'!AD15:AH15)+SUM('2011 syoa'!DR15:DV15) -> 2527 | K15: =SUM('2011 syoa'!AI15:AM15)+SUM('2011 syoa'!DW15:EA15) -> 2115 | L15: =SUM('2011 syoa'!AN15:AR15)+SUM('2011 syoa'!EB15:EF15) -> 1903 | M15: =SUM('2011 syoa'!AS15:AW15)+SUM('2011 syoa'!EG15:EK15) -> 1876 | N15: =SUM('2011 syoa'!AX15:BB15)+SUM('2011 syoa'!EL15:EP15) -> 1950 | O15: =SUM('2011 syoa'!BC15:BG15)+SUM('2011 syoa'!EQ15:EU15) -> 1675 | P15: =SUM('2011 syoa'!BH15:BL15)+SUM('2011 syoa'!EV15:EZ15) -> 1479 | Q15: =SUM('2011 syoa'!BM15:BQ15)+SUM('2011 syoa'!FA15:FE15) -> 1072 | R15: =SUM('2011 syoa'!BR15:BV15)+SUM('2011 syoa'!FF15:FJ15) -> 749 | S15: =SUM('2011 syoa'!BW15:CA15)+SUM('2011 syoa'!FK15:FO15) -> 779 | T15: =SUM('2011 syoa'!CB15:CF15)+SUM('2011 syoa'!FP15:FT15) -> 710 | U15: =SUM('2011 syoa'!CG15:CK15)+SUM('2011 syoa'!FU15:FY15) -> 490 | V15: =SUM('2011 syoa'!CL15:CP15)+SUM('2011 syoa'!FZ15:GD15) -> 304 | W15: =SUM('2011 syoa'!CQ15)+SUM('2011 syoa'!GE15) -> 134
A16: E05001189 | B16: Harborne | C16: Edgbaston | D16: =SUM('2011 syoa'!D16)+SUM('2011 syoa'!CR16) -> 22995 | E16: =SUM('2011 syoa'!E16:I16)+SUM('2011 syoa'!CS16:CW16) -> 1387 | F16: =SUM('2011 syoa'!J16:N16)+SUM('2011 syoa'!CX16:DB16) -> 1175 | G16: =SUM('2011 syoa'!O16:S16)+SUM('2011 syoa'!DC16:DG16) -> 1063 | H16: =SUM('2011 syoa'!T16:X16)+SUM('2011 syoa'!DH16:DL16) -> 1064 | I16: =SUM('2011 syoa'!Y16:AC16)+SUM('2011 syoa'!DM16:DQ16) -> 2150 | J16: =SUM('2011 syoa'!AD16:AH16)+SUM('2011 syoa'!DR16:DV16) -> 2646 | K16: =SUM('2011 syoa'!AI16:AM16)+SUM('2011 syoa'!DW16:EA16) -> 2186 | L16: =SUM('2011 syoa'!AN16:AR16)+SUM('2011 syoa'!EB16:EF16) -> 1664 | M16: =SUM('2011 syoa'!AS16:AW16)+SUM('2011 syoa'!EG16:EK16) -> 1528 | N16: =SUM('2011 syoa'!AX16:BB16)+SUM('2011 syoa'!EL16:EP16) -> 1410 | O16: =SUM('2011 syoa'!BC16:BG16)+SUM('2011 syoa'!EQ16:EU16) -> 1220 | P16: =SUM('2011 syoa'!BH16:BL16)+SUM('2011 syoa'!EV16:EZ16) -> 1134 | Q16: =SUM('2011 syoa'!BM16:BQ16)+SUM('2011 syoa'!FA16:FE16) -> 1118 | R16: =SUM('2011 syoa'!BR16:BV16)+SUM('2011 syoa'!FF16:FJ16) -> 838 | S16: =SUM('2011 syoa'!BW16:CA16)+SUM('2011 syoa'!FK16:FO16) -> 730 | T16: =SUM('2011 syoa'!CB16:CF16)+SUM('2011 syoa'!FP16:FT16) -> 565 | U16: =SUM('2011 syoa'!CG16:CK16)+SUM('2011 syoa'!FU16:FY16) -> 511 | V16: =SUM('2011 syoa'!CL16:CP16)+SUM('2011 syoa'!FZ16:GD16) -> 381 | W16: =SUM('2011 syoa'!CQ16)+SUM('2011 syoa'!GE16) -> 225
A17: E05001190 | B17: Hodge Hill | C17: Hodge Hill | D17: =SUM('2011 syoa'!D17)+SUM('2011 syoa'!CR17) -> 28087 | E17: =SUM('2011 syoa'!E17:I17)+SUM('2011 syoa'!CS17:CW17) -> 2669 | F17: =SUM('2011 syoa'!J17:N17)+SUM('2011 syoa'!CX17:DB17) -> 2558 | G17: =SUM('2011 syoa'!O17:S17)+SUM('2011 syoa'!DC17:DG17) -> 2372 | H17: =SUM('2011 syoa'!T17:X17)+SUM('2011 syoa'!DH17:DL17) -> 2127 | I17: =SUM('2011 syoa'!Y17:AC17)+SUM('2011 syoa'!DM17:DQ17) -> 1874 | J17: =SUM('2011 syoa'!AD17:AH17)+SUM('2011 syoa'!DR17:DV17) -> 2047 | K17: =SUM('2011 syoa'!AI17:AM17)+SUM('2011 syoa'!DW17:EA17) -> 1977 | L17: =SUM('2011 syoa'!AN17:AR17)+SUM('2011 syoa'!EB17:EF17) -> 1785 | M17: =SUM('2011 syoa'!AS17:AW17)+SUM('2011 syoa'!EG17:EK17) -> 1908 | N17: =SUM('2011 syoa'!AX17:BB17)+SUM('2011 syoa'!EL17:EP17) -> 1590 | O17: =SUM('2011 syoa'!BC17:BG17)+SUM('2011 syoa'!EQ17:EU17) -> 1403 | P17: =SUM('2011 syoa'!BH17:BL17)+SUM('2011 syoa'!EV17:EZ17) -> 1169 | Q17: =SUM('2011 syoa'!BM17:BQ17)+SUM('2011 syoa'!FA17:FE17) -> 1085 | R17: =SUM('2011 syoa'!BR17:BV17)+SUM('2011 syoa'!FF17:FJ17) -> 911 | S17: =SUM('2011 syoa'!BW17:CA17)+SUM('2011 syoa'!FK17:FO17) -> 853 | T17: =SUM('2011 syoa'!CB17:CF17)+SUM('2011 syoa'!FP17:FT17) -> 704 | U17: =SUM('2011 syoa'!CG17:CK17)+SUM('2011 syoa'!FU17:FY17) -> 559 | V17: =SUM('2011 syoa'!CL17:CP17)+SUM('2011 syoa'!FZ17:GD17) -> 328 | W17: =SUM('2011 syoa'!CQ17)+SUM('2011 syoa'!GE17) -> 168
A18: E05001191 | B18: Kings Norton | C18: Northfield | D18: =SUM('2011 syoa'!D18)+SUM('2011 syoa'!CR18) -> 24402 | E18: =SUM('2011 syoa'!E18:I18)+SUM('2011 syoa'!CS18:CW18) -> 1948 | F18: =SUM('2011 syoa'!J18:N18)+SUM('2011 syoa'!CX18:DB18) -> 1566 | G18: =SUM('2011 syoa'!O18:S18)+SUM('2011 syoa'!DC18:DG18) -> 1656 | H18: =SUM('2011 syoa'!T18:X18)+SUM('2011 syoa'!DH18:DL18) -> 1631 | I18: =SUM('2011 syoa'!Y18:AC18)+SUM('2011 syoa'!DM18:DQ18) -> 1495 | J18: =SUM('2011 syoa'!AD18:AH18)+SUM('2011 syoa'!DR18:DV18) -> 1607 | K18: =SUM('2011 syoa'!AI18:AM18)+SUM('2011 syoa'!DW18:EA18) -> 1625 | L18: =SUM('2011 syoa'!AN18:AR18)+SUM('2011 syoa'!EB18:EF18) -> 1560 | M18: =SUM('2011 syoa'!AS18:AW18)+SUM('2011 syoa'!EG18:EK18) -> 1714 | N18: =SUM('2011 syoa'!AX18:BB18)+SUM('2011 syoa'!EL18:EP18) -> 1625 | O18: =SUM('2011 syoa'!BC18:BG18)+SUM('2011 syoa'!EQ18:EU18) -> 1385 | P18: =SUM('2011 syoa'!BH18:BL18)+SUM('2011 syoa'!EV18:EZ18) -> 1315 | Q18: =SUM('2011 syoa'!BM18:BQ18)+SUM('2011 syoa'!FA18:FE18) -> 1485 | R18: =SUM('2011 syoa'!BR18:BV18)+SUM('2011 syoa'!FF18:FJ18) -> 1181 | S18: =SUM('2011 syoa'!BW18:CA18)+SUM('2011 syoa'!FK18:FO18) -> 847 | T18: =SUM('2011 syoa'!CB18:CF18)+SUM('2011 syoa'!FP18:FT18) -> 702 | U18: =SUM('2011 syoa'!CG18:CK18)+SUM('2011 syoa'!FU18:FY18) -> 538 | V18: =SUM('2011 syoa'!CL18:CP18)+SUM('2011 syoa'!FZ18:GD18) -> 356 | W18: =SUM('2011 syoa'!CQ18)+SUM('2011 syoa'!GE18) -> 166
A19: E05001192 | B19: Kingstanding | C19: Erdington | D19: =SUM('2011 syoa'!D19)+SUM('2011 syoa'!CR19) -> 25332 | E19: =SUM('2011 syoa'!E19:I19)+SUM('2011 syoa'!CS19:CW19) -> 2068 | F19: =SUM('2011 syoa'!J19:N19)+SUM('2011 syoa'!CX19:DB19) -> 1911 | G19: =SUM('2011 syoa'!O19:S19)+SUM('2011 syoa'!DC19:DG19) -> 1960 | H19: =SUM('2011 syoa'!T19:X19)+SUM('2011 syoa'!DH19:DL19) -> 2011 | I19: =SUM('2011 syoa'!Y19:AC19)+SUM('2011 syoa'!DM19:DQ19) -> 1692 | J19: =SUM('2011 syoa'!AD19:AH19)+SUM('2011 syoa'!DR19:DV19) -> 1660 | K19: =SUM('2011 syoa'!AI19:AM19)+SUM('2011 syoa'!DW19:EA19) -> 1655 | L19: =SUM('2011 syoa'!AN19:AR19)+SUM('2011 syoa'!EB19:EF19) -> 1552 | M19: =SUM('2011 syoa'!AS19:AW19)+SUM('2011 syoa'!EG19:EK19) -> 1722 | N19: =SUM('2011 syoa'!AX19:BB19)+SUM('2011 syoa'!EL19:EP19) -> 1811 | O19: =SUM('2011 syoa'!BC19:BG19)+SUM('2011 syoa'!EQ19:EU19) -> 1534 | P19: =SUM('2011 syoa'!BH19:BL19)+SUM('2011 syoa'!EV19:EZ19) -> 1241 | Q19: =SUM('2011 syoa'!BM19:BQ19)+SUM('2011 syoa'!FA19:FE19) -> 1124 | R19: =SUM('2011 syoa'!BR19:BV19)+SUM('2011 syoa'!FF19:FJ19) -> 982 | S19: =SUM('2011 syoa'!BW19:CA19)+SUM('2011 syoa'!FK19:FO19) -> 787 | T19: =SUM('2011 syoa'!CB19:CF19)+SUM('2011 syoa'!FP19:FT19) -> 647 | U19: =SUM('2011 syoa'!CG19:CK19)+SUM('2011 syoa'!FU19:FY19) -> 525 | V19: =SUM('2011 syoa'!CL19:CP19)+SUM('2011 syoa'!FZ19:GD19) -> 295 | W19: =SUM('2011 syoa'!CQ19)+SUM('2011 syoa'!GE19) -> 155
A20: E05001193 | B20: Ladywood | C20: Ladywood | D20: =SUM('2011 syoa'!D20)+SUM('2011 syoa'!CR20) -> 30180 | E20: =SUM('2011 syoa'!E20:I20)+SUM('2011 syoa'!CS20:CW20) -> 1533 | F20: =SUM('2011 syoa'!J20:N20)+SUM('2011 syoa'!CX20:DB20) -> 989 | G20: =SUM('2011 syoa'!O20:S20)+SUM('2011 syoa'!DC20:DG20) -> 862 | H20: =SUM('2011 syoa'!T20:X20)+SUM('2011 syoa'!DH20:DL20) -> 1429 | I20: =SUM('2011 syoa'!Y20:AC20)+SUM('2011 syoa'!DM20:DQ20) -> 6214 | J20: =SUM('2011 syoa'!AD20:AH20)+SUM('2011 syoa'!DR20:DV20) -> 6175 | K20: =SUM('2011 syoa'!AI20:AM20)+SUM('2011 syoa'!DW20:EA20) -> 3888 | L20: =SUM('2011 syoa'!AN20:AR20)+SUM('2011 syoa'!EB20:EF20) -> 2145 | M20: =SUM('2011 syoa'!AS20:AW20)+SUM('2011 syoa'!EG20:EK20) -> 1583 | N20: =SUM('2011 syoa'!AX20:BB20)+SUM('2011 syoa'!EL20:EP20) -> 1440 | O20: =SUM('2011 syoa'!BC20:BG20)+SUM('2011 syoa'!EQ20:EU20) -> 1065 | P20: =SUM('2011 syoa'!BH20:BL20)+SUM('2011 syoa'!EV20:EZ20) -> 767 | Q20: =SUM('2011 syoa'!BM20:BQ20)+SUM('2011 syoa'!FA20:FE20) -> 602 | R20: =SUM('2011 syoa'!BR20:BV20)+SUM('2011 syoa'!FF20:FJ20) -> 477 | S20: =SUM('2011 syoa'!BW20:CA20)+SUM('2011 syoa'!FK20:FO20) -> 341 | T20: =SUM('2011 syoa'!CB20:CF20)+SUM('2011 syoa'!FP20:FT20) -> 295 | U20: =SUM('2011 syoa'!CG20:CK20)+SUM('2011 syoa'!FU20:FY20) -> 209 | V20: =SUM('2011 syoa'!CL20:CP20)+SUM('2011 syoa'!FZ20:GD20) -> 107 | W20: =SUM('2011 syoa'!CQ20)+SUM('2011 syoa'!GE20) -> 59
A21: E05001194 | B21: Longbridge | C21: Northfield | D21: =SUM('2011 syoa'!D21)+SUM('2011 syoa'!CR21) -> 25451 | E21: =SUM('2011 syoa'!E21:I21)+SUM('2011 syoa'!CS21:CW21) -> 1878 | F21: =SUM('2011 syoa'!J21:N21)+SUM('2011 syoa'!CX21:DB21) -> 1626 | G21: =SUM('2011 syoa'!O21:S21)+SUM('2011 syoa'!DC21:DG21) -> 1686 | H21: =SUM('2011 syoa'!T21:X21)+SUM('2011 syoa'!DH21:DL21) -> 1700 | I21: =SUM('2011 syoa'!Y21:AC21)+SUM('2011 syoa'!DM21:DQ21) -> 1503 | J21: =SUM('2011 syoa'!AD21:AH21)+SUM('2011 syoa'!DR21:DV21) -> 1749 | K21: =SUM('2011 syoa'!AI21:AM21)+SUM('2011 syoa'!DW21:EA21) -> 1913 | L21: =SUM('2011 syoa'!AN21:AR21)+SUM('2011 syoa'!EB21:EF21) -> 1810 | M21: =SUM('2011 syoa'!AS21:AW21)+SUM('2011 syoa'!EG21:EK21) -> 1829 | N21: =SUM('2011 syoa'!AX21:BB21)+SUM('2011 syoa'!EL21:EP21) -> 1809 | O21: =SUM('2011 syoa'!BC21:BG21)+SUM('2011 syoa'!EQ21:EU21) -> 1602 | P21: =SUM('2011 syoa'!BH21:BL21)+SUM('2011 syoa'!EV21:EZ21) -> 1493 | Q21: =SUM('2011 syoa'!BM21:BQ21)+SUM('2011 syoa'!FA21:FE21) -> 1420 | R21: =SUM('2011 syoa'!BR21:BV21)+SUM('2011 syoa'!FF21:FJ21) -> 1058 | S21: =SUM('2011 syoa'!BW21:CA21)+SUM('2011 syoa'!FK21:FO21) -> 765 | T21: =SUM('2011 syoa'!CB21:CF21)+SUM('2011 syoa'!FP21:FT21) -> 638 | U21: =SUM('2011 syoa'!CG21:CK21)+SUM('2011 syoa'!FU21:FY21) -> 540 | V21: =SUM('2011 syoa'!CL21:CP21)+SUM('2011 syoa'!FZ21:GD21) -> 303 | W21: =SUM('2011 syoa'!CQ21)+SUM('2011 syoa'!GE21) -> 129
A22: E05001195 | B22: Lozells and East Handsworth | C22: Perry Barr | D22: =SUM('2011 syoa'!D22)+SUM('2011 syoa'!CR22) -> 31188 | E22: =SUM('2011 syoa'!E22:I22)+SUM('2011 syoa'!CS22:CW22) -> 2863 | F22: =SUM('2011 syoa'!J22:N22)+SUM('2011 syoa'!CX22:DB22) -> 2834 | G22: =SUM('2011 syoa'!O22:S22)+SUM('2011 syoa'!DC22:DG22) -> 2679 | H22: =SUM('2011 syoa'!T22:X22)+SUM('2011 syoa'!DH22:DL22) -> 2558 | I22: =SUM('2011 syoa'!Y22:AC22)+SUM('2011 syoa'!DM22:DQ22) -> 2777 | J22: =SUM('2011 syoa'!AD22:AH22)+SUM('2011 syoa'!DR22:DV22) -> 2852 | K22: =SUM('2011 syoa'!AI22:AM22)+SUM('2011 syoa'!DW22:EA22) -> 2677 | L22: =SUM('2011 syoa'!AN22:AR22)+SUM('2011 syoa'!EB22:EF22) -> 2343 | M22: =SUM('2011 syoa'!AS22:AW22)+SUM('2011 syoa'!EG22:EK22) -> 1928 | N22: =SUM('2011 syoa'!AX22:BB22)+SUM('2011 syoa'!EL22:EP22) -> 1734 | O22: =SUM('2011 syoa'!BC22:BG22)+SUM('2011 syoa'!EQ22:EU22) -> 1357 | P22: =SUM('2011 syoa'!BH22:BL22)+SUM('2011 syoa'!EV22:EZ22) -> 1164 | Q22: =SUM('2011 syoa'!BM22:BQ22)+SUM('2011 syoa'!FA22:FE22) -> 769 | R22: =SUM('2011 syoa'!BR22:BV22)+SUM('2011 syoa'!FF22:FJ22) -> 669 | S22: =SUM('2011 syoa'!BW22:CA22)+SUM('2011 syoa'!FK22:FO22) -> 709 | T22: =SUM('2011 syoa'!CB22:CF22)+SUM('2011 syoa'!FP22:FT22) -> 614 | U22: =SUM('2011 syoa'!CG22:CK22)+SUM('2011 syoa'!FU22:FY22) -> 415 | V22: =SUM('2011 syoa'!CL22:CP22)+SUM('2011 syoa'!FZ22:GD22) -> 172 | W22: =SUM('2011 syoa'!CQ22)+SUM('2011 syoa'!GE22) -> 74
A23: E05001196 | B23: Moseley and Kings Heath | C23: Hall Green | D23: =SUM('2011 syoa'!D23)+SUM('2011 syoa'!CR23) -> 25698 | E23: =SUM('2011 syoa'!E23:I23)+SUM('2011 syoa'!CS23:CW23) -> 1628 | F23: =SUM('2011 syoa'!J23:N23)+SUM('2011 syoa'!CX23:DB23) -> 1370 | G23: =SUM('2011 syoa'!O23:S23)+SUM('2011 syoa'!DC23:DG23) -> 1363 | H23: =SUM('2011 syoa'!T23:X23)+SUM('2011 syoa'!DH23:DL23) -> 1464 | I23: =SUM('2011 syoa'!Y23:AC23)+SUM('2011 syoa'!DM23:DQ23) -> 1762 | J23: =SUM('2011 syoa'!AD23:AH23)+SUM('2011 syoa'!DR23:DV23) -> 2684 | K23: =SUM('2011 syoa'!AI23:AM23)+SUM('2011 syoa'!DW23:EA23) -> 2426 | L23: =SUM('2011 syoa'!AN23:AR23)+SUM('2011 syoa'!EB23:EF23) -> 2038 | M23: =SUM('2011 syoa'!AS23:AW23)+SUM('2011 syoa'!EG23:EK23) -> 1934 | N23: =SUM('2011 syoa'!AX23:BB23)+SUM('2011 syoa'!EL23:EP23) -> 1746 | O23: =SUM('2011 syoa'!BC23:BG23)+SUM('2011 syoa'!EQ23:EU23) -> 1534 | P23: =SUM('2011 syoa'!BH23:BL23)+SUM('2011 syoa'!EV23:EZ23) -> 1425 | Q23: =SUM('2011 syoa'!BM23:BQ23)+SUM('2011 syoa'!FA23:FE23) -> 1234 | R23: =SUM('2011 syoa'!BR23:BV23)+SUM('2011 syoa'!FF23:FJ23) -> 855 | S23: =SUM('2011 syoa'!BW23:CA23)+SUM('2011 syoa'!FK23:FO23) -> 686 | T23: =SUM('2011 syoa'!CB23:CF23)+SUM('2011 syoa'!FP23:FT23) -> 653 | U23: =SUM('2011 syoa'!CG23:CK23)+SUM('2011 syoa'!FU23:FY23) -> 437 | V23: =SUM('2011 syoa'!CL23:CP23)+SUM('2011 syoa'!FZ23:GD23) -> 277 | W23: =SUM('2011 syoa'!CQ23)+SUM('2011 syoa'!GE23) -> 182
A24: E05001197 | B24: Nechells | C24: Ladywood | D24: =SUM('2011 syoa'!D24)+SUM('2011 syoa'!CR24) -> 34053 | E24: =SUM('2011 syoa'!E24:I24)+SUM('2011 syoa'!CS24:CW24) -> 3334 | F24: =SUM('2011 syoa'!J24:N24)+SUM('2011 syoa'!CX24:DB24) -> 2819 | G24: =SUM('2011 syoa'!O24:S24)+SUM('2011 syoa'!DC24:DG24) -> 2459 | H24: =SUM('2011 syoa'!T24:X24)+SUM('2011 syoa'!DH24:DL24) -> 3303 | I24: =SUM('2011 syoa'!Y24:AC24)+SUM('2011 syoa'!DM24:DQ24) -> 5059 | J24: =SUM('2011 syoa'!AD24:AH24)+SUM('2011 syoa'!DR24:DV24) -> 3290 | K24: =SUM('2011 syoa'!AI24:AM24)+SUM('2011 syoa'!DW24:EA24) -> 2723 | L24: =SUM('2011 syoa'!AN24:AR24)+SUM('2011 syoa'!EB24:EF24) -> 2142 | M24: =SUM('2011 syoa'!AS24:AW24)+SUM('2011 syoa'!EG24:EK24) -> 1908 | N24: =SUM('2011 syoa'!AX24:BB24)+SUM('2011 syoa'!EL24:EP24) -> 1594 | O24: =SUM('2011 syoa'!BC24:BG24)+SUM('2011 syoa'!EQ24:EU24) -> 1250 | P24: =SUM('2011 syoa'!BH24:BL24)+SUM('2011 syoa'!EV24:EZ24) -> 982 | Q24: =SUM('2011 syoa'!BM24:BQ24)+SUM('2011 syoa'!FA24:FE24) -> 799 | R24: =SUM('2011 syoa'!BR24:BV24)+SUM('2011 syoa'!FF24:FJ24) -> 649 | S24: =SUM('2011 syoa'!BW24:CA24)+SUM('2011 syoa'!FK24:FO24) -> 698 | T24: =SUM('2011 syoa'!CB24:CF24)+SUM('2011 syoa'!FP24:FT24) -> 517 | U24: =SUM('2011 syoa'!CG24:CK24)+SUM('2011 syoa'!FU24:FY24) -> 318 | V24: =SUM('2011 syoa'!CL24:CP24)+SUM('2011 syoa'!FZ24:GD24) -> 158 | W24: =SUM('2011 syoa'!CQ24)+SUM('2011 syoa'!GE24) -> 51
A25: E05001198 | B25: Northfield | C25: Northfield | D25: =SUM('2011 syoa'!D25)+SUM('2011 syoa'!CR25) -> 25713 | E25: =SUM('2011 syoa'!E25:I25)+SUM('2011 syoa'!CS25:CW25) -> 1656 | F25: =SUM('2011 syoa'!J25:N25)+SUM('2011 syoa'!CX25:DB25) -> 1533 | G25: =SUM('2011 syoa'!O25:S25)+SUM('2011 syoa'!DC25:DG25) -> 1541 | H25: =SUM('2011 syoa'!T25:X25)+SUM('2011 syoa'!DH25:DL25) -> 1721 | I25: =SUM('2011 syoa'!Y25:AC25)+SUM('2011 syoa'!DM25:DQ25) -> 1724 | J25: =SUM('2011 syoa'!AD25:AH25)+SUM('2011 syoa'!DR25:DV25) -> 1556 | K25: =SUM('2011 syoa'!AI25:AM25)+SUM('2011 syoa'!DW25:EA25) -> 1584 | L25: =SUM('2011 syoa'!AN25:AR25)+SUM('2011 syoa'!EB25:EF25) -> 1645 | M25: =SUM('2011 syoa'!AS25:AW25)+SUM('2011 syoa'!EG25:EK25) -> 1770 | N25: =SUM('2011 syoa'!AX25:BB25)+SUM('2011 syoa'!EL25:EP25) -> 1988 | O25: =SUM('2011 syoa'!BC25:BG25)+SUM('2011 syoa'!EQ25:EU25) -> 1691 | P25: =SUM('2011 syoa'!BH25:BL25)+SUM('2011 syoa'!EV25:EZ25) -> 1474 | Q25: =SUM('2011 syoa'!BM25:BQ25)+SUM('2011 syoa'!FA25:FE25) -> 1514 | R25: =SUM('2011 syoa'!BR25:BV25)+SUM('2011 syoa'!FF25:FJ25) -> 1259 | S25: =SUM('2011 syoa'!BW25:CA25)+SUM('2011 syoa'!FK25:FO25) -> 986 | T25: =SUM('2011 syoa'!CB25:CF25)+SUM('2011 syoa'!FP25:FT25) -> 837 | U25: =SUM('2011 syoa'!CG25:CK25)+SUM('2011 syoa'!FU25:FY25) -> 603 | V25: =SUM('2011 syoa'!CL25:CP25)+SUM('2011 syoa'!FZ25:GD25) -> 422 | W25: =SUM('2011 syoa'!CQ25)+SUM('2011 syoa'!GE25) -> 209
A26: E05001199 | B26: Oscott | C26: Perry Barr | D26: =SUM('2011 syoa'!D26)+SUM('2011 syoa'!CR26) -> 24620 | E26: =SUM('2011 syoa'!E26:I26)+SUM('2011 syoa'!CS26:CW26) -> 1743 | F26: =SUM('2011 syoa'!J26:N26)+SUM('2011 syoa'!CX26:DB26) -> 1470 | G26: =SUM('2011 syoa'!O26:S26)+SUM('2011 syoa'!DC26:DG26) -> 1544 | H26: =SUM('2011 syoa'!T26:X26)+SUM('2011 syoa'!DH26:DL26) -> 1640 | I26: =SUM('2011 syoa'!Y26:AC26)+SUM('2011 syoa'!DM26:DQ26) -> 1543 | J26: =SUM('2011 syoa'!AD26:AH26)+SUM('2011 syoa'!DR26:DV26) -> 1654 | K26: =SUM('2011 syoa'!AI26:AM26)+SUM('2011 syoa'!DW26:EA26) -> 1523 | L26: =SUM('2011 syoa'!AN26:AR26)+SUM('2011 syoa'!EB26:EF26) -> 1573 | M26: =SUM('2011 syoa'!AS26:AW26)+SUM('2011 syoa'!EG26:EK26) -> 1922 | N26: =SUM('2011 syoa'!AX26:BB26)+SUM('2011 syoa'!EL26:EP26) -> 1909 | O26: =SUM('2011 syoa'!BC26:BG26)+SUM('2011 syoa'!EQ26:EU26) -> 1509 | P26: =SUM('2011 syoa'!BH26:BL26)+SUM('2011 syoa'!EV26:EZ26) -> 1242 | Q26: =SUM('2011 syoa'!BM26:BQ26)+SUM('2011 syoa'!FA26:FE26) -> 1233 | R26: =SUM('2011 syoa'!BR26:BV26)+SUM('2011 syoa'!FF26:FJ26) -> 1192 | S26: =SUM('2011 syoa'!BW26:CA26)+SUM('2011 syoa'!FK26:FO26) -> 949 | T26: =SUM('2011 syoa'!CB26:CF26)+SUM('2011 syoa'!FP26:FT26) -> 828 | U26: =SUM('2011 syoa'!CG26:CK26)+SUM('2011 syoa'!FU26:FY26) -> 583 | V26: =SUM('2011 syoa'!CL26:CP26)+SUM('2011 syoa'!FZ26:GD26) -> 350 | W26: =SUM('2011 syoa'!CQ26)+SUM('2011 syoa'!GE26) -> 213
A27: E05001200 | B27: Perry Barr | C27: Perry Barr | D27: =SUM('2011 syoa'!D27)+SUM('2011 syoa'!CR27) -> 23695 | E27: =SUM('2011 syoa'!E27:I27)+SUM('2011 syoa'!CS27:CW27) -> 1696 | F27: =SUM('2011 syoa'!J27:N27)+SUM('2011 syoa'!CX27:DB27) -> 1661 | G27: =SUM('2011 syoa'!O27:S27)+SUM('2011 syoa'!DC27:DG27) -> 1554 | H27: =SUM('2011 syoa'!T27:X27)+SUM('2011 syoa'!DH27:DL27) -> 1869 | I27: =SUM('2011 syoa'!Y27:AC27)+SUM('2011 syoa'!DM27:DQ27) -> 2049 | J27: =SUM('2011 syoa'!AD27:AH27)+SUM('2011 syoa'!DR27:DV27) -> 1664 | K27: =SUM('2011 syoa'!AI27:AM27)+SUM('2011 syoa'!DW27:EA27) -> 1718 | L27: =SUM('2011 syoa'!AN27:AR27)+SUM('2011 syoa'!EB27:EF27) -> 1525 | M27: =SUM('2011 syoa'!AS27:AW27)+SUM('2011 syoa'!EG27:EK27) -> 1643 | N27: =SUM('2011 syoa'!AX27:BB27)+SUM('2011 syoa'!EL27:EP27) -> 1619 | O27: =SUM('2011 syoa'!BC27:BG27)+SUM('2011 syoa'!EQ27:EU27) -> 1341 | P27: =SUM('2011 syoa'!BH27:BL27)+SUM('2011 syoa'!EV27:EZ27) -> 1047 | Q27: =SUM('2011 syoa'!BM27:BQ27)+SUM('2011 syoa'!FA27:FE27) -> 1061 | R27: =SUM('2011 syoa'!BR27:BV27)+SUM('2011 syoa'!FF27:FJ27) -> 1008 | S27: =SUM('2011 syoa'!BW27:CA27)+SUM('2011 syoa'!FK27:FO27) -> 763 | T27: =SUM('2011 syoa'!CB27:CF27)+SUM('2011 syoa'!FP27:FT27) -> 629 | U27: =SUM('2011 syoa'!CG27:CK27)+SUM('2011 syoa'!FU27:FY27) -> 444 | V27: =SUM('2011 syoa'!CL27:CP27)+SUM('2011 syoa'!FZ27:GD27) -> 262 | W27: =SUM('2011 syoa'!CQ27)+SUM('2011 syoa'!GE27) -> 142
A28: E05001201 | B28: Quinton | C28: Edgbaston | D28: =SUM('2011 syoa'!D28)+SUM('2011 syoa'!CR28) -> 24210 | E28: =SUM('2011 syoa'!E28:I28)+SUM('2011 syoa'!CS28:CW28) -> 1815 | F28: =SUM('2011 syoa'!J28:N28)+SUM('2011 syoa'!CX28:DB28) -> 1611 | G28: =SUM('2011 syoa'!O28:S28)+SUM('2011 syoa'!DC28:DG28) -> 1594 | H28: =SUM('2011 syoa'!T28:X28)+SUM('2011 syoa'!DH28:DL28) -> 1586 | I28: =SUM('2011 syoa'!Y28:AC28)+SUM('2011 syoa'!DM28:DQ28) -> 1439 | J28: =SUM('2011 syoa'!AD28:AH28)+SUM('2011 syoa'!DR28:DV28) -> 1638 | K28: =SUM('2011 syoa'!AI28:AM28)+SUM('2011 syoa'!DW28:EA28) -> 1735 | L28: =SUM('2011 syoa'!AN28:AR28)+SUM('2011 syoa'!EB28:EF28) -> 1736 | M28: =SUM('2011 syoa'!AS28:AW28)+SUM('2011 syoa'!EG28:EK28) -> 1707 | N28: =SUM('2011 syoa'!AX28:BB28)+SUM('2011 syoa'!EL28:EP28) -> 1643 | O28: =SUM('2011 syoa'!BC28:BG28)+SUM('2011 syoa'!EQ28:EU28) -> 1340 | P28: =SUM('2011 syoa'!BH28:BL28)+SUM('2011 syoa'!EV28:EZ28) -> 1287 | Q28: =SUM('2011 syoa'!BM28:BQ28)+SUM('2011 syoa'!FA28:FE28) -> 1287 | R28: =SUM('2011 syoa'!BR28:BV28)+SUM('2011 syoa'!FF28:FJ28) -> 1081 | S28: =SUM('2011 syoa'!BW28:CA28)+SUM('2011 syoa'!FK28:FO28) -> 899 | T28: =SUM('2011 syoa'!CB28:CF28)+SUM('2011 syoa'!FP28:FT28) -> 747 | U28: =SUM('2011 syoa'!CG28:CK28)+SUM('2011 syoa'!FU28:FY28) -> 550 | V28: =SUM('2011 syoa'!CL28:CP28)+SUM('2011 syoa'!FZ28:GD28) -> 344 | W28: =SUM('2011 syoa'!CQ28)+SUM('2011 syoa'!GE28) -> 171
A29: E05001202 | B29: Selly Oak | C29: Selly Oak | D29: =SUM('2011 syoa'!D29)+SUM('2011 syoa'!CR29) -> 25930 | E29: =SUM('2011 syoa'!E29:I29)+SUM('2011 syoa'!CS29:CW29) -> 943 | F29: =SUM('2011 syoa'!J29:N29)+SUM('2011 syoa'!CX29:DB29) -> 758 | G29: =SUM('2011 syoa'!O29:S29)+SUM('2011 syoa'!DC29:DG29) -> 675 | H29: =SUM('2011 syoa'!T29:X29)+SUM('2011 syoa'!DH29:DL29) -> 1649 | I29: =SUM('2011 syoa'!Y29:AC29)+SUM('2011 syoa'!DM29:DQ29) -> 11289 | J29: =SUM('2011 syoa'!AD29:AH29)+SUM('2011 syoa'!DR29:DV29) -> 2102 | K29: =SUM('2011 syoa'!AI29:AM29)+SUM('2011 syoa'!DW29:EA29) -> 1443 | L29: =SUM('2011 syoa'!AN29:AR29)+SUM('2011 syoa'!EB29:EF29) -> 1056 | M29: =SUM('2011 syoa'!AS29:AW29)+SUM('2011 syoa'!EG29:EK29) -> 935 | N29: =SUM('2011 syoa'!AX29:BB29)+SUM('2011 syoa'!EL29:EP29) -> 778 | O29: =SUM('2011 syoa'!BC29:BG29)+SUM('2011 syoa'!EQ29:EU29) -> 779 | P29: =SUM('2011 syoa'!BH29:BL29)+SUM('2011 syoa'!EV29:EZ29) -> 711 | Q29: =SUM('2011 syoa'!BM29:BQ29)+SUM('2011 syoa'!FA29:FE29) -> 622 | R29: =SUM('2011 syoa'!BR29:BV29)+SUM('2011 syoa'!FF29:FJ29) -> 563 | S29: =SUM('2011 syoa'!BW29:CA29)+SUM('2011 syoa'!FK29:FO29) -> 504 | T29: =SUM('2011 syoa'!CB29:CF29)+SUM('2011 syoa'!FP29:FT29) -> 451 | U29: =SUM('2011 syoa'!CG29:CK29)+SUM('2011 syoa'!FU29:FY29) -> 311 | V29: =SUM('2011 syoa'!CL29:CP29)+SUM('2011 syoa'!FZ29:GD29) -> 236 | W29: =SUM('2011 syoa'!CQ29)+SUM('2011 syoa'!GE29) -> 125
A30: E05001203 | B30: Shard End | C30: Hodge Hill | D30: =SUM('2011 syoa'!D30)+SUM('2011 syoa'!CR30) -> 26811 | E30: =SUM('2011 syoa'!E30:I30)+SUM('2011 syoa'!CS30:CW30) -> 2275 | F30: =SUM('2011 syoa'!J30:N30)+SUM('2011 syoa'!CX30:DB30) -> 1925 | G30: =SUM('2011 syoa'!O30:S30)+SUM('2011 syoa'!DC30:DG30) -> 1829 | H30: =SUM('2011 syoa'!T30:X30)+SUM('2011 syoa'!DH30:DL30) -> 1863 | I30: =SUM('2011 syoa'!Y30:AC30)+SUM('2011 syoa'!DM30:DQ30) -> 1787 | J30: =SUM('2011 syoa'!AD30:AH30)+SUM('2011 syoa'!DR30:DV30) -> 1912 | K30: =SUM('2011 syoa'!AI30:AM30)+SUM('2011 syoa'!DW30:EA30) -> 1823 | L30: =SUM('2011 syoa'!AN30:AR30)+SUM('2011 syoa'!EB30:EF30) -> 1679 | M30: =SUM('2011 syoa'!AS30:AW30)+SUM('2011 syoa'!EG30:EK30) -> 1869 | N30: =SUM('2011 syoa'!AX30:BB30)+SUM('2011 syoa'!EL30:EP30) -> 1750 | O30: =SUM('2011 syoa'!BC30:BG30)+SUM('2011 syoa'!EQ30:EU30) -> 1489 | P30: =SUM('2011 syoa'!BH30:BL30)+SUM('2011 syoa'!EV30:EZ30) -> 1268 | Q30: =SUM('2011 syoa'!BM30:BQ30)+SUM('2011 syoa'!FA30:FE30) -> 1398 | R30: =SUM('2011 syoa'!BR30:BV30)+SUM('2011 syoa'!FF30:FJ30) -> 1064 | S30: =SUM('2011 syoa'!BW30:CA30)+SUM('2011 syoa'!FK30:FO30) -> 775 | T30: =SUM('2011 syoa'!CB30:CF30)+SUM('2011 syoa'!FP30:FT30) -> 730 | U30: =SUM('2011 syoa'!CG30:CK30)+SUM('2011 syoa'!FU30:FY30) -> 589 | V30: =SUM('2011 syoa'!CL30:CP30)+SUM('2011 syoa'!FZ30:GD30) -> 531 | W30: =SUM('2011 syoa'!CQ30)+SUM('2011 syoa'!GE30) -> 255
A31: E05001204 | B31: Sheldon | C31: Yardley | D31: =SUM('2011 syoa'!D31)+SUM('2011 syoa'!CR31) -> 21818 | E31: =SUM('2011 syoa'!E31:I31)+SUM('2011 syoa'!CS31:CW31) -> 1386 | F31: =SUM('2011 syoa'!J31:N31)+SUM('2011 syoa'!CX31:DB31) -> 1321 | G31: =SUM('2011 syoa'!O31:S31)+SUM('2011 syoa'!DC31:DG31) -> 1396 | H31: =SUM('2011 syoa'!T31:X31)+SUM('2011 syoa'!DH31:DL31) -> 1373 | I31: =SUM('2011 syoa'!Y31:AC31)+SUM('2011 syoa'!DM31:DQ31) -> 1271 | J31: =SUM('2011 syoa'!AD31:AH31)+SUM('2011 syoa'!DR31:DV31) -> 1371 | K31: =SUM('2011 syoa'!AI31:AM31)+SUM('2011 syoa'!DW31:EA31) -> 1322 | L31: =SUM('2011 syoa'!AN31:AR31)+SUM('2011 syoa'!EB31:EF31) -> 1294 | M31: =SUM('2011 syoa'!AS31:AW31)+SUM('2011 syoa'!EG31:EK31) -> 1644 | N31: =SUM('2011 syoa'!AX31:BB31)+SUM('2011 syoa'!EL31:EP31) -> 1641 | O31: =SUM('2011 syoa'!BC31:BG31)+SUM('2011 syoa'!EQ31:EU31) -> 1400 | P31: =SUM('2011 syoa'!BH31:BL31)+SUM('2011 syoa'!EV31:EZ31) -> 1176 | Q31: =SUM('2011 syoa'!BM31:BQ31)+SUM('2011 syoa'!FA31:FE31) -> 1170 | R31: =SUM('2011 syoa'!BR31:BV31)+SUM('2011 syoa'!FF31:FJ31) -> 1127 | S31: =SUM('2011 syoa'!BW31:CA31)+SUM('2011 syoa'!FK31:FO31) -> 911 | T31: =SUM('2011 syoa'!CB31:CF31)+SUM('2011 syoa'!FP31:FT31) -> 794 | U31: =SUM('2011 syoa'!CG31:CK31)+SUM('2011 syoa'!FU31:FY31) -> 564 | V31: =SUM('2011 syoa'!CL31:CP31)+SUM('2011 syoa'!FZ31:GD31) -> 441 | W31: =SUM('2011 syoa'!CQ31)+SUM('2011 syoa'!GE31) -> 216
A32: E05001205 | B32: Soho | C32: Ladywood | D32: =SUM('2011 syoa'!D32)+SUM('2011 syoa'!CR32) -> 30360 | E32: =SUM('2011 syoa'!E32:I32)+SUM('2011 syoa'!CS32:CW32) -> 2765 | F32: =SUM('2011 syoa'!J32:N32)+SUM('2011 syoa'!CX32:DB32) -> 2614 | G32: =SUM('2011 syoa'!O32:S32)+SUM('2011 syoa'!DC32:DG32) -> 2216 | H32: =SUM('2011 syoa'!T32:X32)+SUM('2011 syoa'!DH32:DL32) -> 2198 | I32: =SUM('2011 syoa'!Y32:AC32)+SUM('2011 syoa'!DM32:DQ32) -> 2691 | J32: =SUM('2011 syoa'!AD32:AH32)+SUM('2011 syoa'!DR32:DV32) -> 2944 | K32: =SUM('2011 syoa'!AI32:AM32)+SUM('2011 syoa'!DW32:EA32) -> 2821 | L32: =SUM('2011 syoa'!AN32:AR32)+SUM('2011 syoa'!EB32:EF32) -> 2317 | M32: =SUM('2011 syoa'!AS32:AW32)+SUM('2011 syoa'!EG32:EK32) -> 2098 | N32: =SUM('2011 syoa'!AX32:BB32)+SUM('2011 syoa'!EL32:EP32) -> 1862 | O32: =SUM('2011 syoa'!BC32:BG32)+SUM('2011 syoa'!EQ32:EU32) -> 1345 | P32: =SUM('2011 syoa'!BH32:BL32)+SUM('2011 syoa'!EV32:EZ32) -> 1116 | Q32: =SUM('2011 syoa'!BM32:BQ32)+SUM('2011 syoa'!FA32:FE32) -> 790 | R32: =SUM('2011 syoa'!BR32:BV32)+SUM('2011 syoa'!FF32:FJ32) -> 688 | S32: =SUM('2011 syoa'!BW32:CA32)+SUM('2011 syoa'!FK32:FO32) -> 645 | T32: =SUM('2011 syoa'!CB32:CF32)+SUM('2011 syoa'!FP32:FT32) -> 589 | U32: =SUM('2011 syoa'!CG32:CK32)+SUM('2011 syoa'!FU32:FY32) -> 346 | V32: =SUM('2011 syoa'!CL32:CP32)+SUM('2011 syoa'!FZ32:GD32) -> 200 | W32: =SUM('2011 syoa'!CQ32)+SUM('2011 syoa'!GE32) -> 115
A33: E05001206 | B33: South Yardley | C33: Yardley | D33: =SUM('2011 syoa'!D33)+SUM('2011 syoa'!CR33) -> 30876 | E33: =SUM('2011 syoa'!E33:I33)+SUM('2011 syoa'!CS33:CW33) -> 2930 | F33: =SUM('2011 syoa'!J33:N33)+SUM('2011 syoa'!CX33:DB33) -> 2586 | G33: =SUM('2011 syoa'!O33:S33)+SUM('2011 syoa'!DC33:DG33) -> 2302 | H33: =SUM('2011 syoa'!T33:X33)+SUM('2011 syoa'!DH33:DL33) -> 2069 | I33: =SUM('2011 syoa'!Y33:AC33)+SUM('2011 syoa'!DM33:DQ33) -> 2096 | J33: =SUM('2011 syoa'!AD33:AH33)+SUM('2011 syoa'!DR33:DV33) -> 2523 | K33: =SUM('2011 syoa'!AI33:AM33)+SUM('2011 syoa'!DW33:EA33) -> 2430 | L33: =SUM('2011 syoa'!AN33:AR33)+SUM('2011 syoa'!EB33:EF33) -> 2218 | M33: =SUM('2011 syoa'!AS33:AW33)+SUM('2011 syoa'!EG33:EK33) -> 2060 | N33: =SUM('2011 syoa'!AX33:BB33)+SUM('2011 syoa'!EL33:EP33) -> 1966 | O33: =SUM('2011 syoa'!BC33:BG33)+SUM('2011 syoa'!EQ33:EU33) -> 1719 | P33: =SUM('2011 syoa'!BH33:BL33)+SUM('2011 syoa'!EV33:EZ33) -> 1386 | Q33: =SUM('2011 syoa'!BM33:BQ33)+SUM('2011 syoa'!FA33:FE33) -> 1176 | R33: =SUM('2011 syoa'!BR33:BV33)+SUM('2011 syoa'!FF33:FJ33) -> 963 | S33: =SUM('2011 syoa'!BW33:CA33)+SUM('2011 syoa'!FK33:FO33) -> 847 | T33: =SUM('2011 syoa'!CB33:CF33)+SUM('2011 syoa'!FP33:FT33) -> 710 | U33: =SUM('2011 syoa'!CG33:CK33)+SUM('2011 syoa'!FU33:FY33) -> 522 | V33: =SUM('2011 syoa'!CL33:CP33)+SUM('2011 syoa'!FZ33:GD33) -> 248 | W33: =SUM('2011 syoa'!CQ33)+SUM('2011 syoa'!GE33) -> 125
A34: E05001207 | B34: Sparkbrook | C34: Hall Green | D34: =SUM('2011 syoa'!D34)+SUM('2011 syoa'!CR34) -> 32512 | E34: =SUM('2011 syoa'!E34:I34)+SUM('2011 syoa'!CS34:CW34) -> 3275 | F34: =SUM('2011 syoa'!J34:N34)+SUM('2011 syoa'!CX34:DB34) -> 3163 | G34: =SUM('2011 syoa'!O34:S34)+SUM('2011 syoa'!DC34:DG34) -> 3004 | H34: =SUM('2011 syoa'!T34:X34)+SUM('2011 syoa'!DH34:DL34) -> 2855 | I34: =SUM('2011 syoa'!Y34:AC34)+SUM('2011 syoa'!DM34:DQ34) -> 2816 | J34: =SUM('2011 syoa'!AD34:AH34)+SUM('2011 syoa'!DR34:DV34) -> 3019 | K34: =SUM('2011 syoa'!AI34:AM34)+SUM('2011 syoa'!DW34:EA34) -> 2630 | L34: =SUM('2011 syoa'!AN34:AR34)+SUM('2011 syoa'!EB34:EF34) -> 2193 | M34: =SUM('2011 syoa'!AS34:AW34)+SUM('2011 syoa'!EG34:EK34) -> 1920 | N34: =SUM('2011 syoa'!AX34:BB34)+SUM('2011 syoa'!EL34:EP34) -> 1557 | O34: =SUM('2011 syoa'!BC34:BG34)+SUM('2011 syoa'!EQ34:EU34) -> 1377 | P34: =SUM('2011 syoa'!BH34:BL34)+SUM('2011 syoa'!EV34:EZ34) -> 1183 | Q34: =SUM('2011 syoa'!BM34:BQ34)+SUM('2011 syoa'!FA34:FE34) -> 868 | R34: =SUM('2011 syoa'!BR34:BV34)+SUM('2011 syoa'!FF34:FJ34) -> 658 | S34: =SUM('2011 syoa'!BW34:CA34)+SUM('2011 syoa'!FK34:FO34) -> 697 | T34: =SUM('2011 syoa'!CB34:CF34)+SUM('2011 syoa'!FP34:FT34) -> 661 | U34: =SUM('2011 syoa'!CG34:CK34)+SUM('2011 syoa'!FU34:FY34) -> 401 | V34: =SUM('2011 syoa'!CL34:CP34)+SUM('2011 syoa'!FZ34:GD34) -> 159 | W34: =SUM('2011 syoa'!CQ34)+SUM('2011 syoa'!GE34) -> 76
A35: E05001208 | B35: Springfield | C35: Hall Green | D35: =SUM('2011 syoa'!D35)+SUM('2011 syoa'!CR35) -> 31432 | E35: =SUM('2011 syoa'!E35:I35)+SUM('2011 syoa'!CS35:CW35) -> 2997 | F35: =SUM('2011 syoa'!J35:N35)+SUM('2011 syoa'!CX35:DB35) -> 2871 | G35: =SUM('2011 syoa'!O35:S35)+SUM('2011 syoa'!DC35:DG35) -> 2670 | H35: =SUM('2011 syoa'!T35:X35)+SUM('2011 syoa'!DH35:DL35) -> 2477 | I35: =SUM('2011 syoa'!Y35:AC35)+SUM('2011 syoa'!DM35:DQ35) -> 2506 | J35: =SUM('2011 syoa'!AD35:AH35)+SUM('2011 syoa'!DR35:DV35) -> 2792 | K35: =SUM('2011 syoa'!AI35:AM35)+SUM('2011 syoa'!DW35:EA35) -> 2598 | L35: =SUM('2011 syoa'!AN35:AR35)+SUM('2011 syoa'!EB35:EF35) -> 2233 | M35: =SUM('2011 syoa'!AS35:AW35)+SUM('2011 syoa'!EG35:EK35) -> 1962 | N35: =SUM('2011 syoa'!AX35:BB35)+SUM('2011 syoa'!EL35:EP35) -> 1540 | O35: =SUM('2011 syoa'!BC35:BG35)+SUM('2011 syoa'!EQ35:EU35) -> 1403 | P35: =SUM('2011 syoa'!BH35:BL35)+SUM('2011 syoa'!EV35:EZ35) -> 1381 | Q35: =SUM('2011 syoa'!BM35:BQ35)+SUM('2011 syoa'!FA35:FE35) -> 994 | R35: =SUM('2011 syoa'!BR35:BV35)+SUM('2011 syoa'!FF35:FJ35) -> 796 | S35: =SUM('2011 syoa'!BW35:CA35)+SUM('2011 syoa'!FK35:FO35) -> 779 | T35: =SUM('2011 syoa'!CB35:CF35)+SUM('2011 syoa'!FP35:FT35) -> 647 | U35: =SUM('2011 syoa'!CG35:CK35)+SUM('2011 syoa'!FU35:FY35) -> 451 | V35: =SUM('2011 syoa'!CL35:CP35)+SUM('2011 syoa'!FZ35:GD35) -> 239 | W35: =SUM('2011 syoa'!CQ35)+SUM('2011 syoa'!GE35) -> 96
A36: E05001209 | B36: Stechford and Yardley North | C36: Yardley | D36: =SUM('2011 syoa'!D36)+SUM('2011 syoa'!CR36) -> 25789 | E36: =SUM('2011 syoa'!E36:I36)+SUM('2011 syoa'!CS36:CW36) -> 2030 | F36: =SUM('2011 syoa'!J36:N36)+SUM('2011 syoa'!CX36:DB36) -> 1893 | G36: =SUM('2011 syoa'!O36:S36)+SUM('2011 syoa'!DC36:DG36) -> 1905 | H36: =SUM('2011 syoa'!T36:X36)+SUM('2011 syoa'!DH36:DL36) -> 1904 | I36: =SUM('2011 syoa'!Y36:AC36)+SUM('2011 syoa'!DM36:DQ36) -> 1733 | J36: =SUM('2011 syoa'!AD36:AH36)+SUM('2011 syoa'!DR36:DV36) -> 1785 | K36: =SUM('2011 syoa'!AI36:AM36)+SUM('2011 syoa'!DW36:EA36) -> 1667 | L36: =SUM('2011 syoa'!AN36:AR36)+SUM('2011 syoa'!EB36:EF36) -> 1600 | M36: =SUM('2011 syoa'!AS36:AW36)+SUM('2011 syoa'!EG36:EK36) -> 1769 | N36: =SUM('2011 syoa'!AX36:BB36)+SUM('2011 syoa'!EL36:EP36) -> 1761 | O36: =SUM('2011 syoa'!BC36:BG36)+SUM('2011 syoa'!EQ36:EU36) -> 1537 | P36: =SUM('2011 syoa'!BH36:BL36)+SUM('2011 syoa'!EV36:EZ36) -> 1249 | Q36: =SUM('2011 syoa'!BM36:BQ36)+SUM('2011 syoa'!FA36:FE36) -> 1198 | R36: =SUM('2011 syoa'!BR36:BV36)+SUM('2011 syoa'!FF36:FJ36) -> 990 | S36: =SUM('2011 syoa'!BW36:CA36)+SUM('2011 syoa'!FK36:FO36) -> 858 | T36: =SUM('2011 syoa'!CB36:CF36)+SUM('2011 syoa'!FP36:FT36) -> 748 | U36: =SUM('2011 syoa'!CG36:CK36)+SUM('2011 syoa'!FU36:FY36) -> 585 | V36: =SUM('2011 syoa'!CL36:CP36)+SUM('2011 syoa'!FZ36:GD36) -> 361 | W36: =SUM('2011 syoa'!CQ36)+SUM('2011 syoa'!GE36) -> 216
A37: E05001210 | B37: Stockland Green | C37: Erdington | D37: =SUM('2011 syoa'!D37)+SUM('2011 syoa'!CR37) -> 24393 | E37: =SUM('2011 syoa'!E37:I37)+SUM('2011 syoa'!CS37:CW37) -> 1845 | F37: =SUM('2011 syoa'!J37:N37)+SUM('2011 syoa'!CX37:DB37) -> 1425 | G37: =SUM('2011 syoa'!O37:S37)+SUM('2011 syoa'!DC37:DG37) -> 1417 | H37: =SUM('2011 syoa'!T37:X37)+SUM('2011 syoa'!DH37:DL37) -> 1562 | I37: =SUM('2011 syoa'!Y37:AC37)+SUM('2011 syoa'!DM37:DQ37) -> 1976 | J37: =SUM('2011 syoa'!AD37:AH37)+SUM('2011 syoa'!DR37:DV37) -> 2208 | K37: =SUM('2011 syoa'!AI37:AM37)+SUM('2011 syoa'!DW37:EA37) -> 1934 | L37: =SUM('2011 syoa'!AN37:AR37)+SUM('2011 syoa'!EB37:EF37) -> 1713 | M37: =SUM('2011 syoa'!AS37:AW37)+SUM('2011 syoa'!EG37:EK37) -> 1727 | N37: =SUM('2011 syoa'!AX37:BB37)+SUM('2011 syoa'!EL37:EP37) -> 1885 | O37: =SUM('2011 syoa'!BC37:BG37)+SUM('2011 syoa'!EQ37:EU37) -> 1482 | P37: =SUM('2011 syoa'!BH37:BL37)+SUM('2011 syoa'!EV37:EZ37) -> 1142 | Q37: =SUM('2011 syoa'!BM37:BQ37)+SUM('2011 syoa'!FA37:FE37) -> 1071 | R37: =SUM('2011 syoa'!BR37:BV37)+SUM('2011 syoa'!FF37:FJ37) -> 772 | S37: =SUM('2011 syoa'!BW37:CA37)+SUM('2011 syoa'!FK37:FO37) -> 709 | T37: =SUM('2011 syoa'!CB37:CF37)+SUM('2011 syoa'!FP37:FT37) -> 604 | U37: =SUM('2011 syoa'!CG37:CK37)+SUM('2011 syoa'!FU37:FY37) -> 461 | V37: =SUM('2011 syoa'!CL37:CP37)+SUM('2011 syoa'!FZ37:GD37) -> 283 | W37: =SUM('2011 syoa'!CQ37)+SUM('2011 syoa'!GE37) -> 177
A38: E05001211 | B38: Sutton Four Oaks | C38: Sutton Coldfield | D38: =SUM('2011 syoa'!D38)+SUM('2011 syoa'!CR38) -> 23939 | E38: =SUM('2011 syoa'!E38:I38)+SUM('2011 syoa'!CS38:CW38) -> 1312 | F38: =SUM('2011 syoa'!J38:N38)+SUM('2011 syoa'!CX38:DB38) -> 1409 | G38: =SUM('2011 syoa'!O38:S38)+SUM('2011 syoa'!DC38:DG38) -> 1503 | H38: =SUM('2011 syoa'!T38:X38)+SUM('2011 syoa'!DH38:DL38) -> 1348 | I38: =SUM('2011 syoa'!Y38:AC38)+SUM('2011 syoa'!DM38:DQ38) -> 971 | J38: =SUM('2011 syoa'!AD38:AH38)+SUM('2011 syoa'!DR38:DV38) -> 1010 | K38: =SUM('2011 syoa'!AI38:AM38)+SUM('2011 syoa'!DW38:EA38) -> 1164 | L38: =SUM('2011 syoa'!AN38:AR38)+SUM('2011 syoa'!EB38:EF38) -> 1440 | M38: =SUM('2011 syoa'!AS38:AW38)+SUM('2011 syoa'!EG38:EK38) -> 1873 | N38: =SUM('2011 syoa'!AX38:BB38)+SUM('2011 syoa'!EL38:EP38) -> 1881 | O38: =SUM('2011 syoa'!BC38:BG38)+SUM('2011 syoa'!EQ38:EU38) -> 1574 | P38: =SUM('2011 syoa'!BH38:BL38)+SUM('2011 syoa'!EV38:EZ38) -> 1451 | Q38: =SUM('2011 syoa'!BM38:BQ38)+SUM('2011 syoa'!FA38:FE38) -> 1574 | R38: =SUM('2011 syoa'!BR38:BV38)+SUM('2011 syoa'!FF38:FJ38) -> 1496 | S38: =SUM('2011 syoa'!BW38:CA38)+SUM('2011 syoa'!FK38:FO38) -> 1146 | T38: =SUM('2011 syoa'!CB38:CF38)+SUM('2011 syoa'!FP38:FT38) -> 1115 | U38: =SUM('2011 syoa'!CG38:CK38)+SUM('2011 syoa'!FU38:FY38) -> 914 | V38: =SUM('2011 syoa'!CL38:CP38)+SUM('2011 syoa'!FZ38:GD38) -> 506 | W38: =SUM('2011 syoa'!CQ38)+SUM('2011 syoa'!GE38) -> 252
A39: E05001212 | B39: Sutton New Hall | C39: Sutton Coldfield | D39: =SUM('2011 syoa'!D39)+SUM('2011 syoa'!CR39) -> 22381 | E39: =SUM('2011 syoa'!E39:I39)+SUM('2011 syoa'!CS39:CW39) -> 1110 | F39: =SUM('2011 syoa'!J39:N39)+SUM('2011 syoa'!CX39:DB39) -> 1181 | G39: =SUM('2011 syoa'!O39:S39)+SUM('2011 syoa'!DC39:DG39) -> 1295 | H39: =SUM('2011 syoa'!T39:X39)+SUM('2011 syoa'!DH39:DL39) -> 1279 | I39: =SUM('2011 syoa'!Y39:AC39)+SUM('2011 syoa'!DM39:DQ39) -> 1050 | J39: =SUM('2011 syoa'!AD39:AH39)+SUM('2011 syoa'!DR39:DV39) -> 1096 | K39: =SUM('2011 syoa'!AI39:AM39)+SUM('2011 syoa'!DW39:EA39) -> 1132 | L39: =SUM('2011 syoa'!AN39:AR39)+SUM('2011 syoa'!EB39:EF39) -> 1345 | M39: =SUM('2011 syoa'!AS39:AW39)+SUM('2011 syoa'!EG39:EK39) -> 1628 | N39: =SUM('2011 syoa'!AX39:BB39)+SUM('2011 syoa'!EL39:EP39) -> 1839 | O39: =SUM('2011 syoa'!BC39:BG39)+SUM('2011 syoa'!EQ39:EU39) -> 1680 | P39: =SUM('2011 syoa'!BH39:BL39)+SUM('2011 syoa'!EV39:EZ39) -> 1641 | Q39: =SUM('2011 syoa'!BM39:BQ39)+SUM('2011 syoa'!FA39:FE39) -> 1747 | R39: =SUM('2011 syoa'!BR39:BV39)+SUM('2011 syoa'!FF39:FJ39) -> 1248 | S39: =SUM('2011 syoa'!BW39:CA39)+SUM('2011 syoa'!FK39:FO39) -> 943 | T39: =SUM('2011 syoa'!CB39:CF39)+SUM('2011 syoa'!FP39:FT39) -> 846 | U39: =SUM('2011 syoa'!CG39:CK39)+SUM('2011 syoa'!FU39:FY39) -> 712 | V39: =SUM('2011 syoa'!CL39:CP39)+SUM('2011 syoa'!FZ39:GD39) -> 410 | W39: =SUM('2011 syoa'!CQ39)+SUM('2011 syoa'!GE39) -> 199
A40: E05001213 | B40: Sutton Trinity | C40: Sutton Coldfield | D40: =SUM('2011 syoa'!D40)+SUM('2011 syoa'!CR40) -> 25203 | E40: =SUM('2011 syoa'!E40:I40)+SUM('2011 syoa'!CS40:CW40) -> 1451 | F40: =SUM('2011 syoa'!J40:N40)+SUM('2011 syoa'!CX40:DB40) -> 1475 | G40: =SUM('2011 syoa'!O40:S40)+SUM('2011 syoa'!DC40:DG40) -> 1598 | H40: =SUM('2011 syoa'!T40:X40)+SUM('2011 syoa'!DH40:DL40) -> 1625 | I40: =SUM('2011 syoa'!Y40:AC40)+SUM('2011 syoa'!DM40:DQ40) -> 1270 | J40: =SUM('2011 syoa'!AD40:AH40)+SUM('2011 syoa'!DR40:DV40) -> 1440 | K40: =SUM('2011 syoa'!AI40:AM40)+SUM('2011 syoa'!DW40:EA40) -> 1424 | L40: =SUM('2011 syoa'!AN40:AR40)+SUM('2011 syoa'!EB40:EF40) -> 1552 | M40: =SUM('2011 syoa'!AS40:AW40)+SUM('2011 syoa'!EG40:EK40) -> 1874 | N40: =SUM('2011 syoa'!AX40:BB40)+SUM('2011 syoa'!EL40:EP40) -> 1975 | O40: =SUM('2011 syoa'!BC40:BG40)+SUM('2011 syoa'!EQ40:EU40) -> 1779 | P40: =SUM('2011 syoa'!BH40:BL40)+SUM('2011 syoa'!EV40:EZ40) -> 1484 | Q40: =SUM('2011 syoa'!BM40:BQ40)+SUM('2011 syoa'!FA40:FE40) -> 1522 | R40: =SUM('2011 syoa'!BR40:BV40)+SUM('2011 syoa'!FF40:FJ40) -> 1340 | S40: =SUM('2011 syoa'!BW40:CA40)+SUM('2011 syoa'!FK40:FO40) -> 1011 | T40: =SUM('2011 syoa'!CB40:CF40)+SUM('2011 syoa'!FP40:FT40) -> 924 | U40: =SUM('2011 syoa'!CG40:CK40)+SUM('2011 syoa'!FU40:FY40) -> 779 | V40: =SUM('2011 syoa'!CL40:CP40)+SUM('2011 syoa'!FZ40:GD40) -> 459 | W40: =SUM('2011 syoa'!CQ40)+SUM('2011 syoa'!GE40) -> 221
A41: E05001214 | B41: Sutton Vesey | C41: Sutton Coldfield | D41: =SUM('2011 syoa'!D41)+SUM('2011 syoa'!CR41) -> 23311 | E41: =SUM('2011 syoa'!E41:I41)+SUM('2011 syoa'!CS41:CW41) -> 1186 | F41: =SUM('2011 syoa'!J41:N41)+SUM('2011 syoa'!CX41:DB41) -> 1220 | G41: =SUM('2011 syoa'!O41:S41)+SUM('2011 syoa'!DC41:DG41) -> 1373 | H41: =SUM('2011 syoa'!T41:X41)+SUM('2011 syoa'!DH41:DL41) -> 1418 | I41: =SUM('2011 syoa'!Y41:AC41)+SUM('2011 syoa'!DM41:DQ41) -> 1199 | J41: =SUM('2011 syoa'!AD41:AH41)+SUM('2011 syoa'!DR41:DV41) -> 1261 | K41: =SUM('2011 syoa'!AI41:AM41)+SUM('2011 syoa'!DW41:EA41) -> 1207 | L41: =SUM('2011 syoa'!AN41:AR41)+SUM('2011 syoa'!EB41:EF41) -> 1434 | M41: =SUM('2011 syoa'!AS41:AW41)+SUM('2011 syoa'!EG41:EK41) -> 1692 | N41: =SUM('2011 syoa'!AX41:BB41)+SUM('2011 syoa'!EL41:EP41) -> 1895 | O41: =SUM('2011 syoa'!BC41:BG41)+SUM('2011 syoa'!EQ41:EU41) -> 1746 | P41: =SUM('2011 syoa'!BH41:BL41)+SUM('2011 syoa'!EV41:EZ41) -> 1516 | Q41: =SUM('2011 syoa'!BM41:BQ41)+SUM('2011 syoa'!FA41:FE41) -> 1563 | R41: =SUM('2011 syoa'!BR41:BV41)+SUM('2011 syoa'!FF41:FJ41) -> 1294 | S41: =SUM('2011 syoa'!BW41:CA41)+SUM('2011 syoa'!FK41:FO41) -> 1035 | T41: =SUM('2011 syoa'!CB41:CF41)+SUM('2011 syoa'!FP41:FT41) -> 903 | U41: =SUM('2011 syoa'!CG41:CK41)+SUM('2011 syoa'!FU41:FY41) -> 705 | V41: =SUM('2011 syoa'!CL41:CP41)+SUM('2011 syoa'!FZ41:GD41) -> 438 | W41: =SUM('2011 syoa'!CQ41)+SUM('2011 syoa'!GE41) -> 226
A42: E05001215 | B42: Tyburn | C42: Erdington | D42: =SUM('2011 syoa'!D42)+SUM('2011 syoa'!CR42) -> 25317 | E42: =SUM('2011 syoa'!E42:I42)+SUM('2011 syoa'!CS42:CW42) -> 1842 | F42: =SUM('2011 syoa'!J42:N42)+SUM('2011 syoa'!CX42:DB42) -> 1803 | G42: =SUM('2011 syoa'!O42:S42)+SUM('2011 syoa'!DC42:DG42) -> 1879 | H42: =SUM('2011 syoa'!T42:X42)+SUM('2011 syoa'!DH42:DL42) -> 1898 | I42: =SUM('2011 syoa'!Y42:AC42)+SUM('2011 syoa'!DM42:DQ42) -> 1648 | J42: =SUM('2011 syoa'!AD42:AH42)+SUM('2011 syoa'!DR42:DV42) -> 1697 | K42: =SUM('2011 syoa'!AI42:AM42)+SUM('2011 syoa'!DW42:EA42) -> 1614 | L42: =SUM('2011 syoa'!AN42:AR42)+SUM('2011 syoa'!EB42:EF42) -> 1624 | M42: =SUM('2011 syoa'!AS42:AW42)+SUM('2011 syoa'!EG42:EK42) -> 1925 | N42: =SUM('2011 syoa'!AX42:BB42)+SUM('2011 syoa'!EL42:EP42) -> 1840 | O42: =SUM('2011 syoa'!BC42:BG42)+SUM('2011 syoa'!EQ42:EU42) -> 1482 | P42: =SUM('2011 syoa'!BH42:BL42)+SUM('2011 syoa'!EV42:EZ42) -> 1221 | Q42: =SUM('2011 syoa'!BM42:BQ42)+SUM('2011 syoa'!FA42:FE42) -> 1082 | R42: =SUM('2011 syoa'!BR42:BV42)+SUM('2011 syoa'!FF42:FJ42) -> 1007 | S42: =SUM('2011 syoa'!BW42:CA42)+SUM('2011 syoa'!FK42:FO42) -> 862 | T42: =SUM('2011 syoa'!CB42:CF42)+SUM('2011 syoa'!FP42:FT42) -> 818 | U42: =SUM('2011 syoa'!CG42:CK42)+SUM('2011 syoa'!FU42:FY42) -> 598 | V42: =SUM('2011 syoa'!CL42:CP42)+SUM('2011 syoa'!FZ42:GD42) -> 328 | W42: =SUM('2011 syoa'!CQ42)+SUM('2011 syoa'!GE42) -> 149
A43: E05001216 | B43: Washwood Heath | C43: Hodge Hill | D43: =SUM('2011 syoa'!D43)+SUM('2011 syoa'!CR43) -> 32983 | E43: =SUM('2011 syoa'!E43:I43)+SUM('2011 syoa'!CS43:CW43) -> 3480 | F43: =SUM('2011 syoa'!J43:N43)+SUM('2011 syoa'!CX43:DB43) -> 3606 | G43: =SUM('2011 syoa'!O43:S43)+SUM('2011 syoa'!DC43:DG43) -> 3422 | H43: =SUM('2011 syoa'!T43:X43)+SUM('2011 syoa'!DH43:DL43) -> 2997 | I43: =SUM('2011 syoa'!Y43:AC43)+SUM('2011 syoa'!DM43:DQ43) -> 2626 | J43: =SUM('2011 syoa'!AD43:AH43)+SUM('2011 syoa'!DR43:DV43) -> 2712 | K43: =SUM('2011 syoa'!AI43:AM43)+SUM('2011 syoa'!DW43:EA43) -> 2760 | L43: =SUM('2011 syoa'!AN43:AR43)+SUM('2011 syoa'!EB43:EF43) -> 2367 | M43: =SUM('2011 syoa'!AS43:AW43)+SUM('2011 syoa'!EG43:EK43) -> 2043 | N43: =SUM('2011 syoa'!AX43:BB43)+SUM('2011 syoa'!EL43:EP43) -> 1436 | O43: =SUM('2011 syoa'!BC43:BG43)+SUM('2011 syoa'!EQ43:EU43) -> 1221 | P43: =SUM('2011 syoa'!BH43:BL43)+SUM('2011 syoa'!EV43:EZ43) -> 1144 | Q43: =SUM('2011 syoa'!BM43:BQ43)+SUM('2011 syoa'!FA43:FE43) -> 736 | R43: =SUM('2011 syoa'!BR43:BV43)+SUM('2011 syoa'!FF43:FJ43) -> 572 | S43: =SUM('2011 syoa'!BW43:CA43)+SUM('2011 syoa'!FK43:FO43) -> 627 | T43: =SUM('2011 syoa'!CB43:CF43)+SUM('2011 syoa'!FP43:FT43) -> 568 | U43: =SUM('2011 syoa'!CG43:CK43)+SUM('2011 syoa'!FU43:FY43) -> 390 | V43: =SUM('2011 syoa'!CL43:CP43)+SUM('2011 syoa'!FZ43:GD43) -> 180 | W43: =SUM('2011 syoa'!CQ43)+SUM('2011 syoa'!GE43) -> 96
A44: E05001217 | B44: Weoley | C44: Northfield | D44: =SUM('2011 syoa'!D44)+SUM('2011 syoa'!CR44) -> 25938 | E44: =SUM('2011 syoa'!E44:I44)+SUM('2011 syoa'!CS44:CW44) -> 2061 | F44: =SUM('2011 syoa'!J44:N44)+SUM('2011 syoa'!CX44:DB44) -> 1738 | G44: =SUM('2011 syoa'!O44:S44)+SUM('2011 syoa'!DC44:DG44) -> 1758 | H44: =SUM('2011 syoa'!T44:X44)+SUM('2011 syoa'!DH44:DL44) -> 1887 | I44: =SUM('2011 syoa'!Y44:AC44)+SUM('2011 syoa'!DM44:DQ44) -> 1749 | J44: =SUM('2011 syoa'!AD44:AH44)+SUM('2011 syoa'!DR44:DV44) -> 1751 | K44: =SUM('2011 syoa'!AI44:AM44)+SUM('2011 syoa'!DW44:EA44) -> 1693 | L44: =SUM('2011 syoa'!AN44:AR44)+SUM('2011 syoa'!EB44:EF44) -> 1740 | M44: =SUM('2011 syoa'!AS44:AW44)+SUM('2011 syoa'!EG44:EK44) -> 1806 | N44: =SUM('2011 syoa'!AX44:BB44)+SUM('2011 syoa'!EL44:EP44) -> 1748 | O44: =SUM('2011 syoa'!BC44:BG44)+SUM('2011 syoa'!EQ44:EU44) -> 1572 | P44: =SUM('2011 syoa'!BH44:BL44)+SUM('2011 syoa'!EV44:EZ44) -> 1323 | Q44: =SUM('2011 syoa'!BM44:BQ44)+SUM('2011 syoa'!FA44:FE44) -> 1204 | R44: =SUM('2011 syoa'!BR44:BV44)+SUM('2011 syoa'!FF44:FJ44) -> 1044 | S44: =SUM('2011 syoa'!BW44:CA44)+SUM('2011 syoa'!FK44:FO44) -> 856 | T44: =SUM('2011 syoa'!CB44:CF44)+SUM('2011 syoa'!FP44:FT44) -> 784 | U44: =SUM('2011 syoa'!CG44:CK44)+SUM('2011 syoa'!FU44:FY44) -> 651 | V44: =SUM('2011 syoa'!CL44:CP44)+SUM('2011 syoa'!FZ44:GD44) -> 386 | W44: =SUM('2011 syoa'!CQ44)+SUM('2011 syoa'!GE44) -> 187
B45: Birmingham | D45: =SUM(D5:D44) -> 1074283 | E45: =SUM(E5:E44) -> 82111 | F45: 74724 | G45: 73423 | H45: 79035 | I45: 94338 | J45: 85862 | K45: 79334 | L45: 71296 | M45: 72179 | N45: 68285 | O45: 58285 | P45: 50309 | Q45: 46332 | R45: 38071 | S45: 32212 | T45: 27975 | U45: 21219 | V45: 12732 | W45: 6561
A46: Office for National Statistics, Crown Copyright 2014 | B46: Office for National Statistics, Crown Copyright 2014
A48: Service Development Team | B48: Service Development Team
A49: Planning & Regeneration | B49: Planning & Regeneration
A50: www.birmingham.gov.uk/census | B50: www.birmingham.gov.uk/census
A51: population.census@birmingham.gov.uk | B51: population.census@birmingham.gov.uk
A52: 0121 303 4208 | B52: 0121 303 4208

Sheet 2015 syoa (hidden)
A1: 2015 Birmingham Ward population (experimental statistics) | F1: Estimates should be aggregated to at least five-year age groups before publication
A2: =1 -> 1 | B2: =1+A2 -> 2 | C2: =1+B2 -> 3 | D2: 4 | E2: 5 | F2: 6 | G2: 7 | H2: 8 | I2: 9 | J2: 10 | K2: 11 | L2: 12 | M2: 13 | N2: 14 | O2: 15 | P2: 16 | Q2: 17 | R2: 18 | S2: 19 | T2: 20 | U2: 21 | V2: 22 | W2: 23 | X2: 24 | Y2: 25 | Z2: 26 | AA2: 27 | AB2: 28 | AC2: 29 | AD2: 30 | AE2: 31 | AF2: 32 | AG2: 33 | AH2: 34 | AI2: 35 | AJ2: 36 | AK2: 37 | AL2: 38 | AM2: 39 | AN2: 40 | AO2: 41 | AP2: 42 | AQ2: 43 | AR2: 44 | AS2: 45 | AT2: 46 | AU2: 47 | AV2: 48 | AW2: 49 | AX2: 50 | AY2: 51 | AZ2: 52 | BA2: 53 | BB2: 54 | BC2: 55 | BD2: 56 | BE2: 57 | BF2: 58 | BG2: 59 | BH2: 60 | BI2: 61 | BJ2: 62 | BK2: 63 | BL2: 64 | BM2: 65 | BN2: 66 | BO2: =1+BN2 -> 67 | BP2: 68 | BQ2: 69 | BR2: 70 | BS2: 71 | BT2: 72 | BU2: 73 | BV2: 74 | BW2: 75 | BX2: 76 | BY2: 77 | BZ2: 78 | CA2: 79 | CB2: 80 | CC2: 81 | CD2: 82 | CE2: 83 | CF2: 84 | CG2: 85 | CH2: 86 | CI2: 87 | CJ2: 88 | CK2: 89 | CL2: 90 | CM2: 91 | CN2: 92 | CO2: 93 | CP2: 94 | CQ2: 95 | CR2: 96 | CS2: 97 | CT2: 98 | CU2: 99 | CV2: 100 | CW2: 101 | CX2: 102 | CY2: 103 | CZ2: 104 | DA2: 105 | DB2: 106 | DC2: 107 | DD2: 108 | DE2: 109 | DF2: 110 | DG2: 111 | DH2: 112 | DI2: 113 | DJ2: 114 | DK2: 115 | DL2: 116 | DM2: 117 | DN2: 118 | DO2: 119 | DP2: 120 | DQ2: 121 | DR2: 122 | DS2: 123 | DT2: 124 | DU2: 125 | DV2: 126 | DW2: 127 | DX2: 128 | DY2: 129 | DZ2: 130 | EA2: =1+DZ2 -> 131 | EB2: 132 | EC2: 133 | ED2: 134 | EE2: 135 | EF2: 136 | EG2: 137 | EH2: 138 | EI2: 139 | EJ2: 140 | EK2: 141 | EL2: 142 | EM2: 143 | EN2: 144 | EO2: 145 | EP2: 146 | EQ2: 147 | ER2: 148 | ES2: 149 | ET2: 150 | EU2: 151 | EV2: 152 | EW2: 153 | EX2: 154 | EY2: 155 | EZ2: 156 | FA2: 157 | FB2: 158 | FC2: 159 | FD2: 160 | FE2: 161 | FF2: 162 | FG2: 163 | FH2: 164 | FI2: 165 | FJ2: 166 | FK2: 167 | FL2: 168 | FM2: 169 | FN2: 170 | FO2: 171 | FP2: 172 | FQ2: 173 | FR2: 174 | FS2: 175 | FT2: 176 | FU2: 177 | FV2: 178 | FW2: 179 | FX2: 180 | FY2: 181 | FZ2: 182 | GA2: 183 | GB2: 184 | GC2: 185 | GD2: 186 | GE2: 187
A3: ward | B3: constituency | C3: code | D3: All males | E3: 0 | F3: 1 | G3: 2 | H3: 3 | I3: 4 | J3: 5 | K3: 6 | L3: 7 | M3: 8 | N3: 9 | O3: 10 | P3: 11 | Q3: 12 | R3: 13 | S3: 14 | T3: 15 | U3: 16 | V3: 17 | W3: 18 | X3: 19 | Y3: 20 | Z3: 21 | AA3: 22 | AB3: 23 | AC3: 24 | AD3: 25 | AE3: 26 | AF3: 27 | AG3: 28 | AH3: 29 | AI3: 30 | AJ3: 31 | AK3: 32 | AL3: 33 | AM3: 34 | AN3: 35 | AO3: 36 | AP3: 37 | AQ3: 38 | AR3: 39 | AS3: 40 | AT3: 41 | AU3: 42 | AV3: 43 | AW3: 44 | AX3: 45 | AY3: 46 | AZ3: 47 | BA3: 48 | BB3: 49 | BC3: 50 | BD3: 51 | BE3: 52 | BF3: 53 | BG3: 54 | BH3: 55 | BI3: 56 | BJ3: 57 | BK3: 58 | BL3: 59 | BM3: 60 | BN3: 61 | BO3: 62 | BP3: 63 | BQ3: 64 | BR3: 65 | BS3: 66 | BT3: 67 | BU3: 68 | BV3: 69 | BW3: 70 | BX3: 71 | BY3: 72 | BZ3: 73 | CA3: 74 | CB3: 75 | CC3: 76 | CD3: 77 | CE3: 78 | CF3: 79 | CG3: 80 | CH3: 81 | CI3: 82 | CJ3: 83 | CK3: 84 | CL3: 85 | CM3: 86 | CN3: 87 | CO3: 88 | CP3: 89 | CQ3: 90 | CR3: all females | CS3: 0 | CT3: =CS3+1 -> 1 | CU3: =CT3+1 -> 2 | CV3: 3 | CW3: 4 | CX3: 5 | CY3: 6 | CZ3: 7 | DA3: 8 | DB3: 9 | DC3: 10 | DD3: 11 | DE3: 12 | DF3: 13 | DG3: 14 | DH3: 15 | DI3: 16 | DJ3: 17 | DK3: 18 | DL3: 19 | DM3: 20 | DN3: 21 | DO3: 22 | DP3: 23 | DQ3: 24 | DR3: 25 | DS3: 26 | DT3: 27 | DU3: 28 | DV3: 29 | DW3: 30 | DX3: 31 | DY3: 32 | DZ3: 33 | EA3: 34 | EB3: 35 | EC3: 36 | ED3: 37 | EE3: 38 | EF3: 39 | EG3: 40 | EH3: 41 | EI3: 42 | EJ3: 43 | EK3: 44 | EL3: 45 | EM3: 46 | EN3: 47 | EO3: 48 | EP3: 49 | EQ3: 50 | ER3: 51 | ES3: 52 | ET3: 53 | EU3: 54 | EV3: 55 | EW3: 56 | EX3: 57 | EY3: 58 | EZ3: 59 | FA3: 60 | FB3: 61 | FC3: 62 | FD3: 63 | FE3: 64 | FF3: 65 | FG3: =FF3+1 -> 66 | FH3: 67 | FI3: 68 | FJ3: 69 | FK3: 70 | FL3: 71 | FM3: 72 | FN3: 73 | FO3: 74 | FP3: 75 | FQ3: 76 | FR3: 77 | FS3: 78 | FT3: 79 | FU3: 80 | FV3: 81 | FW3: 82 | FX3: 83 | FY3: 84 | FZ3: 85 | GA3: 86 | GB3: 87 | GC3: 88 | GD3: 89 | GE3: 90
D4: males
A5: Acocks Green | B5: Yardley | C5: E05001178 | D5: 14363 | E5: 244 | F5: 241 | G5: 231 | H5: 248 | I5: 231 | J5: 216 | K5: 276 | L5: 212 | M5: 247 | N5: 197 | O5: 185 | P5: 211 | Q5: 217 | R5: 211 | S5: 201 | T5: 204 | U5: 225 | V5: 215 | W5: 237 | X5: 214 | Y5: 224 | Z5: 225 | AA5: 221 | AB5: 207 | AC5: 202 | AD5: 217 | AE5: 203 | AF5: 202 | AG5: 250 | AH5: 190 | AI5: 235 | AJ5: 220 | AK5: 237 | AL5: 233 | AM5: 210 | AN5: 217 | AO5: 223 | AP5: 184 | AQ5: 167 | AR5: 176 | AS5: 189 | AT5: 172 | AU5: 171 | AV5: 165 | AW5: 207 | AX5: 192 | AY5: 193 | AZ5: 180 | BA5: 177 | BB5: 193 | BC5: 176 | BD5: 164 | BE5: 185 | BF5: 191 | BG5: 160 | BH5: 155 | BI5: 140 | BJ5: 135 | BK5: 136 | BL5: 129 | BM5: 123 | BN5: 114 | BO5: 125 | BP5: 135 | BQ5: 109 | BR5: 127 | BS5: 109 | BT5: 88 | BU5: 97 | BV5: 94 | BW5: 73 | BX5: 89 | BY5: 80 | BZ5: 63 | CA5: 84 | CB5: 73 | CC5: 68 | CD5: 68 | CE5: 56 | CF5: 52 | CG5: 39 | CH5: 50 | CI5: 42 | CJ5: 53 | CK5: 37 | CL5: 45 | CM5: 33 | CN5: 28 | CO5: 24 | CP5: 16 | CQ5: 53 | CR5: 14800 | CS5: 238 | CT5: 236 | CU5: 227 | CV5: 241 | CW5: 227 | CX5: 252 | CY5: 223 | CZ5: 231 | DA5: 222 | DB5: 231 | DC5: 179 | DD5: 178 | DE5: 176 | DF5: 177 | DG5: 193 | DH5: 160 | DI5: 192 | DJ5: 204 | DK5: 215 | DL5: 204 | DM5: 184 | DN5: 194 | DO5: 203 | DP5: 191 | DQ5: 195 | DR5: 248 | DS5: 224 | DT5: 227 | DU5: 258 | DV5: 246 | DW5: 237 | DX5: 216 | DY5: 212 | DZ5: 256 | EA5: 230 | EB5: 245 | EC5: 204 | ED5: 195 | EE5: 184 | EF5: 207 | EG5: 184 | EH5: 178 | EI5: 183 | EJ5: 199 | EK5: 187 | EL5: 205 | EM5: 226 | EN5: 225 | EO5: 196 | EP5: 186 | EQ5: 182 | ER5: 169 | ES5: 186 | ET5: 185 | EU5: 174 | EV5: 174 | EW5: 142 | EX5: 129 | EY5: 165 | EZ5: 145 | FA5: 111 | FB5: 108 | FC5: 112 | FD5: 105 | FE5: 108 | FF5: 111 | FG5: 120 | FH5: 113 | FI5: 117 | FJ5: 96 | FK5: 83 | FL5: 93 | FM5: 85 | FN5: 95 | FO5: 61 | FP5: 83 | FQ5: 76 | FR5: 75 | FS5: 89 | FT5: 77 | FU5: 74 | FV5: 70 | FW5: 59 | FX5: 51 | FY5: 57 | FZ5: 55 | GA5: 43 | GB5: 35 | GC5: 42 | GD5: 30 | GE5: 184
A6: Aston | B6: Ladywood | C6: E05001179 | D6: 16815 | E6: 290 | F6: 301 | G6: 332 | H6: 276 | I6: 334 | J6: 317 | K6: 289 | L6: 316 | M6: 271 | N6: 312 | O6: 300 | P6: 289 | Q6: 273 | R6: 282 | S6: 279 | T6: 285 | U6: 333 | V6: 333 | W6: 329 | X6: 356 | Y6: 460 | Z6: 406 | AA6: 402 | AB6: 383 | AC6: 372 | AD6: 301 | AE6: 317 | AF6: 259 | AG6: 278 | AH6: 278 | AI6: 270 | AJ6: 267 | AK6: 260 | AL6: 267 | AM6: 253 | AN6: 258 | AO6: 252 | AP6: 236 | AQ6: 253 | AR6: 234 | AS6: 217 | AT6: 222 | AU6: 212 | AV6: 191 | AW6: 179 | AX6: 211 | AY6: 153 | AZ6: 174 | BA6: 171 | BB6: 157 | BC6: 143 | BD6: 139 | BE6: 142 | BF6: 134 | BG6: 129 | BH6: 112 | BI6: 114 | BJ6: 110 | BK6: 97 | BL6: 96 | BM6: 104 | BN6: 94 | BO6: 121 | BP6: 94 | BQ6: 55 | BR6: 68 | BS6: 49 | BT6: 61 | BU6: 60 | BV6: 52 | BW6: 43 | BX6: 42 | BY6: 49 | BZ6: 52 | CA6: 49 | CB6: 44 | CC6: 48 | CD6: 45 | CE6: 38 | CF6: 55 | CG6: 58 | CH6: 37 | CI6: 39 | CJ6: 37 | CK6: 33 | CL6: 25 | CM6: 19 | CN6: 18 | CO6: 20 | CP6: 17 | CQ6: 83 | CR6: 16558 | CS6: 285 | CT6: 300 | CU6: 275 | CV6: 327 | CW6: 277 | CX6: 266 | CY6: 324 | CZ6: 282 | DA6: 278 | DB6: 287 | DC6: 282 | DD6: 286 | DE6: 263 | DF6: 236 | DG6: 267 | DH6: 279 | DI6: 271 | DJ6: 289 | DK6: 277 | DL6: 317 | DM6: 484 | DN6: 468 | DO6: 427 | DP6: 388 | DQ6: 324 | DR6: 273 | DS6: 254 | DT6: 251 | DU6: 274 | DV6: 270 | DW6: 249 | DX6: 249 | DY6: 263 | DZ6: 254 | EA6: 238 | EB6: 250 | EC6: 225 | ED6: 203 | EE6: 190 | EF6: 220 | EG6: 202 | EH6: 182 | EI6: 235 | EJ6: 199 | EK6: 193 | EL6: 201 | EM6: 163 | EN6: 172 | EO6: 179 | EP6: 165 | EQ6: 154 | ER6: 168 | ES6: 152 | ET6: 160 | EU6: 151 | EV6: 138 | EW6: 105 | EX6: 116 | EY6: 105 | EZ6: 113 | FA6: 102 | FB6: 96 | FC6: 96 | FD6: 95 | FE6: 85 | FF6: 80 | FG6: 83 | FH6: 68 | FI6: 65 | FJ6: 53 | FK6: 61 | FL6: 50 | FM6: 70 | FN6: 59 | FO6: 70 | FP6: 78 | FQ6: 67 | FR6: 59 | FS6: 77 | FT6: 53 | FU6: 54 | FV6: 42 | FW6: 34 | FX6: 41 | FY6: 44 | FZ6: 35 | GA6: 29 | GB6: 29 | GC6: 26 | GD6: 11 | GE6: 71
A7: Bartley Green | B7: Edgbaston | C7: E05001180 | D7: 12182 | E7: 197 | F7: 200 | G7: 164 | H7: 213 | I7: 196 | J7: 185 | K7: 219 | L7: 192 | M7: 175 | N7: 181 | O7: 172 | P7: 164 | Q7: 154 | R7: 170 | S7: 187 | T7: 183 | U7: 161 | V7: 176 | W7: 155 | X7: 174 | Y7: 185 | Z7: 189 | AA7: 175 | AB7: 191 | AC7: 168 | AD7: 178 | AE7: 141 | AF7: 146 | AG7: 130 | AH7: 159 | AI7: 154 | AJ7: 151 | AK7: 178 | AL7: 153 | AM7: 158 | AN7: 156 | AO7: 162 | AP7: 154 | AQ7: 138 | AR7: 141 | AS7: 171 | AT7: 150 | AU7: 150 | AV7: 156 | AW7: 150 | AX7: 131 | AY7: 140 | AZ7: 159 | BA7: 145 | BB7: 142 | BC7: 150 | BD7: 165 | BE7: 180 | BF7: 157 | BG7: 160 | BH7: 116 | BI7: 126 | BJ7: 144 | BK7: 130 | BL7: 111 | BM7: 138 | BN7: 124 | BO7: 129 | BP7: 116 | BQ7: 147 | BR7: 105 | BS7: 116 | BT7: 128 | BU7: 155 | BV7: 106 | BW7: 122 | BX7: 100 | BY7: 105 | BZ7: 76 | CA7: 77 | CB7: 59 | CC7: 53 | CD7: 68 | CE7: 43 | CF7: 61 | CG7: 55 | CH7: 42 | CI7: 40 | CJ7: 29 | CK7: 41 | CL7: 42 | CM7: 34 | CN7: 11 | CO7: 28 | CP7: 17 | CQ7: 57 | CR7: 13504 | CS7: 215 | CT7: 199 | CU7: 186 | CV7: 200 | CW7: 192 | CX7: 179 | CY7: 191 | CZ7: 175 | DA7: 171 | DB7: 201 | DC7: 174 | DD7: 156 | DE7: 139 | DF7: 149 | DG7: 169 | DH7: 150 | DI7: 162 | DJ7: 160 | DK7: 189 | DL7: 188 | DM7: 185 | DN7: 180 | DO7: 183 | DP7: 209 | DQ7: 233 | DR7: 196 | DS7: 207 | DT7: 181 | DU7: 187 | DV7: 168 | DW7: 184 | DX7: 161 | DY7: 181 | DZ7: 181 | EA7: 207 | EB7: 210 | EC7: 184 | ED7: 166 | EE7: 162 | EF7: 166 | EG7: 171 | EH7: 174 | EI7: 209 | EJ7: 176 | EK7: 184 | EL7: 176 | EM7: 179 | EN7: 158 | EO7: 161 | EP7: 172 | EQ7: 190 | ER7: 160 | ES7: 170 | ET7: 184 | EU7: 144 | EV7: 139 | EW7: 168 | EX7: 153 | EY7: 131 | EZ7: 136 | FA7: 132 | FB7: 168 | FC7: 130 | FD7: 139 | FE7: 135 | FF7: 125 | FG7: 164 | FH7: 150 | FI7: 155 | FJ7: 121 | FK7: 91 | FL7: 98 | FM7: 115 | FN7: 87 | FO7: 66 | FP7: 91 | FQ7: 76 | FR7: 68 | FS7: 81 | FT7: 67 | FU7: 58 | FV7: 66 | FW7: 63 | FX7: 50 | FY7: 56 | FZ7: 55 | GA7: 50 | GB7: 39 | GC7: 39 | GD7: 23 | GE7: 135
A8: Billesley | B8: Selly Oak | C8: E05001181 | D8: 12990 | E8: 190 | F8: 216 | G8: 237 | H8: 241 | I8: 212 | J8: 177 | K8: 208 | L8: 201 | M8: 208 | N8: 148 | O8: 188 | P8: 143 | Q8: 150 | R8: 164 | S8: 179 | T8: 174 | U8: 210 | V8: 187 | W8: 183 | X8: 194 | Y8: 178 | Z8: 163 | AA8: 169 | AB8: 179 | AC8: 189 | AD8: 199 | AE8: 181 | AF8: 197 | AG8: 195 | AH8: 185 | AI8: 183 | AJ8: 199 | AK8: 149 | AL8: 188 | AM8: 180 | AN8: 177 | AO8: 179 | AP8: 141 | AQ8: 154 | AR8: 128 | AS8: 146 | AT8: 137 | AU8: 159 | AV8: 154 | AW8: 152 | AX8: 171 | AY8: 172 | AZ8: 168 | BA8: 181 | BB8: 156 | BC8: 162 | BD8: 148 | BE8: 172 | BF8: 151 | BG8: 155 | BH8: 174 | BI8: 150 | BJ8: 160 | BK8: 129 | BL8: 134 | BM8: 144 | BN8: 144 | BO8: 132 | BP8: 137 | BQ8: 121 | BR8: 127 | BS8: 113 | BT8: 128 | BU8: 109 | BV8: 109 | BW8: 90 | BX8: 95 | BY8: 80 | BZ8: 77 | CA8: 71 | CB8: 83 | CC8: 83 | CD8: 96 | CE8: 52 | CF8: 61 | CG8: 60 | CH8: 46 | CI8: 47 | CJ8: 50 | CK8: 47 | CL8: 46 | CM8: 26 | CN8: 38 | CO8: 24 | CP8: 23 | CQ8: 77 | CR8: 13913 | CS8: 193 | CT8: 194 | CU8: 211 | CV8: 221 | CW8: 178 | CX8: 169 | CY8: 194 | CZ8: 176 | DA8: 156 | DB8: 178 | DC8: 213 | DD8: 173 | DE8: 175 | DF8: 152 | DG8: 178 | DH8: 147 | DI8: 157 | DJ8: 168 | DK8: 189 | DL8: 145 | DM8: 174 | DN8: 176 | DO8: 180 | DP8: 170 | DQ8: 198 | DR8: 200 | DS8: 208 | DT8: 206 | DU8: 204 | DV8: 203 | DW8: 201 | DX8: 187 | DY8: 210 | DZ8: 179 | EA8: 188 | EB8: 241 | EC8: 187 | ED8: 152 | EE8: 175 | EF8: 171 | EG8: 153 | EH8: 156 | EI8: 155 | EJ8: 166 | EK8: 178 | EL8: 181 | EM8: 173 | EN8: 194 | EO8: 182 | EP8: 206 | EQ8: 189 | ER8: 204 | ES8: 198 | ET8: 211 | EU8: 180 | EV8: 172 | EW8: 142 | EX8: 164 | EY8: 152 | EZ8: 154 | FA8: 151 | FB8: 116 | FC8: 121 | FD8: 123 | FE8: 132 | FF8: 137 | FG8: 114 | FH8: 137 | FI8: 128 | FJ8: 107 | FK8: 99 | FL8: 100 | FM8: 105 | FN8: 82 | FO8: 83 | FP8: 98 | FQ8: 92 | FR8: 100 | FS8: 98 | FT8: 91 | FU8: 80 | FV8: 72 | FW8: 85 | FX8: 85 | FY8: 64 | FZ8: 65 | GA8: 49 | GB8: 46 | GC8: 39 | GD8: 39 | GE8: 188
A9: Bordesley Green | B9: Hodge Hill | C9: E05001182 | D9: 17644 | E9: 320 | F9: 363 | G9: 403 | H9: 392 | I9: 375 | J9: 390 | K9: 390 | L9: 389 | M9: 375 | N9: 367 | O9: 386 | P9: 355 | Q9: 371 | R9: 358 | S9: 341 | T9: 346 | U9: 361 | V9: 336 | W9: 369 | X9: 308 | Y9: 307 | Z9: 280 | AA9: 291 | AB9: 238 | AC9: 278 | AD9: 293 | AE9: 256 | AF9: 279 | AG9: 261 | AH9: 255 | AI9: 299 | AJ9: 285 | AK9: 271 | AL9: 245 | AM9: 267 | AN9: 268 | AO9: 248 | AP9: 233 | AQ9: 238 | AR9: 232 | AS9: 232 | AT9: 218 | AU9: 237 | AV9: 210 | AW9: 202 | AX9: 213 | AY9: 203 | AZ9: 207 | BA9: 168 | BB9: 167 | BC9: 140 | BD9: 136 | BE9: 136 | BF9: 126 | BG9: 124 | BH9: 126 | BI9: 103 | BJ9: 124 | BK9: 139 | BL9: 118 | BM9: 118 | BN9: 92 | BO9: 108 | BP9: 88 | BQ9: 78 | BR9: 71 | BS9: 56 | BT9: 62 | BU9: 60 | BV9: 52 | BW9: 43 | BX9: 52 | BY9: 61 | BZ9: 54 | CA9: 52 | CB9: 58 | CC9: 50 | CD9: 55 | CE9: 73 | CF9: 51 | CG9: 51 | CH9: 46 | CI9: 46 | CJ9: 48 | CK9: 32 | CL9: 37 | CM9: 19 | CN9: 19 | CO9: 12 | CP9: 13 | CQ9: 39 | CR9: 18008 | CS9: 354 | CT9: 343 | CU9: 376 | CV9: 376 | CW9: 373 | CX9: 369 | CY9: 403 | CZ9: 370 | DA9: 357 | DB9: 406 | DC9: 379 | DD9: 360 | DE9: 338 | DF9: 365 | DG9: 387 | DH9: 338 | DI9: 333 | DJ9: 312 | DK9: 308 | DL9: 339 | DM9: 297 | DN9: 285 | DO9: 277 | DP9: 280 | DQ9: 223 | DR9: 255 | DS9: 268 | DT9: 287 | DU9: 264 | DV9: 258 | DW9: 315 | DX9: 291 | DY9: 266 | DZ9: 265 | EA9: 269 | EB9: 306 | EC9: 242 | ED9: 225 | EE9: 253 | EF9: 244 | EG9: 228 | EH9: 225 | EI9: 234 | EJ9: 231 | EK9: 213 | EL9: 217 | EM9: 189 | EN9: 185 | EO9: 179 | EP9: 143 | EQ9: 164 | ER9: 147 | ES9: 125 | ET9: 145 | EU9: 138 | EV9: 151 | EW9: 117 | EX9: 108 | EY9: 113 | EZ9: 113 | FA9: 132 | FB9: 105 | FC9: 106 | FD9: 86 | FE9: 85 | FF9: 88 | FG9: 61 | FH9: 75 | FI9: 72 | FJ9: 66 | FK9: 66 | FL9: 68 | FM9: 66 | FN9: 57 | FO9: 61 | FP9: 94 | FQ9: 71 | FR9: 64 | FS9: 67 | FT9: 89 | FU9: 59 | FV9: 57 | FW9: 56 | FX9: 60 | FY9: 50 | FZ9: 51 | GA9: 26 | GB9: 24 | GC9: 26 | GD9: 23 | GE9: 76
A10: Bournville | B10: Selly Oak | C10: E05001183 | D10: 12309 | E10: 172 | F10: 171 | G10: 172 | H10: 166 | I10: 172 | J10: 165 | K10: 174 | L10: 164 | M10: 167 | N10: 147 | O10: 137 | P10: 148 | Q10: 158 | R10: 135 | S10: 122 | T10: 142 | U10: 135 | V10: 159 | W10: 143 | X10: 124 | Y10: 146 | Z10: 173 | AA10: 157 | AB10: 171 | AC10: 155 | AD10: 169 | AE10: 159 | AF10: 146 | AG10: 163 | AH10: 172 | AI10: 188 | AJ10: 180 | AK10: 184 | AL10: 173 | AM10: 169 | AN10: 185 | AO10: 177 | AP10: 164 | AQ10: 182 | AR10: 161 | AS10: 165 | AT10: 149 | AU10: 155 | AV10: 171 | AW10: 195 | AX10: 159 | AY10: 160 | AZ10: 176 | BA10: 174 | BB10: 170 | BC10: 203 | BD10: 183 | BE10: 200 | BF10: 195 | BG10: 153 | BH10: 146 | BI10: 149 | BJ10: 160 | BK10: 135 | BL10: 144 | BM10: 130 | BN10: 134 | BO10: 118 | BP10: 145 | BQ10: 132 | BR10: 114 | BS10: 133 | BT10: 139 | BU10: 145 | BV10: 111 | BW10: 116 | BX10: 109 | BY10: 84 | BZ10: 73 | CA10: 55 | CB10: 73 | CC10: 85 | CD10: 63 | CE10: 52 | CF10: 68 | CG10: 45 | CH10: 42 | CI10: 41 | CJ10: 52 | CK10: 46 | CL10: 51 | CM10: 30 | CN10: 27 | CO10: 25 | CP10: 22 | CQ10: 60 | CR10: 13553 | CS10: 176 | CT10: 162 | CU10: 160 | CV10: 163 | CW10: 198 | CX10: 154 | CY10: 146 | CZ10: 188 | DA10: 158 | DB10: 176 | DC10: 162 | DD10: 144 | DE10: 121 | DF10: 122 | DG10: 132 | DH10: 133 | DI10: 152 | DJ10: 169 | DK10: 171 | DL10: 143 | DM10: 114 | DN10: 161 | DO10: 155 | DP10: 169 | DQ10: 192 | DR10: 174 | DS10: 188 | DT10: 155 | DU10: 180 | DV10: 178 | DW10: 182 | DX10: 182 | DY10: 188 | DZ10: 176 | EA10: 199 | EB10: 194 | EC10: 195 | ED10: 175 | EE10: 154 | EF10: 162 | EG10: 180 | EH10: 156 | EI10: 196 | EJ10: 205 | EK10: 226 | EL10: 188 | EM10: 196 | EN10: 201 | EO10: 195 | EP10: 198 | EQ10: 184 | ER10: 189 | ES10: 196 | ET10: 192 | EU10: 193 | EV10: 155 | EW10: 158 | EX10: 177 | EY10: 162 | EZ10: 146 | FA10: 133 | FB10: 153 | FC10: 167 | FD10: 139 | FE10: 153 | FF10: 144 | FG10: 146 | FH10: 148 | FI10: 140 | FJ10: 98 | FK10: 121 | FL10: 117 | FM10: 124 | FN10: 92 | FO10: 88 | FP10: 102 | FQ10: 94 | FR10: 98 | FS10: 85 | FT10: 84 | FU10: 69 | FV10: 74 | FW10: 62 | FX10: 69 | FY10: 66 | FZ10: 72 | GA10: 52 | GB10: 63 | GC10: 47 | GD10: 41 | GE10: 216
A11: Brandwood | B11: Selly Oak | C11: E05001184 | D11: 12595 | E11: 202 | F11: 221 | G11: 214 | H11: 199 | I11: 174 | J11: 193 | K11: 211 | L11: 170 | M11: 193 | N11: 177 | O11: 157 | P11: 170 | Q11: 161 | R11: 155 | S11: 171 | T11: 174 | U11: 181 | V11: 177 | W11: 179 | X11: 166 | Y11: 161 | Z11: 150 | AA11: 176 | AB11: 163 | AC11: 176 | AD11: 174 | AE11: 174 | AF11: 148 | AG11: 160 | AH11: 183 | AI11: 164 | AJ11: 156 | AK11: 169 | AL11: 152 | AM11: 168 | AN11: 155 | AO11: 179 | AP11: 135 | AQ11: 156 | AR11: 169 | AS11: 150 | AT11: 159 | AU11: 164 | AV11: 161 | AW11: 183 | AX11: 164 | AY11: 173 | AZ11: 172 | BA11: 164 | BB11: 171 | BC11: 182 | BD11: 186 | BE11: 179 | BF11: 167 | BG11: 157 | BH11: 141 | BI11: 139 | BJ11: 142 | BK11: 145 | BL11: 122 | BM11: 134 | BN11: 125 | BO11: 109 | BP11: 134 | BQ11: 117 | BR11: 117 | BS11: 128 | BT11: 104 | BU11: 112 | BV11: 102 | BW11: 92 | BX11: 84 | BY11: 108 | BZ11: 87 | CA11: 85 | CB11: 73 | CC11: 99 | CD11: 68 | CE11: 83 | CF11: 67 | CG11: 64 | CH11: 56 | CI11: 52 | CJ11: 42 | CK11: 41 | CL11: 34 | CM11: 32 | CN11: 16 | CO11: 23 | CP11: 16 | CQ11: 57 | CR11: 13190 | CS11: 199 | CT11: 197 | CU11: 199 | CV11: 177 | CW11: 196 | CX11: 179 | CY11: 172 | CZ11: 171 | DA11: 162 | DB11: 161 | DC11: 153 | DD11: 148 | DE11: 138 | DF11: 142 | DG11: 131 | DH11: 150 | DI11: 138 | DJ11: 159 | DK11: 143 | DL11: 137 | DM11: 152 | DN11: 149 | DO11: 172 | DP11: 198 | DQ11: 176 | DR11: 171 | DS11: 177 | DT11: 179 | DU11: 181 | DV11: 163 | DW11: 176 | DX11: 169 | DY11: 170 | DZ11: 174 | EA11: 184 | EB11: 193 | EC11: 212 | ED11: 147 | EE11: 164 | EF11: 189 | EG11: 176 | EH11: 151 | EI11: 177 | EJ11: 177 | EK11: 212 | EL11: 196 | EM11: 193 | EN11: 226 | EO11: 190 | EP11: 193 | EQ11: 184 | ER11: 183 | ES11: 155 | ET11: 163 | EU11: 171 | EV11: 145 | EW11: 151 | EX11: 145 | EY11: 137 | EZ11: 111 | FA11: 149 | FB11: 149 | FC11: 133 | FD11: 126 | FE11: 122 | FF11: 133 | FG11: 128 | FH11: 117 | FI11: 157 | FJ11: 113 | FK11: 97 | FL11: 135 | FM11: 111 | FN11: 111 | FO11: 79 | FP11: 92 | FQ11: 94 | FR11: 97 | FS11: 87 | FT11: 75 | FU11: 69 | FV11: 64 | FW11: 57 | FX11: 60 | FY11: 66 | FZ11: 54 | GA11: 48 | GB11: 40 | GC11: 56 | GD11: 38 | GE11: 149
A12: Edgbaston | B12: Edgbaston | C12: E05001185 | D12: 13956 | E12: 170 | F12: 146 | G12: 127 | H12: 146 | I12: 134 | J12: 116 | K12: 121 | L12: 137 | M12: 113 | N12: 110 | O12: 99 | P12: 88 | Q12: 103 | R12: 95 | S12: 91 | T12: 155 | U12: 142 | V12: 150 | W12: 374 | X12: 1265 | Y12: 579 | Z12: 443 | AA12: 369 | AB12: 339 | AC12: 394 | AD12: 301 | AE12: 301 | AF12: 281 | AG12: 274 | AH12: 278 | AI12: 205 | AJ12: 180 | AK12: 217 | AL12: 174 | AM12: 198 | AN12: 180 | AO12: 177 | AP12: 161 | AQ12: 170 | AR12: 164 | AS12: 168 | AT12: 146 | AU12: 157 | AV12: 143 | AW12: 134 | AX12: 200 | AY12: 193 | AZ12: 159 | BA12: 164 | BB12: 139 | BC12: 154 | BD12: 138 | BE12: 139 | BF12: 147 | BG12: 114 | BH12: 100 | BI12: 112 | BJ12: 106 | BK12: 102 | BL12: 98 | BM12: 93 | BN12: 103 | BO12: 108 | BP12: 91 | BQ12: 99 | BR12: 104 | BS12: 68 | BT12: 78 | BU12: 76 | BV12: 66 | BW12: 87 | BX12: 88 | BY12: 71 | BZ12: 51 | CA12: 65 | CB12: 69 | CC12: 63 | CD12: 64 | CE12: 51 | CF12: 45 | CG12: 51 | CH12: 35 | CI12: 35 | CJ12: 34 | CK12: 33 | CL12: 32 | CM12: 18 | CN12: 18 | CO12: 19 | CP12: 13 | CQ12: 48 | CR12: 13109 | CS12: 139 | CT12: 124 | CU12: 125 | CV12: 125 | CW12: 120 | CX12: 129 | CY12: 95 | CZ12: 108 | DA12: 94 | DB12: 103 | DC12: 75 | DD12: 83 | DE12: 98 | DF12: 87 | DG12: 89 | DH12: 149 | DI12: 140 | DJ12: 169 | DK12: 420 | DL12: 1628 | DM12: 683 | DN12: 377 | DO12: 358 | DP12: 341 | DQ12: 401 | DR12: 235 | DS12: 234 | DT12: 219 | DU12: 191 | DV12: 182 | DW12: 221 | DX12: 181 | DY12: 210 | DZ12: 173 | EA12: 135 | EB12: 178 | EC12: 147 | ED12: 147 | EE12: 125 | EF12: 121 | EG12: 109 | EH12: 102 | EI12: 136 | EJ12: 130 | EK12: 106 | EL12: 137 | EM12: 111 | EN12: 125 | EO12: 124 | EP12: 129 | EQ12: 128 | ER12: 90 | ES12: 106 | ET12: 98 | EU12: 95 | EV12: 93 | EW12: 94 | EX12: 101 | EY12: 83 | EZ12: 83 | FA12: 77 | FB12: 82 | FC12: 94 | FD12: 79 | FE12: 88 | FF12: 87 | FG12: 89 | FH12: 89 | FI12: 78 | FJ12: 74 | FK12: 73 | FL12: 73 | FM12: 70 | FN12: 74 | FO12: 65 | FP12: 54 | FQ12: 54 | FR12: 51 | FS12: 68 | FT12: 42 | FU12: 28 | FV12: 33 | FW12: 42 | FX12: 42 | FY12: 33 | FZ12: 47 | GA12: 39 | GB12: 45 | GC12: 38 | GD12: 23 | GE12: 139
A13: Erdington | B13: Erdington | C13: E05001186 | D13: 11728 | E13: 227 | F13: 196 | G13: 186 | H13: 209 | I13: 186 | J13: 166 | K13: 171 | L13: 172 | M13: 176 | N13: 150 | O13: 141 | P13: 133 | Q13: 133 | R13: 96 | S13: 111 | T13: 143 | U13: 108 | V13: 129 | W13: 132 | X13: 139 | Y13: 145 | Z13: 154 | AA13: 143 | AB13: 147 | AC13: 176 | AD13: 176 | AE13: 173 | AF13: 162 | AG13: 177 | AH13: 182 | AI13: 198 | AJ13: 159 | AK13: 189 | AL13: 170 | AM13: 178 | AN13: 175 | AO13: 158 | AP13: 143 | AQ13: 130 | AR13: 173 | AS13: 130 | AT13: 134 | AU13: 152 | AV13: 135 | AW13: 159 | AX13: 159 | AY13: 144 | AZ13: 159 | BA13: 156 | BB13: 164 | BC13: 177 | BD13: 161 | BE13: 158 | BF13: 176 | BG13: 158 | BH13: 141 | BI13: 140 | BJ13: 146 | BK13: 122 | BL13: 125 | BM13: 154 | BN13: 127 | BO13: 109 | BP13: 116 | BQ13: 109 | BR13: 106 | BS13: 108 | BT13: 113 | BU13: 97 | BV13: 97 | BW13: 81 | BX13: 108 | BY13: 85 | BZ13: 93 | CA13: 69 | CB13: 53 | CC13: 69 | CD13: 67 | CE13: 57 | CF13: 49 | CG13: 67 | CH13: 48 | CI13: 49 | CJ13: 52 | CK13: 46 | CL13: 29 | CM13: 26 | CN13: 25 | CO13: 34 | CP13: 16 | CQ13: 61 | CR13: 12168 | CS13: 172 | CT13: 205 | CU13: 181 | CV13: 157 | CW13: 182 | CX13: 174 | CY13: 150 | CZ13: 141 | DA13: 137 | DB13: 121 | DC13: 150 | DD13: 123 | DE13: 105 | DF13: 117 | DG13: 110 | DH13: 126 | DI13: 113 | DJ13: 124 | DK13: 139 | DL13: 147 | DM13: 152 | DN13: 150 | DO13: 149 | DP13: 165 | DQ13: 187 | DR13: 176 | DS13: 200 | DT13: 186 | DU13: 198 | DV13: 182 | DW13: 195 | DX13: 177 | DY13: 194 | DZ13: 203 | EA13: 173 | EB13: 187 | EC13: 151 | ED13: 168 | EE13: 165 | EF13: 158 | EG13: 142 | EH13: 143 | EI13: 145 | EJ13: 148 | EK13: 165 | EL13: 163 | EM13: 162 | EN13: 147 | EO13: 157 | EP13: 158 | EQ13: 180 | ER13: 155 | ES13: 190 | ET13: 144 | EU13: 138 | EV13: 163 | EW13: 145 | EX13: 149 | EY13: 137 | EZ13: 118 | FA13: 112 | FB13: 89 | FC13: 117 | FD13: 106 | FE13: 124 | FF13: 105 | FG13: 109 | FH13: 126 | FI13: 105 | FJ13: 104 | FK13: 97 | FL13: 111 | FM13: 96 | FN13: 86 | FO13: 89 | FP13: 78 | FQ13: 80 | FR13: 81 | FS13: 72 | FT13: 75 | FU13: 94 | FV13: 83 | FW13: 64 | FX13: 74 | FY13: 66 | FZ13: 54 | GA13: 42 | GB13: 48 | GC13: 37 | GD13: 63 | GE13: 142
A14: Hall Green | B14: Hall Green | C14: E05001187 | D14: 13311 | E14: 195 | F14: 184 | G14: 183 | H14: 198 | I14: 197 | J14: 215 | K14: 214 | L14: 210 | M14: 193 | N14: 198 | O14: 221 | P14: 203 | Q14: 212 | R14: 185 | S14: 199 | T14: 186 | U14: 203 | V14: 212 | W14: 215 | X14: 181 | Y14: 178 | Z14: 169 | AA14: 156 | AB14: 178 | AC14: 173 | AD14: 168 | AE14: 186 | AF14: 169 | AG14: 165 | AH14: 164 | AI14: 177 | AJ14: 177 | AK14: 164 | AL14: 166 | AM14: 171 | AN14: 183 | AO14: 166 | AP14: 164 | AQ14: 168 | AR14: 146 | AS14: 186 | AT14: 193 | AU14: 177 | AV14: 173 | AW14: 164 | AX14: 174 | AY14: 180 | AZ14: 177 | BA14: 190 | BB14: 182 | BC14: 199 | BD14: 145 | BE14: 173 | BF14: 184 | BG14: 157 | BH14: 156 | BI14: 144 | BJ14: 145 | BK14: 150 | BL14: 133 | BM14: 138 | BN14: 144 | BO14: 120 | BP14: 138 | BQ14: 111 | BR14: 118 | BS14: 95 | BT14: 136 | BU14: 132 | BV14: 87 | BW14: 112 | BX14: 94 | BY14: 94 | BZ14: 79 | CA14: 77 | CB14: 87 | CC14: 82 | CD14: 77 | CE14: 54 | CF14: 69 | CG14: 72 | CH14: 60 | CI14: 55 | CJ14: 44 | CK14: 49 | CL14: 39 | CM14: 37 | CN14: 32 | CO14: 29 | CP14: 22 | CQ14: 54 | CR14: 13749 | CS14: 182 | CT14: 162 | CU14: 178 | CV14: 181 | CW14: 194 | CX14: 162 | CY14: 186 | CZ14: 195 | DA14: 192 | DB14: 164 | DC14: 170 | DD14: 178 | DE14: 163 | DF14: 172 | DG14: 157 | DH14: 187 | DI14: 196 | DJ14: 190 | DK14: 169 | DL14: 171 | DM14: 150 | DN14: 153 | DO14: 160 | DP14: 159 | DQ14: 141 | DR14: 171 | DS14: 193 | DT14: 178 | DU14: 204 | DV14: 170 | DW14: 185 | DX14: 183 | DY14: 164 | DZ14: 176 | EA14: 191 | EB14: 203 | EC14: 202 | ED14: 185 | EE14: 169 | EF14: 178 | EG14: 180 | EH14: 164 | EI14: 174 | EJ14: 202 | EK14: 176 | EL14: 191 | EM14: 185 | EN14: 197 | EO14: 199 | EP14: 185 | EQ14: 167 | ER14: 192 | ES14: 176 | ET14: 198 | EU14: 172 | EV14: 183 | EW14: 181 | EX14: 144 | EY14: 154 | EZ14: 150 | FA14: 148 | FB14: 156 | FC14: 157 | FD14: 112 | FE14: 120 | FF14: 128 | FG14: 134 | FH14: 132 | FI14: 136 | FJ14: 95 | FK14: 126 | FL14: 133 | FM14: 138 | FN14: 99 | FO14: 71 | FP14: 94 | FQ14: 89 | FR14: 75 | FS14: 95 | FT14: 86 | FU14: 94 | FV14: 86 | FW14: 75 | FX14: 74 | FY14: 68 | FZ14: 66 | GA14: 74 | GB14: 45 | GC14: 46 | GD14: 26 | GE14: 137
A15: Handsworth Wood | B15: Perry Barr | C15: E05001188 | D15: 14065 | E15: 198 | F15: 221 | G15: 215 | H15: 208 | I15: 212 | J15: 214 | K15: 185 | L15: 174 | M15: 182 | N15: 201 | O15: 198 | P15: 202 | Q15: 205 | R15: 203 | S15: 193 | T15: 192 | U15: 200 | V15: 208 | W15: 203 | X15: 191 | Y15: 210 | Z15: 243 | AA15: 236 | AB15: 229 | AC15: 232 | AD15: 253 | AE15: 266 | AF15: 221 | AG15: 222 | AH15: 257 | AI15: 227 | AJ15: 229 | AK15: 234 | AL15: 227 | AM15: 243 | AN15: 200 | AO15: 187 | AP15: 187 | AQ15: 200 | AR15: 190 | AS15: 194 | AT15: 201 | AU15: 160 | AV15: 200 | AW15: 180 | AX15: 188 | AY15: 191 | AZ15: 203 | BA15: 165 | BB15: 158 | BC15: 155 | BD15: 184 | BE15: 179 | BF15: 176 | BG15: 150 | BH15: 182 | BI15: 167 | BJ15: 163 | BK15: 136 | BL15: 144 | BM15: 140 | BN15: 132 | BO15: 142 | BP15: 116 | BQ15: 108 | BR15: 119 | BS15: 105 | BT15: 87 | BU15: 81 | BV15: 73 | BW15: 72 | BX15: 56 | BY15: 58 | BZ15: 56 | CA15: 58 | CB15: 65 | CC15: 50 | CD15: 49 | CE15: 62 | CF15: 56 | CG15: 58 | CH15: 49 | CI15: 38 | CJ15: 40 | CK15: 22 | CL15: 43 | CM15: 29 | CN15: 29 | CO15: 21 | CP15: 16 | CQ15: 61 | CR15: 14278 | CS15: 191 | CT15: 193 | CU15: 189 | CV15: 193 | CW15: 172 | CX15: 161 | CY15: 199 | CZ15: 198 | DA15: 164 | DB15: 171 | DC15: 210 | DD15: 173 | DE15: 166 | DF15: 172 | DG15: 182 | DH15: 181 | DI15: 202 | DJ15: 193 | DK15: 209 | DL15: 222 | DM15: 215 | DN15: 271 | DO15: 238 | DP15: 233 | DQ15: 229 | DR15: 251 | DS15: 233 | DT15: 234 | DU15: 211 | DV15: 257 | DW15: 208 | DX15: 217 | DY15: 234 | DZ15: 185 | EA15: 224 | EB15: 249 | EC15: 210 | ED15: 191 | EE15: 173 | EF15: 196 | EG15: 184 | EH15: 173 | EI15: 182 | EJ15: 167 | EK15: 182 | EL15: 177 | EM15: 167 | EN15: 197 | EO15: 199 | EP15: 171 | EQ15: 197 | ER15: 216 | ES15: 233 | ET15: 212 | EU15: 195 | EV15: 180 | EW15: 155 | EX15: 155 | EY15: 134 | EZ15: 138 | FA15: 129 | FB15: 150 | FC15: 147 | FD15: 125 | FE15: 110 | FF15: 128 | FG15: 93 | FH15: 96 | FI15: 87 | FJ15: 76 | FK15: 59 | FL15: 74 | FM15: 76 | FN15: 59 | FO15: 79 | FP15: 91 | FQ15: 70 | FR15: 79 | FS15: 70 | FT15: 82 | FU15: 64 | FV15: 60 | FW15: 60 | FX15: 57 | FY15: 54 | FZ15: 49 | GA15: 36 | GB15: 38 | GC15: 42 | GD15: 24 | GE15: 100
A16: Harborne | B16: Edgbaston | C16: E05001189 | D16: 12136 | E16: 156 | F16: 180 | G16: 162 | H16: 160 | I16: 153 | J16: 155 | K16: 146 | L16: 143 | M16: 148 | N16: 136 | O16: 121 | P16: 121 | Q16: 111 | R16: 100 | S16: 119 | T16: 118 | U16: 100 | V16: 113 | W16: 101 | X16: 93 | Y16: 135 | Z16: 158 | AA16: 182 | AB16: 260 | AC16: 301 | AD16: 308 | AE16: 235 | AF16: 243 | AG16: 255 | AH16: 248 | AI16: 243 | AJ16: 224 | AK16: 230 | AL16: 223 | AM16: 240 | AN16: 198 | AO16: 174 | AP16: 185 | AQ16: 181 | AR16: 187 | AS16: 191 | AT16: 165 | AU16: 172 | AV16: 181 | AW16: 167 | AX16: 161 | AY16: 171 | AZ16: 156 | BA16: 172 | BB16: 134 | BC16: 142 | BD16: 142 | BE16: 141 | BF16: 137 | BG16: 122 | BH16: 111 | BI16: 112 | BJ16: 116 | BK16: 111 | BL16: 117 | BM16: 114 | BN16: 118 | BO16: 108 | BP16: 108 | BQ16: 109 | BR16: 111 | BS16: 109 | BT16: 102 | BU16: 114 | BV16: 76 | BW16: 102 | BX16: 96 | BY16: 57 | BZ16: 74 | CA16: 69 | CB16: 64 | CC16: 69 | CD16: 58 | CE16: 57 | CF16: 51 | CG16: 38 | CH16: 38 | CI16: 35 | CJ16: 43 | CK16: 35 | CL16: 38 | CM16: 35 | CN16: 33 | CO16: 18 | CP16: 19 | CQ16: 71 | CR16: 12354 | CS16: 138 | CT16: 175 | CU16: 166 | CV16: 148 | CW16: 124 | CX16: 130 | CY16: 142 | CZ16: 144 | DA16: 140 | DB16: 127 | DC16: 119 | DD16: 106 | DE16: 121 | DF16: 102 | DG16: 94 | DH16: 104 | DI16: 116 | DJ16: 115 | DK16: 113 | DL16: 100 | DM16: 147 | DN16: 169 | DO16: 231 | DP16: 335 | DQ16: 370 | DR16: 310 | DS16: 275 | DT16: 263 | DU16: 233 | DV16: 208 | DW16: 195 | DX16: 195 | DY16: 210 | DZ16: 228 | EA16: 222 | EB16: 192 | EC16: 203 | ED16: 185 | EE16: 163 | EF16: 178 | EG16: 155 | EH16: 168 | EI16: 154 | EJ16: 148 | EK16: 145 | EL16: 141 | EM16: 153 | EN16: 141 | EO16: 124 | EP16: 143 | EQ16: 129 | ER16: 136 | ES16: 112 | ET16: 128 | EU16: 126 | EV16: 131 | EW16: 128 | EX16: 117 | EY16: 104 | EZ16: 106 | FA16: 109 | FB16: 82 | FC16: 127 | FD16: 122 | FE16: 104 | FF16: 90 | FG16: 119 | FH16: 119 | FI16: 131 | FJ16: 76 | FK16: 94 | FL16: 92 | FM16: 80 | FN16: 77 | FO16: 76 | FP16: 77 | FQ16: 78 | FR16: 74 | FS16: 79 | FT16: 69 | FU16: 56 | FV16: 57 | FW16: 70 | FX16: 63 | FY16: 67 | FZ16: 57 | GA16: 55 | GB16: 56 | GC16: 41 | GD16: 51 | GE16: 181
A17: Hodge Hill | B17: Hodge Hill | C17: E05001190 | D17: 14478 | E17: 280 | F17: 304 | G17: 266 | H17: 308 | I17: 298 | J17: 259 | K17: 280 | L17: 312 | M17: 273 | N17: 249 | O17: 279 | P17: 242 | Q17: 267 | R17: 264 | S17: 245 | T17: 238 | U17: 248 | V17: 232 | W17: 238 | X17: 241 | Y17: 234 | Z17: 216 | AA17: 217 | AB17: 212 | AC17: 204 | AD17: 220 | AE17: 196 | AF17: 188 | AG17: 217 | AH17: 197 | AI17: 224 | AJ17: 186 | AK17: 177 | AL17: 204 | AM17: 201 | AN17: 244 | AO17: 201 | AP17: 197 | AQ17: 179 | AR17: 185 | AS17: 146 | AT17: 165 | AU17: 166 | AV17: 174 | AW17: 168 | AX17: 173 | AY17: 173 | AZ17: 197 | BA17: 157 | BB17: 166 | BC17: 148 | BD17: 152 | BE17: 155 | BF17: 145 | BG17: 154 | BH17: 137 | BI17: 109 | BJ17: 117 | BK17: 118 | BL17: 116 | BM17: 108 | BN17: 111 | BO17: 87 | BP17: 85 | BQ17: 109 | BR17: 103 | BS17: 95 | BT17: 96 | BU17: 103 | BV17: 91 | BW17: 74 | BX17: 72 | BY17: 72 | BZ17: 67 | CA17: 62 | CB17: 86 | CC17: 80 | CD17: 65 | CE17: 57 | CF17: 35 | CG17: 50 | CH17: 45 | CI17: 44 | CJ17: 30 | CK17: 43 | CL17: 28 | CM17: 20 | CN17: 22 | CO17: 23 | CP17: 8 | CQ17: 49 | CR17: 14926 | CS17: 248 | CT17: 239 | CU17: 269 | CV17: 251 | CW17: 275 | CX17: 251 | CY17: 291 | CZ17: 251 | DA17: 276 | DB17: 253 | DC17: 270 | DD17: 266 | DE17: 232 | DF17: 273 | DG17: 252 | DH17: 243 | DI17: 274 | DJ17: 236 | DK17: 261 | DL17: 225 | DM17: 205 | DN17: 226 | DO17: 186 | DP17: 181 | DQ17: 181 | DR17: 237 | DS17: 221 | DT17: 190 | DU17: 253 | DV17: 204 | DW17: 199 | DX17: 206 | DY17: 223 | DZ17: 231 | EA17: 233 | EB17: 211 | EC17: 206 | ED17: 205 | EE17: 193 | EF17: 169 | EG17: 198 | EH17: 170 | EI17: 199 | EJ17: 193 | EK17: 179 | EL17: 204 | EM17: 197 | EN17: 184 | EO17: 176 | EP17: 180 | EQ17: 162 | ER17: 160 | ES17: 138 | ET17: 129 | EU17: 118 | EV17: 140 | EW17: 140 | EX17: 118 | EY17: 137 | EZ17: 121 | FA17: 98 | FB17: 89 | FC17: 104 | FD17: 102 | FE17: 93 | FF17: 101 | FG17: 88 | FH17: 93 | FI17: 81 | FJ17: 68 | FK17: 86 | FL17: 70 | FM17: 86 | FN17: 90 | FO17: 74 | FP17: 85 | FQ17: 75 | FR17: 78 | FS17: 97 | FT17: 72 | FU17: 82 | FV17: 63 | FW17: 68 | FX17: 66 | FY17: 55 | FZ17: 58 | GA17: 45 | GB17: 41 | GC17: 39 | GD17: 24 | GE17: 116
A18: Kings Norton | B18: Northfield | C18: E05001191 | D18: 11625 | E18: 202 | F18: 202 | G18: 165 | H18: 201 | I18: 218 | J18: 177 | K18: 190 | L18: 194 | M18: 192 | N18: 150 | O18: 161 | P18: 181 | Q18: 192 | R18: 122 | S18: 141 | T18: 173 | U18: 154 | V18: 171 | W18: 170 | X18: 145 | Y18: 147 | Z18: 163 | AA18: 138 | AB18: 135 | AC18: 158 | AD18: 167 | AE18: 159 | AF18: 142 | AG18: 146 | AH18: 125 | AI18: 130 | AJ18: 144 | AK18: 144 | AL18: 135 | AM18: 137 | AN18: 142 | AO18: 152 | AP18: 127 | AQ18: 151 | AR18: 125 | AS18: 151 | AT18: 127 | AU18: 128 | AV18: 135 | AW18: 146 | AX18: 170 | AY18: 145 | AZ18: 149 | BA18: 170 | BB18: 162 | BC18: 156 | BD18: 150 | BE18: 137 | BF18: 130 | BG18: 141 | BH18: 153 | BI18: 126 | BJ18: 130 | BK18: 133 | BL18: 95 | BM18: 99 | BN18: 117 | BO18: 127 | BP18: 131 | BQ18: 105 | BR18: 126 | BS18: 131 | BT18: 135 | BU18: 145 | BV18: 121 | BW18: 106 | BX18: 104 | BY18: 96 | BZ18: 68 | CA18: 60 | CB18: 73 | CC18: 80 | CD18: 71 | CE18: 62 | CF18: 70 | CG18: 48 | CH18: 57 | CI18: 48 | CJ18: 39 | CK18: 32 | CL18: 25 | CM18: 26 | CN18: 16 | CO18: 17 | CP18: 16 | CQ18: 72 | CR18: 12937 | CS18: 166 | CT18: 193 | CU18: 211 | CV18: 217 | CW18: 191 | CX18: 162 | CY18: 183 | CZ18: 208 | DA18: 167 | DB18: 190 | DC18: 172 | DD18: 144 | DE18: 131 | DF18: 149 | DG18: 163 | DH18: 139 | DI18: 141 | DJ18: 154 | DK18: 139 | DL18: 159 | DM18: 164 | DN18: 154 | DO18: 135 | DP18: 174 | DQ18: 185 | DR18: 200 | DS18: 181 | DT18: 181 | DU18: 184 | DV18: 179 | DW18: 164 | DX18: 180 | DY18: 186 | DZ18: 169 | EA18: 152 | EB18: 187 | EC18: 164 | ED18: 145 | EE18: 151 | EF18: 160 | EG18: 162 | EH18: 157 | EI18: 162 | EJ18: 172 | EK18: 151 | EL18: 149 | EM18: 181 | EN18: 183 | EO18: 170 | EP18: 168 | EQ18: 184 | ER18: 164 | ES18: 145 | ET18: 144 | EU18: 153 | EV18: 138 | EW18: 146 | EX18: 138 | EY18: 141 | EZ18: 116 | FA18: 117 | FB18: 124 | FC18: 122 | FD18: 132 | FE18: 144 | FF18: 154 | FG18: 142 | FH18: 161 | FI18: 155 | FJ18: 122 | FK18: 98 | FL18: 117 | FM18: 120 | FN18: 103 | FO18: 86 | FP18: 84 | FQ18: 89 | FR18: 83 | FS18: 69 | FT18: 91 | FU18: 77 | FV18: 56 | FW18: 60 | FX18: 66 | FY18: 69 | FZ18: 55 | GA18: 46 | GB18: 50 | GC18: 42 | GD18: 39 | GE18: 166
A19: Kingstanding | B19: Erdington | C19: E05001192 | D19: 12294 | E19: 218 | F19: 242 | G19: 256 | H19: 230 | I19: 209 | J19: 220 | K19: 212 | L19: 223 | M19: 206 | N19: 210 | O19: 186 | P19: 195 | Q19: 169 | R19: 166 | S19: 188 | T19: 184 | U19: 220 | V19: 226 | W19: 199 | X19: 178 | Y19: 164 | Z19: 182 | AA19: 175 | AB19: 190 | AC19: 161 | AD19: 183 | AE19: 183 | AF19: 161 | AG19: 147 | AH19: 133 | AI19: 156 | AJ19: 146 | AK19: 179 | AL19: 156 | AM19: 161 | AN19: 135 | AO19: 129 | AP19: 129 | AQ19: 134 | AR19: 118 | AS19: 137 | AT19: 128 | AU19: 147 | AV19: 168 | AW19: 143 | AX19: 144 | AY19: 145 | AZ19: 163 | BA19: 159 | BB19: 154 | BC19: 178 | BD19: 172 | BE19: 170 | BF19: 158 | BG19: 164 | BH19: 143 | BI19: 148 | BJ19: 146 | BK19: 134 | BL19: 113 | BM19: 121 | BN19: 122 | BO19: 96 | BP19: 96 | BQ19: 113 | BR19: 98 | BS19: 92 | BT19: 107 | BU19: 95 | BV19: 84 | BW19: 76 | BX19: 93 | BY19: 67 | BZ19: 75 | CA19: 59 | CB19: 59 | CC19: 64 | CD19: 48 | CE19: 44 | CF19: 49 | CG19: 40 | CH19: 45 | CI19: 43 | CJ19: 38 | CK19: 34 | CL19: 36 | CM19: 31 | CN19: 18 | CO19: 21 | CP19: 12 | CQ19: 45 | CR19: 13524 | CS19: 190 | CT19: 198 | CU19: 209 | CV19: 228 | CW19: 203 | CX19: 194 | CY19: 209 | CZ19: 200 | DA19: 179 | DB19: 210 | DC19: 219 | DD19: 172 | DE19: 172 | DF19: 182 | DG19: 197 | DH19: 193 | DI19: 181 | DJ19: 209 | DK19: 183 | DL19: 198 | DM19: 157 | DN19: 206 | DO19: 173 | DP19: 188 | DQ19: 174 | DR19: 190 | DS19: 201 | DT19: 201 | DU19: 206 | DV19: 178 | DW19: 185 | DX19: 181 | DY19: 199 | DZ19: 162 | EA19: 178 | EB19: 195 | EC19: 180 | ED19: 174 | EE19: 175 | EF19: 186 | EG19: 170 | EH19: 169 | EI19: 157 | EJ19: 158 | EK19: 201 | EL19: 173 | EM19: 179 | EN19: 183 | EO19: 196 | EP19: 189 | EQ19: 222 | ER19: 162 | ES19: 183 | ET19: 192 | EU19: 168 | EV19: 131 | EW19: 131 | EX19: 155 | EY19: 146 | EZ19: 132 | FA19: 138 | FB19: 118 | FC19: 114 | FD19: 127 | FE19: 96 | FF19: 113 | FG19: 78 | FH19: 121 | FI19: 88 | FJ19: 106 | FK19: 108 | FL19: 95 | FM19: 107 | FN19: 96 | FO19: 81 | FP19: 75 | FQ19: 70 | FR19: 76 | FS19: 74 | FT19: 68 | FU19: 62 | FV19: 60 | FW19: 44 | FX19: 46 | FY19: 42 | FZ19: 50 | GA19: 34 | GB19: 43 | GC19: 37 | GD19: 23 | GE19: 122
A20: Ladywood | B20: Ladywood | C20: E05001193 | D20: 18768 | E20: 214 | F20: 174 | G20: 183 | H20: 189 | I20: 173 | J20: 145 | K20: 145 | L20: 117 | M20: 107 | N20: 124 | O20: 106 | P20: 100 | Q20: 96 | R20: 76 | S20: 83 | T20: 120 | U20: 104 | V20: 107 | W20: 150 | X20: 246 | Y20: 465 | Z20: 523 | AA20: 669 | AB20: 692 | AC20: 970 | AD20: 814 | AE20: 761 | AF20: 780 | AG20: 755 | AH20: 770 | AI20: 601 | AJ20: 521 | AK20: 546 | AL20: 506 | AM20: 453 | AN20: 396 | AO20: 342 | AP20: 298 | AQ20: 282 | AR20: 290 | AS20: 242 | AT20: 245 | AU20: 227 | AV20: 204 | AW20: 203 | AX20: 213 | AY20: 186 | AZ20: 175 | BA20: 194 | BB20: 183 | BC20: 156 | BD20: 152 | BE20: 174 | BF20: 149 | BG20: 135 | BH20: 109 | BI20: 118 | BJ20: 109 | BK20: 114 | BL20: 83 | BM20: 96 | BN20: 99 | BO20: 85 | BP20: 76 | BQ20: 65 | BR20: 63 | BS20: 60 | BT20: 55 | BU20: 52 | BV20: 41 | BW20: 38 | BX20: 59 | BY20: 42 | BZ20: 39 | CA20: 23 | CB20: 31 | CC20: 23 | CD20: 27 | CE20: 29 | CF20: 37 | CG20: 19 | CH20: 31 | CI20: 27 | CJ20: 20 | CK20: 13 | CL20: 16 | CM20: 9 | CN20: 5 | CO20: 9 | CP20: 2 | CQ20: 13 | CR20: 15736 | CS20: 197 | CT20: 184 | CU20: 189 | CV20: 157 | CW20: 167 | CX20: 137 | CY20: 122 | CZ20: 119 | DA20: 102 | DB20: 114 | DC20: 113 | DD20: 124 | DE20: 114 | DF20: 90 | DG20: 91 | DH20: 76 | DI20: 108 | DJ20: 107 | DK20: 147 | DL20: 346 | DM20: 528 | DN20: 578 | DO20: 701 | DP20: 829 | DQ20: 871 | DR20: 722 | DS20: 662 | DT20: 636 | DU20: 590 | DV20: 493 | DW20: 476 | DX20: 417 | DY20: 356 | DZ20: 314 | EA20: 338 | EB20: 280 | EC20: 210 | ED20: 194 | EE20: 186 | EF20: 173 | EG20: 158 | EH20: 153 | EI20: 138 | EJ20: 133 | EK20: 147 | EL20: 130 | EM20: 135 | EN20: 122 | EO20: 99 | EP20: 129 | EQ20: 105 | ER20: 117 | ES20: 116 | ET20: 94 | EU20: 93 | EV20: 105 | EW20: 95 | EX20: 72 | EY20: 91 | EZ20: 69 | FA20: 62 | FB20: 62 | FC20: 63 | FD20: 49 | FE20: 59 | FF20: 44 | FG20: 50 | FH20: 44 | FI20: 46 | FJ20: 42 | FK20: 37 | FL20: 44 | FM20: 34 | FN20: 31 | FO20: 29 | FP20: 40 | FQ20: 32 | FR20: 32 | FS20: 30 | FT20: 19 | FU20: 26 | FV20: 21 | FW20: 22 | FX20: 19 | FY20: 22 | FZ20: 27 | GA20: 13 | GB20: 15 | GC20: 8 | GD20: 11 | GE20: 44
A21: Longbridge | B21: Northfield | C21: E05001194 | D21: 12581 | E21: 215 | F21: 238 | G21: 189 | H21: 216 | I21: 204 | J21: 216 | K21: 192 | L21: 202 | M21: 189 | N21: 189 | O21: 175 | P21: 163 | Q21: 158 | R21: 156 | S21: 165 | T21: 168 | U21: 175 | V21: 149 | W21: 190 | X21: 192 | Y21: 150 | Z21: 155 | AA21: 148 | AB21: 176 | AC21: 155 | AD21: 170 | AE21: 180 | AF21: 142 | AG21: 160 | AH21: 150 | AI21: 181 | AJ21: 159 | AK21: 169 | AL21: 160 | AM21: 161 | AN21: 184 | AO21: 177 | AP21: 168 | AQ21: 149 | AR21: 171 | AS21: 152 | AT21: 134 | AU21: 156 | AV21: 168 | AW21: 145 | AX21: 145 | AY21: 183 | AZ21: 159 | BA21: 186 | BB21: 181 | BC21: 162 | BD21: 166 | BE21: 152 | BF21: 184 | BG21: 158 | BH21: 147 | BI21: 135 | BJ21: 150 | BK21: 142 | BL21: 137 | BM21: 149 | BN21: 144 | BO21: 139 | BP21: 127 | BQ21: 122 | BR21: 128 | BS21: 134 | BT21: 126 | BU21: 155 | BV21: 119 | BW21: 99 | BX21: 80 | BY21: 82 | BZ21: 92 | CA21: 48 | CB21: 78 | CC21: 67 | CD21: 79 | CE21: 51 | CF21: 57 | CG21: 58 | CH21: 45 | CI21: 45 | CJ21: 25 | CK21: 40 | CL21: 31 | CM21: 23 | CN21: 17 | CO21: 22 | CP21: 14 | CQ21: 37 | CR21: 13610 | CS21: 215 | CT21: 217 | CU21: 174 | CV21: 207 | CW21: 191 | CX21: 172 | CY21: 175 | CZ21: 186 | DA21: 153 | DB21: 171 | DC21: 171 | DD21: 165 | DE21: 156 | DF21: 154 | DG21: 150 | DH21: 149 | DI21: 176 | DJ21: 172 | DK21: 159 | DL21: 158 | DM21: 192 | DN21: 159 | DO21: 168 | DP21: 175 | DQ21: 180 | DR21: 204 | DS21: 195 | DT21: 186 | DU21: 193 | DV21: 211 | DW21: 185 | DX21: 166 | DY21: 199 | DZ21: 190 | EA21: 223 | EB21: 220 | EC21: 209 | ED21: 181 | EE21: 173 | EF21: 166 | EG21: 148 | EH21: 167 | EI21: 186 | EJ21: 194 | EK21: 199 | EL21: 170 | EM21: 187 | EN21: 179 | EO21: 210 | EP21: 186 | EQ21: 187 | ER21: 190 | ES21: 164 | ET21: 176 | EU21: 182 | EV21: 177 | EW21: 184 | EX21: 134 | EY21: 147 | EZ21: 151 | FA21: 147 | FB21: 173 | FC21: 147 | FD21: 143 | FE21: 134 | FF21: 142 | FG21: 136 | FH21: 143 | FI21: 150 | FJ21: 109 | FK21: 94 | FL21: 99 | FM21: 87 | FN21: 86 | FO21: 74 | FP21: 70 | FQ21: 59 | FR21: 66 | FS21: 86 | FT21: 73 | FU21: 53 | FV21: 52 | FW21: 59 | FX21: 67 | FY21: 74 | FZ21: 46 | GA21: 46 | GB21: 44 | GC21: 38 | GD21: 38 | GE21: 111
A22: Lozells and East Handsworth | B22: Perry Barr | C22: E05001195 | D22: 16574 | E22: 304 | F22: 296 | G22: 293 | H22: 333 | I22: 260 | J22: 259 | K22: 337 | L22: 310 | M22: 295 | N22: 332 | O22: 264 | P22: 285 | Q22: 298 | R22: 318 | S22: 281 | T22: 266 | U22: 269 | V22: 225 | W22: 298 | X22: 287 | Y22: 259 | Z22: 291 | AA22: 287 | AB22: 256 | AC22: 267 | AD22: 266 | AE22: 258 | AF22: 276 | AG22: 302 | AH22: 281 | AI22: 314 | AJ22: 285 | AK22: 292 | AL22: 281 | AM22: 280 | AN22: 288 | AO22: 264 | AP22: 236 | AQ22: 246 | AR22: 250 | AS22: 228 | AT22: 222 | AU22: 214 | AV22: 231 | AW22: 226 | AX22: 215 | AY22: 201 | AZ22: 204 | BA22: 172 | BB22: 164 | BC22: 143 | BD22: 161 | BE22: 178 | BF22: 180 | BG22: 141 | BH22: 143 | BI22: 140 | BJ22: 133 | BK22: 123 | BL22: 116 | BM22: 101 | BN22: 111 | BO22: 112 | BP22: 101 | BQ22: 88 | BR22: 74 | BS22: 47 | BT22: 54 | BU22: 49 | BV22: 49 | BW22: 48 | BX22: 62 | BY22: 56 | BZ22: 61 | CA22: 49 | CB22: 65 | CC22: 62 | CD22: 61 | CE22: 49 | CF22: 51 | CG22: 55 | CH22: 41 | CI22: 51 | CJ22: 54 | CK22: 44 | CL22: 34 | CM22: 28 | CN22: 15 | CO22: 22 | CP22: 12 | CQ22: 44 | CR22: 15602 | CS22: 272 | CT22: 234 | CU22: 277 | CV22: 284 | CW22: 270 | CX22: 265 | CY22: 284 | CZ22: 285 | DA22: 283 | DB22: 285 | DC22: 277 | DD22: 276 | DE22: 271 | DF22: 262 | DG22: 242 | DH22: 261 | DI22: 225 | DJ22: 246 | DK22: 245 | DL22: 253 | DM22: 248 | DN22: 276 | DO22: 254 | DP22: 252 | DQ22: 255 | DR22: 268 | DS22: 274 | DT22: 300 | DU22: 282 | DV22: 250 | DW22: 241 | DX22: 234 | DY22: 233 | DZ22: 255 | EA22: 237 | EB22: 276 | EC22: 267 | ED22: 238 | EE22: 258 | EF22: 225 | EG22: 185 | EH22: 188 | EI22: 217 | EJ22: 192 | EK22: 201 | EL22: 165 | EM22: 167 | EN22: 173 | EO22: 172 | EP22: 184 | EQ22: 163 | ER22: 178 | ES22: 184 | ET22: 133 | EU22: 139 | EV22: 123 | EW22: 130 | EX22: 121 | EY22: 130 | EZ22: 118 | FA22: 110 | FB22: 104 | FC22: 124 | FD22: 106 | FE22: 91 | FF22: 83 | FG22: 69 | FH22: 78 | FI22: 60 | FJ22: 57 | FK22: 57 | FL22: 72 | FM22: 73 | FN22: 74 | FO22: 52 | FP22: 70 | FQ22: 60 | FR22: 73 | FS22: 58 | FT22: 66 | FU22: 50 | FV22: 48 | FW22: 36 | FX22: 35 | FY22: 31 | FZ22: 34 | GA22: 32 | GB22: 26 | GC22: 21 | GD22: 13 | GE22: 56
A23: Moseley and Kings Heath | B23: Hall Green | C23: E05001196 | D23: 12896 | E23: 163 | F23: 149 | G23: 158 | H23: 176 | I23: 149 | J23: 162 | K23: 161 | L23: 145 | M23: 154 | N23: 155 | O23: 124 | P23: 127 | Q23: 131 | R23: 113 | S23: 137 | T23: 128 | U23: 154 | V23: 158 | W23: 176 | X23: 130 | Y23: 152 | Z23: 159 | AA23: 166 | AB23: 196 | AC23: 194 | AD23: 222 | AE23: 219 | AF23: 250 | AG23: 252 | AH23: 253 | AI23: 237 | AJ23: 236 | AK23: 236 | AL23: 229 | AM23: 233 | AN23: 209 | AO23: 206 | AP23: 208 | AQ23: 192 | AR23: 209 | AS23: 179 | AT23: 177 | AU23: 212 | AV23: 191 | AW23: 201 | AX23: 195 | AY23: 182 | AZ23: 212 | BA23: 200 | BB23: 185 | BC23: 178 | BD23: 172 | BE23: 177 | BF23: 140 | BG23: 132 | BH23: 159 | BI23: 130 | BJ23: 161 | BK23: 147 | BL23: 150 | BM23: 122 | BN23: 125 | BO23: 165 | BP23: 121 | BQ23: 115 | BR23: 127 | BS23: 106 | BT23: 106 | BU23: 111 | BV23: 77 | BW23: 91 | BX23: 62 | BY23: 69 | BZ23: 66 | CA23: 57 | CB23: 54 | CC23: 58 | CD23: 54 | CE23: 58 | CF23: 54 | CG23: 57 | CH23: 58 | CI23: 53 | CJ23: 36 | CK23: 32 | CL23: 30 | CM23: 24 | CN23: 23 | CO23: 19 | CP23: 15 | CQ23: 63 | CR23: 12561 | CS23: 152 | CT23: 178 | CU23: 160 | CV23: 144 | CW23: 139 | CX23: 130 | CY23: 137 | CZ23: 149 | DA23: 139 | DB23: 138 | DC23: 109 | DD23: 123 | DE23: 113 | DF23: 117 | DG23: 121 | DH23: 137 | DI23: 129 | DJ23: 126 | DK23: 135 | DL23: 147 | DM23: 142 | DN23: 162 | DO23: 174 | DP23: 211 | DQ23: 220 | DR23: 219 | DS23: 224 | DT23: 232 | DU23: 242 | DV23: 272 | DW23: 216 | DX23: 213 | DY23: 226 | DZ23: 192 | EA23: 215 | EB23: 211 | EC23: 182 | ED23: 184 | EE23: 160 | EF23: 176 | EG23: 181 | EH23: 174 | EI23: 170 | EJ23: 186 | EK23: 172 | EL23: 187 | EM23: 183 | EN23: 164 | EO23: 162 | EP23: 175 | EQ23: 162 | ER23: 165 | ES23: 153 | ET23: 177 | EU23: 152 | EV23: 143 | EW23: 126 | EX23: 134 | EY23: 141 | EZ23: 137 | FA23: 120 | FB23: 134 | FC23: 137 | FD23: 115 | FE23: 121 | FF23: 140 | FG23: 102 | FH23: 124 | FI23: 124 | FJ23: 108 | FK23: 92 | FL23: 80 | FM23: 81 | FN23: 58 | FO23: 68 | FP23: 65 | FQ23: 74 | FR23: 58 | FS23: 67 | FT23: 67 | FU23: 63 | FV23: 57 | FW23: 53 | FX23: 63 | FY23: 47 | FZ23: 45 | GA23: 35 | GB23: 24 | GC23: 27 | GD23: 34 | GE23: 138
A24: Nechells | B24: Ladywood | C24: E05001197 | D24: 19288 | E24: 362 | F24: 352 | G24: 339 | H24: 366 | I24: 320 | J24: 306 | K24: 300 | L24: 337 | M24: 319 | N24: 317 | O24: 273 | P24: 275 | Q24: 274 | R24: 254 | S24: 253 | T24: 302 | U24: 287 | V24: 306 | W24: 349 | X24: 650 | Y24: 660 | Z24: 635 | AA24: 598 | AB24: 593 | AC24: 666 | AD24: 463 | AE24: 391 | AF24: 380 | AG24: 356 | AH24: 345 | AI24: 315 | AJ24: 296 | AK24: 275 | AL24: 298 | AM24: 297 | AN24: 284 | AO24: 245 | AP24: 225 | AQ24: 228 | AR24: 244 | AS24: 224 | AT24: 218 | AU24: 207 | AV24: 182 | AW24: 195 | AX24: 215 | AY24: 191 | AZ24: 194 | BA24: 172 | BB24: 180 | BC24: 167 | BD24: 164 | BE24: 142 | BF24: 150 | BG24: 113 | BH24: 144 | BI24: 152 | BJ24: 131 | BK24: 108 | BL24: 123 | BM24: 102 | BN24: 88 | BO24: 101 | BP24: 84 | BQ24: 72 | BR24: 80 | BS24: 63 | BT24: 66 | BU24: 72 | BV24: 48 | BW24: 57 | BX24: 78 | BY24: 56 | BZ24: 55 | CA24: 43 | CB24: 56 | CC24: 57 | CD24: 52 | CE24: 51 | CF24: 36 | CG24: 40 | CH24: 29 | CI24: 34 | CJ24: 32 | CK24: 34 | CL24: 19 | CM24: 11 | CN24: 13 | CO24: 10 | CP24: 8 | CQ24: 34 | CR24: 18731 | CS24: 359 | CT24: 323 | CU24: 355 | CV24: 342 | CW24: 322 | CX24: 302 | CY24: 351 | CZ24: 279 | DA24: 289 | DB24: 299 | DC24: 246 | DD24: 258 | DE24: 252 | DF24: 215 | DG24: 261 | DH24: 250 | DI24: 231 | DJ24: 251 | DK24: 331 | DL24: 797 | DM24: 722 | DN24: 616 | DO24: 613 | DP24: 635 | DQ24: 635 | DR24: 416 | DS24: 365 | DT24: 362 | DU24: 335 | DV24: 344 | DW24: 291 | DX24: 304 | DY24: 291 | DZ24: 275 | EA24: 277 | EB24: 275 | EC24: 248 | ED24: 234 | EE24: 241 | EF24: 223 | EG24: 199 | EH24: 189 | EI24: 170 | EJ24: 184 | EK24: 180 | EL24: 189 | EM24: 163 | EN24: 154 | EO24: 160 | EP24: 145 | EQ24: 133 | ER24: 160 | ES24: 146 | ET24: 135 | EU24: 150 | EV24: 126 | EW24: 113 | EX24: 109 | EY24: 92 | EZ24: 95 | FA24: 112 | FB24: 76 | FC24: 79 | FD24: 93 | FE24: 78 | FF24: 82 | FG24: 68 | FH24: 61 | FI24: 62 | FJ24: 49 | FK24: 72 | FL24: 64 | FM24: 51 | FN24: 57 | FO24: 60 | FP24: 66 | FQ24: 66 | FR24: 58 | FS24: 47 | FT24: 52 | FU24: 54 | FV24: 48 | FW24: 41 | FX24: 37 | FY24: 27 | FZ24: 27 | GA24: 34 | GB24: 19 | GC24: 26 | GD24: 18 | GE24: 40
A25: Northfield | B25: Northfield | C25: E05001198 | D25: 12765 | E25: 182 | F25: 175 | G25: 191 | H25: 200 | I25: 174 | J25: 160 | K25: 167 | L25: 193 | M25: 177 | N25: 184 | O25: 174 | P25: 156 | Q25: 144 | R25: 140 | S25: 120 | T25: 137 | U25: 141 | V25: 160 | W25: 170 | X25: 163 | Y25: 183 | Z25: 168 | AA25: 175 | AB25: 170 | AC25: 201 | AD25: 184 | AE25: 181 | AF25: 178 | AG25: 154 | AH25: 166 | AI25: 185 | AJ25: 150 | AK25: 142 | AL25: 149 | AM25: 158 | AN25: 145 | AO25: 126 | AP25: 145 | AQ25: 128 | AR25: 135 | AS25: 139 | AT25: 161 | AU25: 167 | AV25: 168 | AW25: 150 | AX25: 173 | AY25: 166 | AZ25: 174 | BA25: 186 | BB25: 202 | BC25: 215 | BD25: 192 | BE25: 197 | BF25: 175 | BG25: 194 | BH25: 163 | BI25: 158 | BJ25: 163 | BK25: 148 | BL25: 156 | BM25: 141 | BN25: 134 | BO25: 138 | BP25: 141 | BQ25: 140 | BR25: 159 | BS25: 155 | BT25: 115 | BU25: 160 | BV25: 120 | BW25: 121 | BX25: 125 | BY25: 123 | BZ25: 84 | CA25: 85 | CB25: 76 | CC25: 82 | CD25: 69 | CE25: 60 | CF25: 61 | CG25: 63 | CH25: 57 | CI25: 78 | CJ25: 51 | CK25: 44 | CL25: 31 | CM25: 33 | CN25: 26 | CO25: 21 | CP25: 27 | CQ25: 67 | CR25: 13356 | CS25: 190 | CT25: 156 | CU25: 194 | CV25: 185 | CW25: 148 | CX25: 150 | CY25: 155 | CZ25: 139 | DA25: 135 | DB25: 164 | DC25: 120 | DD25: 142 | DE25: 118 | DF25: 144 | DG25: 142 | DH25: 146 | DI25: 157 | DJ25: 159 | DK25: 153 | DL25: 168 | DM25: 188 | DN25: 189 | DO25: 181 | DP25: 201 | DQ25: 210 | DR25: 202 | DS25: 172 | DT25: 172 | DU25: 195 | DV25: 174 | DW25: 184 | DX25: 150 | DY25: 157 | DZ25: 163 | EA25: 167 | EB25: 167 | EC25: 150 | ED25: 163 | EE25: 147 | EF25: 139 | EG25: 173 | EH25: 164 | EI25: 160 | EJ25: 187 | EK25: 175 | EL25: 182 | EM25: 181 | EN25: 199 | EO25: 182 | EP25: 189 | EQ25: 205 | ER25: 204 | ES25: 199 | ET25: 215 | EU25: 175 | EV25: 147 | EW25: 169 | EX25: 153 | EY25: 161 | EZ25: 133 | FA25: 157 | FB25: 137 | FC25: 151 | FD25: 137 | FE25: 141 | FF25: 154 | FG25: 139 | FH25: 151 | FI25: 155 | FJ25: 105 | FK25: 144 | FL25: 105 | FM25: 126 | FN25: 110 | FO25: 87 | FP25: 103 | FQ25: 94 | FR25: 93 | FS25: 110 | FT25: 104 | FU25: 78 | FV25: 70 | FW25: 81 | FX25: 72 | FY25: 61 | FZ25: 60 | GA25: 58 | GB25: 48 | GC25: 45 | GD25: 37 | GE25: 154
A26: Oscott | B26: Perry Barr | C26: E05001199 | D26: 11972 | E26: 204 | F26: 186 | G26: 193 | H26: 191 | I26: 190 | J26: 191 | K26: 159 | L26: 157 | M26: 173 | N26: 147 | O26: 159 | P26: 149 | Q26: 130 | R26: 113 | S26: 165 | T26: 160 | U26: 143 | V26: 135 | W26: 153 | X26: 181 | Y26: 176 | Z26: 163 | AA26: 187 | AB26: 171 | AC26: 152 | AD26: 183 | AE26: 161 | AF26: 163 | AG26: 174 | AH26: 166 | AI26: 189 | AJ26: 140 | AK26: 168 | AL26: 161 | AM26: 161 | AN26: 164 | AO26: 139 | AP26: 125 | AQ26: 127 | AR26: 127 | AS26: 141 | AT26: 144 | AU26: 143 | AV26: 164 | AW26: 157 | AX26: 141 | AY26: 168 | AZ26: 190 | BA26: 150 | BB26: 159 | BC26: 150 | BD26: 169 | BE26: 192 | BF26: 165 | BG26: 165 | BH26: 141 | BI26: 134 | BJ26: 135 | BK26: 130 | BL26: 138 | BM26: 128 | BN26: 124 | BO26: 116 | BP26: 99 | BQ26: 99 | BR26: 103 | BS26: 110 | BT26: 122 | BU26: 127 | BV26: 88 | BW26: 93 | BX26: 117 | BY26: 106 | BZ26: 91 | CA26: 67 | CB26: 86 | CC26: 97 | CD26: 85 | CE26: 78 | CF26: 79 | CG26: 49 | CH26: 48 | CI26: 55 | CJ26: 47 | CK26: 41 | CL26: 41 | CM26: 26 | CN26: 16 | CO26: 13 | CP26: 15 | CQ26: 54 | CR26: 12948 | CS26: 195 | CT26: 177 | CU26: 193 | CV26: 209 | CW26: 148 | CX26: 154 | CY26: 160 | CZ26: 186 | DA26: 142 | DB26: 154 | DC26: 136 | DD26: 146 | DE26: 139 | DF26: 134 | DG26: 143 | DH26: 152 | DI26: 157 | DJ26: 161 | DK26: 155 | DL26: 132 | DM26: 169 | DN26: 180 | DO26: 165 | DP26: 146 | DQ26: 186 | DR26: 189 | DS26: 204 | DT26: 216 | DU26: 194 | DV26: 176 | DW26: 165 | DX26: 158 | DY26: 170 | DZ26: 184 | EA26: 160 | EB26: 172 | EC26: 147 | ED26: 145 | EE26: 136 | EF26: 138 | EG26: 157 | EH26: 154 | EI26: 166 | EJ26: 154 | EK26: 187 | EL26: 199 | EM26: 219 | EN26: 173 | EO26: 205 | EP26: 230 | EQ26: 176 | ER26: 194 | ES26: 160 | ET26: 210 | EU26: 167 | EV26: 153 | EW26: 161 | EX26: 151 | EY26: 121 | EZ26: 122 | FA26: 117 | FB26: 121 | FC26: 86 | FD26: 115 | FE26: 118 | FF26: 116 | FG26: 119 | FH26: 118 | FI26: 142 | FJ26: 127 | FK26: 124 | FL26: 130 | FM26: 125 | FN26: 99 | FO26: 86 | FP26: 68 | FQ26: 88 | FR26: 84 | FS26: 98 | FT26: 86 | FU26: 71 | FV26: 77 | FW26: 88 | FX26: 73 | FY26: 60 | FZ26: 55 | GA26: 56 | GB26: 43 | GC26: 42 | GD26: 32 | GE26: 152
A27: Perry Barr | B27: Perry Barr | C27: E05001200 | D27: 11628 | E27: 190 | F27: 183 | G27: 188 | H27: 169 | I27: 184 | J27: 185 | K27: 198 | L27: 166 | M27: 192 | N27: 168 | O27: 187 | P27: 172 | Q27: 163 | R27: 172 | S27: 148 | T27: 174 | U27: 146 | V27: 163 | W27: 151 | X27: 200 | Y27: 218 | Z27: 206 | AA27: 187 | AB27: 194 | AC27: 178 | AD27: 200 | AE27: 182 | AF27: 186 | AG27: 166 | AH27: 175 | AI27: 194 | AJ27: 167 | AK27: 158 | AL27: 173 | AM27: 171 | AN27: 162 | AO27: 158 | AP27: 152 | AQ27: 146 | AR27: 132 | AS27: 161 | AT27: 144 | AU27: 121 | AV27: 132 | AW27: 171 | AX27: 147 | AY27: 168 | AZ27: 149 | BA27: 129 | BB27: 135 | BC27: 154 | BD27: 119 | BE27: 154 | BF27: 136 | BG27: 123 | BH27: 123 | BI27: 105 | BJ27: 118 | BK27: 115 | BL27: 113 | BM27: 101 | BN27: 83 | BO27: 103 | BP27: 101 | BQ27: 89 | BR27: 77 | BS27: 80 | BT27: 93 | BU27: 82 | BV27: 86 | BW27: 104 | BX27: 82 | BY27: 68 | BZ27: 71 | CA27: 69 | CB27: 57 | CC27: 59 | CD27: 58 | CE27: 59 | CF27: 56 | CG27: 43 | CH27: 54 | CI27: 33 | CJ27: 29 | CK27: 35 | CL27: 18 | CM27: 19 | CN27: 24 | CO27: 16 | CP27: 15 | CQ27: 43 | CR27: 12245 | CS27: 168 | CT27: 176 | CU27: 169 | CV27: 171 | CW27: 186 | CX27: 175 | CY27: 169 | CZ27: 181 | DA27: 157 | DB27: 172 | DC27: 176 | DD27: 165 | DE27: 129 | DF27: 136 | DG27: 153 | DH27: 137 | DI27: 153 | DJ27: 172 | DK27: 168 | DL27: 283 | DM27: 239 | DN27: 228 | DO27: 213 | DP27: 215 | DQ27: 215 | DR27: 183 | DS27: 154 | DT27: 189 | DU27: 165 | DV27: 195 | DW27: 173 | DX27: 175 | DY27: 183 | DZ27: 157 | EA27: 181 | EB27: 175 | EC27: 169 | ED27: 160 | EE27: 158 | EF27: 170 | EG27: 125 | EH27: 138 | EI27: 119 | EJ27: 168 | EK27: 160 | EL27: 150 | EM27: 149 | EN27: 140 | EO27: 175 | EP27: 166 | EQ27: 156 | ER27: 167 | ES27: 162 | ET27: 147 | EU27: 144 | EV27: 129 | EW27: 143 | EX27: 128 | EY27: 135 | EZ27: 117 | FA27: 88 | FB27: 86 | FC27: 83 | FD27: 82 | FE27: 72 | FF27: 104 | FG27: 87 | FH27: 103 | FI27: 126 | FJ27: 83 | FK27: 82 | FL27: 90 | FM27: 88 | FN27: 76 | FO27: 77 | FP27: 72 | FQ27: 77 | FR27: 68 | FS27: 58 | FT27: 91 | FU27: 64 | FV27: 60 | FW27: 52 | FX27: 44 | FY27: 49 | FZ27: 51 | GA27: 42 | GB27: 31 | GC27: 26 | GD27: 31 | GE27: 91
A28: Quinton | B28: Edgbaston | C28: E05001201 | D28: 11744 | E28: 201 | F28: 187 | G28: 214 | H28: 190 | I28: 185 | J28: 181 | K28: 181 | L28: 192 | M28: 172 | N28: 171 | O28: 164 | P28: 190 | Q28: 146 | R28: 151 | S28: 157 | T28: 147 | U28: 174 | V28: 159 | W28: 150 | X28: 151 | Y28: 154 | Z28: 156 | AA28: 147 | AB28: 161 | AC28: 140 | AD28: 154 | AE28: 149 | AF28: 157 | AG28: 142 | AH28: 142 | AI28: 181 | AJ28: 156 | AK28: 155 | AL28: 173 | AM28: 138 | AN28: 151 | AO28: 163 | AP28: 139 | AQ28: 139 | AR28: 154 | AS28: 144 | AT28: 161 | AU28: 163 | AV28: 180 | AW28: 156 | AX28: 170 | AY28: 154 | AZ28: 149 | BA28: 157 | BB28: 137 | BC28: 150 | BD28: 149 | BE28: 157 | BF28: 152 | BG28: 153 | BH28: 116 | BI28: 135 | BJ28: 116 | BK28: 92 | BL28: 98 | BM28: 128 | BN28: 129 | BO28: 125 | BP28: 117 | BQ28: 119 | BR28: 89 | BS28: 103 | BT28: 93 | BU28: 129 | BV28: 101 | BW28: 101 | BX28: 85 | BY28: 96 | BZ28: 75 | CA28: 77 | CB28: 62 | CC28: 71 | CD28: 65 | CE28: 70 | CF28: 56 | CG28: 61 | CH28: 55 | CI28: 54 | CJ28: 54 | CK28: 41 | CL28: 32 | CM28: 36 | CN28: 26 | CO28: 22 | CP28: 17 | CQ28: 52 | CR28: 12648 | CS28: 188 | CT28: 191 | CU28: 214 | CV28: 177 | CW28: 200 | CX28: 169 | CY28: 181 | CZ28: 165 | DA28: 165 | DB28: 177 | DC28: 136 | DD28: 163 | DE28: 150 | DF28: 144 | DG28: 164 | DH28: 132 | DI28: 157 | DJ28: 146 | DK28: 164 | DL28: 138 | DM28: 149 | DN28: 143 | DO28: 153 | DP28: 140 | DQ28: 173 | DR28: 166 | DS28: 177 | DT28: 173 | DU28: 165 | DV28: 177 | DW28: 191 | DX28: 165 | DY28: 180 | DZ28: 182 | EA28: 182 | EB28: 186 | EC28: 200 | ED28: 170 | EE28: 167 | EF28: 188 | EG28: 163 | EH28: 134 | EI28: 170 | EJ28: 177 | EK28: 190 | EL28: 196 | EM28: 185 | EN28: 175 | EO28: 165 | EP28: 171 | EQ28: 173 | ER28: 149 | ES28: 139 | ET28: 142 | EU28: 154 | EV28: 147 | EW28: 150 | EX28: 138 | EY28: 133 | EZ28: 125 | FA28: 115 | FB28: 122 | FC28: 114 | FD28: 107 | FE28: 109 | FF28: 119 | FG28: 121 | FH28: 126 | FI28: 137 | FJ28: 107 | FK28: 111 | FL28: 95 | FM28: 101 | FN28: 78 | FO28: 87 | FP28: 74 | FQ28: 71 | FR28: 90 | FS28: 91 | FT28: 89 | FU28: 78 | FV28: 74 | FW28: 76 | FX28: 59 | FY28: 51 | FZ28: 45 | GA28: 50 | GB28: 40 | GC28: 34 | GD28: 31 | GE28: 122
A29: Selly Oak | B29: Selly Oak | C29: E05001202 | D29: 13825 | E29: 121 | F29: 103 | G29: 99 | H29: 117 | I29: 97 | J29: 105 | K29: 110 | L29: 86 | M29: 85 | N29: 85 | O29: 87 | P29: 71 | Q29: 68 | R29: 72 | S29: 65 | T29: 93 | U29: 85 | V29: 90 | W29: 154 | X29: 550 | Y29: 1223 | Z29: 1437 | AA29: 1357 | AB29: 1129 | AC29: 804 | AD29: 279 | AE29: 227 | AF29: 244 | AG29: 199 | AH29: 182 | AI29: 146 | AJ29: 140 | AK29: 119 | AL29: 129 | AM29: 131 | AN29: 140 | AO29: 139 | AP29: 139 | AQ29: 127 | AR29: 117 | AS29: 117 | AT29: 113 | AU29: 111 | AV29: 121 | AW29: 102 | AX29: 96 | AY29: 99 | AZ29: 92 | BA29: 75 | BB29: 76 | BC29: 100 | BD29: 73 | BE29: 78 | BF29: 71 | BG29: 71 | BH29: 77 | BI29: 62 | BJ29: 72 | BK29: 67 | BL29: 75 | BM29: 78 | BN29: 77 | BO29: 68 | BP29: 53 | BQ29: 67 | BR29: 70 | BS29: 59 | BT29: 49 | BU29: 65 | BV29: 50 | BW29: 44 | BX29: 37 | BY29: 48 | BZ29: 54 | CA29: 31 | CB29: 35 | CC29: 51 | CD29: 48 | CE29: 40 | CF29: 39 | CG29: 45 | CH29: 26 | CI29: 32 | CJ29: 23 | CK29: 25 | CL29: 21 | CM29: 15 | CN29: 18 | CO29: 14 | CP29: 10 | CQ29: 34 | CR29: 13913 | CS29: 124 | CT29: 98 | CU29: 98 | CV29: 98 | CW29: 105 | CX29: 106 | CY29: 89 | CZ29: 78 | DA29: 90 | DB29: 72 | DC29: 67 | DD29: 76 | DE29: 66 | DF29: 65 | DG29: 59 | DH29: 75 | DI29: 77 | DJ29: 89 | DK29: 160 | DL29: 679 | DM29: 1649 | DN29: 1752 | DO29: 1297 | DP29: 994 | DQ29: 719 | DR29: 247 | DS29: 216 | DT29: 176 | DU29: 147 | DV29: 114 | DW29: 121 | DX29: 135 | DY29: 117 | DZ29: 120 | EA29: 122 | EB29: 112 | EC29: 109 | ED29: 109 | EE29: 92 | EF29: 112 | EG29: 87 | EH29: 87 | EI29: 87 | EJ29: 74 | EK29: 87 | EL29: 90 | EM29: 95 | EN29: 61 | EO29: 78 | EP29: 76 | EQ29: 68 | ER29: 89 | ES29: 80 | ET29: 80 | EU29: 80 | EV29: 79 | EW29: 75 | EX29: 75 | EY29: 75 | EZ29: 73 | FA29: 59 | FB29: 63 | FC29: 62 | FD29: 56 | FE29: 47 | FF29: 56 | FG29: 52 | FH29: 67 | FI29: 66 | FJ29: 45 | FK29: 52 | FL29: 50 | FM29: 42 | FN29: 48 | FO29: 44 | FP29: 58 | FQ29: 55 | FR29: 53 | FS29: 42 | FT29: 49 | FU29: 41 | FV29: 34 | FW29: 32 | FX29: 34 | FY29: 31 | FZ29: 34 | GA29: 33 | GB29: 30 | GC29: 31 | GD29: 30 | GE29: 90
A30: Shard End | B30: Hodge Hill | C30: E05001203 | D30: 13075 | E30: 247 | F30: 256 | G30: 253 | H30: 271 | I30: 230 | J30: 249 | K30: 225 | L30: 235 | M30: 234 | N30: 210 | O30: 205 | P30: 195 | Q30: 181 | R30: 156 | S30: 171 | T30: 175 | U30: 180 | V30: 167 | W30: 194 | X30: 170 | Y30: 177 | Z30: 172 | AA30: 168 | AB30: 199 | AC30: 166 | AD30: 216 | AE30: 172 | AF30: 161 | AG30: 176 | AH30: 161 | AI30: 204 | AJ30: 218 | AK30: 195 | AL30: 161 | AM30: 156 | AN30: 169 | AO30: 175 | AP30: 127 | AQ30: 140 | AR30: 133 | AS30: 140 | AT30: 141 | AU30: 152 | AV30: 180 | AW30: 161 | AX30: 185 | AY30: 159 | AZ30: 172 | BA30: 170 | BB30: 171 | BC30: 163 | BD30: 149 | BE30: 154 | BF30: 160 | BG30: 147 | BH30: 148 | BI30: 130 | BJ30: 150 | BK30: 118 | BL30: 120 | BM30: 108 | BN30: 128 | BO30: 108 | BP30: 132 | BQ30: 110 | BR30: 122 | BS30: 142 | BT30: 133 | BU30: 154 | BV30: 109 | BW30: 107 | BX30: 80 | BY30: 85 | BZ30: 82 | CA30: 59 | CB30: 69 | CC30: 69 | CD30: 42 | CE30: 66 | CF30: 54 | CG30: 55 | CH30: 47 | CI30: 42 | CJ30: 40 | CK30: 35 | CL30: 22 | CM30: 23 | CN30: 23 | CO30: 16 | CP30: 14 | CQ30: 79 | CR30: 14580 | CS30: 224 | CT30: 220 | CU30: 259 | CV30: 264 | CW30: 260 | CX30: 210 | CY30: 228 | CZ30: 209 | DA30: 208 | DB30: 211 | DC30: 188 | DD30: 182 | DE30: 152 | DF30: 176 | DG30: 164 | DH30: 135 | DI30: 153 | DJ30: 157 | DK30: 158 | DL30: 176 | DM30: 197 | DN30: 207 | DO30: 207 | DP30: 249 | DQ30: 223 | DR30: 210 | DS30: 267 | DT30: 239 | DU30: 254 | DV30: 231 | DW30: 219 | DX30: 212 | DY30: 225 | DZ30: 221 | EA30: 210 | EB30: 186 | EC30: 207 | ED30: 168 | EE30: 153 | EF30: 143 | EG30: 149 | EH30: 174 | EI30: 194 | EJ30: 187 | EK30: 195 | EL30: 194 | EM30: 175 | EN30: 192 | EO30: 196 | EP30: 187 | EQ30: 179 | ER30: 180 | ES30: 180 | ET30: 175 | EU30: 185 | EV30: 158 | EW30: 148 | EX30: 158 | EY30: 134 | EZ30: 127 | FA30: 138 | FB30: 130 | FC30: 137 | FD30: 116 | FE30: 123 | FF30: 137 | FG30: 112 | FH30: 136 | FI30: 148 | FJ30: 96 | FK30: 113 | FL30: 121 | FM30: 95 | FN30: 105 | FO30: 71 | FP30: 62 | FQ30: 77 | FR30: 83 | FS30: 66 | FT30: 66 | FU30: 72 | FV30: 63 | FW30: 67 | FX30: 76 | FY30: 64 | FZ30: 46 | GA30: 60 | GB30: 48 | GC30: 57 | GD30: 40 | GE30: 226
A31: Sheldon | B31: Yardley | C31: E05001204 | D31: 11166 | E31: 166 | F31: 164 | G31: 184 | H31: 200 | I31: 157 | J31: 165 | K31: 171 | L31: 129 | M31: 143 | N31: 142 | O31: 158 | P31: 137 | Q31: 159 | R31: 150 | S31: 145 | T31: 144 | U31: 151 | V31: 134 | W31: 149 | X31: 145 | Y31: 144 | Z31: 152 | AA31: 144 | AB31: 137 | AC31: 132 | AD31: 165 | AE31: 170 | AF31: 157 | AG31: 138 | AH31: 159 | AI31: 163 | AJ31: 142 | AK31: 149 | AL31: 137 | AM31: 139 | AN31: 120 | AO31: 127 | AP31: 119 | AQ31: 138 | AR31: 119 | AS31: 118 | AT31: 122 | AU31: 123 | AV31: 149 | AW31: 169 | AX31: 151 | AY31: 144 | AZ31: 145 | BA31: 161 | BB31: 171 | BC31: 160 | BD31: 156 | BE31: 172 | BF31: 156 | BG31: 151 | BH31: 129 | BI31: 155 | BJ31: 143 | BK31: 116 | BL31: 98 | BM31: 126 | BN31: 118 | BO31: 100 | BP31: 109 | BQ31: 97 | BR31: 99 | BS31: 95 | BT31: 114 | BU31: 104 | BV31: 109 | BW31: 95 | BX31: 113 | BY31: 112 | BZ31: 82 | CA31: 66 | CB31: 78 | CC31: 84 | CD31: 70 | CE31: 63 | CF31: 54 | CG31: 60 | CH31: 58 | CI31: 50 | CJ31: 49 | CK31: 48 | CL31: 36 | CM31: 34 | CN31: 21 | CO31: 16 | CP31: 14 | CQ31: 59 | CR31: 11683 | CS31: 162 | CT31: 159 | CU31: 127 | CV31: 159 | CW31: 157 | CX31: 146 | CY31: 117 | CZ31: 155 | DA31: 139 | DB31: 148 | DC31: 137 | DD31: 153 | DE31: 120 | DF31: 123 | DG31: 120 | DH31: 142 | DI31: 131 | DJ31: 140 | DK31: 125 | DL31: 129 | DM31: 147 | DN31: 145 | DO31: 156 | DP31: 148 | DQ31: 142 | DR31: 174 | DS31: 188 | DT31: 175 | DU31: 170 | DV31: 153 | DW31: 149 | DX31: 148 | DY31: 141 | DZ31: 142 | EA31: 144 | EB31: 167 | EC31: 157 | ED31: 136 | EE31: 135 | EF31: 157 | EG31: 128 | EH31: 118 | EI31: 125 | EJ31: 145 | EK31: 160 | EL31: 176 | EM31: 155 | EN31: 160 | EO31: 171 | EP31: 185 | EQ31: 156 | ER31: 150 | ES31: 182 | ET31: 180 | EU31: 164 | EV31: 153 | EW31: 145 | EX31: 129 | EY31: 128 | EZ31: 99 | FA31: 112 | FB31: 118 | FC31: 124 | FD31: 100 | FE31: 103 | FF31: 117 | FG31: 122 | FH31: 94 | FI31: 132 | FJ31: 117 | FK31: 102 | FL31: 109 | FM31: 102 | FN31: 92 | FO31: 84 | FP31: 87 | FQ31: 94 | FR31: 108 | FS31: 80 | FT31: 92 | FU31: 77 | FV31: 75 | FW31: 65 | FX31: 65 | FY31: 50 | FZ31: 61 | GA31: 47 | GB31: 38 | GC31: 37 | GD31: 30 | GE31: 177
A32: Soho | B32: Ladywood | C32: E05001205 | D32: 16446 | E32: 278 | F32: 304 | G32: 314 | H32: 330 | I32: 277 | J32: 293 | K32: 286 | L32: 280 | M32: 302 | N32: 259 | O32: 269 | P32: 280 | Q32: 261 | R32: 236 | S32: 254 | T32: 203 | U32: 220 | V32: 226 | W32: 230 | X32: 236 | Y32: 235 | Z32: 232 | AA32: 297 | AB32: 318 | AC32: 312 | AD32: 333 | AE32: 319 | AF32: 310 | AG32: 323 | AH32: 308 | AI32: 299 | AJ32: 294 | AK32: 333 | AL32: 302 | AM32: 308 | AN32: 313 | AO32: 274 | AP32: 271 | AQ32: 239 | AR32: 254 | AS32: 265 | AT32: 217 | AU32: 232 | AV32: 214 | AW32: 242 | AX32: 228 | AY32: 194 | AZ32: 190 | BA32: 188 | BB32: 166 | BC32: 178 | BD32: 163 | BE32: 159 | BF32: 174 | BG32: 142 | BH32: 132 | BI32: 134 | BJ32: 124 | BK32: 108 | BL32: 99 | BM32: 106 | BN32: 106 | BO32: 107 | BP32: 104 | BQ32: 70 | BR32: 71 | BS32: 60 | BT32: 69 | BU32: 58 | BV32: 67 | BW32: 51 | BX32: 53 | BY32: 63 | BZ32: 63 | CA32: 49 | CB32: 74 | CC32: 60 | CD32: 43 | CE32: 51 | CF32: 49 | CG32: 34 | CH32: 39 | CI32: 34 | CJ32: 34 | CK32: 26 | CL32: 29 | CM32: 32 | CN32: 17 | CO32: 11 | CP32: 12 | CQ32: 43 | CR32: 15683 | CS32: 277 | CT32: 260 | CU32: 278 | CV32: 281 | CW32: 277 | CX32: 279 | CY32: 283 | CZ32: 291 | DA32: 250 | DB32: 273 | DC32: 262 | DD32: 227 | DE32: 232 | DF32: 219 | DG32: 219 | DH32: 221 | DI32: 210 | DJ32: 240 | DK32: 205 | DL32: 259 | DM32: 243 | DN32: 241 | DO32: 251 | DP32: 246 | DQ32: 250 | DR32: 265 | DS32: 259 | DT32: 301 | DU32: 263 | DV32: 297 | DW32: 264 | DX32: 288 | DY32: 276 | DZ32: 255 | EA32: 299 | EB32: 274 | EC32: 264 | ED32: 205 | EE32: 220 | EF32: 202 | EG32: 218 | EH32: 221 | EI32: 192 | EJ32: 203 | EK32: 205 | EL32: 206 | EM32: 196 | EN32: 210 | EO32: 186 | EP32: 177 | EQ32: 165 | ER32: 166 | ES32: 169 | ET32: 165 | EU32: 147 | EV32: 151 | EW32: 146 | EX32: 127 | EY32: 102 | EZ32: 121 | FA32: 105 | FB32: 108 | FC32: 97 | FD32: 98 | FE32: 78 | FF32: 98 | FG32: 62 | FH32: 87 | FI32: 78 | FJ32: 54 | FK32: 58 | FL32: 82 | FM32: 75 | FN32: 58 | FO32: 72 | FP32: 64 | FQ32: 63 | FR32: 73 | FS32: 57 | FT32: 67 | FU32: 55 | FV32: 54 | FW32: 43 | FX32: 34 | FY32: 43 | FZ32: 43 | GA32: 21 | GB32: 35 | GC32: 31 | GD32: 26 | GE32: 85
A33: South Yardley | B33: Yardley | C33: E05001206 | D33: 15984 | E33: 296 | F33: 307 | G33: 318 | H33: 301 | I33: 328 | J33: 279 | K33: 297 | L33: 311 | M33: 297 | N33: 300 | O33: 280 | P33: 290 | Q33: 267 | R33: 254 | S33: 234 | T33: 209 | U33: 246 | V33: 218 | W33: 233 | X33: 221 | Y33: 186 | Z33: 236 | AA33: 191 | AB33: 178 | AC33: 242 | AD33: 252 | AE33: 258 | AF33: 244 | AG33: 192 | AH33: 212 | AI33: 244 | AJ33: 224 | AK33: 257 | AL33: 241 | AM33: 245 | AN33: 246 | AO33: 249 | AP33: 230 | AQ33: 214 | AR33: 202 | AS33: 223 | AT33: 204 | AU33: 203 | AV33: 208 | AW33: 199 | AX33: 197 | AY33: 202 | AZ33: 204 | BA33: 185 | BB33: 196 | BC33: 178 | BD33: 175 | BE33: 187 | BF33: 199 | BG33: 175 | BH33: 190 | BI33: 155 | BJ33: 154 | BK33: 147 | BL33: 150 | BM33: 146 | BN33: 146 | BO33: 118 | BP33: 109 | BQ33: 113 | BR33: 114 | BS33: 88 | BT33: 96 | BU33: 115 | BV33: 98 | BW33: 74 | BX33: 85 | BY33: 68 | BZ33: 58 | CA33: 60 | CB33: 76 | CC33: 72 | CD33: 65 | CE33: 57 | CF33: 66 | CG33: 55 | CH33: 45 | CI33: 51 | CJ33: 54 | CK33: 33 | CL33: 33 | CM33: 35 | CN33: 21 | CO33: 24 | CP33: 15 | CQ33: 34 | CR33: 16351 | CS33: 267 | CT33: 353 | CU33: 295 | CV33: 302 | CW33: 278 | CX33: 293 | CY33: 303 | CZ33: 280 | DA33: 278 | DB33: 254 | DC33: 267 | DD33: 214 | DE33: 237 | DF33: 221 | DG33: 208 | DH33: 227 | DI33: 222 | DJ33: 218 | DK33: 236 | DL33: 228 | DM33: 218 | DN33: 232 | DO33: 215 | DP33: 234 | DQ33: 234 | DR33: 268 | DS33: 282 | DT33: 280 | DU33: 319 | DV33: 272 | DW33: 253 | DX33: 243 | DY33: 258 | DZ33: 253 | EA33: 257 | EB33: 270 | EC33: 242 | ED33: 218 | EE33: 244 | EF33: 224 | EG33: 183 | EH33: 199 | EI33: 180 | EJ33: 240 | EK33: 206 | EL33: 185 | EM33: 189 | EN33: 178 | EO33: 185 | EP33: 203 | EQ33: 188 | ER33: 225 | ES33: 196 | ET33: 195 | EU33: 171 | EV33: 173 | EW33: 150 | EX33: 157 | EY33: 167 | EZ33: 121 | FA33: 137 | FB33: 128 | FC33: 121 | FD33: 111 | FE33: 114 | FF33: 133 | FG33: 96 | FH33: 106 | FI33: 116 | FJ33: 85 | FK33: 93 | FL33: 72 | FM33: 99 | FN33: 93 | FO33: 81 | FP33: 69 | FQ33: 66 | FR33: 81 | FS33: 60 | FT33: 58 | FU33: 64 | FV33: 59 | FW33: 54 | FX33: 57 | FY33: 58 | FZ33: 44 | GA33: 31 | GB33: 35 | GC33: 33 | GD33: 26 | GE33: 83
A34: Sparkbrook | B34: Hall Green | C34: E05001207 | D34: 16981 | E34: 273 | F34: 347 | G34: 319 | H34: 298 | I34: 340 | J34: 324 | K34: 308 | L34: 323 | M34: 318 | N34: 349 | O34: 307 | P34: 257 | Q34: 311 | R34: 305 | S34: 295 | T34: 295 | U34: 324 | V34: 315 | W34: 281 | X34: 291 | Y34: 305 | Z34: 317 | AA34: 299 | AB34: 298 | AC34: 300 | AD34: 341 | AE34: 310 | AF34: 297 | AG34: 319 | AH34: 319 | AI34: 287 | AJ34: 302 | AK34: 306 | AL34: 278 | AM34: 260 | AN34: 256 | AO34: 249 | AP34: 228 | AQ34: 240 | AR34: 267 | AS34: 214 | AT34: 212 | AU34: 214 | AV34: 204 | AW34: 177 | AX34: 184 | AY34: 187 | AZ34: 175 | BA34: 160 | BB34: 151 | BC34: 180 | BD34: 152 | BE34: 136 | BF34: 115 | BG34: 113 | BH34: 132 | BI34: 129 | BJ34: 129 | BK34: 128 | BL34: 114 | BM34: 121 | BN34: 121 | BO34: 114 | BP34: 111 | BQ34: 80 | BR34: 84 | BS34: 55 | BT34: 57 | BU34: 61 | BV34: 44 | BW34: 55 | BX34: 70 | BY34: 61 | BZ34: 62 | CA34: 43 | CB34: 68 | CC34: 56 | CD34: 57 | CE34: 57 | CF34: 55 | CG34: 58 | CH34: 53 | CI34: 46 | CJ34: 44 | CK34: 39 | CL34: 30 | CM34: 18 | CN34: 27 | CO34: 13 | CP34: 13 | CQ34: 44 | CR34: 16116 | CS34: 258 | CT34: 307 | CU34: 286 | CV34: 270 | CW34: 273 | CX34: 249 | CY34: 321 | CZ34: 291 | DA34: 283 | DB34: 291 | DC34: 300 | DD34: 294 | DE34: 283 | DF34: 272 | DG34: 290 | DH34: 328 | DI34: 278 | DJ34: 284 | DK34: 274 | DL34: 319 | DM34: 293 | DN34: 276 | DO34: 295 | DP34: 306 | DQ34: 250 | DR34: 277 | DS34: 286 | DT34: 300 | DU34: 288 | DV34: 300 | DW34: 266 | DX34: 245 | DY34: 263 | DZ34: 236 | EA34: 255 | EB34: 238 | EC34: 211 | ED34: 220 | EE34: 188 | EF34: 204 | EG34: 180 | EH34: 194 | EI34: 183 | EJ34: 199 | EK34: 182 | EL34: 207 | EM34: 180 | EN34: 179 | EO34: 157 | EP34: 138 | EQ34: 183 | ER34: 144 | ES34: 149 | ET34: 134 | EU34: 123 | EV34: 148 | EW34: 144 | EX34: 132 | EY34: 129 | EZ34: 124 | FA34: 113 | FB34: 115 | FC34: 113 | FD34: 96 | FE34: 85 | FF34: 82 | FG34: 84 | FH34: 87 | FI34: 81 | FJ34: 64 | FK34: 74 | FL34: 58 | FM34: 47 | FN34: 51 | FO34: 55 | FP34: 67 | FQ34: 65 | FR34: 66 | FS34: 68 | FT34: 48 | FU34: 74 | FV34: 51 | FW34: 41 | FX34: 49 | FY34: 38 | FZ34: 53 | GA34: 20 | GB34: 22 | GC34: 21 | GD34: 15 | GE34: 56
A35: Springfield | B35: Hall Green | C35: E05001208 | D35: 16586 | E35: 311 | F35: 319 | G35: 334 | H35: 289 | I35: 286 | J35: 297 | K35: 333 | L35: 322 | M35: 292 | N35: 312 | O35: 310 | P35: 300 | Q35: 311 | R35: 278 | S35: 254 | T35: 265 | U35: 285 | V35: 283 | W35: 296 | X35: 246 | Y35: 267 | Z35: 288 | AA35: 249 | AB35: 268 | AC35: 238 | AD35: 293 | AE35: 261 | AF35: 275 | AG35: 265 | AH35: 287 | AI35: 280 | AJ35: 263 | AK35: 283 | AL35: 270 | AM35: 269 | AN35: 260 | AO35: 254 | AP35: 238 | AQ35: 237 | AR35: 241 | AS35: 191 | AT35: 222 | AU35: 228 | AV35: 227 | AW35: 207 | AX35: 214 | AY35: 189 | AZ35: 163 | BA35: 187 | BB35: 149 | BC35: 153 | BD35: 149 | BE35: 142 | BF35: 154 | BG35: 136 | BH35: 131 | BI35: 135 | BJ35: 144 | BK35: 134 | BL35: 136 | BM35: 131 | BN35: 124 | BO35: 134 | BP35: 109 | BQ35: 93 | BR35: 97 | BS35: 86 | BT35: 84 | BU35: 60 | BV35: 59 | BW35: 49 | BX35: 51 | BY35: 75 | BZ35: 76 | CA35: 57 | CB35: 52 | CC35: 70 | CD35: 70 | CE35: 54 | CF35: 51 | CG35: 61 | CH35: 54 | CI35: 57 | CJ35: 42 | CK35: 36 | CL35: 39 | CM35: 25 | CN35: 17 | CO35: 20 | CP35: 11 | CQ35: 42 | CR35: 16346 | CS35: 263 | CT35: 301 | CU35: 298 | CV35: 286 | CW35: 290 | CX35: 301 | CY35: 312 | CZ35: 283 | DA35: 273 | DB35: 296 | DC35: 288 | DD35: 283 | DE35: 298 | DF35: 269 | DG35: 283 | DH35: 254 | DI35: 259 | DJ35: 271 | DK35: 266 | DL35: 237 | DM35: 257 | DN35: 275 | DO35: 248 | DP35: 271 | DQ35: 246 | DR35: 268 | DS35: 269 | DT35: 284 | DU35: 290 | DV35: 254 | DW35: 265 | DX35: 260 | DY35: 255 | DZ35: 268 | EA35: 285 | EB35: 269 | EC35: 220 | ED35: 230 | EE35: 222 | EF35: 218 | EG35: 202 | EH35: 223 | EI35: 199 | EJ35: 177 | EK35: 200 | EL35: 211 | EM35: 172 | EN35: 183 | EO35: 179 | EP35: 142 | EQ35: 167 | ER35: 152 | ES35: 135 | ET35: 142 | EU35: 122 | EV35: 143 | EW35: 133 | EX35: 117 | EY35: 135 | EZ35: 134 | FA35: 139 | FB35: 126 | FC35: 112 | FD35: 107 | FE35: 110 | FF35: 100 | FG35: 107 | FH35: 92 | FI35: 93 | FJ35: 92 | FK35: 74 | FL35: 84 | FM35: 82 | FN35: 81 | FO35: 71 | FP35: 69 | FQ35: 67 | FR35: 81 | FS35: 84 | FT35: 67 | FU35: 58 | FV35: 58 | FW35: 42 | FX35: 46 | FY35: 45 | FZ35: 37 | GA35: 32 | GB35: 27 | GC35: 27 | GD35: 23 | GE35: 80
A36: Stechford and Yardley North | B36: Yardley | C36: E05001209 | D36: 13194 | E36: 222 | F36: 221 | G36: 234 | H36: 213 | I36: 216 | J36: 232 | K36: 230 | L36: 229 | M36: 217 | N36: 239 | O36: 223 | P36: 191 | Q36: 187 | R36: 179 | S36: 200 | T36: 190 | U36: 189 | V36: 194 | W36: 223 | X36: 208 | Y36: 173 | Z36: 184 | AA36: 179 | AB36: 185 | AC36: 190 | AD36: 239 | AE36: 184 | AF36: 187 | AG36: 162 | AH36: 177 | AI36: 195 | AJ36: 173 | AK36: 176 | AL36: 171 | AM36: 169 | AN36: 168 | AO36: 157 | AP36: 147 | AQ36: 135 | AR36: 138 | AS36: 144 | AT36: 140 | AU36: 171 | AV36: 150 | AW36: 168 | AX36: 164 | AY36: 156 | AZ36: 165 | BA36: 146 | BB36: 160 | BC36: 176 | BD36: 180 | BE36: 161 | BF36: 167 | BG36: 153 | BH36: 148 | BI36: 157 | BJ36: 144 | BK36: 132 | BL36: 144 | BM36: 129 | BN36: 119 | BO36: 114 | BP36: 122 | BQ36: 110 | BR36: 124 | BS36: 99 | BT36: 111 | BU36: 118 | BV36: 92 | BW36: 89 | BX36: 89 | BY36: 87 | BZ36: 70 | CA36: 67 | CB36: 72 | CC36: 78 | CD36: 77 | CE36: 67 | CF36: 49 | CG36: 69 | CH36: 68 | CI36: 52 | CJ36: 46 | CK36: 40 | CL36: 34 | CM36: 34 | CN36: 25 | CO36: 23 | CP36: 23 | CQ36: 45 | CR36: 13667 | CS36: 223 | CT36: 210 | CU36: 223 | CV36: 211 | CW36: 188 | CX36: 226 | CY36: 200 | CZ36: 212 | DA36: 204 | DB36: 206 | DC36: 202 | DD36: 187 | DE36: 181 | DF36: 196 | DG36: 176 | DH36: 199 | DI36: 183 | DJ36: 194 | DK36: 182 | DL36: 190 | DM36: 201 | DN36: 198 | DO36: 209 | DP36: 179 | DQ36: 181 | DR36: 214 | DS36: 196 | DT36: 213 | DU36: 207 | DV36: 209 | DW36: 170 | DX36: 197 | DY36: 181 | DZ36: 165 | EA36: 180 | EB36: 201 | EC36: 162 | ED36: 184 | EE36: 171 | EF36: 147 | EG36: 173 | EH36: 144 | EI36: 164 | EJ36: 174 | EK36: 189 | EL36: 178 | EM36: 171 | EN36: 176 | EO36: 179 | EP36: 183 | EQ36: 182 | ER36: 174 | ES36: 168 | ET36: 146 | EU36: 178 | EV36: 154 | EW36: 139 | EX36: 145 | EY36: 125 | EZ36: 138 | FA36: 109 | FB36: 125 | FC36: 90 | FD36: 98 | FE36: 84 | FF36: 106 | FG36: 104 | FH36: 120 | FI36: 112 | FJ36: 110 | FK36: 94 | FL36: 94 | FM36: 111 | FN36: 88 | FO36: 80 | FP36: 75 | FQ36: 93 | FR36: 86 | FS36: 87 | FT36: 73 | FU36: 76 | FV36: 49 | FW36: 72 | FX36: 57 | FY36: 57 | FZ36: 48 | GA36: 55 | GB36: 42 | GC36: 36 | GD36: 34 | GE36: 164
A37: Stockland Green | B37: Erdington | C37: E05001210 | D37: 12817 | E37: 210 | F37: 206 | G37: 216 | H37: 210 | I37: 197 | J37: 160 | K37: 180 | L37: 167 | M37: 177 | N37: 172 | O37: 159 | P37: 138 | Q37: 149 | R37: 147 | S37: 161 | T37: 165 | U37: 156 | V37: 161 | W37: 180 | X37: 166 | Y37: 197 | Z37: 226 | AA37: 187 | AB37: 219 | AC37: 230 | AD37: 218 | AE37: 213 | AF37: 213 | AG37: 207 | AH37: 242 | AI37: 248 | AJ37: 221 | AK37: 212 | AL37: 233 | AM37: 234 | AN37: 203 | AO37: 177 | AP37: 171 | AQ37: 189 | AR37: 145 | AS37: 172 | AT37: 170 | AU37: 182 | AV37: 150 | AW37: 162 | AX37: 168 | AY37: 175 | AZ37: 171 | BA37: 183 | BB37: 188 | BC37: 161 | BD37: 173 | BE37: 199 | BF37: 168 | BG37: 138 | BH37: 153 | BI37: 132 | BJ37: 130 | BK37: 133 | BL37: 131 | BM37: 115 | BN37: 128 | BO37: 130 | BP37: 81 | BQ37: 100 | BR37: 92 | BS37: 85 | BT37: 92 | BU37: 88 | BV37: 83 | BW37: 53 | BX37: 77 | BY37: 60 | BZ37: 68 | CA37: 46 | CB37: 48 | CC37: 60 | CD37: 57 | CE37: 47 | CF37: 55 | CG37: 41 | CH37: 39 | CI37: 41 | CJ37: 25 | CK37: 32 | CL37: 38 | CM37: 30 | CN37: 26 | CO37: 17 | CP37: 17 | CQ37: 45 | CR37: 12887 | CS37: 169 | CT37: 180 | CU37: 217 | CV37: 189 | CW37: 191 | CX37: 172 | CY37: 171 | CZ37: 157 | DA37: 153 | DB37: 156 | DC37: 157 | DD37: 146 | DE37: 164 | DF37: 136 | DG37: 137 | DH37: 147 | DI37: 141 | DJ37: 152 | DK37: 152 | DL37: 155 | DM37: 162 | DN37: 215 | DO37: 232 | DP37: 211 | DQ37: 233 | DR37: 221 | DS37: 188 | DT37: 229 | DU37: 232 | DV37: 236 | DW37: 231 | DX37: 240 | DY37: 230 | DZ37: 207 | EA37: 213 | EB37: 211 | EC37: 178 | ED37: 163 | EE37: 153 | EF37: 174 | EG37: 138 | EH37: 136 | EI37: 168 | EJ37: 180 | EK37: 185 | EL37: 178 | EM37: 195 | EN37: 176 | EO37: 179 | EP37: 171 | EQ37: 201 | ER37: 200 | ES37: 153 | ET37: 201 | EU37: 154 | EV37: 141 | EW37: 157 | EX37: 130 | EY37: 143 | EZ37: 120 | FA37: 95 | FB37: 104 | FC37: 100 | FD37: 86 | FE37: 102 | FF37: 112 | FG37: 101 | FH37: 95 | FI37: 115 | FJ37: 76 | FK37: 66 | FL37: 85 | FM37: 66 | FN37: 73 | FO37: 68 | FP37: 64 | FQ37: 70 | FR37: 71 | FS37: 58 | FT37: 66 | FU37: 40 | FV37: 41 | FW37: 58 | FX37: 49 | FY37: 44 | FZ37: 51 | GA37: 36 | GB37: 26 | GC37: 35 | GD37: 15 | GE37: 112
A38: Sutton Four Oaks | B38: Sutton Coldfield | C38: E05001211 | D38: 11720 | E38: 132 | F38: 122 | G38: 141 | H38: 133 | I38: 142 | J38: 145 | K38: 154 | L38: 181 | M38: 176 | N38: 143 | O38: 163 | P38: 160 | Q38: 155 | R38: 159 | S38: 167 | T38: 147 | U38: 169 | V38: 135 | W38: 137 | X38: 111 | Y38: 101 | Z38: 100 | AA38: 106 | AB38: 118 | AC38: 103 | AD38: 134 | AE38: 133 | AF38: 118 | AG38: 109 | AH38: 119 | AI38: 90 | AJ38: 97 | AK38: 114 | AL38: 125 | AM38: 103 | AN38: 120 | AO38: 118 | AP38: 104 | AQ38: 124 | AR38: 158 | AS38: 153 | AT38: 140 | AU38: 143 | AV38: 174 | AW38: 182 | AX38: 157 | AY38: 180 | AZ38: 183 | BA38: 164 | BB38: 172 | BC38: 188 | BD38: 179 | BE38: 184 | BF38: 171 | BG38: 151 | BH38: 146 | BI38: 133 | BJ38: 150 | BK38: 147 | BL38: 149 | BM38: 137 | BN38: 137 | BO38: 129 | BP38: 113 | BQ38: 144 | BR38: 130 | BS38: 142 | BT38: 145 | BU38: 167 | BV38: 142 | BW38: 137 | BX38: 148 | BY38: 125 | BZ38: 113 | CA38: 87 | CB38: 93 | CC38: 87 | CD38: 111 | CE38: 96 | CF38: 91 | CG38: 88 | CH38: 70 | CI38: 91 | CJ38: 75 | CK38: 89 | CL38: 57 | CM38: 48 | CN38: 59 | CO38: 37 | CP38: 34 | CQ38: 86 | CR38: 12706 | CS38: 133 | CT38: 136 | CU38: 150 | CV38: 142 | CW38: 146 | CX38: 132 | CY38: 125 | CZ38: 154 | DA38: 151 | DB38: 165 | DC38: 150 | DD38: 151 | DE38: 145 | DF38: 143 | DG38: 143 | DH38: 151 | DI38: 142 | DJ38: 138 | DK38: 141 | DL38: 121 | DM38: 103 | DN38: 91 | DO38: 110 | DP38: 125 | DQ38: 101 | DR38: 120 | DS38: 89 | DT38: 128 | DU38: 114 | DV38: 120 | DW38: 91 | DX38: 100 | DY38: 122 | DZ38: 118 | EA38: 115 | EB38: 150 | EC38: 153 | ED38: 146 | EE38: 146 | EF38: 165 | EG38: 161 | EH38: 143 | EI38: 145 | EJ38: 177 | EK38: 214 | EL38: 174 | EM38: 196 | EN38: 211 | EO38: 191 | EP38: 184 | EQ38: 215 | ER38: 211 | ES38: 179 | ET38: 176 | EU38: 170 | EV38: 151 | EW38: 180 | EX38: 130 | EY38: 165 | EZ38: 167 | FA38: 128 | FB38: 136 | FC38: 155 | FD38: 153 | FE38: 125 | FF38: 145 | FG38: 150 | FH38: 156 | FI38: 179 | FJ38: 147 | FK38: 193 | FL38: 158 | FM38: 144 | FN38: 122 | FO38: 109 | FP38: 104 | FQ38: 125 | FR38: 132 | FS38: 118 | FT38: 133 | FU38: 140 | FV38: 95 | FW38: 97 | FX38: 122 | FY38: 104 | FZ38: 83 | GA38: 75 | GB38: 57 | GC38: 57 | GD38: 51 | GE38: 207
A39: Sutton New Hall | B39: Sutton Coldfield | C39: E05001212 | D39: 10698 | E39: 112 | F39: 114 | G39: 106 | H39: 112 | I39: 113 | J39: 119 | K39: 105 | L39: 116 | M39: 148 | N39: 104 | O39: 141 | P39: 130 | Q39: 130 | R39: 104 | S39: 124 | T39: 138 | U39: 124 | V39: 134 | W39: 137 | X39: 114 | Y39: 130 | Z39: 86 | AA39: 103 | AB39: 120 | AC39: 113 | AD39: 128 | AE39: 117 | AF39: 116 | AG39: 113 | AH39: 99 | AI39: 112 | AJ39: 98 | AK39: 109 | AL39: 107 | AM39: 95 | AN39: 119 | AO39: 127 | AP39: 105 | AQ39: 122 | AR39: 125 | AS39: 118 | AT39: 131 | AU39: 149 | AV39: 131 | AW39: 135 | AX39: 161 | AY39: 183 | AZ39: 161 | BA39: 174 | BB39: 161 | BC39: 159 | BD39: 161 | BE39: 158 | BF39: 185 | BG39: 154 | BH39: 151 | BI39: 172 | BJ39: 173 | BK39: 149 | BL39: 144 | BM39: 161 | BN39: 167 | BO39: 150 | BP39: 157 | BQ39: 126 | BR39: 153 | BS39: 141 | BT39: 160 | BU39: 185 | BV39: 122 | BW39: 121 | BX39: 143 | BY39: 113 | BZ39: 85 | CA39: 82 | CB39: 80 | CC39: 99 | CD39: 59 | CE39: 56 | CF39: 57 | CG39: 63 | CH39: 42 | CI39: 59 | CJ39: 55 | CK39: 53 | CL39: 45 | CM39: 52 | CN39: 32 | CO39: 26 | CP39: 24 | CQ39: 51 | CR39: 11487 | CS39: 97 | CT39: 108 | CU39: 104 | CV39: 102 | CW39: 113 | CX39: 122 | CY39: 138 | CZ39: 116 | DA39: 105 | DB39: 130 | DC39: 107 | DD39: 116 | DE39: 92 | DF39: 102 | DG39: 118 | DH39: 113 | DI39: 103 | DJ39: 121 | DK39: 130 | DL39: 108 | DM39: 100 | DN39: 78 | DO39: 101 | DP39: 107 | DQ39: 119 | DR39: 118 | DS39: 114 | DT39: 90 | DU39: 97 | DV39: 104 | DW39: 120 | DX39: 120 | DY39: 95 | DZ39: 116 | EA39: 105 | EB39: 113 | EC39: 142 | ED39: 142 | EE39: 104 | EF39: 116 | EG39: 129 | EH39: 152 | EI39: 140 | EJ39: 161 | EK39: 175 | EL39: 160 | EM39: 170 | EN39: 178 | EO39: 180 | EP39: 192 | EQ39: 173 | ER39: 195 | ES39: 173 | ET39: 185 | EU39: 162 | EV39: 183 | EW39: 167 | EX39: 152 | EY39: 166 | EZ39: 163 | FA39: 166 | FB39: 172 | FC39: 159 | FD39: 164 | FE39: 175 | FF39: 168 | FG39: 151 | FH39: 177 | FI39: 194 | FJ39: 135 | FK39: 128 | FL39: 146 | FM39: 139 | FN39: 100 | FO39: 93 | FP39: 88 | FQ39: 104 | FR39: 99 | FS39: 104 | FT39: 104 | FU39: 95 | FV39: 87 | FW39: 71 | FX39: 85 | FY39: 59 | FZ39: 94 | GA39: 64 | GB39: 61 | GC39: 57 | GD39: 51 | GE39: 195
A40: Sutton Trinity | B40: Sutton Coldfield | C40: E05001213 | D40: 12085 | E40: 159 | F40: 140 | G40: 181 | H40: 177 | I40: 155 | J40: 138 | K40: 142 | L40: 137 | M40: 150 | N40: 153 | O40: 169 | P40: 149 | Q40: 143 | R40: 160 | S40: 126 | T40: 158 | U40: 148 | V40: 160 | W40: 139 | X40: 140 | Y40: 119 | Z40: 154 | AA40: 128 | AB40: 156 | AC40: 133 | AD40: 140 | AE40: 129 | AF40: 145 | AG40: 130 | AH40: 145 | AI40: 137 | AJ40: 159 | AK40: 142 | AL40: 164 | AM40: 152 | AN40: 128 | AO40: 122 | AP40: 125 | AQ40: 130 | AR40: 136 | AS40: 145 | AT40: 176 | AU40: 152 | AV40: 203 | AW40: 174 | AX40: 155 | AY40: 174 | AZ40: 171 | BA40: 166 | BB40: 188 | BC40: 191 | BD40: 184 | BE40: 168 | BF40: 193 | BG40: 190 | BH40: 162 | BI40: 147 | BJ40: 160 | BK40: 146 | BL40: 126 | BM40: 143 | BN40: 137 | BO40: 153 | BP40: 137 | BQ40: 108 | BR40: 147 | BS40: 144 | BT40: 137 | BU40: 165 | BV40: 122 | BW40: 116 | BX40: 126 | BY40: 115 | BZ40: 92 | CA40: 83 | CB40: 95 | CC40: 87 | CD40: 72 | CE40: 74 | CF40: 76 | CG40: 76 | CH40: 63 | CI40: 64 | CJ40: 62 | CK40: 52 | CL40: 45 | CM40: 62 | CN40: 38 | CO40: 29 | CP40: 26 | CQ40: 70 | CR40: 12961 | CS40: 143 | CT40: 163 | CU40: 142 | CV40: 151 | CW40: 150 | CX40: 166 | CY40: 148 | CZ40: 165 | DA40: 134 | DB40: 135 | DC40: 152 | DD40: 126 | DE40: 132 | DF40: 113 | DG40: 144 | DH40: 120 | DI40: 162 | DJ40: 141 | DK40: 130 | DL40: 113 | DM40: 152 | DN40: 125 | DO40: 145 | DP40: 159 | DQ40: 150 | DR40: 170 | DS40: 159 | DT40: 151 | DU40: 157 | DV40: 160 | DW40: 154 | DX40: 146 | DY40: 144 | DZ40: 118 | EA40: 158 | EB40: 157 | EC40: 129 | ED40: 154 | EE40: 157 | EF40: 163 | EG40: 146 | EH40: 174 | EI40: 162 | EJ40: 169 | EK40: 195 | EL40: 175 | EM40: 183 | EN40: 193 | EO40: 181 | EP40: 229 | EQ40: 198 | ER40: 209 | ES40: 181 | ET40: 197 | EU40: 188 | EV40: 190 | EW40: 173 | EX40: 172 | EY40: 140 | EZ40: 129 | FA40: 157 | FB40: 143 | FC40: 132 | FD40: 144 | FE40: 134 | FF40: 147 | FG40: 147 | FH40: 148 | FI40: 155 | FJ40: 133 | FK40: 163 | FL40: 156 | FM40: 107 | FN40: 124 | FO40: 98 | FP40: 111 | FQ40: 113 | FR40: 99 | FS40: 82 | FT40: 93 | FU40: 96 | FV40: 90 | FW40: 94 | FX40: 76 | FY40: 95 | FZ40: 73 | GA40: 61 | GB40: 62 | GC40: 68 | GD40: 50 | GE40: 188
A41: Sutton Vesey | B41: Sutton Coldfield | C41: E05001214 | D41: 11193 | E41: 122 | F41: 140 | G41: 119 | H41: 143 | I41: 126 | J41: 143 | K41: 129 | L41: 143 | M41: 132 | N41: 138 | O41: 101 | P41: 125 | Q41: 121 | R41: 129 | S41: 127 | T41: 139 | U41: 139 | V41: 113 | W41: 120 | X41: 115 | Y41: 136 | Z41: 143 | AA41: 115 | AB41: 125 | AC41: 133 | AD41: 155 | AE41: 119 | AF41: 126 | AG41: 111 | AH41: 136 | AI41: 136 | AJ41: 104 | AK41: 138 | AL41: 114 | AM41: 134 | AN41: 122 | AO41: 115 | AP41: 112 | AQ41: 134 | AR41: 152 | AS41: 142 | AT41: 132 | AU41: 124 | AV41: 143 | AW41: 132 | AX41: 154 | AY41: 157 | AZ41: 168 | BA41: 173 | BB41: 162 | BC41: 168 | BD41: 186 | BE41: 191 | BF41: 190 | BG41: 153 | BH41: 183 | BI41: 166 | BJ41: 155 | BK41: 152 | BL41: 138 | BM41: 136 | BN41: 134 | BO41: 163 | BP41: 138 | BQ41: 134 | BR41: 138 | BS41: 136 | BT41: 139 | BU41: 139 | BV41: 115 | BW41: 99 | BX41: 132 | BY41: 116 | BZ41: 96 | CA41: 91 | CB41: 73 | CC41: 92 | CD41: 86 | CE41: 76 | CF41: 83 | CG41: 62 | CH41: 68 | CI41: 69 | CJ41: 61 | CK41: 51 | CL41: 49 | CM41: 36 | CN41: 51 | CO41: 38 | CP41: 26 | CQ41: 73 | CR41: 11811 | CS41: 108 | CT41: 106 | CU41: 135 | CV41: 144 | CW41: 140 | CX41: 129 | CY41: 105 | CZ41: 118 | DA41: 105 | DB41: 134 | DC41: 129 | DD41: 123 | DE41: 118 | DF41: 119 | DG41: 130 | DH41: 118 | DI41: 111 | DJ41: 138 | DK41: 147 | DL41: 108 | DM41: 107 | DN41: 94 | DO41: 125 | DP41: 127 | DQ41: 132 | DR41: 122 | DS41: 109 | DT41: 128 | DU41: 135 | DV41: 123 | DW41: 116 | DX41: 105 | DY41: 121 | DZ41: 128 | EA41: 126 | EB41: 145 | EC41: 138 | ED41: 122 | EE41: 147 | EF41: 143 | EG41: 151 | EH41: 136 | EI41: 158 | EJ41: 156 | EK41: 159 | EL41: 155 | EM41: 153 | EN41: 162 | EO41: 179 | EP41: 199 | EQ41: 200 | ER41: 207 | ES41: 191 | ET41: 194 | EU41: 180 | EV41: 182 | EW41: 188 | EX41: 148 | EY41: 153 | EZ41: 147 | FA41: 144 | FB41: 138 | FC41: 146 | FD41: 155 | FE41: 130 | FF41: 143 | FG41: 139 | FH41: 159 | FI41: 149 | FJ41: 117 | FK41: 130 | FL41: 133 | FM41: 136 | FN41: 115 | FO41: 86 | FP41: 107 | FQ41: 105 | FR41: 123 | FS41: 108 | FT41: 101 | FU41: 91 | FV41: 84 | FW41: 72 | FX41: 81 | FY41: 67 | FZ41: 66 | GA41: 64 | GB41: 68 | GC41: 69 | GD41: 45 | GE41: 184
A42: Tyburn | B42: Erdington | C42: E05001215 | D42: 12184 | E42: 178 | F42: 177 | G42: 194 | H42: 226 | I42: 194 | J42: 195 | K42: 194 | L42: 199 | M42: 192 | N42: 183 | O42: 182 | P42: 181 | Q42: 184 | R42: 165 | S42: 160 | T42: 175 | U42: 179 | V42: 174 | W42: 197 | X42: 163 | Y42: 181 | Z42: 197 | AA42: 182 | AB42: 196 | AC42: 172 | AD42: 171 | AE42: 174 | AF42: 186 | AG42: 162 | AH42: 138 | AI42: 161 | AJ42: 163 | AK42: 174 | AL42: 135 | AM42: 172 | AN42: 147 | AO42: 136 | AP42: 122 | AQ42: 106 | AR42: 131 | AS42: 127 | AT42: 157 | AU42: 152 | AV42: 174 | AW42: 146 | AX42: 165 | AY42: 168 | AZ42: 167 | BA42: 189 | BB42: 186 | BC42: 164 | BD42: 170 | BE42: 163 | BF42: 146 | BG42: 153 | BH42: 168 | BI42: 128 | BJ42: 125 | BK42: 141 | BL42: 128 | BM42: 118 | BN42: 124 | BO42: 95 | BP42: 85 | BQ42: 95 | BR42: 91 | BS42: 73 | BT42: 90 | BU42: 116 | BV42: 87 | BW42: 100 | BX42: 82 | BY42: 86 | BZ42: 69 | CA42: 72 | CB42: 70 | CC42: 67 | CD42: 59 | CE42: 74 | CF42: 68 | CG42: 68 | CH42: 42 | CI42: 46 | CJ42: 67 | CK42: 36 | CL42: 42 | CM42: 34 | CN42: 21 | CO42: 23 | CP42: 16 | CQ42: 53 | CR42: 13352 | CS42: 180 | CT42: 213 | CU42: 201 | CV42: 198 | CW42: 167 | CX42: 148 | CY42: 174 | CZ42: 184 | DA42: 207 | DB42: 184 | DC42: 182 | DD42: 173 | DE42: 180 | DF42: 173 | DG42: 187 | DH42: 165 | DI42: 158 | DJ42: 172 | DK42: 195 | DL42: 189 | DM42: 163 | DN42: 198 | DO42: 178 | DP42: 194 | DQ42: 144 | DR42: 197 | DS42: 183 | DT42: 202 | DU42: 198 | DV42: 184 | DW42: 165 | DX42: 186 | DY42: 207 | DZ42: 179 | EA42: 193 | EB42: 175 | EC42: 162 | ED42: 152 | EE42: 134 | EF42: 159 | EG42: 161 | EH42: 164 | EI42: 148 | EJ42: 174 | EK42: 194 | EL42: 189 | EM42: 183 | EN42: 201 | EO42: 186 | EP42: 204 | EQ42: 205 | ER42: 203 | ES42: 204 | ET42: 192 | EU42: 179 | EV42: 143 | EW42: 149 | EX42: 122 | EY42: 144 | EZ42: 105 | FA42: 124 | FB42: 132 | FC42: 119 | FD42: 116 | FE42: 101 | FF42: 100 | FG42: 113 | FH42: 93 | FI42: 117 | FJ42: 97 | FK42: 93 | FL42: 97 | FM42: 87 | FN42: 88 | FO42: 83 | FP42: 75 | FQ42: 92 | FR42: 89 | FS42: 79 | FT42: 89 | FU42: 74 | FV42: 85 | FW42: 75 | FX42: 59 | FY42: 67 | FZ42: 55 | GA42: 54 | GB42: 50 | GC42: 47 | GD42: 37 | GE42: 132
A43: Washwood Heath | B43: Hodge Hill | C43: E05001216 | D43: 17647 | E43: 316 | F43: 382 | G43: 358 | H43: 362 | I43: 318 | J43: 350 | K43: 355 | L43: 408 | M43: 364 | N43: 384 | O43: 377 | P43: 392 | Q43: 349 | R43: 390 | S43: 362 | T43: 356 | U43: 345 | V43: 354 | W43: 340 | X43: 327 | Y43: 328 | Z43: 309 | AA43: 300 | AB43: 302 | AC43: 301 | AD43: 309 | AE43: 272 | AF43: 280 | AG43: 268 | AH43: 262 | AI43: 302 | AJ43: 305 | AK43: 272 | AL43: 272 | AM43: 268 | AN43: 306 | AO43: 278 | AP43: 268 | AQ43: 250 | AR43: 236 | AS43: 234 | AT43: 224 | AU43: 225 | AV43: 218 | AW43: 185 | AX43: 208 | AY43: 207 | AZ43: 193 | BA43: 176 | BB43: 152 | BC43: 139 | BD43: 134 | BE43: 139 | BF43: 140 | BG43: 118 | BH43: 125 | BI43: 111 | BJ43: 114 | BK43: 98 | BL43: 119 | BM43: 91 | BN43: 104 | BO43: 91 | BP43: 94 | BQ43: 78 | BR43: 84 | BS43: 58 | BT43: 60 | BU43: 56 | BV43: 37 | BW43: 42 | BX43: 39 | BY43: 43 | BZ43: 34 | CA43: 52 | CB43: 41 | CC43: 42 | CD43: 44 | CE43: 47 | CF43: 57 | CG43: 42 | CH43: 33 | CI43: 32 | CJ43: 24 | CK43: 26 | CL43: 36 | CM43: 32 | CN43: 18 | CO43: 17 | CP43: 14 | CQ43: 43 | CR43: 17393 | CS43: 343 | CT43: 343 | CU43: 357 | CV43: 354 | CW43: 323 | CX43: 339 | CY43: 372 | CZ43: 392 | DA43: 348 | DB43: 362 | DC43: 350 | DD43: 337 | DE43: 346 | DF43: 350 | DG43: 315 | DH43: 343 | DI43: 321 | DJ43: 322 | DK43: 327 | DL43: 319 | DM43: 304 | DN43: 316 | DO43: 269 | DP43: 257 | DQ43: 246 | DR43: 290 | DS43: 279 | DT43: 280 | DU43: 287 | DV43: 249 | DW43: 260 | DX43: 286 | DY43: 268 | DZ43: 266 | EA43: 265 | EB43: 304 | EC43: 257 | ED43: 251 | EE43: 238 | EF43: 205 | EG43: 238 | EH43: 222 | EI43: 225 | EJ43: 238 | EK43: 243 | EL43: 201 | EM43: 197 | EN43: 163 | EO43: 161 | EP43: 156 | EQ43: 129 | ER43: 127 | ES43: 134 | ET43: 130 | EU43: 116 | EV43: 118 | EW43: 107 | EX43: 121 | EY43: 114 | EZ43: 108 | FA43: 100 | FB43: 113 | FC43: 108 | FD43: 94 | FE43: 93 | FF43: 71 | FG43: 56 | FH43: 86 | FI43: 76 | FJ43: 58 | FK43: 47 | FL43: 56 | FM43: 61 | FN43: 59 | FO43: 51 | FP43: 63 | FQ43: 49 | FR43: 64 | FS43: 65 | FT43: 65 | FU43: 75 | FV43: 49 | FW43: 50 | FX43: 38 | FY43: 47 | FZ43: 37 | GA43: 31 | GB43: 31 | GC43: 17 | GD43: 22 | GE43: 73
A44: Weoley | B44: Northfield | C44: E05001217 | D44: 12490 | E44: 214 | F44: 216 | G44: 227 | H44: 233 | I44: 219 | J44: 209 | K44: 233 | L44: 181 | M44: 218 | N44: 184 | O44: 177 | P44: 185 | Q44: 170 | R44: 161 | S44: 162 | T44: 156 | U44: 203 | V44: 197 | W44: 173 | X44: 168 | Y44: 163 | Z44: 209 | AA44: 194 | AB44: 191 | AC44: 200 | AD44: 172 | AE44: 195 | AF44: 156 | AG44: 157 | AH44: 147 | AI44: 187 | AJ44: 155 | AK44: 164 | AL44: 150 | AM44: 145 | AN44: 164 | AO44: 163 | AP44: 139 | AQ44: 158 | AR44: 137 | AS44: 156 | AT44: 178 | AU44: 157 | AV44: 162 | AW44: 162 | AX44: 145 | AY44: 162 | AZ44: 157 | BA44: 125 | BB44: 185 | BC44: 137 | BD44: 157 | BE44: 137 | BF44: 137 | BG44: 142 | BH44: 149 | BI44: 134 | BJ44: 136 | BK44: 143 | BL44: 124 | BM44: 111 | BN44: 110 | BO44: 131 | BP44: 113 | BQ44: 100 | BR44: 80 | BS44: 115 | BT44: 111 | BU44: 120 | BV44: 104 | BW44: 78 | BX44: 104 | BY44: 73 | BZ44: 78 | CA44: 65 | CB44: 72 | CC44: 56 | CD44: 62 | CE44: 60 | CF44: 52 | CG44: 46 | CH44: 56 | CI44: 48 | CJ44: 52 | CK44: 42 | CL44: 32 | CM44: 41 | CN44: 36 | CO44: 23 | CP44: 25 | CQ44: 77 | CR44: 13565 | CS44: 194 | CT44: 200 | CU44: 187 | CV44: 190 | CW44: 204 | CX44: 192 | CY44: 187 | CZ44: 187 | DA44: 170 | DB44: 184 | DC44: 205 | DD44: 166 | DE44: 160 | DF44: 135 | DG44: 133 | DH44: 151 | DI44: 172 | DJ44: 176 | DK44: 160 | DL44: 190 | DM44: 196 | DN44: 170 | DO44: 202 | DP44: 205 | DQ44: 215 | DR44: 206 | DS44: 180 | DT44: 192 | DU44: 199 | DV44: 187 | DW44: 159 | DX44: 143 | DY44: 165 | DZ44: 185 | EA44: 163 | EB44: 202 | EC44: 178 | ED44: 192 | EE44: 173 | EF44: 166 | EG44: 163 | EH44: 161 | EI44: 161 | EJ44: 156 | EK44: 187 | EL44: 192 | EM44: 198 | EN44: 199 | EO44: 222 | EP44: 169 | EQ44: 194 | ER44: 178 | ES44: 202 | ET44: 183 | EU44: 163 | EV44: 167 | EW44: 145 | EX44: 145 | EY44: 156 | EZ44: 130 | FA44: 135 | FB44: 123 | FC44: 108 | FD44: 125 | FE44: 117 | FF44: 106 | FG44: 123 | FH44: 116 | FI44: 116 | FJ44: 118 | FK44: 99 | FL44: 115 | FM44: 104 | FN44: 78 | FO44: 70 | FP44: 90 | FQ44: 94 | FR44: 100 | FS44: 87 | FT44: 75 | FU44: 67 | FV44: 63 | FW44: 78 | FX44: 73 | FY44: 68 | FZ44: 78 | GA44: 52 | GB44: 48 | GC44: 49 | GD44: 36 | GE44: 162
D45: =SUM(D5:D44) -> 548798 | E45: 8653 | F45: 8846 | G45: 8858 | H45: 9040 | I45: 8535 | J45: 8373 | K45: 8578 | L45: 8475 | M45: 8342 | N45: 8077 | O45: 7865 | P45: 7643 | Q45: 7562 | R45: 7244 | S45: 7283 | T45: 7507 | U45: 7717 | V45: 7641 | W45: 8197 | X45: 9540 | Y45: 9935 | Z45: 10212 | AA45: 9970 | AB45: 9970 | AC45: 10031 | AD45: 9508 | AE45: 8865 | AF45: 8671 | AG45: 8532 | AH45: 8547 | AI45: 8641 | AJ45: 8071 | AK45: 8266 | AL45: 7985 | AM45: 7966 | AN45: 7837 | AO45: 7444 | AP45: 6881 | AQ45: 6921 | AR45: 6932 | AS45: 6842 | AT45: 6751 | AU45: 6835 | AV45: 6945 | AW45: 6836 | AX45: 6956 | AY45: 6871 | AZ45: 6882 | BA45: 6681 | BB45: 6575 | BC45: 6535 | BD45: 6350 | BE45: 6497 | BF45: 6331 | BG45: 5799 | BH45: 5662 | BI45: 5366 | BJ45: 5463 | BK45: 5095 | BL45: 4904 | BM45: 4883 | BN45: 4818 | BO45: 4728 | BP45: =SUM(BP5:BP44) -> 4464 | BQ45: 4156 | BR45: 4210 | BS45: 3943 | BT45: 4041 | BU45: 4289 | BV45: 3490 | BW45: 3351 | BX45: 3461 | BY45: 3195 | BZ45: 2861 | CA45: 2520 | CB45: 2680 | CC45: 2749 | CD45: 2534 | CE45: 2331 | CF45: 2282 | CG45: 2164 | CH45: 1917 | CI45: 1898 | CJ45: 1732 | CK45: 1558 | CL45: 1390 | CM45: 1175 | CN45: 965 | CO45: 839 | CP45: 665 | CQ45: 2172 | CR45: 562509 | CS45: 8187 | CT45: 8313 | CU45: 8444 | CV45: 8422 | CW45: 8135 | CX45: 7795 | CY45: 8115 | CZ45: 7999 | DA45: 7516 | DB45: 7854 | DC45: 7554 | DD45: 7206 | DE45: 6886 | DF45: 6805 | DG45: 6994 | DH45: 7008 | DI45: 7084 | DJ45: 7344 | DK45: 7770 | DL45: 10265 | DM45: 10532 | DN45: 10463 | DO45: 10089 | DP45: 10197 | DQ45: 9939 | DR45: 9223 | DS45: 8955 | DT45: 8972 | DU45: 8946 | DV45: 8531 | DW45: 8221 | DX45: 8011 | DY45: 8173 | DZ45: 7901 | EA45: 8093 | EB45: =SUM(EB5:EB44) -> 8377 | EC45: 7603 | ED45: 7124 | EE45: 6899 | EF45: 7001 | EG45: 6690 | EH45: 6577 | EI45: 6825 | EJ45: 7056 | EK45: 7285 | EL45: 7138 | EM45: 7031 | EN45: 7019 | EO45: 6967 | EP45: 6956 | EQ45: 6879 | ER45: 6829 | ES45: 6564 | ET45: 6589 | EU45: 6154 | EV45: 5917 | EW45: 5720 | EX45: 5369 | EY45: 5328 | EZ45: 4955 | FA45: 4827 | FB45: 4774 | FC45: 4714 | FD45: 4484 | FE45: 4343 | FF45: 4529 | FG45: 4278 | FH45: 4512 | FI45: 4624 | FJ45: 3706 | FK45: 3751 | FL45: 3821 | FM45: 3712 | FN45: 3311 | FO45: 2965 | FP45: 3157 | FQ45: 3128 | FR45: 3188 | FS45: 3098 | FT45: 3014 | FU45: 2752 | FV45: 2487 | FW45: 2418 | FX45: 2374 | FY45: 2216 | FZ45: 2116 | GA45: 1770 | GB45: 1612 | GC45: 1536 | GD45: 1254 | GE45: 5244
B46: Males
B47: Females
A49: Office for National Statistics
A50: Crown Copyright 2017

Sheet 2015 number rank (hidden)
A1: 2015 Birmingham population size rankings
A3: Ward Name | B3: constituency | C3: code | D3: All Ages | E3: 0-4 | F3: 5-9 | G3: 10-14 | H3: 15-19 | I3: 20-24 | J3: 25-29 | K3: 30-34 | L3: 35-39 | M3: 40-44 | N3: 45-49 | O3: 50-54 | P3: 55-59 | Q3: 60-64 | R3: 65-69 | S3: 70-74 | T3: 75-79 | U3: 80-84 | V3: 85-89 | W3: 90+
A5: Acocks Green | B5: Yardley | C5: E05001178 | D5: =RANK('2016 syoa'!D5,'2016 syoa'!$D$5:$D$44,0) -> 12 | E5: =RANK('2016 syoa'!E5,'2016 syoa'!$E$5:$E$44,0) -> 12 | F5: =RANK('2016 syoa'!F5,'2016 syoa'!$F$5:$F$44,0) -> 12 | G5: =RANK('2016 syoa'!G5,'2016 syoa'!$G$5:$G$44,0) -> 12 | H5: =RANK('2016 syoa'!H5,'2016 syoa'!$H$5:$H$44,0) -> 15 | I5: =RANK('2016 syoa'!I5,'2016 syoa'!$I$5:$I$44,0) -> 12 | J5: =RANK('2016 syoa'!J5,'2016 syoa'!$J$5:$J$44,0) -> 12 | K5: =RANK('2016 syoa'!K5,'2016 syoa'!$K$5:$K$44,0) -> 14 | L5: =RANK('2016 syoa'!L5,'2016 syoa'!$L$5:$L$44,0) -> 11 | M5: =RANK('2016 syoa'!M5,'2016 syoa'!$M$5:$M$44,0) -> 14 | N5: =RANK('2016 syoa'!N5,'2016 syoa'!$N$5:$N$44,0) -> 11 | O5: =RANK('2016 syoa'!O5,'2016 syoa'!$O$5:$O$44,0) -> 16 | P5: =RANK('2016 syoa'!P5,'2016 syoa'!$P$5:$P$44,0) -> 18 | Q5: =RANK('2016 syoa'!Q5,'2016 syoa'!$Q$5:$Q$44,0) -> 11 | R5: =RANK('2016 syoa'!R5,'2016 syoa'!$R$5:$R$44,0) -> 11 | S5: =RANK('2016 syoa'!S5,'2016 syoa'!$S$5:$S$44,0) -> 12 | T5: =RANK('2016 syoa'!T5,'2016 syoa'!$T$5:$T$44,0) -> 14 | U5: =RANK('2016 syoa'!U5,'2016 syoa'!$U$5:$U$44,0) -> 11 | V5: =RANK('2016 syoa'!V5,'2016 syoa'!$V$5:$V$44,0) -> 9 | W5: =RANK('2016 syoa'!W5,'2016 syoa'!$W$5:$W$44,0) -> 15
A6: Aston | B6: Ladywood | C6: E05001179 | D6: =RANK('2016 syoa'!D6,'2016 syoa'!$D$5:$D$44,0) -> 5 | E6: =RANK('2016 syoa'!E6,'2016 syoa'!$E$5:$E$44,0) -> 4 | F6: =RANK('2016 syoa'!F6,'2016 syoa'!$F$5:$F$44,0) -> 4 | G6: =RANK('2016 syoa'!G6,'2016 syoa'!$G$5:$G$44,0) -> 7 | H6: =RANK('2016 syoa'!H6,'2016 syoa'!$H$5:$H$44,0) -> 3 | I6: =RANK('2016 syoa'!I6,'2016 syoa'!$I$5:$I$44,0) -> 10 | J6: =RANK('2016 syoa'!J6,'2016 syoa'!$J$5:$J$44,0) -> 6 | K6: =RANK('2016 syoa'!K6,'2016 syoa'!$K$5:$K$44,0) -> 4 | L6: =RANK('2016 syoa'!L6,'2016 syoa'!$L$5:$L$44,0) -> 8 | M6: =RANK('2016 syoa'!M6,'2016 syoa'!$M$5:$M$44,0) -> 3 | N6: =RANK('2016 syoa'!N6,'2016 syoa'!$N$5:$N$44,0) -> 10 | O6: =RANK('2016 syoa'!O6,'2016 syoa'!$O$5:$O$44,0) -> 7 | P6: =RANK('2016 syoa'!P6,'2016 syoa'!$P$5:$P$44,0) -> 6 | Q6: =RANK('2016 syoa'!Q6,'2016 syoa'!$Q$5:$Q$44,0) -> 5 | R6: =RANK('2016 syoa'!R6,'2016 syoa'!$R$5:$R$44,0) -> 7 | S6: =RANK('2016 syoa'!S6,'2016 syoa'!$S$5:$S$44,0) -> 5 | T6: =RANK('2016 syoa'!T6,'2016 syoa'!$T$5:$T$44,0) -> 3 | U6: =RANK('2016 syoa'!U6,'2016 syoa'!$U$5:$U$44,0) -> 5 | V6: =RANK('2016 syoa'!V6,'2016 syoa'!$V$5:$V$44,0) -> 4 | W6: =RANK('2016 syoa'!W6,'2016 syoa'!$W$5:$W$44,0) -> 5
A7: Bartley Green | B7: Edgbaston | C7: E05001180 | D7: =RANK('2016 syoa'!D7,'2016 syoa'!$D$5:$D$44,0) -> 28 | E7: =RANK('2016 syoa'!E7,'2016 syoa'!$E$5:$E$44,0) -> 23 | F7: =RANK('2016 syoa'!F7,'2016 syoa'!$F$5:$F$44,0) -> 21 | G7: =RANK('2016 syoa'!G7,'2016 syoa'!$G$5:$G$44,0) -> 20 | H7: =RANK('2016 syoa'!H7,'2016 syoa'!$H$5:$H$44,0) -> 31 | I7: =RANK('2016 syoa'!I7,'2016 syoa'!$I$5:$I$44,0) -> 19 | J7: =RANK('2016 syoa'!J7,'2016 syoa'!$J$5:$J$44,0) -> 18 | K7: =RANK('2016 syoa'!K7,'2016 syoa'!$K$5:$K$44,0) -> 20 | L7: =RANK('2016 syoa'!L7,'2016 syoa'!$L$5:$L$44,0) -> 15 | M7: =RANK('2016 syoa'!M7,'2016 syoa'!$M$5:$M$44,0) -> 22 | N7: =RANK('2016 syoa'!N7,'2016 syoa'!$N$5:$N$44,0) -> 29 | O7: =RANK('2016 syoa'!O7,'2016 syoa'!$O$5:$O$44,0) -> 21 | P7: =RANK('2016 syoa'!P7,'2016 syoa'!$P$5:$P$44,0) -> 21 | Q7: =RANK('2016 syoa'!Q7,'2016 syoa'!$Q$5:$Q$44,0) -> 22 | R7: =RANK('2016 syoa'!R7,'2016 syoa'!$R$5:$R$44,0) -> 26 | S7: =RANK('2016 syoa'!S7,'2016 syoa'!$S$5:$S$44,0) -> 16 | T7: =RANK('2016 syoa'!T7,'2016 syoa'!$T$5:$T$44,0) -> 16 | U7: =RANK('2016 syoa'!U7,'2016 syoa'!$U$5:$U$44,0) -> 14 | V7: =RANK('2016 syoa'!V7,'2016 syoa'!$V$5:$V$44,0) -> 25 | W7: =RANK('2016 syoa'!W7,'2016 syoa'!$W$5:$W$44,0) -> 21
A8: Billesley | B8: Selly Oak | C8: E05001181 | D8: =RANK('2016 syoa'!D8,'2016 syoa'!$D$5:$D$44,0) -> 21 | E8: =RANK('2016 syoa'!E8,'2016 syoa'!$E$5:$E$44,0) -> 19 | F8: =RANK('2016 syoa'!F8,'2016 syoa'!$F$5:$F$44,0) -> 26 | G8: =RANK('2016 syoa'!G8,'2016 syoa'!$G$5:$G$44,0) -> 18 | H8: =RANK('2016 syoa'!H8,'2016 syoa'!$H$5:$H$44,0) -> 13 | I8: =RANK('2016 syoa'!I8,'2016 syoa'!$I$5:$I$44,0) -> 13 | J8: =RANK('2016 syoa'!J8,'2016 syoa'!$J$5:$J$44,0) -> 19 | K8: =RANK('2016 syoa'!K8,'2016 syoa'!$K$5:$K$44,0) -> 24 | L8: =RANK('2016 syoa'!L8,'2016 syoa'!$L$5:$L$44,0) -> 19 | M8: =RANK('2016 syoa'!M8,'2016 syoa'!$M$5:$M$44,0) -> 16 | N8: =RANK('2016 syoa'!N8,'2016 syoa'!$N$5:$N$44,0) -> 16 | O8: =RANK('2016 syoa'!O8,'2016 syoa'!$O$5:$O$44,0) -> 29 | P8: =RANK('2016 syoa'!P8,'2016 syoa'!$P$5:$P$44,0) -> 16 | Q8: =RANK('2016 syoa'!Q8,'2016 syoa'!$Q$5:$Q$44,0) -> 32 | R8: =RANK('2016 syoa'!R8,'2016 syoa'!$R$5:$R$44,0) -> 30 | S8: =RANK('2016 syoa'!S8,'2016 syoa'!$S$5:$S$44,0) -> 18 | T8: =RANK('2016 syoa'!T8,'2016 syoa'!$T$5:$T$44,0) -> 17 | U8: =RANK('2016 syoa'!U8,'2016 syoa'!$U$5:$U$44,0) -> 16 | V8: =RANK('2016 syoa'!V8,'2016 syoa'!$V$5:$V$44,0) -> 15 | W8: =RANK('2016 syoa'!W8,'2016 syoa'!$W$5:$W$44,0) -> 18
A9: Bordesley Green | B9: Hodge Hill | C9: E05001182 | D9: =RANK('2016 syoa'!D9,'2016 syoa'!$D$5:$D$44,0) -> 3 | E9: =RANK('2016 syoa'!E9,'2016 syoa'!$E$5:$E$44,0) -> 3 | F9: =RANK('2016 syoa'!F9,'2016 syoa'!$F$5:$F$44,0) -> 2 | G9: =RANK('2016 syoa'!G9,'2016 syoa'!$G$5:$G$44,0) -> 2 | H9: =RANK('2016 syoa'!H9,'2016 syoa'!$H$5:$H$44,0) -> 1 | I9: =RANK('2016 syoa'!I9,'2016 syoa'!$I$5:$I$44,0) -> 1 | J9: =RANK('2016 syoa'!J9,'2016 syoa'!$J$5:$J$44,0) -> 1 | K9: =RANK('2016 syoa'!K9,'2016 syoa'!$K$5:$K$44,0) -> 1 | L9: =RANK('2016 syoa'!L9,'2016 syoa'!$L$5:$L$44,0) -> 1 | M9: =RANK('2016 syoa'!M9,'2016 syoa'!$M$5:$M$44,0) -> 2 | N9: =RANK('2016 syoa'!N9,'2016 syoa'!$N$5:$N$44,0) -> 1 | O9: =RANK('2016 syoa'!O9,'2016 syoa'!$O$5:$O$44,0) -> 2 | P9: =RANK('2016 syoa'!P9,'2016 syoa'!$P$5:$P$44,0) -> 1 | Q9: =RANK('2016 syoa'!Q9,'2016 syoa'!$Q$5:$Q$44,0) -> 2 | R9: =RANK('2016 syoa'!R9,'2016 syoa'!$R$5:$R$44,0) -> 1 | S9: =RANK('2016 syoa'!S9,'2016 syoa'!$S$5:$S$44,0) -> 2 | T9: =RANK('2016 syoa'!T9,'2016 syoa'!$T$5:$T$44,0) -> 1 | U9: =RANK('2016 syoa'!U9,'2016 syoa'!$U$5:$U$44,0) -> 2 | V9: =RANK('2016 syoa'!V9,'2016 syoa'!$V$5:$V$44,0) -> 1 | W9: =RANK('2016 syoa'!W9,'2016 syoa'!$W$5:$W$44,0) -> 4
A10: Bournville | B10: Selly Oak | C10: E05001183 | D10: =RANK('2016 syoa'!D10,'2016 syoa'!$D$5:$D$44,0) -> 27 | E10: =RANK('2016 syoa'!E10,'2016 syoa'!$E$5:$E$44,0) -> 35 | F10: =RANK('2016 syoa'!F10,'2016 syoa'!$F$5:$F$44,0) -> 32 | G10: =RANK('2016 syoa'!G10,'2016 syoa'!$G$5:$G$44,0) -> 31 | H10: =RANK('2016 syoa'!H10,'2016 syoa'!$H$5:$H$44,0) -> 34 | I10: =RANK('2016 syoa'!I10,'2016 syoa'!$I$5:$I$44,0) -> 32 | J10: =RANK('2016 syoa'!J10,'2016 syoa'!$J$5:$J$44,0) -> 27 | K10: =RANK('2016 syoa'!K10,'2016 syoa'!$K$5:$K$44,0) -> 32 | L10: =RANK('2016 syoa'!L10,'2016 syoa'!$L$5:$L$44,0) -> 27 | M10: =RANK('2016 syoa'!M10,'2016 syoa'!$M$5:$M$44,0) -> 29 | N10: =RANK('2016 syoa'!N10,'2016 syoa'!$N$5:$N$44,0) -> 27 | O10: =RANK('2016 syoa'!O10,'2016 syoa'!$O$5:$O$44,0) -> 35 | P10: =RANK('2016 syoa'!P10,'2016 syoa'!$P$5:$P$44,0) -> 33 | Q10: =RANK('2016 syoa'!Q10,'2016 syoa'!$Q$5:$Q$44,0) -> 30 | R10: =RANK('2016 syoa'!R10,'2016 syoa'!$R$5:$R$44,0) -> 23 | S10: =RANK('2016 syoa'!S10,'2016 syoa'!$S$5:$S$44,0) -> 31 | T10: =RANK('2016 syoa'!T10,'2016 syoa'!$T$5:$T$44,0) -> 35 | U10: =RANK('2016 syoa'!U10,'2016 syoa'!$U$5:$U$44,0) -> 30 | V10: =RANK('2016 syoa'!V10,'2016 syoa'!$V$5:$V$44,0) -> 35 | W10: =RANK('2016 syoa'!W10,'2016 syoa'!$W$5:$W$44,0) -> 26
A11: Brandwood | B11: Selly Oak | C11: E05001184 | D11: =RANK('2016 syoa'!D11,'2016 syoa'!$D$5:$D$44,0) -> 23 | E11: =RANK('2016 syoa'!E11,'2016 syoa'!$E$5:$E$44,0) -> 19 | F11: =RANK('2016 syoa'!F11,'2016 syoa'!$F$5:$F$44,0) -> 19 | G11: =RANK('2016 syoa'!G11,'2016 syoa'!$G$5:$G$44,0) -> 18 | H11: =RANK('2016 syoa'!H11,'2016 syoa'!$H$5:$H$44,0) -> 17 | I11: =RANK('2016 syoa'!I11,'2016 syoa'!$I$5:$I$44,0) -> 22 | J11: =RANK('2016 syoa'!J11,'2016 syoa'!$J$5:$J$44,0) -> 31 | K11: =RANK('2016 syoa'!K11,'2016 syoa'!$K$5:$K$44,0) -> 22 | L11: =RANK('2016 syoa'!L11,'2016 syoa'!$L$5:$L$44,0) -> 17 | M11: =RANK('2016 syoa'!M11,'2016 syoa'!$M$5:$M$44,0) -> 30 | N11: =RANK('2016 syoa'!N11,'2016 syoa'!$N$5:$N$44,0) -> 19 | O11: =RANK('2016 syoa'!O11,'2016 syoa'!$O$5:$O$44,0) -> 23 | P11: =RANK('2016 syoa'!P11,'2016 syoa'!$P$5:$P$44,0) -> 27 | Q11: =RANK('2016 syoa'!Q11,'2016 syoa'!$Q$5:$Q$44,0) -> 20 | R11: =RANK('2016 syoa'!R11,'2016 syoa'!$R$5:$R$44,0) -> 23 | S11: =RANK('2016 syoa'!S11,'2016 syoa'!$S$5:$S$44,0) -> 20 | T11: =RANK('2016 syoa'!T11,'2016 syoa'!$T$5:$T$44,0) -> 19 | U11: =RANK('2016 syoa'!U11,'2016 syoa'!$U$5:$U$44,0) -> 22 | V11: =RANK('2016 syoa'!V11,'2016 syoa'!$V$5:$V$44,0) -> 18 | W11: =RANK('2016 syoa'!W11,'2016 syoa'!$W$5:$W$44,0) -> 20
A12: Edgbaston | B12: Edgbaston | C12: E05001185 | D12: =RANK('2016 syoa'!D12,'2016 syoa'!$D$5:$D$44,0) -> 13 | E12: =RANK('2016 syoa'!E12,'2016 syoa'!$E$5:$E$44,0) -> 36 | F12: =RANK('2016 syoa'!F12,'2016 syoa'!$F$5:$F$44,0) -> 35 | G12: =RANK('2016 syoa'!G12,'2016 syoa'!$G$5:$G$44,0) -> 37 | H12: =RANK('2016 syoa'!H12,'2016 syoa'!$H$5:$H$44,0) -> 38 | I12: =RANK('2016 syoa'!I12,'2016 syoa'!$I$5:$I$44,0) -> 37 | J12: =RANK('2016 syoa'!J12,'2016 syoa'!$J$5:$J$44,0) -> 38 | K12: =RANK('2016 syoa'!K12,'2016 syoa'!$K$5:$K$44,0) -> 39 | L12: =RANK('2016 syoa'!L12,'2016 syoa'!$L$5:$L$44,0) -> 38 | M12: =RANK('2016 syoa'!M12,'2016 syoa'!$M$5:$M$44,0) -> 34 | N12: =RANK('2016 syoa'!N12,'2016 syoa'!$N$5:$N$44,0) -> 38 | O12: =RANK('2016 syoa'!O12,'2016 syoa'!$O$5:$O$44,0) -> 39 | P12: =RANK('2016 syoa'!P12,'2016 syoa'!$P$5:$P$44,0) -> 38 | Q12: =RANK('2016 syoa'!Q12,'2016 syoa'!$Q$5:$Q$44,0) -> 38 | R12: =RANK('2016 syoa'!R12,'2016 syoa'!$R$5:$R$44,0) -> 38 | S12: =RANK('2016 syoa'!S12,'2016 syoa'!$S$5:$S$44,0) -> 38 | T12: =RANK('2016 syoa'!T12,'2016 syoa'!$T$5:$T$44,0) -> 28 | U12: =RANK('2016 syoa'!U12,'2016 syoa'!$U$5:$U$44,0) -> 28 | V12: =RANK('2016 syoa'!V12,'2016 syoa'!$V$5:$V$44,0) -> 30 | W12: =RANK('2016 syoa'!W12,'2016 syoa'!$W$5:$W$44,0) -> 2
A13: Erdington | B13: Erdington | C13: E05001186 | D13: =RANK('2016 syoa'!D13,'2016 syoa'!$D$5:$D$44,0) -> 34 | E13: =RANK('2016 syoa'!E13,'2016 syoa'!$E$5:$E$44,0) -> 15 | F13: =RANK('2016 syoa'!F13,'2016 syoa'!$F$5:$F$44,0) -> 18 | G13: =RANK('2016 syoa'!G13,'2016 syoa'!$G$5:$G$44,0) -> 22 | H13: =RANK('2016 syoa'!H13,'2016 syoa'!$H$5:$H$44,0) -> 26 | I13: =RANK('2016 syoa'!I13,'2016 syoa'!$I$5:$I$44,0) -> 24 | J13: =RANK('2016 syoa'!J13,'2016 syoa'!$J$5:$J$44,0) -> 26 | K13: =RANK('2016 syoa'!K13,'2016 syoa'!$K$5:$K$44,0) -> 27 | L13: =RANK('2016 syoa'!L13,'2016 syoa'!$L$5:$L$44,0) -> 25 | M13: =RANK('2016 syoa'!M13,'2016 syoa'!$M$5:$M$44,0) -> 25 | N13: =RANK('2016 syoa'!N13,'2016 syoa'!$N$5:$N$44,0) -> 25 | O13: =RANK('2016 syoa'!O13,'2016 syoa'!$O$5:$O$44,0) -> 32 | P13: =RANK('2016 syoa'!P13,'2016 syoa'!$P$5:$P$44,0) -> 34 | Q13: =RANK('2016 syoa'!Q13,'2016 syoa'!$Q$5:$Q$44,0) -> 31 | R13: =RANK('2016 syoa'!R13,'2016 syoa'!$R$5:$R$44,0) -> 32 | S13: =RANK('2016 syoa'!S13,'2016 syoa'!$S$5:$S$44,0) -> 37 | T13: =RANK('2016 syoa'!T13,'2016 syoa'!$T$5:$T$44,0) -> 38 | U13: =RANK('2016 syoa'!U13,'2016 syoa'!$U$5:$U$44,0) -> 33 | V13: =RANK('2016 syoa'!V13,'2016 syoa'!$V$5:$V$44,0) -> 37 | W13: =RANK('2016 syoa'!W13,'2016 syoa'!$W$5:$W$44,0) -> 37
A14: Hall Green | B14: Hall Green | C14: E05001187 | D14: =RANK('2016 syoa'!D14,'2016 syoa'!$D$5:$D$44,0) -> 16 | E14: =RANK('2016 syoa'!E14,'2016 syoa'!$E$5:$E$44,0) -> 19 | F14: =RANK('2016 syoa'!F14,'2016 syoa'!$F$5:$F$44,0) -> 28 | G14: =RANK('2016 syoa'!G14,'2016 syoa'!$G$5:$G$44,0) -> 25 | H14: =RANK('2016 syoa'!H14,'2016 syoa'!$H$5:$H$44,0) -> 24 | I14: =RANK('2016 syoa'!I14,'2016 syoa'!$I$5:$I$44,0) -> 30 | J14: =RANK('2016 syoa'!J14,'2016 syoa'!$J$5:$J$44,0) -> 21 | K14: =RANK('2016 syoa'!K14,'2016 syoa'!$K$5:$K$44,0) -> 15 | L14: =RANK('2016 syoa'!L14,'2016 syoa'!$L$5:$L$44,0) -> 16 | M14: =RANK('2016 syoa'!M14,'2016 syoa'!$M$5:$M$44,0) -> 15 | N14: =RANK('2016 syoa'!N14,'2016 syoa'!$N$5:$N$44,0) -> 21 | O14: =RANK('2016 syoa'!O14,'2016 syoa'!$O$5:$O$44,0) -> 15 | P14: =RANK('2016 syoa'!P14,'2016 syoa'!$P$5:$P$44,0) -> 11 | Q14: =RANK('2016 syoa'!Q14,'2016 syoa'!$Q$5:$Q$44,0) -> 13 | R14: =RANK('2016 syoa'!R14,'2016 syoa'!$R$5:$R$44,0) -> 12 | S14: =RANK('2016 syoa'!S14,'2016 syoa'!$S$5:$S$44,0) -> 13 | T14: =RANK('2016 syoa'!T14,'2016 syoa'!$T$5:$T$44,0) -> 11 | U14: =RANK('2016 syoa'!U14,'2016 syoa'!$U$5:$U$44,0) -> 13 | V14: =RANK('2016 syoa'!V14,'2016 syoa'!$V$5:$V$44,0) -> 14 | W14: =RANK('2016 syoa'!W14,'2016 syoa'!$W$5:$W$44,0) -> 13
A15: Handsworth Wood | B15: Perry Barr | C15: E05001188 | D15: =RANK('2016 syoa'!D15,'2016 syoa'!$D$5:$D$44,0) -> 14 | E15: =RANK('2016 syoa'!E15,'2016 syoa'!$E$5:$E$44,0) -> 26 | F15: =RANK('2016 syoa'!F15,'2016 syoa'!$F$5:$F$44,0) -> 20 | G15: =RANK('2016 syoa'!G15,'2016 syoa'!$G$5:$G$44,0) -> 17 | H15: =RANK('2016 syoa'!H15,'2016 syoa'!$H$5:$H$44,0) -> 19 | I15: =RANK('2016 syoa'!I15,'2016 syoa'!$I$5:$I$44,0) -> 16 | J15: =RANK('2016 syoa'!J15,'2016 syoa'!$J$5:$J$44,0) -> 19 | K15: =RANK('2016 syoa'!K15,'2016 syoa'!$K$5:$K$44,0) -> 18 | L15: =RANK('2016 syoa'!L15,'2016 syoa'!$L$5:$L$44,0) -> 24 | M15: =RANK('2016 syoa'!M15,'2016 syoa'!$M$5:$M$44,0) -> 26 | N15: =RANK('2016 syoa'!N15,'2016 syoa'!$N$5:$N$44,0) -> 24 | O15: =RANK('2016 syoa'!O15,'2016 syoa'!$O$5:$O$44,0) -> 11 | P15: =RANK('2016 syoa'!P15,'2016 syoa'!$P$5:$P$44,0) -> 14 | Q15: =RANK('2016 syoa'!Q15,'2016 syoa'!$Q$5:$Q$44,0) -> 12 | R15: =RANK('2016 syoa'!R15,'2016 syoa'!$R$5:$R$44,0) -> 13 | S15: =RANK('2016 syoa'!S15,'2016 syoa'!$S$5:$S$44,0) -> 11 | T15: =RANK('2016 syoa'!T15,'2016 syoa'!$T$5:$T$44,0) -> 15 | U15: =RANK('2016 syoa'!U15,'2016 syoa'!$U$5:$U$44,0) -> 12 | V15: =RANK('2016 syoa'!V15,'2016 syoa'!$V$5:$V$44,0) -> 13 | W15: =RANK('2016 syoa'!W15,'2016 syoa'!$W$5:$W$44,0) -> 14
A16: Harborne | B16: Edgbaston | C16: E05001189 | D16: =RANK('2016 syoa'!D16,'2016 syoa'!$D$5:$D$44,0) -> 26 | E16: =RANK('2016 syoa'!E16,'2016 syoa'!$E$5:$E$44,0) -> 27 | F16: =RANK('2016 syoa'!F16,'2016 syoa'!$F$5:$F$44,0) -> 34 | G16: =RANK('2016 syoa'!G16,'2016 syoa'!$G$5:$G$44,0) -> 32 | H16: =RANK('2016 syoa'!H16,'2016 syoa'!$H$5:$H$44,0) -> 30 | I16: =RANK('2016 syoa'!I16,'2016 syoa'!$I$5:$I$44,0) -> 35 | J16: =RANK('2016 syoa'!J16,'2016 syoa'!$J$5:$J$44,0) -> 35 | K16: =RANK('2016 syoa'!K16,'2016 syoa'!$K$5:$K$44,0) -> 34 | L16: =RANK('2016 syoa'!L16,'2016 syoa'!$L$5:$L$44,0) -> 34 | M16: =RANK('2016 syoa'!M16,'2016 syoa'!$M$5:$M$44,0) -> 35 | N16: =RANK('2016 syoa'!N16,'2016 syoa'!$N$5:$N$44,0) -> 33 | O16: =RANK('2016 syoa'!O16,'2016 syoa'!$O$5:$O$44,0) -> 37 | P16: =RANK('2016 syoa'!P16,'2016 syoa'!$P$5:$P$44,0) -> 36 | Q16: =RANK('2016 syoa'!Q16,'2016 syoa'!$Q$5:$Q$44,0) -> 36 | R16: =RANK('2016 syoa'!R16,'2016 syoa'!$R$5:$R$44,0) -> 37 | S16: =RANK('2016 syoa'!S16,'2016 syoa'!$S$5:$S$44,0) -> 36 | T16: =RANK('2016 syoa'!T16,'2016 syoa'!$T$5:$T$44,0) -> 32 | U16: =RANK('2016 syoa'!U16,'2016 syoa'!$U$5:$U$44,0) -> 38 | V16: =RANK('2016 syoa'!V16,'2016 syoa'!$V$5:$V$44,0) -> 38 | W16: =RANK('2016 syoa'!W16,'2016 syoa'!$W$5:$W$44,0) -> 40
A17: Hodge Hill | B17: Hodge Hill | C17: E05001190 | D17: =RANK('2016 syoa'!D17,'2016 syoa'!$D$5:$D$44,0) -> 11 | E17: =RANK('2016 syoa'!E17,'2016 syoa'!$E$5:$E$44,0) -> 8 | F17: =RANK('2016 syoa'!F17,'2016 syoa'!$F$5:$F$44,0) -> 8 | G17: =RANK('2016 syoa'!G17,'2016 syoa'!$G$5:$G$44,0) -> 8 | H17: =RANK('2016 syoa'!H17,'2016 syoa'!$H$5:$H$44,0) -> 10 | I17: =RANK('2016 syoa'!I17,'2016 syoa'!$I$5:$I$44,0) -> 6 | J17: =RANK('2016 syoa'!J17,'2016 syoa'!$J$5:$J$44,0) -> 7 | K17: =RANK('2016 syoa'!K17,'2016 syoa'!$K$5:$K$44,0) -> 9 | L17: =RANK('2016 syoa'!L17,'2016 syoa'!$L$5:$L$44,0) -> 10 | M17: =RANK('2016 syoa'!M17,'2016 syoa'!$M$5:$M$44,0) -> 9 | N17: =RANK('2016 syoa'!N17,'2016 syoa'!$N$5:$N$44,0) -> 9 | O17: =RANK('2016 syoa'!O17,'2016 syoa'!$O$5:$O$44,0) -> 9 | P17: =RANK('2016 syoa'!P17,'2016 syoa'!$P$5:$P$44,0) -> 7 | Q17: =RANK('2016 syoa'!Q17,'2016 syoa'!$Q$5:$Q$44,0) -> 10 | R17: =RANK('2016 syoa'!R17,'2016 syoa'!$R$5:$R$44,0) -> 9 | S17: =RANK('2016 syoa'!S17,'2016 syoa'!$S$5:$S$44,0) -> 5 | T17: =RANK('2016 syoa'!T17,'2016 syoa'!$T$5:$T$44,0) -> 8 | U17: =RANK('2016 syoa'!U17,'2016 syoa'!$U$5:$U$44,0) -> 8 | V17: =RANK('2016 syoa'!V17,'2016 syoa'!$V$5:$V$44,0) -> 10 | W17: =RANK('2016 syoa'!W17,'2016 syoa'!$W$5:$W$44,0) -> 10
A18: Kings Norton | B18: Northfield | C18: E05001191 | D18: =RANK('2016 syoa'!D18,'2016 syoa'!$D$5:$D$44,0) -> 37 | E18: =RANK('2016 syoa'!E18,'2016 syoa'!$E$5:$E$44,0) -> 28 | F18: =RANK('2016 syoa'!F18,'2016 syoa'!$F$5:$F$44,0) -> 25 | G18: =RANK('2016 syoa'!G18,'2016 syoa'!$G$5:$G$44,0) -> 20 | H18: =RANK('2016 syoa'!H18,'2016 syoa'!$H$5:$H$44,0) -> 33 | I18: =RANK('2016 syoa'!I18,'2016 syoa'!$I$5:$I$44,0) -> 29 | J18: =RANK('2016 syoa'!J18,'2016 syoa'!$J$5:$J$44,0) -> 14 | K18: =RANK('2016 syoa'!K18,'2016 syoa'!$K$5:$K$44,0) -> 24 | L18: =RANK('2016 syoa'!L18,'2016 syoa'!$L$5:$L$44,0) -> 22 | M18: =RANK('2016 syoa'!M18,'2016 syoa'!$M$5:$M$44,0) -> 19 | N18: =RANK('2016 syoa'!N18,'2016 syoa'!$N$5:$N$44,0) -> 22 | O18: =RANK('2016 syoa'!O18,'2016 syoa'!$O$5:$O$44,0) -> 27 | P18: =RANK('2016 syoa'!P18,'2016 syoa'!$P$5:$P$44,0) -> 27 | Q18: =RANK('2016 syoa'!Q18,'2016 syoa'!$Q$5:$Q$44,0) -> 21 | R18: =RANK('2016 syoa'!R18,'2016 syoa'!$R$5:$R$44,0) -> 14 | S18: =RANK('2016 syoa'!S18,'2016 syoa'!$S$5:$S$44,0) -> 32 | T18: =RANK('2016 syoa'!T18,'2016 syoa'!$T$5:$T$44,0) -> 31 | U18: =RANK('2016 syoa'!U18,'2016 syoa'!$U$5:$U$44,0) -> 23 | V18: =RANK('2016 syoa'!V18,'2016 syoa'!$V$5:$V$44,0) -> 29 | W18: =RANK('2016 syoa'!W18,'2016 syoa'!$W$5:$W$44,0) -> 24
A19: Kingstanding | B19: Erdington | C19: E05001192 | D19: =RANK('2016 syoa'!D19,'2016 syoa'!$D$5:$D$44,0) -> 29 | E19: =RANK('2016 syoa'!E19,'2016 syoa'!$E$5:$E$44,0) -> 17 | F19: =RANK('2016 syoa'!F19,'2016 syoa'!$F$5:$F$44,0) -> 13 | G19: =RANK('2016 syoa'!G19,'2016 syoa'!$G$5:$G$44,0) -> 13 | H19: =RANK('2016 syoa'!H19,'2016 syoa'!$H$5:$H$44,0) -> 12 | I19: =RANK('2016 syoa'!I19,'2016 syoa'!$I$5:$I$44,0) -> 14 | J19: =RANK('2016 syoa'!J19,'2016 syoa'!$J$5:$J$44,0) -> 17 | K19: =RANK('2016 syoa'!K19,'2016 syoa'!$K$5:$K$44,0) -> 16 | L19: =RANK('2016 syoa'!L19,'2016 syoa'!$L$5:$L$44,0) -> 18 | M19: =RANK('2016 syoa'!M19,'2016 syoa'!$M$5:$M$44,0) -> 13 | N19: =RANK('2016 syoa'!N19,'2016 syoa'!$N$5:$N$44,0) -> 14 | O19: =RANK('2016 syoa'!O19,'2016 syoa'!$O$5:$O$44,0) -> 13 | P19: =RANK('2016 syoa'!P19,'2016 syoa'!$P$5:$P$44,0) -> 17 | Q19: =RANK('2016 syoa'!Q19,'2016 syoa'!$Q$5:$Q$44,0) -> 14 | R19: =RANK('2016 syoa'!R19,'2016 syoa'!$R$5:$R$44,0) -> 19 | S19: =RANK('2016 syoa'!S19,'2016 syoa'!$S$5:$S$44,0) -> 20 | T19: =RANK('2016 syoa'!T19,'2016 syoa'!$T$5:$T$44,0) -> 12 | U19: =RANK('2016 syoa'!U19,'2016 syoa'!$U$5:$U$44,0) -> 18 | V19: =RANK('2016 syoa'!V19,'2016 syoa'!$V$5:$V$44,0) -> 12 | W19: =RANK('2016 syoa'!W19,'2016 syoa'!$W$5:$W$44,0) -> 11
A20: Ladywood | B20: Ladywood | C20: E05001193 | D20: =RANK('2016 syoa'!D20,'2016 syoa'!$D$5:$D$44,0) -> 2 | E20: =RANK('2016 syoa'!E20,'2016 syoa'!$E$5:$E$44,0) -> 16 | F20: =RANK('2016 syoa'!F20,'2016 syoa'!$F$5:$F$44,0) -> 27 | G20: =RANK('2016 syoa'!G20,'2016 syoa'!$G$5:$G$44,0) -> 27 | H20: =RANK('2016 syoa'!H20,'2016 syoa'!$H$5:$H$44,0) -> 31 | I20: =RANK('2016 syoa'!I20,'2016 syoa'!$I$5:$I$44,0) -> 28 | J20: =RANK('2016 syoa'!J20,'2016 syoa'!$J$5:$J$44,0) -> 29 | K20: =RANK('2016 syoa'!K20,'2016 syoa'!$K$5:$K$44,0) -> 35 | L20: =RANK('2016 syoa'!L20,'2016 syoa'!$L$5:$L$44,0) -> 35 | M20: =RANK('2016 syoa'!M20,'2016 syoa'!$M$5:$M$44,0) -> 38 | N20: =RANK('2016 syoa'!N20,'2016 syoa'!$N$5:$N$44,0) -> 39 | O20: =RANK('2016 syoa'!O20,'2016 syoa'!$O$5:$O$44,0) -> 36 | P20: =RANK('2016 syoa'!P20,'2016 syoa'!$P$5:$P$44,0) -> 37 | Q20: =RANK('2016 syoa'!Q20,'2016 syoa'!$Q$5:$Q$44,0) -> 38 | R20: =RANK('2016 syoa'!R20,'2016 syoa'!$R$5:$R$44,0) -> 39 | S20: =RANK('2016 syoa'!S20,'2016 syoa'!$S$5:$S$44,0) -> 39 | T20: =RANK('2016 syoa'!T20,'2016 syoa'!$T$5:$T$44,0) -> 39 | U20: =RANK('2016 syoa'!U20,'2016 syoa'!$U$5:$U$44,0) -> 38 | V20: =RANK('2016 syoa'!V20,'2016 syoa'!$V$5:$V$44,0) -> 39 | W20: =RANK('2016 syoa'!W20,'2016 syoa'!$W$5:$W$44,0) -> 36
A21: Longbridge | B21: Northfield | C21: E05001194 | D21: =RANK('2016 syoa'!D21,'2016 syoa'!$D$5:$D$44,0) -> 25 | E21: =RANK('2016 syoa'!E21,'2016 syoa'!$E$5:$E$44,0) -> 22 | F21: =RANK('2016 syoa'!F21,'2016 syoa'!$F$5:$F$44,0) -> 17 | G21: =RANK('2016 syoa'!G21,'2016 syoa'!$G$5:$G$44,0) -> 15 | H21: =RANK('2016 syoa'!H21,'2016 syoa'!$H$5:$H$44,0) -> 22 | I21: =RANK('2016 syoa'!I21,'2016 syoa'!$I$5:$I$44,0) -> 20 | J21: =RANK('2016 syoa'!J21,'2016 syoa'!$J$5:$J$44,0) -> 16 | K21: =RANK('2016 syoa'!K21,'2016 syoa'!$K$5:$K$44,0) -> 17 | L21: =RANK('2016 syoa'!L21,'2016 syoa'!$L$5:$L$44,0) -> 21 | M21: =RANK('2016 syoa'!M21,'2016 syoa'!$M$5:$M$44,0) -> 17 | N21: =RANK('2016 syoa'!N21,'2016 syoa'!$N$5:$N$44,0) -> 17 | O21: =RANK('2016 syoa'!O21,'2016 syoa'!$O$5:$O$44,0) -> 22 | P21: =RANK('2016 syoa'!P21,'2016 syoa'!$P$5:$P$44,0) -> 23 | Q21: =RANK('2016 syoa'!Q21,'2016 syoa'!$Q$5:$Q$44,0) -> 24 | R21: =RANK('2016 syoa'!R21,'2016 syoa'!$R$5:$R$44,0) -> 27 | S21: =RANK('2016 syoa'!S21,'2016 syoa'!$S$5:$S$44,0) -> 24 | T21: =RANK('2016 syoa'!T21,'2016 syoa'!$T$5:$T$44,0) -> 21 | U21: =RANK('2016 syoa'!U21,'2016 syoa'!$U$5:$U$44,0) -> 20 | V21: =RANK('2016 syoa'!V21,'2016 syoa'!$V$5:$V$44,0) -> 22 | W21: =RANK('2016 syoa'!W21,'2016 syoa'!$W$5:$W$44,0) -> 31
A22: Lozells and East Handsworth | B22: Perry Barr | C22: E05001195 | D22: =RANK('2016 syoa'!D22,'2016 syoa'!$D$5:$D$44,0) -> 7 | E22: =RANK('2016 syoa'!E22,'2016 syoa'!$E$5:$E$44,0) -> 9 | F22: =RANK('2016 syoa'!F22,'2016 syoa'!$F$5:$F$44,0) -> 6 | G22: =RANK('2016 syoa'!G22,'2016 syoa'!$G$5:$G$44,0) -> 5 | H22: =RANK('2016 syoa'!H22,'2016 syoa'!$H$5:$H$44,0) -> 9 | I22: =RANK('2016 syoa'!I22,'2016 syoa'!$I$5:$I$44,0) -> 4 | J22: =RANK('2016 syoa'!J22,'2016 syoa'!$J$5:$J$44,0) -> 9 | K22: =RANK('2016 syoa'!K22,'2016 syoa'!$K$5:$K$44,0) -> 10 | L22: =RANK('2016 syoa'!L22,'2016 syoa'!$L$5:$L$44,0) -> 3 | M22: =RANK('2016 syoa'!M22,'2016 syoa'!$M$5:$M$44,0) -> 8 | N22: =RANK('2016 syoa'!N22,'2016 syoa'!$N$5:$N$44,0) -> 8 | O22: =RANK('2016 syoa'!O22,'2016 syoa'!$O$5:$O$44,0) -> 3 | P22: =RANK('2016 syoa'!P22,'2016 syoa'!$P$5:$P$44,0) -> 9 | Q22: =RANK('2016 syoa'!Q22,'2016 syoa'!$Q$5:$Q$44,0) -> 4 | R22: =RANK('2016 syoa'!R22,'2016 syoa'!$R$5:$R$44,0) -> 4 | S22: =RANK('2016 syoa'!S22,'2016 syoa'!$S$5:$S$44,0) -> 3 | T22: =RANK('2016 syoa'!T22,'2016 syoa'!$T$5:$T$44,0) -> 6 | U22: =RANK('2016 syoa'!U22,'2016 syoa'!$U$5:$U$44,0) -> 6 | V22: =RANK('2016 syoa'!V22,'2016 syoa'!$V$5:$V$44,0) -> 7 | W22: =RANK('2016 syoa'!W22,'2016 syoa'!$W$5:$W$44,0) -> 8
A23: Moseley and Kings Heath | B23: Hall Green | C23: E05001196 | D23: =RANK('2016 syoa'!D23,'2016 syoa'!$D$5:$D$44,0) -> 20 | E23: =RANK('2016 syoa'!E23,'2016 syoa'!$E$5:$E$44,0) -> 33 | F23: =RANK('2016 syoa'!F23,'2016 syoa'!$F$5:$F$44,0) -> 36 | G23: =RANK('2016 syoa'!G23,'2016 syoa'!$G$5:$G$44,0) -> 34 | H23: =RANK('2016 syoa'!H23,'2016 syoa'!$H$5:$H$44,0) -> 35 | I23: =RANK('2016 syoa'!I23,'2016 syoa'!$I$5:$I$44,0) -> 34 | J23: =RANK('2016 syoa'!J23,'2016 syoa'!$J$5:$J$44,0) -> 32 | K23: =RANK('2016 syoa'!K23,'2016 syoa'!$K$5:$K$44,0) -> 31 | L23: =RANK('2016 syoa'!L23,'2016 syoa'!$L$5:$L$44,0) -> 33 | M23: =RANK('2016 syoa'!M23,'2016 syoa'!$M$5:$M$44,0) -> 33 | N23: =RANK('2016 syoa'!N23,'2016 syoa'!$N$5:$N$44,0) -> 34 | O23: =RANK('2016 syoa'!O23,'2016 syoa'!$O$5:$O$44,0) -> 28 | P23: =RANK('2016 syoa'!P23,'2016 syoa'!$P$5:$P$44,0) -> 35 | Q23: =RANK('2016 syoa'!Q23,'2016 syoa'!$Q$5:$Q$44,0) -> 37 | R23: =RANK('2016 syoa'!R23,'2016 syoa'!$R$5:$R$44,0) -> 34 | S23: =RANK('2016 syoa'!S23,'2016 syoa'!$S$5:$S$44,0) -> 34 | T23: =RANK('2016 syoa'!T23,'2016 syoa'!$T$5:$T$44,0) -> 30 | U23: =RANK('2016 syoa'!U23,'2016 syoa'!$U$5:$U$44,0) -> 37 | V23: =RANK('2016 syoa'!V23,'2016 syoa'!$V$5:$V$44,0) -> 26 | W23: =RANK('2016 syoa'!W23,'2016 syoa'!$W$5:$W$44,0) -> 28
A24: Nechells | B24: Ladywood | C24: E05001197 | D24: =RANK('2016 syoa'!D24,'2016 syoa'!$D$5:$D$44,0) -> 1 | E24: =RANK('2016 syoa'!E24,'2016 syoa'!$E$5:$E$44,0) -> 2 | F24: =RANK('2016 syoa'!F24,'2016 syoa'!$F$5:$F$44,0) -> 1 | G24: =RANK('2016 syoa'!G24,'2016 syoa'!$G$5:$G$44,0) -> 4 | H24: =RANK('2016 syoa'!H24,'2016 syoa'!$H$5:$H$44,0) -> 4 | I24: =RANK('2016 syoa'!I24,'2016 syoa'!$I$5:$I$44,0) -> 2 | J24: =RANK('2016 syoa'!J24,'2016 syoa'!$J$5:$J$44,0) -> 5 | K24: =RANK('2016 syoa'!K24,'2016 syoa'!$K$5:$K$44,0) -> 6 | L24: =RANK('2016 syoa'!L24,'2016 syoa'!$L$5:$L$44,0) -> 7 | M24: =RANK('2016 syoa'!M24,'2016 syoa'!$M$5:$M$44,0) -> 6 | N24: =RANK('2016 syoa'!N24,'2016 syoa'!$N$5:$N$44,0) -> 3 | O24: =RANK('2016 syoa'!O24,'2016 syoa'!$O$5:$O$44,0) -> 6 | P24: =RANK('2016 syoa'!P24,'2016 syoa'!$P$5:$P$44,0) -> 10 | Q24: =RANK('2016 syoa'!Q24,'2016 syoa'!$Q$5:$Q$44,0) -> 8 | R24: =RANK('2016 syoa'!R24,'2016 syoa'!$R$5:$R$44,0) -> 10 | S24: =RANK('2016 syoa'!S24,'2016 syoa'!$S$5:$S$44,0) -> 8 | T24: =RANK('2016 syoa'!T24,'2016 syoa'!$T$5:$T$44,0) -> 5 | U24: =RANK('2016 syoa'!U24,'2016 syoa'!$U$5:$U$44,0) -> 3 | V24: =RANK('2016 syoa'!V24,'2016 syoa'!$V$5:$V$44,0) -> 5 | W24: =RANK('2016 syoa'!W24,'2016 syoa'!$W$5:$W$44,0) -> 1
A25: Northfield | B25: Northfield | C25: E05001198 | D25: =RANK('2016 syoa'!D25,'2016 syoa'!$D$5:$D$44,0) -> 22 | E25: =RANK('2016 syoa'!E25,'2016 syoa'!$E$5:$E$44,0) -> 18 | F25: =RANK('2016 syoa'!F25,'2016 syoa'!$F$5:$F$44,0) -> 29 | G25: =RANK('2016 syoa'!G25,'2016 syoa'!$G$5:$G$44,0) -> 30 | H25: =RANK('2016 syoa'!H25,'2016 syoa'!$H$5:$H$44,0) -> 29 | I25: =RANK('2016 syoa'!I25,'2016 syoa'!$I$5:$I$44,0) -> 25 | J25: =RANK('2016 syoa'!J25,'2016 syoa'!$J$5:$J$44,0) -> 28 | K25: =RANK('2016 syoa'!K25,'2016 syoa'!$K$5:$K$44,0) -> 33 | L25: =RANK('2016 syoa'!L25,'2016 syoa'!$L$5:$L$44,0) -> 30 | M25: =RANK('2016 syoa'!M25,'2016 syoa'!$M$5:$M$44,0) -> 23 | N25: =RANK('2016 syoa'!N25,'2016 syoa'!$N$5:$N$44,0) -> 29 | O25: =RANK('2016 syoa'!O25,'2016 syoa'!$O$5:$O$44,0) -> 18 | P25: =RANK('2016 syoa'!P25,'2016 syoa'!$P$5:$P$44,0) -> 21 | Q25: =RANK('2016 syoa'!Q25,'2016 syoa'!$Q$5:$Q$44,0) -> 25 | R25: =RANK('2016 syoa'!R25,'2016 syoa'!$R$5:$R$44,0) -> 31 | S25: =RANK('2016 syoa'!S25,'2016 syoa'!$S$5:$S$44,0) -> 29 | T25: =RANK('2016 syoa'!T25,'2016 syoa'!$T$5:$T$44,0) -> 37 | U25: =RANK('2016 syoa'!U25,'2016 syoa'!$U$5:$U$44,0) -> 36 | V25: =RANK('2016 syoa'!V25,'2016 syoa'!$V$5:$V$44,0) -> 32 | W25: =RANK('2016 syoa'!W25,'2016 syoa'!$W$5:$W$44,0) -> 26
A26: Oscott | B26: Perry Barr | C26: E05001199 | D26: =RANK('2016 syoa'!D26,'2016 syoa'!$D$5:$D$44,0) -> 32 | E26: =RANK('2016 syoa'!E26,'2016 syoa'!$E$5:$E$44,0) -> 25 | F26: =RANK('2016 syoa'!F26,'2016 syoa'!$F$5:$F$44,0) -> 24 | G26: =RANK('2016 syoa'!G26,'2016 syoa'!$G$5:$G$44,0) -> 25 | H26: =RANK('2016 syoa'!H26,'2016 syoa'!$H$5:$H$44,0) -> 23 | I26: =RANK('2016 syoa'!I26,'2016 syoa'!$I$5:$I$44,0) -> 23 | J26: =RANK('2016 syoa'!J26,'2016 syoa'!$J$5:$J$44,0) -> 30 | K26: =RANK('2016 syoa'!K26,'2016 syoa'!$K$5:$K$44,0) -> 23 | L26: =RANK('2016 syoa'!L26,'2016 syoa'!$L$5:$L$44,0) -> 32 | M26: =RANK('2016 syoa'!M26,'2016 syoa'!$M$5:$M$44,0) -> 31 | N26: =RANK('2016 syoa'!N26,'2016 syoa'!$N$5:$N$44,0) -> 26 | O26: =RANK('2016 syoa'!O26,'2016 syoa'!$O$5:$O$44,0) -> 31 | P26: =RANK('2016 syoa'!P26,'2016 syoa'!$P$5:$P$44,0) -> 26 | Q26: =RANK('2016 syoa'!Q26,'2016 syoa'!$Q$5:$Q$44,0) -> 33 | R26: =RANK('2016 syoa'!R26,'2016 syoa'!$R$5:$R$44,0) -> 33 | S26: =RANK('2016 syoa'!S26,'2016 syoa'!$S$5:$S$44,0) -> 33 | T26: =RANK('2016 syoa'!T26,'2016 syoa'!$T$5:$T$44,0) -> 18 | U26: =RANK('2016 syoa'!U26,'2016 syoa'!$U$5:$U$44,0) -> 25 | V26: =RANK('2016 syoa'!V26,'2016 syoa'!$V$5:$V$44,0) -> 31 | W26: =RANK('2016 syoa'!W26,'2016 syoa'!$W$5:$W$44,0) -> 33
A27: Perry Barr | B27: Perry Barr | C27: E05001200 | D27: =RANK('2016 syoa'!D27,'2016 syoa'!$D$5:$D$44,0) -> 33 | E27: =RANK('2016 syoa'!E27,'2016 syoa'!$E$5:$E$44,0) -> 32 | F27: =RANK('2016 syoa'!F27,'2016 syoa'!$F$5:$F$44,0) -> 22 | G27: =RANK('2016 syoa'!G27,'2016 syoa'!$G$5:$G$44,0) -> 28 | H27: =RANK('2016 syoa'!H27,'2016 syoa'!$H$5:$H$44,0) -> 21 | I27: =RANK('2016 syoa'!I27,'2016 syoa'!$I$5:$I$44,0) -> 33 | J27: =RANK('2016 syoa'!J27,'2016 syoa'!$J$5:$J$44,0) -> 22 | K27: =RANK('2016 syoa'!K27,'2016 syoa'!$K$5:$K$44,0) -> 21 | L27: =RANK('2016 syoa'!L27,'2016 syoa'!$L$5:$L$44,0) -> 20 | M27: =RANK('2016 syoa'!M27,'2016 syoa'!$M$5:$M$44,0) -> 27 | N27: =RANK('2016 syoa'!N27,'2016 syoa'!$N$5:$N$44,0) -> 20 | O27: =RANK('2016 syoa'!O27,'2016 syoa'!$O$5:$O$44,0) -> 25 | P27: =RANK('2016 syoa'!P27,'2016 syoa'!$P$5:$P$44,0) -> 15 | Q27: =RANK('2016 syoa'!Q27,'2016 syoa'!$Q$5:$Q$44,0) -> 25 | R27: =RANK('2016 syoa'!R27,'2016 syoa'!$R$5:$R$44,0) -> 20 | S27: =RANK('2016 syoa'!S27,'2016 syoa'!$S$5:$S$44,0) -> 15 | T27: =RANK('2016 syoa'!T27,'2016 syoa'!$T$5:$T$44,0) -> 25 | U27: =RANK('2016 syoa'!U27,'2016 syoa'!$U$5:$U$44,0) -> 19 | V27: =RANK('2016 syoa'!V27,'2016 syoa'!$V$5:$V$44,0) -> 28 | W27: =RANK('2016 syoa'!W27,'2016 syoa'!$W$5:$W$44,0) -> 19
A28: Quinton | B28: Edgbaston | C28: E05001201 | D28: =RANK('2016 syoa'!D28,'2016 syoa'!$D$5:$D$44,0) -> 36 | E28: =RANK('2016 syoa'!E28,'2016 syoa'!$E$5:$E$44,0) -> 30 | F28: =RANK('2016 syoa'!F28,'2016 syoa'!$F$5:$F$44,0) -> 23 | G28: =RANK('2016 syoa'!G28,'2016 syoa'!$G$5:$G$44,0) -> 24 | H28: =RANK('2016 syoa'!H28,'2016 syoa'!$H$5:$H$44,0) -> 18 | I28: =RANK('2016 syoa'!I28,'2016 syoa'!$I$5:$I$44,0) -> 25 | J28: =RANK('2016 syoa'!J28,'2016 syoa'!$J$5:$J$44,0) -> 25 | K28: =RANK('2016 syoa'!K28,'2016 syoa'!$K$5:$K$44,0) -> 26 | L28: =RANK('2016 syoa'!L28,'2016 syoa'!$L$5:$L$44,0) -> 25 | M28: =RANK('2016 syoa'!M28,'2016 syoa'!$M$5:$M$44,0) -> 18 | N28: =RANK('2016 syoa'!N28,'2016 syoa'!$N$5:$N$44,0) -> 27 | O28: =RANK('2016 syoa'!O28,'2016 syoa'!$O$5:$O$44,0) -> 20 | P28: =RANK('2016 syoa'!P28,'2016 syoa'!$P$5:$P$44,0) -> 24 | Q28: =RANK('2016 syoa'!Q28,'2016 syoa'!$Q$5:$Q$44,0) -> 17 | R28: =RANK('2016 syoa'!R28,'2016 syoa'!$R$5:$R$44,0) -> 28 | S28: =RANK('2016 syoa'!S28,'2016 syoa'!$S$5:$S$44,0) -> 27 | T28: =RANK('2016 syoa'!T28,'2016 syoa'!$T$5:$T$44,0) -> 23 | U28: =RANK('2016 syoa'!U28,'2016 syoa'!$U$5:$U$44,0) -> 29 | V28: =RANK('2016 syoa'!V28,'2016 syoa'!$V$5:$V$44,0) -> 21 | W28: =RANK('2016 syoa'!W28,'2016 syoa'!$W$5:$W$44,0) -> 29
A29: Selly Oak | B29: Selly Oak | C29: E05001202 | D29: =RANK('2016 syoa'!D29,'2016 syoa'!$D$5:$D$44,0) -> 15 | E29: =RANK('2016 syoa'!E29,'2016 syoa'!$E$5:$E$44,0) -> 40 | F29: =RANK('2016 syoa'!F29,'2016 syoa'!$F$5:$F$44,0) -> 39 | G29: =RANK('2016 syoa'!G29,'2016 syoa'!$G$5:$G$44,0) -> 40 | H29: =RANK('2016 syoa'!H29,'2016 syoa'!$H$5:$H$44,0) -> 39 | I29: =RANK('2016 syoa'!I29,'2016 syoa'!$I$5:$I$44,0) -> 39 | J29: =RANK('2016 syoa'!J29,'2016 syoa'!$J$5:$J$44,0) -> 40 | K29: =RANK('2016 syoa'!K29,'2016 syoa'!$K$5:$K$44,0) -> 40 | L29: =RANK('2016 syoa'!L29,'2016 syoa'!$L$5:$L$44,0) -> 40 | M29: =RANK('2016 syoa'!M29,'2016 syoa'!$M$5:$M$44,0) -> 40 | N29: =RANK('2016 syoa'!N29,'2016 syoa'!$N$5:$N$44,0) -> 40 | O29: =RANK('2016 syoa'!O29,'2016 syoa'!$O$5:$O$44,0) -> 40 | P29: =RANK('2016 syoa'!P29,'2016 syoa'!$P$5:$P$44,0) -> 40 | Q29: =RANK('2016 syoa'!Q29,'2016 syoa'!$Q$5:$Q$44,0) -> 40 | R29: =RANK('2016 syoa'!R29,'2016 syoa'!$R$5:$R$44,0) -> 40 | S29: =RANK('2016 syoa'!S29,'2016 syoa'!$S$5:$S$44,0) -> 40 | T29: =RANK('2016 syoa'!T29,'2016 syoa'!$T$5:$T$44,0) -> 40 | U29: =RANK('2016 syoa'!U29,'2016 syoa'!$U$5:$U$44,0) -> 40 | V29: =RANK('2016 syoa'!V29,'2016 syoa'!$V$5:$V$44,0) -> 40 | W29: =RANK('2016 syoa'!W29,'2016 syoa'!$W$5:$W$44,0) -> 38
A30: Shard End | B30: Hodge Hill | C30: E05001203 | D30: =RANK('2016 syoa'!D30,'2016 syoa'!$D$5:$D$44,0) -> 19 | E30: =RANK('2016 syoa'!E30,'2016 syoa'!$E$5:$E$44,0) -> 11 | F30: =RANK('2016 syoa'!F30,'2016 syoa'!$F$5:$F$44,0) -> 11 | G30: =RANK('2016 syoa'!G30,'2016 syoa'!$G$5:$G$44,0) -> 11 | H30: =RANK('2016 syoa'!H30,'2016 syoa'!$H$5:$H$44,0) -> 11 | I30: =RANK('2016 syoa'!I30,'2016 syoa'!$I$5:$I$44,0) -> 11 | J30: =RANK('2016 syoa'!J30,'2016 syoa'!$J$5:$J$44,0) -> 11 | K30: =RANK('2016 syoa'!K30,'2016 syoa'!$K$5:$K$44,0) -> 11 | L30: =RANK('2016 syoa'!L30,'2016 syoa'!$L$5:$L$44,0) -> 14 | M30: =RANK('2016 syoa'!M30,'2016 syoa'!$M$5:$M$44,0) -> 11 | N30: =RANK('2016 syoa'!N30,'2016 syoa'!$N$5:$N$44,0) -> 13 | O30: =RANK('2016 syoa'!O30,'2016 syoa'!$O$5:$O$44,0) -> 14 | P30: =RANK('2016 syoa'!P30,'2016 syoa'!$P$5:$P$44,0) -> 13 | Q30: =RANK('2016 syoa'!Q30,'2016 syoa'!$Q$5:$Q$44,0) -> 15 | R30: =RANK('2016 syoa'!R30,'2016 syoa'!$R$5:$R$44,0) -> 17 | S30: =RANK('2016 syoa'!S30,'2016 syoa'!$S$5:$S$44,0) -> 27 | T30: =RANK('2016 syoa'!T30,'2016 syoa'!$T$5:$T$44,0) -> 23 | U30: =RANK('2016 syoa'!U30,'2016 syoa'!$U$5:$U$44,0) -> 24 | V30: =RANK('2016 syoa'!V30,'2016 syoa'!$V$5:$V$44,0) -> 20 | W30: =RANK('2016 syoa'!W30,'2016 syoa'!$W$5:$W$44,0) -> 24
A31: Sheldon | B31: Yardley | C31: E05001204 | D31: =RANK('2016 syoa'!D31,'2016 syoa'!$D$5:$D$44,0) -> 38 | E31: =RANK('2016 syoa'!E31,'2016 syoa'!$E$5:$E$44,0) -> 31 | F31: =RANK('2016 syoa'!F31,'2016 syoa'!$F$5:$F$44,0) -> 31 | G31: =RANK('2016 syoa'!G31,'2016 syoa'!$G$5:$G$44,0) -> 33 | H31: =RANK('2016 syoa'!H31,'2016 syoa'!$H$5:$H$44,0) -> 28 | I31: =RANK('2016 syoa'!I31,'2016 syoa'!$I$5:$I$44,0) -> 25 | J31: =RANK('2016 syoa'!J31,'2016 syoa'!$J$5:$J$44,0) -> 33 | K31: =RANK('2016 syoa'!K31,'2016 syoa'!$K$5:$K$44,0) -> 29 | L31: =RANK('2016 syoa'!L31,'2016 syoa'!$L$5:$L$44,0) -> 29 | M31: =RANK('2016 syoa'!M31,'2016 syoa'!$M$5:$M$44,0) -> 37 | N31: =RANK('2016 syoa'!N31,'2016 syoa'!$N$5:$N$44,0) -> 36 | O31: =RANK('2016 syoa'!O31,'2016 syoa'!$O$5:$O$44,0) -> 30 | P31: =RANK('2016 syoa'!P31,'2016 syoa'!$P$5:$P$44,0) -> 31 | Q31: =RANK('2016 syoa'!Q31,'2016 syoa'!$Q$5:$Q$44,0) -> 29 | R31: =RANK('2016 syoa'!R31,'2016 syoa'!$R$5:$R$44,0) -> 21 | S31: =RANK('2016 syoa'!S31,'2016 syoa'!$S$5:$S$44,0) -> 26 | T31: =RANK('2016 syoa'!T31,'2016 syoa'!$T$5:$T$44,0) -> 29 | U31: =RANK('2016 syoa'!U31,'2016 syoa'!$U$5:$U$44,0) -> 31 | V31: =RANK('2016 syoa'!V31,'2016 syoa'!$V$5:$V$44,0) -> 27 | W31: =RANK('2016 syoa'!W31,'2016 syoa'!$W$5:$W$44,0) -> 32
A32: Soho | B32: Ladywood | C32: E05001205 | D32: =RANK('2016 syoa'!D32,'2016 syoa'!$D$5:$D$44,0) -> 9 | E32: =RANK('2016 syoa'!E32,'2016 syoa'!$E$5:$E$44,0) -> 5 | F32: =RANK('2016 syoa'!F32,'2016 syoa'!$F$5:$F$44,0) -> 9 | G32: =RANK('2016 syoa'!G32,'2016 syoa'!$G$5:$G$44,0) -> 10 | H32: =RANK('2016 syoa'!H32,'2016 syoa'!$H$5:$H$44,0) -> 6 | I32: =RANK('2016 syoa'!I32,'2016 syoa'!$I$5:$I$44,0) -> 5 | J32: =RANK('2016 syoa'!J32,'2016 syoa'!$J$5:$J$44,0) -> 10 | K32: =RANK('2016 syoa'!K32,'2016 syoa'!$K$5:$K$44,0) -> 7 | L32: =RANK('2016 syoa'!L32,'2016 syoa'!$L$5:$L$44,0) -> 9 | M32: =RANK('2016 syoa'!M32,'2016 syoa'!$M$5:$M$44,0) -> 10 | N32: =RANK('2016 syoa'!N32,'2016 syoa'!$N$5:$N$44,0) -> 5 | O32: =RANK('2016 syoa'!O32,'2016 syoa'!$O$5:$O$44,0) -> 9 | P32: =RANK('2016 syoa'!P32,'2016 syoa'!$P$5:$P$44,0) -> 8 | Q32: =RANK('2016 syoa'!Q32,'2016 syoa'!$Q$5:$Q$44,0) -> 7 | R32: =RANK('2016 syoa'!R32,'2016 syoa'!$R$5:$R$44,0) -> 8 | S32: =RANK('2016 syoa'!S32,'2016 syoa'!$S$5:$S$44,0) -> 10 | T32: =RANK('2016 syoa'!T32,'2016 syoa'!$T$5:$T$44,0) -> 9 | U32: =RANK('2016 syoa'!U32,'2016 syoa'!$U$5:$U$44,0) -> 10 | V32: =RANK('2016 syoa'!V32,'2016 syoa'!$V$5:$V$44,0) -> 11 | W32: =RANK('2016 syoa'!W32,'2016 syoa'!$W$5:$W$44,0) -> 9
A33: South Yardley | B33: Yardley | C33: E05001206 | D33: =RANK('2016 syoa'!D33,'2016 syoa'!$D$5:$D$44,0) -> 10 | E33: =RANK('2016 syoa'!E33,'2016 syoa'!$E$5:$E$44,0) -> 6 | F33: =RANK('2016 syoa'!F33,'2016 syoa'!$F$5:$F$44,0) -> 7 | G33: =RANK('2016 syoa'!G33,'2016 syoa'!$G$5:$G$44,0) -> 9 | H33: =RANK('2016 syoa'!H33,'2016 syoa'!$H$5:$H$44,0) -> 7 | I33: =RANK('2016 syoa'!I33,'2016 syoa'!$I$5:$I$44,0) -> 8 | J33: =RANK('2016 syoa'!J33,'2016 syoa'!$J$5:$J$44,0) -> 4 | K33: =RANK('2016 syoa'!K33,'2016 syoa'!$K$5:$K$44,0) -> 8 | L33: =RANK('2016 syoa'!L33,'2016 syoa'!$L$5:$L$44,0) -> 6 | M33: =RANK('2016 syoa'!M33,'2016 syoa'!$M$5:$M$44,0) -> 7 | N33: =RANK('2016 syoa'!N33,'2016 syoa'!$N$5:$N$44,0) -> 6 | O33: =RANK('2016 syoa'!O33,'2016 syoa'!$O$5:$O$44,0) -> 8 | P33: =RANK('2016 syoa'!P33,'2016 syoa'!$P$5:$P$44,0) -> 5 | Q33: =RANK('2016 syoa'!Q33,'2016 syoa'!$Q$5:$Q$44,0) -> 6 | R33: =RANK('2016 syoa'!R33,'2016 syoa'!$R$5:$R$44,0) -> 6 | S33: =RANK('2016 syoa'!S33,'2016 syoa'!$S$5:$S$44,0) -> 9 | T33: =RANK('2016 syoa'!T33,'2016 syoa'!$T$5:$T$44,0) -> 10 | U33: =RANK('2016 syoa'!U33,'2016 syoa'!$U$5:$U$44,0) -> 9 | V33: =RANK('2016 syoa'!V33,'2016 syoa'!$V$5:$V$44,0) -> 8 | W33: =RANK('2016 syoa'!W33,'2016 syoa'!$W$5:$W$44,0) -> 12
A34: Sparkbrook | B34: Hall Green | C34: E05001207 | D34: =RANK('2016 syoa'!D34,'2016 syoa'!$D$5:$D$44,0) -> 6 | E34: =RANK('2016 syoa'!E34,'2016 syoa'!$E$5:$E$44,0) -> 10 | F34: =RANK('2016 syoa'!F34,'2016 syoa'!$F$5:$F$44,0) -> 10 | G34: =RANK('2016 syoa'!G34,'2016 syoa'!$G$5:$G$44,0) -> 3 | H34: =RANK('2016 syoa'!H34,'2016 syoa'!$H$5:$H$44,0) -> 8 | I34: =RANK('2016 syoa'!I34,'2016 syoa'!$I$5:$I$44,0) -> 9 | J34: =RANK('2016 syoa'!J34,'2016 syoa'!$J$5:$J$44,0) -> 2 | K34: =RANK('2016 syoa'!K34,'2016 syoa'!$K$5:$K$44,0) -> 3 | L34: =RANK('2016 syoa'!L34,'2016 syoa'!$L$5:$L$44,0) -> 5 | M34: =RANK('2016 syoa'!M34,'2016 syoa'!$M$5:$M$44,0) -> 5 | N34: =RANK('2016 syoa'!N34,'2016 syoa'!$N$5:$N$44,0) -> 4 | O34: =RANK('2016 syoa'!O34,'2016 syoa'!$O$5:$O$44,0) -> 3 | P34: =RANK('2016 syoa'!P34,'2016 syoa'!$P$5:$P$44,0) -> 3 | Q34: =RANK('2016 syoa'!Q34,'2016 syoa'!$Q$5:$Q$44,0) -> 9 | R34: =RANK('2016 syoa'!R34,'2016 syoa'!$R$5:$R$44,0) -> 5 | S34: =RANK('2016 syoa'!S34,'2016 syoa'!$S$5:$S$44,0) -> 4 | T34: =RANK('2016 syoa'!T34,'2016 syoa'!$T$5:$T$44,0) -> 4 | U34: =RANK('2016 syoa'!U34,'2016 syoa'!$U$5:$U$44,0) -> 4 | V34: =RANK('2016 syoa'!V34,'2016 syoa'!$V$5:$V$44,0) -> 3 | W34: =RANK('2016 syoa'!W34,'2016 syoa'!$W$5:$W$44,0) -> 6
A35: Springfield | B35: Hall Green | C35: E05001208 | D35: =RANK('2016 syoa'!D35,'2016 syoa'!$D$5:$D$44,0) -> 8 | E35: =RANK('2016 syoa'!E35,'2016 syoa'!$E$5:$E$44,0) -> 7 | F35: =RANK('2016 syoa'!F35,'2016 syoa'!$F$5:$F$44,0) -> 3 | G35: =RANK('2016 syoa'!G35,'2016 syoa'!$G$5:$G$44,0) -> 6 | H35: =RANK('2016 syoa'!H35,'2016 syoa'!$H$5:$H$44,0) -> 5 | I35: =RANK('2016 syoa'!I35,'2016 syoa'!$I$5:$I$44,0) -> 7 | J35: =RANK('2016 syoa'!J35,'2016 syoa'!$J$5:$J$44,0) -> 8 | K35: =RANK('2016 syoa'!K35,'2016 syoa'!$K$5:$K$44,0) -> 5 | L35: =RANK('2016 syoa'!L35,'2016 syoa'!$L$5:$L$44,0) -> 4 | M35: =RANK('2016 syoa'!M35,'2016 syoa'!$M$5:$M$44,0) -> 4 | N35: =RANK('2016 syoa'!N35,'2016 syoa'!$N$5:$N$44,0) -> 7 | O35: =RANK('2016 syoa'!O35,'2016 syoa'!$O$5:$O$44,0) -> 5 | P35: =RANK('2016 syoa'!P35,'2016 syoa'!$P$5:$P$44,0) -> 4 | Q35: =RANK('2016 syoa'!Q35,'2016 syoa'!$Q$5:$Q$44,0) -> 3 | R35: =RANK('2016 syoa'!R35,'2016 syoa'!$R$5:$R$44,0) -> 3 | S35: =RANK('2016 syoa'!S35,'2016 syoa'!$S$5:$S$44,0) -> 7 | T35: =RANK('2016 syoa'!T35,'2016 syoa'!$T$5:$T$44,0) -> 7 | U35: =RANK('2016 syoa'!U35,'2016 syoa'!$U$5:$U$44,0) -> 7 | V35: =RANK('2016 syoa'!V35,'2016 syoa'!$V$5:$V$44,0) -> 6 | W35: =RANK('2016 syoa'!W35,'2016 syoa'!$W$5:$W$44,0) -> 7
A36: Stechford and Yardley North | B36: Yardley | C36: E05001209 | D36: =RANK('2016 syoa'!D36,'2016 syoa'!$D$5:$D$44,0) -> 17 | E36: =RANK('2016 syoa'!E36,'2016 syoa'!$E$5:$E$44,0) -> 14 | F36: =RANK('2016 syoa'!F36,'2016 syoa'!$F$5:$F$44,0) -> 15 | G36: =RANK('2016 syoa'!G36,'2016 syoa'!$G$5:$G$44,0) -> 14 | H36: =RANK('2016 syoa'!H36,'2016 syoa'!$H$5:$H$44,0) -> 14 | I36: =RANK('2016 syoa'!I36,'2016 syoa'!$I$5:$I$44,0) -> 18 | J36: =RANK('2016 syoa'!J36,'2016 syoa'!$J$5:$J$44,0) -> 13 | K36: =RANK('2016 syoa'!K36,'2016 syoa'!$K$5:$K$44,0) -> 12 | L36: =RANK('2016 syoa'!L36,'2016 syoa'!$L$5:$L$44,0) -> 12 | M36: =RANK('2016 syoa'!M36,'2016 syoa'!$M$5:$M$44,0) -> 12 | N36: =RANK('2016 syoa'!N36,'2016 syoa'!$N$5:$N$44,0) -> 12 | O36: =RANK('2016 syoa'!O36,'2016 syoa'!$O$5:$O$44,0) -> 12 | P36: =RANK('2016 syoa'!P36,'2016 syoa'!$P$5:$P$44,0) -> 12 | Q36: =RANK('2016 syoa'!Q36,'2016 syoa'!$Q$5:$Q$44,0) -> 16 | R36: =RANK('2016 syoa'!R36,'2016 syoa'!$R$5:$R$44,0) -> 15 | S36: =RANK('2016 syoa'!S36,'2016 syoa'!$S$5:$S$44,0) -> 14 | T36: =RANK('2016 syoa'!T36,'2016 syoa'!$T$5:$T$44,0) -> 12 | U36: =RANK('2016 syoa'!U36,'2016 syoa'!$U$5:$U$44,0) -> 14 | V36: =RANK('2016 syoa'!V36,'2016 syoa'!$V$5:$V$44,0) -> 17 | W36: =RANK('2016 syoa'!W36,'2016 syoa'!$W$5:$W$44,0) -> 17
A37: Stockland Green | B37: Erdington | C37: E05001210 | D37: =RANK('2016 syoa'!D37,'2016 syoa'!$D$5:$D$44,0) -> 18 | E37: =RANK('2016 syoa'!E37,'2016 syoa'!$E$5:$E$44,0) -> 13 | F37: =RANK('2016 syoa'!F37,'2016 syoa'!$F$5:$F$44,0) -> 14 | G37: =RANK('2016 syoa'!G37,'2016 syoa'!$G$5:$G$44,0) -> 23 | H37: =RANK('2016 syoa'!H37,'2016 syoa'!$H$5:$H$44,0) -> 20 | I37: =RANK('2016 syoa'!I37,'2016 syoa'!$I$5:$I$44,0) -> 21 | J37: =RANK('2016 syoa'!J37,'2016 syoa'!$J$5:$J$44,0) -> 24 | K37: =RANK('2016 syoa'!K37,'2016 syoa'!$K$5:$K$44,0) -> 28 | L37: =RANK('2016 syoa'!L37,'2016 syoa'!$L$5:$L$44,0) -> 27 | M37: =RANK('2016 syoa'!M37,'2016 syoa'!$M$5:$M$44,0) -> 28 | N37: =RANK('2016 syoa'!N37,'2016 syoa'!$N$5:$N$44,0) -> 31 | O37: =RANK('2016 syoa'!O37,'2016 syoa'!$O$5:$O$44,0) -> 23 | P37: =RANK('2016 syoa'!P37,'2016 syoa'!$P$5:$P$44,0) -> 30 | Q37: =RANK('2016 syoa'!Q37,'2016 syoa'!$Q$5:$Q$44,0) -> 28 | R37: =RANK('2016 syoa'!R37,'2016 syoa'!$R$5:$R$44,0) -> 25 | S37: =RANK('2016 syoa'!S37,'2016 syoa'!$S$5:$S$44,0) -> 25 | T37: =RANK('2016 syoa'!T37,'2016 syoa'!$T$5:$T$44,0) -> 19 | U37: =RANK('2016 syoa'!U37,'2016 syoa'!$U$5:$U$44,0) -> 20 | V37: =RANK('2016 syoa'!V37,'2016 syoa'!$V$5:$V$44,0) -> 23 | W37: =RANK('2016 syoa'!W37,'2016 syoa'!$W$5:$W$44,0) -> 23
A38: Sutton Four Oaks | B38: Sutton Coldfield | C38: E05001211 | D38: =RANK('2016 syoa'!D38,'2016 syoa'!$D$5:$D$44,0) -> 35 | E38: =RANK('2016 syoa'!E38,'2016 syoa'!$E$5:$E$44,0) -> 38 | F38: =RANK('2016 syoa'!F38,'2016 syoa'!$F$5:$F$44,0) -> 37 | G38: =RANK('2016 syoa'!G38,'2016 syoa'!$G$5:$G$44,0) -> 37 | H38: =RANK('2016 syoa'!H38,'2016 syoa'!$H$5:$H$44,0) -> 36 | I38: =RANK('2016 syoa'!I38,'2016 syoa'!$I$5:$I$44,0) -> 38 | J38: =RANK('2016 syoa'!J38,'2016 syoa'!$J$5:$J$44,0) -> 36 | K38: =RANK('2016 syoa'!K38,'2016 syoa'!$K$5:$K$44,0) -> 30 | L38: =RANK('2016 syoa'!L38,'2016 syoa'!$L$5:$L$44,0) -> 31 | M38: =RANK('2016 syoa'!M38,'2016 syoa'!$M$5:$M$44,0) -> 24 | N38: =RANK('2016 syoa'!N38,'2016 syoa'!$N$5:$N$44,0) -> 23 | O38: =RANK('2016 syoa'!O38,'2016 syoa'!$O$5:$O$44,0) -> 33 | P38: =RANK('2016 syoa'!P38,'2016 syoa'!$P$5:$P$44,0) -> 29 | Q38: =RANK('2016 syoa'!Q38,'2016 syoa'!$Q$5:$Q$44,0) -> 23 | R38: =RANK('2016 syoa'!R38,'2016 syoa'!$R$5:$R$44,0) -> 22 | S38: =RANK('2016 syoa'!S38,'2016 syoa'!$S$5:$S$44,0) -> 22 | T38: =RANK('2016 syoa'!T38,'2016 syoa'!$T$5:$T$44,0) -> 26 | U38: =RANK('2016 syoa'!U38,'2016 syoa'!$U$5:$U$44,0) -> 31 | V38: =RANK('2016 syoa'!V38,'2016 syoa'!$V$5:$V$44,0) -> 24 | W38: =RANK('2016 syoa'!W38,'2016 syoa'!$W$5:$W$44,0) -> 33
A39: Sutton New Hall | B39: Sutton Coldfield | C39: E05001212 | D39: =RANK('2016 syoa'!D39,'2016 syoa'!$D$5:$D$44,0) -> 40 | E39: =RANK('2016 syoa'!E39,'2016 syoa'!$E$5:$E$44,0) -> 39 | F39: =RANK('2016 syoa'!F39,'2016 syoa'!$F$5:$F$44,0) -> 40 | G39: =RANK('2016 syoa'!G39,'2016 syoa'!$G$5:$G$44,0) -> 39 | H39: =RANK('2016 syoa'!H39,'2016 syoa'!$H$5:$H$44,0) -> 40 | I39: =RANK('2016 syoa'!I39,'2016 syoa'!$I$5:$I$44,0) -> 40 | J39: =RANK('2016 syoa'!J39,'2016 syoa'!$J$5:$J$44,0) -> 39 | K39: =RANK('2016 syoa'!K39,'2016 syoa'!$K$5:$K$44,0) -> 38 | L39: =RANK('2016 syoa'!L39,'2016 syoa'!$L$5:$L$44,0) -> 39 | M39: =RANK('2016 syoa'!M39,'2016 syoa'!$M$5:$M$44,0) -> 39 | N39: =RANK('2016 syoa'!N39,'2016 syoa'!$N$5:$N$44,0) -> 35 | O39: =RANK('2016 syoa'!O39,'2016 syoa'!$O$5:$O$44,0) -> 38 | P39: =RANK('2016 syoa'!P39,'2016 syoa'!$P$5:$P$44,0) -> 32 | Q39: =RANK('2016 syoa'!Q39,'2016 syoa'!$Q$5:$Q$44,0) -> 34 | R39: =RANK('2016 syoa'!R39,'2016 syoa'!$R$5:$R$44,0) -> 35 | S39: =RANK('2016 syoa'!S39,'2016 syoa'!$S$5:$S$44,0) -> 35 | T39: =RANK('2016 syoa'!T39,'2016 syoa'!$T$5:$T$44,0) -> 35 | U39: =RANK('2016 syoa'!U39,'2016 syoa'!$U$5:$U$44,0) -> 35 | V39: =RANK('2016 syoa'!V39,'2016 syoa'!$V$5:$V$44,0) -> 36 | W39: =RANK('2016 syoa'!W39,'2016 syoa'!$W$5:$W$44,0) -> 35
A40: Sutton Trinity | B40: Sutton Coldfield | C40: E05001213 | D40: =RANK('2016 syoa'!D40,'2016 syoa'!$D$5:$D$44,0) -> 31 | E40: =RANK('2016 syoa'!E40,'2016 syoa'!$E$5:$E$44,0) -> 34 | F40: =RANK('2016 syoa'!F40,'2016 syoa'!$F$5:$F$44,0) -> 33 | G40: =RANK('2016 syoa'!G40,'2016 syoa'!$G$5:$G$44,0) -> 35 | H40: =RANK('2016 syoa'!H40,'2016 syoa'!$H$5:$H$44,0) -> 25 | I40: =RANK('2016 syoa'!I40,'2016 syoa'!$I$5:$I$44,0) -> 31 | J40: =RANK('2016 syoa'!J40,'2016 syoa'!$J$5:$J$44,0) -> 34 | K40: =RANK('2016 syoa'!K40,'2016 syoa'!$K$5:$K$44,0) -> 37 | L40: =RANK('2016 syoa'!L40,'2016 syoa'!$L$5:$L$44,0) -> 36 | M40: =RANK('2016 syoa'!M40,'2016 syoa'!$M$5:$M$44,0) -> 32 | N40: =RANK('2016 syoa'!N40,'2016 syoa'!$N$5:$N$44,0) -> 32 | O40: =RANK('2016 syoa'!O40,'2016 syoa'!$O$5:$O$44,0) -> 26 | P40: =RANK('2016 syoa'!P40,'2016 syoa'!$P$5:$P$44,0) -> 24 | Q40: =RANK('2016 syoa'!Q40,'2016 syoa'!$Q$5:$Q$44,0) -> 27 | R40: =RANK('2016 syoa'!R40,'2016 syoa'!$R$5:$R$44,0) -> 28 | S40: =RANK('2016 syoa'!S40,'2016 syoa'!$S$5:$S$44,0) -> 19 | T40: =RANK('2016 syoa'!T40,'2016 syoa'!$T$5:$T$44,0) -> 32 | U40: =RANK('2016 syoa'!U40,'2016 syoa'!$U$5:$U$44,0) -> 26 | V40: =RANK('2016 syoa'!V40,'2016 syoa'!$V$5:$V$44,0) -> 33 | W40: =RANK('2016 syoa'!W40,'2016 syoa'!$W$5:$W$44,0) -> 30
A41: Sutton Vesey | B41: Sutton Coldfield | C41: E05001214 | D41: =RANK('2016 syoa'!D41,'2016 syoa'!$D$5:$D$44,0) -> 39 | E41: =RANK('2016 syoa'!E41,'2016 syoa'!$E$5:$E$44,0) -> 37 | F41: =RANK('2016 syoa'!F41,'2016 syoa'!$F$5:$F$44,0) -> 38 | G41: =RANK('2016 syoa'!G41,'2016 syoa'!$G$5:$G$44,0) -> 36 | H41: =RANK('2016 syoa'!H41,'2016 syoa'!$H$5:$H$44,0) -> 37 | I41: =RANK('2016 syoa'!I41,'2016 syoa'!$I$5:$I$44,0) -> 36 | J41: =RANK('2016 syoa'!J41,'2016 syoa'!$J$5:$J$44,0) -> 37 | K41: =RANK('2016 syoa'!K41,'2016 syoa'!$K$5:$K$44,0) -> 35 | L41: =RANK('2016 syoa'!L41,'2016 syoa'!$L$5:$L$44,0) -> 37 | M41: =RANK('2016 syoa'!M41,'2016 syoa'!$M$5:$M$44,0) -> 35 | N41: =RANK('2016 syoa'!N41,'2016 syoa'!$N$5:$N$44,0) -> 37 | O41: =RANK('2016 syoa'!O41,'2016 syoa'!$O$5:$O$44,0) -> 33 | P41: =RANK('2016 syoa'!P41,'2016 syoa'!$P$5:$P$44,0) -> 39 | Q41: =RANK('2016 syoa'!Q41,'2016 syoa'!$Q$5:$Q$44,0) -> 35 | R41: =RANK('2016 syoa'!R41,'2016 syoa'!$R$5:$R$44,0) -> 36 | S41: =RANK('2016 syoa'!S41,'2016 syoa'!$S$5:$S$44,0) -> 30 | T41: =RANK('2016 syoa'!T41,'2016 syoa'!$T$5:$T$44,0) -> 34 | U41: =RANK('2016 syoa'!U41,'2016 syoa'!$U$5:$U$44,0) -> 34 | V41: =RANK('2016 syoa'!V41,'2016 syoa'!$V$5:$V$44,0) -> 33 | W41: =RANK('2016 syoa'!W41,'2016 syoa'!$W$5:$W$44,0) -> 39
A42: Tyburn | B42: Erdington | C42: E05001215 | D42: =RANK('2016 syoa'!D42,'2016 syoa'!$D$5:$D$44,0) -> 30 | E42: =RANK('2016 syoa'!E42,'2016 syoa'!$E$5:$E$44,0) -> 29 | F42: =RANK('2016 syoa'!F42,'2016 syoa'!$F$5:$F$44,0) -> 30 | G42: =RANK('2016 syoa'!G42,'2016 syoa'!$G$5:$G$44,0) -> 29 | H42: =RANK('2016 syoa'!H42,'2016 syoa'!$H$5:$H$44,0) -> 26 | I42: =RANK('2016 syoa'!I42,'2016 syoa'!$I$5:$I$44,0) -> 16 | J42: =RANK('2016 syoa'!J42,'2016 syoa'!$J$5:$J$44,0) -> 23 | K42: =RANK('2016 syoa'!K42,'2016 syoa'!$K$5:$K$44,0) -> 19 | L42: =RANK('2016 syoa'!L42,'2016 syoa'!$L$5:$L$44,0) -> 23 | M42: =RANK('2016 syoa'!M42,'2016 syoa'!$M$5:$M$44,0) -> 20 | N42: =RANK('2016 syoa'!N42,'2016 syoa'!$N$5:$N$44,0) -> 18 | O42: =RANK('2016 syoa'!O42,'2016 syoa'!$O$5:$O$44,0) -> 19 | P42: =RANK('2016 syoa'!P42,'2016 syoa'!$P$5:$P$44,0) -> 20 | Q42: =RANK('2016 syoa'!Q42,'2016 syoa'!$Q$5:$Q$44,0) -> 19 | R42: =RANK('2016 syoa'!R42,'2016 syoa'!$R$5:$R$44,0) -> 16 | S42: =RANK('2016 syoa'!S42,'2016 syoa'!$S$5:$S$44,0) -> 17 | T42: =RANK('2016 syoa'!T42,'2016 syoa'!$T$5:$T$44,0) -> 27 | U42: =RANK('2016 syoa'!U42,'2016 syoa'!$U$5:$U$44,0) -> 16 | V42: =RANK('2016 syoa'!V42,'2016 syoa'!$V$5:$V$44,0) -> 19 | W42: =RANK('2016 syoa'!W42,'2016 syoa'!$W$5:$W$44,0) -> 22
A43: Washwood Heath | B43: Hodge Hill | C43: E05001216 | D43: =RANK('2016 syoa'!D43,'2016 syoa'!$D$5:$D$44,0) -> 4 | E43: =RANK('2016 syoa'!E43,'2016 syoa'!$E$5:$E$44,0) -> 1 | F43: =RANK('2016 syoa'!F43,'2016 syoa'!$F$5:$F$44,0) -> 5 | G43: =RANK('2016 syoa'!G43,'2016 syoa'!$G$5:$G$44,0) -> 1 | H43: =RANK('2016 syoa'!H43,'2016 syoa'!$H$5:$H$44,0) -> 2 | I43: =RANK('2016 syoa'!I43,'2016 syoa'!$I$5:$I$44,0) -> 3 | J43: =RANK('2016 syoa'!J43,'2016 syoa'!$J$5:$J$44,0) -> 3 | K43: =RANK('2016 syoa'!K43,'2016 syoa'!$K$5:$K$44,0) -> 2 | L43: =RANK('2016 syoa'!L43,'2016 syoa'!$L$5:$L$44,0) -> 2 | M43: =RANK('2016 syoa'!M43,'2016 syoa'!$M$5:$M$44,0) -> 1 | N43: =RANK('2016 syoa'!N43,'2016 syoa'!$N$5:$N$44,0) -> 2 | O43: =RANK('2016 syoa'!O43,'2016 syoa'!$O$5:$O$44,0) -> 1 | P43: =RANK('2016 syoa'!P43,'2016 syoa'!$P$5:$P$44,0) -> 2 | Q43: =RANK('2016 syoa'!Q43,'2016 syoa'!$Q$5:$Q$44,0) -> 1 | R43: =RANK('2016 syoa'!R43,'2016 syoa'!$R$5:$R$44,0) -> 2 | S43: =RANK('2016 syoa'!S43,'2016 syoa'!$S$5:$S$44,0) -> 1 | T43: =RANK('2016 syoa'!T43,'2016 syoa'!$T$5:$T$44,0) -> 2 | U43: =RANK('2016 syoa'!U43,'2016 syoa'!$U$5:$U$44,0) -> 1 | V43: =RANK('2016 syoa'!V43,'2016 syoa'!$V$5:$V$44,0) -> 2 | W43: =RANK('2016 syoa'!W43,'2016 syoa'!$W$5:$W$44,0) -> 3
A44: Weoley | B44: Northfield | C44: E05001217 | D44: =RANK('2016 syoa'!D44,'2016 syoa'!$D$5:$D$44,0) -> 24 | E44: =RANK('2016 syoa'!E44,'2016 syoa'!$E$5:$E$44,0) -> 24 | F44: =RANK('2016 syoa'!F44,'2016 syoa'!$F$5:$F$44,0) -> 16 | G44: =RANK('2016 syoa'!G44,'2016 syoa'!$G$5:$G$44,0) -> 15 | H44: =RANK('2016 syoa'!H44,'2016 syoa'!$H$5:$H$44,0) -> 16 | I44: =RANK('2016 syoa'!I44,'2016 syoa'!$I$5:$I$44,0) -> 15 | J44: =RANK('2016 syoa'!J44,'2016 syoa'!$J$5:$J$44,0) -> 14 | K44: =RANK('2016 syoa'!K44,'2016 syoa'!$K$5:$K$44,0) -> 13 | L44: =RANK('2016 syoa'!L44,'2016 syoa'!$L$5:$L$44,0) -> 13 | M44: =RANK('2016 syoa'!M44,'2016 syoa'!$M$5:$M$44,0) -> 21 | N44: =RANK('2016 syoa'!N44,'2016 syoa'!$N$5:$N$44,0) -> 15 | O44: =RANK('2016 syoa'!O44,'2016 syoa'!$O$5:$O$44,0) -> 17 | P44: =RANK('2016 syoa'!P44,'2016 syoa'!$P$5:$P$44,0) -> 19 | Q44: =RANK('2016 syoa'!Q44,'2016 syoa'!$Q$5:$Q$44,0) -> 17 | R44: =RANK('2016 syoa'!R44,'2016 syoa'!$R$5:$R$44,0) -> 18 | S44: =RANK('2016 syoa'!S44,'2016 syoa'!$S$5:$S$44,0) -> 23 | T44: =RANK('2016 syoa'!T44,'2016 syoa'!$T$5:$T$44,0) -> 22 | U44: =RANK('2016 syoa'!U44,'2016 syoa'!$U$5:$U$44,0) -> 27 | V44: =RANK('2016 syoa'!V44,'2016 syoa'!$V$5:$V$44,0) -> 16 | W44: =RANK('2016 syoa'!W44,'2016 syoa'!$W$5:$W$44,0) -> 16
A46: Office for National Statistics, Crown Copyright 2017
A48: Service Development Team
A49: Planning & Regeneration
A50: www.birmingham.gov.uk/census
A51: population.census@birmingham.gov.uk
A52: 0121 303 4208

Sheet 2011_15 change rank (hidden)
A1: 2015 Birmingham Ward Rankings: population change (number)
A3: Ward Name | B3: Constituency | C3: code | D3: All Ages | E3: 0-4 | F3: 5-9 | G3: 10-14 | H3: 15-19 | I3: 20-24 | J3: 25-29 | K3: 30-34 | L3: 35-39 | M3: 40-44 | N3: 45-49 | O3: 50-54 | P3: 55-59 | Q3: 60-64 | R3: 65-69 | S3: 70-74 | T3: 75-79 | U3: 80-84 | V3: 85+
A5: Acocks Green | B5: Yardley | C5: E05001178 | D5: =RANK('quinary change 2011_15 num'!D5,'quinary change 2011_15 num'!$D$5:$D$44,0) -> 18 | E5: =RANK('quinary change 2011_15 num'!E5,'quinary change 2011_15 num'!$E$5:$E$44,0) -> 28 | F5: =RANK('quinary change 2011_15 num'!F5,'quinary change 2011_15 num'!$F$5:$F$44,0) -> 5 | G5: =RANK('quinary change 2011_15 num'!G5,'quinary change 2011_15 num'!$G$5:$G$44,0) -> 29 | H5: =RANK('quinary change 2011_15 num'!H5,'quinary change 2011_15 num'!$H$5:$H$44,0) -> 17 | I5: =RANK('quinary change 2011_15 num'!I5,'quinary change 2011_15 num'!$I$5:$I$44,0) -> 22 | J5: =RANK('quinary change 2011_15 num'!J5,'quinary change 2011_15 num'!$J$5:$J$44,0) -> 21 | K5: =RANK('quinary change 2011_15 num'!K5,'quinary change 2011_15 num'!$K$5:$K$44,0) -> 25 | L5: =RANK('quinary change 2011_15 num'!L5,'quinary change 2011_15 num'!$L$5:$L$44,0) -> 18 | M5: =RANK('quinary change 2011_15 num'!M5,'quinary change 2011_15 num'!$M$5:$M$44,0) -> 24 | N5: =RANK('quinary change 2011_15 num'!N5,'quinary change 2011_15 num'!$N$5:$N$44,0) -> 14 | O5: =RANK('quinary change 2011_15 num'!O5,'quinary change 2011_15 num'!$O$5:$O$44,0) -> 12 | P5: =RANK('quinary change 2011_15 num'!P5,'quinary change 2011_15 num'!$P$5:$P$44,0) -> 4 | Q5: =RANK('quinary change 2011_15 num'!Q5,'quinary change 2011_15 num'!$Q$5:$Q$44,0) -> 18 | R5: =RANK('quinary change 2011_15 num'!R5,'quinary change 2011_15 num'!$R$5:$R$44,0) -> 15 | S5: =RANK('quinary change 2011_15 num'!S5,'quinary change 2011_15 num'!$S$5:$S$44,0) -> 26 | T5: =RANK('quinary change 2011_15 num'!T5,'quinary change 2011_15 num'!$T$5:$T$44,0) -> 17 | U5: =RANK('quinary change 2011_15 num'!U5,'quinary change 2011_15 num'!$U$5:$U$44,0) -> 40 | V5: =RANK('quinary change 2011_15 num'!V5,'quinary change 2011_15 num'!$V$5:$V$44,0) -> 24
A6: Aston | B6: Ladywood | C6: E05001179 | D6: =RANK('quinary change 2011_15 num'!D6,'quinary change 2011_15 num'!$D$5:$D$44,0) -> 10 | E6: =RANK('quinary change 2011_15 num'!E6,'quinary change 2011_15 num'!$E$5:$E$44,0) -> 39 | F6: =RANK('quinary change 2011_15 num'!F6,'quinary change 2011_15 num'!$F$5:$F$44,0) -> 30 | G6: =RANK('quinary change 2011_15 num'!G6,'quinary change 2011_15 num'!$G$5:$G$44,0) -> 11 | H6: =RANK('quinary change 2011_15 num'!H6,'quinary change 2011_15 num'!$H$5:$H$44,0) -> 8 | I6: =RANK('quinary change 2011_15 num'!I6,'quinary change 2011_15 num'!$I$5:$I$44,0) -> 38 | J6: =RANK('quinary change 2011_15 num'!J6,'quinary change 2011_15 num'!$J$5:$J$44,0) -> 29 | K6: =RANK('quinary change 2011_15 num'!K6,'quinary change 2011_15 num'!$K$5:$K$44,0) -> 12 | L6: =RANK('quinary change 2011_15 num'!L6,'quinary change 2011_15 num'!$L$5:$L$44,0) -> 9 | M6: =RANK('quinary change 2011_15 num'!M6,'quinary change 2011_15 num'!$M$5:$M$44,0) -> 4 | N6: =RANK('quinary change 2011_15 num'!N6,'quinary change 2011_15 num'!$N$5:$N$44,0) -> 7 | O6: =RANK('quinary change 2011_15 num'!O6,'quinary change 2011_15 num'!$O$5:$O$44,0) -> 7 | P6: =RANK('quinary change 2011_15 num'!P6,'quinary change 2011_15 num'!$P$5:$P$44,0) -> 18 | Q6: =RANK('quinary change 2011_15 num'!Q6,'quinary change 2011_15 num'!$Q$5:$Q$44,0) -> 2 | R6: =RANK('quinary change 2011_15 num'!R6,'quinary change 2011_15 num'!$R$5:$R$44,0) -> 14 | S6: =RANK('quinary change 2011_15 num'!S6,'quinary change 2011_15 num'!$S$5:$S$44,0) -> 38 | T6: =RANK('quinary change 2011_15 num'!T6,'quinary change 2011_15 num'!$T$5:$T$44,0) -> 15 | U6: =RANK('quinary change 2011_15 num'!U6,'quinary change 2011_15 num'!$U$5:$U$44,0) -> 18 | V6: =RANK('quinary change 2011_15 num'!V6,'quinary change 2011_15 num'!$V$5:$V$44,0) -> 3
A7: Bartley Green | B7: Edgbaston | C7: E05001180 | D7: =RANK('quinary change 2011_15 num'!D7,'quinary change 2011_15 num'!$D$5:$D$44,0) -> 21 | E7: =RANK('quinary change 2011_15 num'!E7,'quinary change 2011_15 num'!$E$5:$E$44,0) -> 9 | F7: =RANK('quinary change 2011_15 num'!F7,'quinary change 2011_15 num'!$F$5:$F$44,0) -> 9 | G7: =RANK('quinary change 2011_15 num'!G7,'quinary change 2011_15 num'!$G$5:$G$44,0) -> 25 | H7: =RANK('quinary change 2011_15 num'!H7,'quinary change 2011_15 num'!$H$5:$H$44,0) -> 27 | I7: =RANK('quinary change 2011_15 num'!I7,'quinary change 2011_15 num'!$I$5:$I$44,0) -> 18 | J7: =RANK('quinary change 2011_15 num'!J7,'quinary change 2011_15 num'!$J$5:$J$44,0) -> 18 | K7: =RANK('quinary change 2011_15 num'!K7,'quinary change 2011_15 num'!$K$5:$K$44,0) -> 34 | L7: =RANK('quinary change 2011_15 num'!L7,'quinary change 2011_15 num'!$L$5:$L$44,0) -> 23 | M7: =RANK('quinary change 2011_15 num'!M7,'quinary change 2011_15 num'!$M$5:$M$44,0) -> 15 | N7: =RANK('quinary change 2011_15 num'!N7,'quinary change 2011_15 num'!$N$5:$N$44,0) -> 24 | O7: =RANK('quinary change 2011_15 num'!O7,'quinary change 2011_15 num'!$O$5:$O$44,0) -> 20 | P7: =RANK('quinary change 2011_15 num'!P7,'quinary change 2011_15 num'!$P$5:$P$44,0) -> 36 | Q7: =RANK('quinary change 2011_15 num'!Q7,'quinary change 2011_15 num'!$Q$5:$Q$44,0) -> 38 | R7: =RANK('quinary change 2011_15 num'!R7,'quinary change 2011_15 num'!$R$5:$R$44,0) -> 5 | S7: =RANK('quinary change 2011_15 num'!S7,'quinary change 2011_15 num'!$S$5:$S$44,0) -> 3 | T7: =RANK('quinary change 2011_15 num'!T7,'quinary change 2011_15 num'!$T$5:$T$44,0) -> 18 | U7: =RANK('quinary change 2011_15 num'!U7,'quinary change 2011_15 num'!$U$5:$U$44,0) -> 38 | V7: =RANK('quinary change 2011_15 num'!V7,'quinary change 2011_15 num'!$V$5:$V$44,0) -> 21
A8: Billesley | B8: Selly Oak | C8: E05001181 | D8: =RANK('quinary change 2011_15 num'!D8,'quinary change 2011_15 num'!$D$5:$D$44,0) -> 31 | E8: =RANK('quinary change 2011_15 num'!E8,'quinary change 2011_15 num'!$E$5:$E$44,0) -> 4 | F8: =RANK('quinary change 2011_15 num'!F8,'quinary change 2011_15 num'!$F$5:$F$44,0) -> 18 | G8: =RANK('quinary change 2011_15 num'!G8,'quinary change 2011_15 num'!$G$5:$G$44,0) -> 40 | H8: =RANK('quinary change 2011_15 num'!H8,'quinary change 2011_15 num'!$H$5:$H$44,0) -> 32 | I8: =RANK('quinary change 2011_15 num'!I8,'quinary change 2011_15 num'!$I$5:$I$44,0) -> 40 | J8: =RANK('quinary change 2011_15 num'!J8,'quinary change 2011_15 num'!$J$5:$J$44,0) -> 10 | K8: =RANK('quinary change 2011_15 num'!K8,'quinary change 2011_15 num'!$K$5:$K$44,0) -> 8 | L8: =RANK('quinary change 2011_15 num'!L8,'quinary change 2011_15 num'!$L$5:$L$44,0) -> 21 | M8: =RANK('quinary change 2011_15 num'!M8,'quinary change 2011_15 num'!$M$5:$M$44,0) -> 39 | N8: =RANK('quinary change 2011_15 num'!N8,'quinary change 2011_15 num'!$N$5:$N$44,0) -> 35 | O8: =RANK('quinary change 2011_15 num'!O8,'quinary change 2011_15 num'!$O$5:$O$44,0) -> 31 | P8: =RANK('quinary change 2011_15 num'!P8,'quinary change 2011_15 num'!$P$5:$P$44,0) -> 22 | Q8: =RANK('quinary change 2011_15 num'!Q8,'quinary change 2011_15 num'!$Q$5:$Q$44,0) -> 16 | R8: =RANK('quinary change 2011_15 num'!R8,'quinary change 2011_15 num'!$R$5:$R$44,0) -> 11 | S8: =RANK('quinary change 2011_15 num'!S8,'quinary change 2011_15 num'!$S$5:$S$44,0) -> 28 | T8: =RANK('quinary change 2011_15 num'!T8,'quinary change 2011_15 num'!$T$5:$T$44,0) -> 11 | U8: =RANK('quinary change 2011_15 num'!U8,'quinary change 2011_15 num'!$U$5:$U$44,0) -> 24 | V8: =RANK('quinary change 2011_15 num'!V8,'quinary change 2011_15 num'!$V$5:$V$44,0) -> 38
A9: Bordesley Green | B9: Hodge Hill | C9: E05001182 | D9: =RANK('quinary change 2011_15 num'!D9,'quinary change 2011_15 num'!$D$5:$D$44,0) -> 9 | E9: =RANK('quinary change 2011_15 num'!E9,'quinary change 2011_15 num'!$E$5:$E$44,0) -> 38 | F9: =RANK('quinary change 2011_15 num'!F9,'quinary change 2011_15 num'!$F$5:$F$44,0) -> 28 | G9: =RANK('quinary change 2011_15 num'!G9,'quinary change 2011_15 num'!$G$5:$G$44,0) -> 7 | H9: =RANK('quinary change 2011_15 num'!H9,'quinary change 2011_15 num'!$H$5:$H$44,0) -> 3 | I9: =RANK('quinary change 2011_15 num'!I9,'quinary change 2011_15 num'!$I$5:$I$44,0) -> 8 | J9: =RANK('quinary change 2011_15 num'!J9,'quinary change 2011_15 num'!$J$5:$J$44,0) -> 37 | K9: =RANK('quinary change 2011_15 num'!K9,'quinary change 2011_15 num'!$K$5:$K$44,0) -> 23 | L9: =RANK('quinary change 2011_15 num'!L9,'quinary change 2011_15 num'!$L$5:$L$44,0) -> 16 | M9: =RANK('quinary change 2011_15 num'!M9,'quinary change 2011_15 num'!$M$5:$M$44,0) -> 10 | N9: =RANK('quinary change 2011_15 num'!N9,'quinary change 2011_15 num'!$N$5:$N$44,0) -> 1 | O9: =RANK('quinary change 2011_15 num'!O9,'quinary change 2011_15 num'!$O$5:$O$44,0) -> 36 | P9: =RANK('quinary change 2011_15 num'!P9,'quinary change 2011_15 num'!$P$5:$P$44,0) -> 25 | Q9: =RANK('quinary change 2011_15 num'!Q9,'quinary change 2011_15 num'!$Q$5:$Q$44,0) -> 4 | R9: =RANK('quinary change 2011_15 num'!R9,'quinary change 2011_15 num'!$R$5:$R$44,0) -> 24 | S9: =RANK('quinary change 2011_15 num'!S9,'quinary change 2011_15 num'!$S$5:$S$44,0) -> 40 | T9: =RANK('quinary change 2011_15 num'!T9,'quinary change 2011_15 num'!$T$5:$T$44,0) -> 39 | U9: =RANK('quinary change 2011_15 num'!U9,'quinary change 2011_15 num'!$U$5:$U$44,0) -> 6 | V9: =RANK('quinary change 2011_15 num'!V9,'quinary change 2011_15 num'!$V$5:$V$44,0) -> 9
A10: Bournville | B10: Selly Oak | C10: E05001183 | D10: =RANK('quinary change 2011_15 num'!D10,'quinary change 2011_15 num'!$D$5:$D$44,0) -> 37 | E10: =RANK('quinary change 2011_15 num'!E10,'quinary change 2011_15 num'!$E$5:$E$44,0) -> 31 | F10: =RANK('quinary change 2011_15 num'!F10,'quinary change 2011_15 num'!$F$5:$F$44,0) -> 16 | G10: =RANK('quinary change 2011_15 num'!G10,'quinary change 2011_15 num'!$G$5:$G$44,0) -> 31 | H10: =RANK('quinary change 2011_15 num'!H10,'quinary change 2011_15 num'!$H$5:$H$44,0) -> 34 | I10: =RANK('quinary change 2011_15 num'!I10,'quinary change 2011_15 num'!$I$5:$I$44,0) -> 28 | J10: =RANK('quinary change 2011_15 num'!J10,'quinary change 2011_15 num'!$J$5:$J$44,0) -> 36 | K10: =RANK('quinary change 2011_15 num'!K10,'quinary change 2011_15 num'!$K$5:$K$44,0) -> 31 | L10: =RANK('quinary change 2011_15 num'!L10,'quinary change 2011_15 num'!$L$5:$L$44,0) -> 29 | M10: =RANK('quinary change 2011_15 num'!M10,'quinary change 2011_15 num'!$M$5:$M$44,0) -> 35 | N10: =RANK('quinary change 2011_15 num'!N10,'quinary change 2011_15 num'!$N$5:$N$44,0) -> 33 | O10: =RANK('quinary change 2011_15 num'!O10,'quinary change 2011_15 num'!$O$5:$O$44,0) -> 16 | P10: =RANK('quinary change 2011_15 num'!P10,'quinary change 2011_15 num'!$P$5:$P$44,0) -> 28 | Q10: =RANK('quinary change 2011_15 num'!Q10,'quinary change 2011_15 num'!$Q$5:$Q$44,0) -> 28 | R10: =RANK('quinary change 2011_15 num'!R10,'quinary change 2011_15 num'!$R$5:$R$44,0) -> 9 | S10: =RANK('quinary change 2011_15 num'!S10,'quinary change 2011_15 num'!$S$5:$S$44,0) -> 13 | T10: =RANK('quinary change 2011_15 num'!T10,'quinary change 2011_15 num'!$T$5:$T$44,0) -> 5 | U10: =RANK('quinary change 2011_15 num'!U10,'quinary change 2011_15 num'!$U$5:$U$44,0) -> 32 | V10: =RANK('quinary change 2011_15 num'!V10,'quinary change 2011_15 num'!$V$5:$V$44,0) -> 28
A11: Brandwood | B11: Selly Oak | C11: E05001184 | D11: =RANK('quinary change 2011_15 num'!D11,'quinary change 2011_15 num'!$D$5:$D$44,0) -> 34 | E11: =RANK('quinary change 2011_15 num'!E11,'quinary change 2011_15 num'!$E$5:$E$44,0) -> 24 | F11: =RANK('quinary change 2011_15 num'!F11,'quinary change 2011_15 num'!$F$5:$F$44,0) -> 23 | G11: =RANK('quinary change 2011_15 num'!G11,'quinary change 2011_15 num'!$G$5:$G$44,0) -> 32 | H11: =RANK('quinary change 2011_15 num'!H11,'quinary change 2011_15 num'!$H$5:$H$44,0) -> 28 | I11: =RANK('quinary change 2011_15 num'!I11,'quinary change 2011_15 num'!$I$5:$I$44,0) -> 24 | J11: =RANK('quinary change 2011_15 num'!J11,'quinary change 2011_15 num'!$J$5:$J$44,0) -> 19 | K11: =RANK('quinary change 2011_15 num'!K11,'quinary change 2011_15 num'!$K$5:$K$44,0) -> 38 | L11: =RANK('quinary change 2011_15 num'!L11,'quinary change 2011_15 num'!$L$5:$L$44,0) -> 30 | M11: =RANK('quinary change 2011_15 num'!M11,'quinary change 2011_15 num'!$M$5:$M$44,0) -> 36 | N11: =RANK('quinary change 2011_15 num'!N11,'quinary change 2011_15 num'!$N$5:$N$44,0) -> 22 | O11: =RANK('quinary change 2011_15 num'!O11,'quinary change 2011_15 num'!$O$5:$O$44,0) -> 19 | P11: =RANK('quinary change 2011_15 num'!P11,'quinary change 2011_15 num'!$P$5:$P$44,0) -> 24 | Q11: =RANK('quinary change 2011_15 num'!Q11,'quinary change 2011_15 num'!$Q$5:$Q$44,0) -> 26 | R11: =RANK('quinary change 2011_15 num'!R11,'quinary change 2011_15 num'!$R$5:$R$44,0) -> 23 | S11: =RANK('quinary change 2011_15 num'!S11,'quinary change 2011_15 num'!$S$5:$S$44,0) -> 18 | T11: =RANK('quinary change 2011_15 num'!T11,'quinary change 2011_15 num'!$T$5:$T$44,0) -> 3 | U11: =RANK('quinary change 2011_15 num'!U11,'quinary change 2011_15 num'!$U$5:$U$44,0) -> 37 | V11: =RANK('quinary change 2011_15 num'!V11,'quinary change 2011_15 num'!$V$5:$V$44,0) -> 20
A12: Edgbaston | B12: Edgbaston | C12: E05001185 | D12: =RANK('quinary change 2011_15 num'!D12,'quinary change 2011_15 num'!$D$5:$D$44,0) -> 3 | E12: =RANK('quinary change 2011_15 num'!E12,'quinary change 2011_15 num'!$E$5:$E$44,0) -> 8 | F12: =RANK('quinary change 2011_15 num'!F12,'quinary change 2011_15 num'!$F$5:$F$44,0) -> 3 | G12: =RANK('quinary change 2011_15 num'!G12,'quinary change 2011_15 num'!$G$5:$G$44,0) -> 17 | H12: =RANK('quinary change 2011_15 num'!H12,'quinary change 2011_15 num'!$H$5:$H$44,0) -> 2 | I12: =RANK('quinary change 2011_15 num'!I12,'quinary change 2011_15 num'!$I$5:$I$44,0) -> 4 | J12: =RANK('quinary change 2011_15 num'!J12,'quinary change 2011_15 num'!$J$5:$J$44,0) -> 3 | K12: =RANK('quinary change 2011_15 num'!K12,'quinary change 2011_15 num'!$K$5:$K$44,0) -> 10 | L12: =RANK('quinary change 2011_15 num'!L12,'quinary change 2011_15 num'!$L$5:$L$44,0) -> 10 | M12: =RANK('quinary change 2011_15 num'!M12,'quinary change 2011_15 num'!$M$5:$M$44,0) -> 8 | N12: =RANK('quinary change 2011_15 num'!N12,'quinary change 2011_15 num'!$N$5:$N$44,0) -> 11 | O12: =RANK('quinary change 2011_15 num'!O12,'quinary change 2011_15 num'!$O$5:$O$44,0) -> 17 | P12: =RANK('quinary change 2011_15 num'!P12,'quinary change 2011_15 num'!$P$5:$P$44,0) -> 32 | Q12: =RANK('quinary change 2011_15 num'!Q12,'quinary change 2011_15 num'!$Q$5:$Q$44,0) -> 25 | R12: =RANK('quinary change 2011_15 num'!R12,'quinary change 2011_15 num'!$R$5:$R$44,0) -> 27 | S12: =RANK('quinary change 2011_15 num'!S12,'quinary change 2011_15 num'!$S$5:$S$44,0) -> 22 | T12: =RANK('quinary change 2011_15 num'!T12,'quinary change 2011_15 num'!$T$5:$T$44,0) -> 2 | U12: =RANK('quinary change 2011_15 num'!U12,'quinary change 2011_15 num'!$U$5:$U$44,0) -> 28 | V12: =RANK('quinary change 2011_15 num'!V12,'quinary change 2011_15 num'!$V$5:$V$44,0) -> 17
A13: Erdington | B13: Erdington | C13: E05001186 | D13: =RANK('quinary change 2011_15 num'!D13,'quinary change 2011_15 num'!$D$5:$D$44,0) -> 16 | E13: =RANK('quinary change 2011_15 num'!E13,'quinary change 2011_15 num'!$E$5:$E$44,0) -> 5 | F13: =RANK('quinary change 2011_15 num'!F13,'quinary change 2011_15 num'!$F$5:$F$44,0) -> 2 | G13: =RANK('quinary change 2011_15 num'!G13,'quinary change 2011_15 num'!$G$5:$G$44,0) -> 19 | H13: =RANK('quinary change 2011_15 num'!H13,'quinary change 2011_15 num'!$H$5:$H$44,0) -> 30 | I13: =RANK('quinary change 2011_15 num'!I13,'quinary change 2011_15 num'!$I$5:$I$44,0) -> 23 | J13: =RANK('quinary change 2011_15 num'!J13,'quinary change 2011_15 num'!$J$5:$J$44,0) -> 14 | K13: =RANK('quinary change 2011_15 num'!K13,'quinary change 2011_15 num'!$K$5:$K$44,0) -> 5 | L13: =RANK('quinary change 2011_15 num'!L13,'quinary change 2011_15 num'!$L$5:$L$44,0) -> 15 | M13: =RANK('quinary change 2011_15 num'!M13,'quinary change 2011_15 num'!$M$5:$M$44,0) -> 23 | N13: =RANK('quinary change 2011_15 num'!N13,'quinary change 2011_15 num'!$N$5:$N$44,0) -> 34 | O13: =RANK('quinary change 2011_15 num'!O13,'quinary change 2011_15 num'!$O$5:$O$44,0) -> 28 | P13: =RANK('quinary change 2011_15 num'!P13,'quinary change 2011_15 num'!$P$5:$P$44,0) -> 5 | Q13: =RANK('quinary change 2011_15 num'!Q13,'quinary change 2011_15 num'!$Q$5:$Q$44,0) -> 23 | R13: =RANK('quinary change 2011_15 num'!R13,'quinary change 2011_15 num'!$R$5:$R$44,0) -> 22 | S13: =RANK('quinary change 2011_15 num'!S13,'quinary change 2011_15 num'!$S$5:$S$44,0) -> 11 | T13: =RANK('quinary change 2011_15 num'!T13,'quinary change 2011_15 num'!$T$5:$T$44,0) -> 31 | U13: =RANK('quinary change 2011_15 num'!U13,'quinary change 2011_15 num'!$U$5:$U$44,0) -> 5 | V13: =RANK('quinary change 2011_15 num'!V13,'quinary change 2011_15 num'!$V$5:$V$44,0) -> 36
A14: Hall Green | B14: Hall Green | C14: E05001187 | D14: =RANK('quinary change 2011_15 num'!D14,'quinary change 2011_15 num'!$D$5:$D$44,0) -> 24 | E14: =RANK('quinary change 2011_15 num'!E14,'quinary change 2011_15 num'!$E$5:$E$44,0) -> 25 | F14: =RANK('quinary change 2011_15 num'!F14,'quinary change 2011_15 num'!$F$5:$F$44,0) -> 21 | G14: =RANK('quinary change 2011_15 num'!G14,'quinary change 2011_15 num'!$G$5:$G$44,0) -> 20 | H14: =RANK('quinary change 2011_15 num'!H14,'quinary change 2011_15 num'!$H$5:$H$44,0) -> 13 | I14: =RANK('quinary change 2011_15 num'!I14,'quinary change 2011_15 num'!$I$5:$I$44,0) -> 25 | J14: =RANK('quinary change 2011_15 num'!J14,'quinary change 2011_15 num'!$J$5:$J$44,0) -> 26 | K14: =RANK('quinary change 2011_15 num'!K14,'quinary change 2011_15 num'!$K$5:$K$44,0) -> 28 | L14: =RANK('quinary change 2011_15 num'!L14,'quinary change 2011_15 num'!$L$5:$L$44,0) -> 25 | M14: =RANK('quinary change 2011_15 num'!M14,'quinary change 2011_15 num'!$M$5:$M$44,0) -> 17 | N14: =RANK('quinary change 2011_15 num'!N14,'quinary change 2011_15 num'!$N$5:$N$44,0) -> 20 | O14: =RANK('quinary change 2011_15 num'!O14,'quinary change 2011_15 num'!$O$5:$O$44,0) -> 39 | P14: =RANK('quinary change 2011_15 num'!P14,'quinary change 2011_15 num'!$P$5:$P$44,0) -> 27 | Q14: =RANK('quinary change 2011_15 num'!Q14,'quinary change 2011_15 num'!$Q$5:$Q$44,0) -> 19 | R14: =RANK('quinary change 2011_15 num'!R14,'quinary change 2011_15 num'!$R$5:$R$44,0) -> 25 | S14: =RANK('quinary change 2011_15 num'!S14,'quinary change 2011_15 num'!$S$5:$S$44,0) -> 9 | T14: =RANK('quinary change 2011_15 num'!T14,'quinary change 2011_15 num'!$T$5:$T$44,0) -> 34 | U14: =RANK('quinary change 2011_15 num'!U14,'quinary change 2011_15 num'!$U$5:$U$44,0) -> 20 | V14: =RANK('quinary change 2011_15 num'!V14,'quinary change 2011_15 num'!$V$5:$V$44,0) -> 5
A15: Handsworth Wood | B15: Perry Barr | C15: E05001188 | D15: =RANK('quinary change 2011_15 num'!D15,'quinary change 2011_15 num'!$D$5:$D$44,0) -> 22 | E15: =RANK('quinary change 2011_15 num'!E15,'quinary change 2011_15 num'!$E$5:$E$44,0) -> 18 | F15: =RANK('quinary change 2011_15 num'!F15,'quinary change 2011_15 num'!$F$5:$F$44,0) -> 31 | G15: =RANK('quinary change 2011_15 num'!G15,'quinary change 2011_15 num'!$G$5:$G$44,0) -> 15 | H15: =RANK('quinary change 2011_15 num'!H15,'quinary change 2011_15 num'!$H$5:$H$44,0) -> 35 | I15: =RANK('quinary change 2011_15 num'!I15,'quinary change 2011_15 num'!$I$5:$I$44,0) -> 30 | J15: =RANK('quinary change 2011_15 num'!J15,'quinary change 2011_15 num'!$J$5:$J$44,0) -> 39 | K15: =RANK('quinary change 2011_15 num'!K15,'quinary change 2011_15 num'!$K$5:$K$44,0) -> 12 | L15: =RANK('quinary change 2011_15 num'!L15,'quinary change 2011_15 num'!$L$5:$L$44,0) -> 13 | M15: =RANK('quinary change 2011_15 num'!M15,'quinary change 2011_15 num'!$M$5:$M$44,0) -> 14 | N15: =RANK('quinary change 2011_15 num'!N15,'quinary change 2011_15 num'!$N$5:$N$44,0) -> 30 | O15: =RANK('quinary change 2011_15 num'!O15,'quinary change 2011_15 num'!$O$5:$O$44,0) -> 13 | P15: =RANK('quinary change 2011_15 num'!P15,'quinary change 2011_15 num'!$P$5:$P$44,0) -> 22 | Q15: =RANK('quinary change 2011_15 num'!Q15,'quinary change 2011_15 num'!$Q$5:$Q$44,0) -> 6 | R15: =RANK('quinary change 2011_15 num'!R15,'quinary change 2011_15 num'!$R$5:$R$44,0) -> 4 | S15: =RANK('quinary change 2011_15 num'!S15,'quinary change 2011_15 num'!$S$5:$S$44,0) -> 37 | T15: =RANK('quinary change 2011_15 num'!T15,'quinary change 2011_15 num'!$T$5:$T$44,0) -> 30 | U15: =RANK('quinary change 2011_15 num'!U15,'quinary change 2011_15 num'!$U$5:$U$44,0) -> 12 | V15: =RANK('quinary change 2011_15 num'!V15,'quinary change 2011_15 num'!$V$5:$V$44,0) -> 24
A16: Harborne | B16: Edgbaston | C16: E05001189 | D16: =RANK('quinary change 2011_15 num'!D16,'quinary change 2011_15 num'!$D$5:$D$44,0) -> 7 | E16: =RANK('quinary change 2011_15 num'!E16,'quinary change 2011_15 num'!$E$5:$E$44,0) -> 2 | F16: =RANK('quinary change 2011_15 num'!F16,'quinary change 2011_15 num'!$F$5:$F$44,0) -> 14 | G16: =RANK('quinary change 2011_15 num'!G16,'quinary change 2011_15 num'!$G$5:$G$44,0) -> 12 | H16: =RANK('quinary change 2011_15 num'!H16,'quinary change 2011_15 num'!$H$5:$H$44,0) -> 15 | I16: =RANK('quinary change 2011_15 num'!I16,'quinary change 2011_15 num'!$I$5:$I$44,0) -> 6 | J16: =RANK('quinary change 2011_15 num'!J16,'quinary change 2011_15 num'!$J$5:$J$44,0) -> 27 | K16: =RANK('quinary change 2011_15 num'!K16,'quinary change 2011_15 num'!$K$5:$K$44,0) -> 36 | L16: =RANK('quinary change 2011_15 num'!L16,'quinary change 2011_15 num'!$L$5:$L$44,0) -> 7 | M16: =RANK('quinary change 2011_15 num'!M16,'quinary change 2011_15 num'!$M$5:$M$44,0) -> 7 | N16: =RANK('quinary change 2011_15 num'!N16,'quinary change 2011_15 num'!$N$5:$N$44,0) -> 12 | O16: =RANK('quinary change 2011_15 num'!O16,'quinary change 2011_15 num'!$O$5:$O$44,0) -> 32 | P16: =RANK('quinary change 2011_15 num'!P16,'quinary change 2011_15 num'!$P$5:$P$44,0) -> 34 | Q16: =RANK('quinary change 2011_15 num'!Q16,'quinary change 2011_15 num'!$Q$5:$Q$44,0) -> 24 | R16: =RANK('quinary change 2011_15 num'!R16,'quinary change 2011_15 num'!$R$5:$R$44,0) -> 6 | S16: =RANK('quinary change 2011_15 num'!S16,'quinary change 2011_15 num'!$S$5:$S$44,0) -> 17 | T16: =RANK('quinary change 2011_15 num'!T16,'quinary change 2011_15 num'!$T$5:$T$44,0) -> 1 | U16: =RANK('quinary change 2011_15 num'!U16,'quinary change 2011_15 num'!$U$5:$U$44,0) -> 26 | V16: =RANK('quinary change 2011_15 num'!V16,'quinary change 2011_15 num'!$V$5:$V$44,0) -> 26
A17: Hodge Hill | B17: Hodge Hill | C17: E05001190 | D17: =RANK('quinary change 2011_15 num'!D17,'quinary change 2011_15 num'!$D$5:$D$44,0) -> 13 | E17: =RANK('quinary change 2011_15 num'!E17,'quinary change 2011_15 num'!$E$5:$E$44,0) -> 25 | F17: =RANK('quinary change 2011_15 num'!F17,'quinary change 2011_15 num'!$F$5:$F$44,0) -> 17 | G17: =RANK('quinary change 2011_15 num'!G17,'quinary change 2011_15 num'!$G$5:$G$44,0) -> 6 | H17: =RANK('quinary change 2011_15 num'!H17,'quinary change 2011_15 num'!$H$5:$H$44,0) -> 5 | I17: =RANK('quinary change 2011_15 num'!I17,'quinary change 2011_15 num'!$I$5:$I$44,0) -> 7 | J17: =RANK('quinary change 2011_15 num'!J17,'quinary change 2011_15 num'!$J$5:$J$44,0) -> 16 | K17: =RANK('quinary change 2011_15 num'!K17,'quinary change 2011_15 num'!$K$5:$K$44,0) -> 14 | L17: =RANK('quinary change 2011_15 num'!L17,'quinary change 2011_15 num'!$L$5:$L$44,0) -> 6 | M17: =RANK('quinary change 2011_15 num'!M17,'quinary change 2011_15 num'!$M$5:$M$44,0) -> 20 | N17: =RANK('quinary change 2011_15 num'!N17,'quinary change 2011_15 num'!$N$5:$N$44,0) -> 8 | O17: =RANK('quinary change 2011_15 num'!O17,'quinary change 2011_15 num'!$O$5:$O$44,0) -> 32 | P17: =RANK('quinary change 2011_15 num'!P17,'quinary change 2011_15 num'!$P$5:$P$44,0) -> 29 | Q17: =RANK('quinary change 2011_15 num'!Q17,'quinary change 2011_15 num'!$Q$5:$Q$44,0) -> 30 | R17: =RANK('quinary change 2011_15 num'!R17,'quinary change 2011_15 num'!$R$5:$R$44,0) -> 29 | S17: =RANK('quinary change 2011_15 num'!S17,'quinary change 2011_15 num'!$S$5:$S$44,0) -> 34 | T17: =RANK('quinary change 2011_15 num'!T17,'quinary change 2011_15 num'!$T$5:$T$44,0) -> 4 | U17: =RANK('quinary change 2011_15 num'!U17,'quinary change 2011_15 num'!$U$5:$U$44,0) -> 36 | V17: =RANK('quinary change 2011_15 num'!V17,'quinary change 2011_15 num'!$V$5:$V$44,0) -> 32
A18: Kings Norton | B18: Northfield | C18: E05001191 | D18: =RANK('quinary change 2011_15 num'!D18,'quinary change 2011_15 num'!$D$5:$D$44,0) -> 35 | E18: =RANK('quinary change 2011_15 num'!E18,'quinary change 2011_15 num'!$E$5:$E$44,0) -> 36 | F18: =RANK('quinary change 2011_15 num'!F18,'quinary change 2011_15 num'!$F$5:$F$44,0) -> 10 | G18: =RANK('quinary change 2011_15 num'!G18,'quinary change 2011_15 num'!$G$5:$G$44,0) -> 30 | H18: =RANK('quinary change 2011_15 num'!H18,'quinary change 2011_15 num'!$H$5:$H$44,0) -> 31 | I18: =RANK('quinary change 2011_15 num'!I18,'quinary change 2011_15 num'!$I$5:$I$44,0) -> 34 | J18: =RANK('quinary change 2011_15 num'!J18,'quinary change 2011_15 num'!$J$5:$J$44,0) -> 13 | K18: =RANK('quinary change 2011_15 num'!K18,'quinary change 2011_15 num'!$K$5:$K$44,0) -> 35 | L18: =RANK('quinary change 2011_15 num'!L18,'quinary change 2011_15 num'!$L$5:$L$44,0) -> 31 | M18: =RANK('quinary change 2011_15 num'!M18,'quinary change 2011_15 num'!$M$5:$M$44,0) -> 30 | N18: =RANK('quinary change 2011_15 num'!N18,'quinary change 2011_15 num'!$N$5:$N$44,0) -> 19 | O18: =RANK('quinary change 2011_15 num'!O18,'quinary change 2011_15 num'!$O$5:$O$44,0) -> 26 | P18: =RANK('quinary change 2011_15 num'!P18,'quinary change 2011_15 num'!$P$5:$P$44,0) -> 26 | Q18: =RANK('quinary change 2011_15 num'!Q18,'quinary change 2011_15 num'!$Q$5:$Q$44,0) -> 40 | R18: =RANK('quinary change 2011_15 num'!R18,'quinary change 2011_15 num'!$R$5:$R$44,0) -> 10 | S18: =RANK('quinary change 2011_15 num'!S18,'quinary change 2011_15 num'!$S$5:$S$44,0) -> 6 | T18: =RANK('quinary change 2011_15 num'!T18,'quinary change 2011_15 num'!$T$5:$T$44,0) -> 6 | U18: =RANK('quinary change 2011_15 num'!U18,'quinary change 2011_15 num'!$U$5:$U$44,0) -> 11 | V18: =RANK('quinary change 2011_15 num'!V18,'quinary change 2011_15 num'!$V$5:$V$44,0) -> 35
A19: Kingstanding | B19: Erdington | C19: E05001192 | D19: =RANK('quinary change 2011_15 num'!D19,'quinary change 2011_15 num'!$D$5:$D$44,0) -> 30 | E19: =RANK('quinary change 2011_15 num'!E19,'quinary change 2011_15 num'!$E$5:$E$44,0) -> 19 | F19: =RANK('quinary change 2011_15 num'!F19,'quinary change 2011_15 num'!$F$5:$F$44,0) -> 29 | G19: =RANK('quinary change 2011_15 num'!G19,'quinary change 2011_15 num'!$G$5:$G$44,0) -> 33 | H19: =RANK('quinary change 2011_15 num'!H19,'quinary change 2011_15 num'!$H$5:$H$44,0) -> 22 | I19: =RANK('quinary change 2011_15 num'!I19,'quinary change 2011_15 num'!$I$5:$I$44,0) -> 32 | J19: =RANK('quinary change 2011_15 num'!J19,'quinary change 2011_15 num'!$J$5:$J$44,0) -> 9 | K19: =RANK('quinary change 2011_15 num'!K19,'quinary change 2011_15 num'!$K$5:$K$44,0) -> 21 | L19: =RANK('quinary change 2011_15 num'!L19,'quinary change 2011_15 num'!$L$5:$L$44,0) -> 24 | M19: =RANK('quinary change 2011_15 num'!M19,'quinary change 2011_15 num'!$M$5:$M$44,0) -> 22 | N19: =RANK('quinary change 2011_15 num'!N19,'quinary change 2011_15 num'!$N$5:$N$44,0) -> 36 | O19: =RANK('quinary change 2011_15 num'!O19,'quinary change 2011_15 num'!$O$5:$O$44,0) -> 14 | P19: =RANK('quinary change 2011_15 num'!P19,'quinary change 2011_15 num'!$P$5:$P$44,0) -> 6 | Q19: =RANK('quinary change 2011_15 num'!Q19,'quinary change 2011_15 num'!$Q$5:$Q$44,0) -> 14 | R19: =RANK('quinary change 2011_15 num'!R19,'quinary change 2011_15 num'!$R$5:$R$44,0) -> 35 | S19: =RANK('quinary change 2011_15 num'!S19,'quinary change 2011_15 num'!$S$5:$S$44,0) -> 14 | T19: =RANK('quinary change 2011_15 num'!T19,'quinary change 2011_15 num'!$T$5:$T$44,0) -> 25 | U19: =RANK('quinary change 2011_15 num'!U19,'quinary change 2011_15 num'!$U$5:$U$44,0) -> 39 | V19: =RANK('quinary change 2011_15 num'!V19,'quinary change 2011_15 num'!$V$5:$V$44,0) -> 31
A20: Ladywood | B20: Ladywood | C20: E05001193 | D20: =RANK('quinary change 2011_15 num'!D20,'quinary change 2011_15 num'!$D$5:$D$44,0) -> 1 | E20: =RANK('quinary change 2011_15 num'!E20,'quinary change 2011_15 num'!$E$5:$E$44,0) -> 1 | F20: =RANK('quinary change 2011_15 num'!F20,'quinary change 2011_15 num'!$F$5:$F$44,0) -> 4 | G20: =RANK('quinary change 2011_15 num'!G20,'quinary change 2011_15 num'!$G$5:$G$44,0) -> 4 | H20: =RANK('quinary change 2011_15 num'!H20,'quinary change 2011_15 num'!$H$5:$H$44,0) -> 14 | I20: =RANK('quinary change 2011_15 num'!I20,'quinary change 2011_15 num'!$I$5:$I$44,0) -> 3 | J20: =RANK('quinary change 2011_15 num'!J20,'quinary change 2011_15 num'!$J$5:$J$44,0) -> 1 | K20: =RANK('quinary change 2011_15 num'!K20,'quinary change 2011_15 num'!$K$5:$K$44,0) -> 1 | L20: =RANK('quinary change 2011_15 num'!L20,'quinary change 2011_15 num'!$L$5:$L$44,0) -> 1 | M20: =RANK('quinary change 2011_15 num'!M20,'quinary change 2011_15 num'!$M$5:$M$44,0) -> 1 | N20: =RANK('quinary change 2011_15 num'!N20,'quinary change 2011_15 num'!$N$5:$N$44,0) -> 9 | O20: =RANK('quinary change 2011_15 num'!O20,'quinary change 2011_15 num'!$O$5:$O$44,0) -> 5 | P20: =RANK('quinary change 2011_15 num'!P20,'quinary change 2011_15 num'!$P$5:$P$44,0) -> 1 | Q20: =RANK('quinary change 2011_15 num'!Q20,'quinary change 2011_15 num'!$Q$5:$Q$44,0) -> 10 | R20: =RANK('quinary change 2011_15 num'!R20,'quinary change 2011_15 num'!$R$5:$R$44,0) -> 26 | S20: =RANK('quinary change 2011_15 num'!S20,'quinary change 2011_15 num'!$S$5:$S$44,0) -> 20 | T20: =RANK('quinary change 2011_15 num'!T20,'quinary change 2011_15 num'!$T$5:$T$44,0) -> 13 | U20: =RANK('quinary change 2011_15 num'!U20,'quinary change 2011_15 num'!$U$5:$U$44,0) -> 23 | V20: =RANK('quinary change 2011_15 num'!V20,'quinary change 2011_15 num'!$V$5:$V$44,0) -> 27
A21: Longbridge | B21: Northfield | C21: E05001194 | D21: =RANK('quinary change 2011_15 num'!D21,'quinary change 2011_15 num'!$D$5:$D$44,0) -> 23 | E21: =RANK('quinary change 2011_15 num'!E21,'quinary change 2011_15 num'!$E$5:$E$44,0) -> 13 | F21: =RANK('quinary change 2011_15 num'!F21,'quinary change 2011_15 num'!$F$5:$F$44,0) -> 12 | G21: =RANK('quinary change 2011_15 num'!G21,'quinary change 2011_15 num'!$G$5:$G$44,0) -> 27 | H21: =RANK('quinary change 2011_15 num'!H21,'quinary change 2011_15 num'!$H$5:$H$44,0) -> 24 | I21: =RANK('quinary change 2011_15 num'!I21,'quinary change 2011_15 num'!$I$5:$I$44,0) -> 13 | J21: =RANK('quinary change 2011_15 num'!J21,'quinary change 2011_15 num'!$J$5:$J$44,0) -> 23 | K21: =RANK('quinary change 2011_15 num'!K21,'quinary change 2011_15 num'!$K$5:$K$44,0) -> 37 | L21: =RANK('quinary change 2011_15 num'!L21,'quinary change 2011_15 num'!$L$5:$L$44,0) -> 28 | M21: =RANK('quinary change 2011_15 num'!M21,'quinary change 2011_15 num'!$M$5:$M$44,0) -> 25 | N21: =RANK('quinary change 2011_15 num'!N21,'quinary change 2011_15 num'!$N$5:$N$44,0) -> 23 | O21: =RANK('quinary change 2011_15 num'!O21,'quinary change 2011_15 num'!$O$5:$O$44,0) -> 27 | P21: =RANK('quinary change 2011_15 num'!P21,'quinary change 2011_15 num'!$P$5:$P$44,0) -> 33 | Q21: =RANK('quinary change 2011_15 num'!Q21,'quinary change 2011_15 num'!$Q$5:$Q$44,0) -> 15 | R21: =RANK('quinary change 2011_15 num'!R21,'quinary change 2011_15 num'!$R$5:$R$44,0) -> 3 | S21: =RANK('quinary change 2011_15 num'!S21,'quinary change 2011_15 num'!$S$5:$S$44,0) -> 7 | T21: =RANK('quinary change 2011_15 num'!T21,'quinary change 2011_15 num'!$T$5:$T$44,0) -> 7 | U21: =RANK('quinary change 2011_15 num'!U21,'quinary change 2011_15 num'!$U$5:$U$44,0) -> 34 | V21: =RANK('quinary change 2011_15 num'!V21,'quinary change 2011_15 num'!$V$5:$V$44,0) -> 18
A22: Lozells and East Handsworth | B22: Perry Barr | C22: E05001195 | D22: =RANK('quinary change 2011_15 num'!D22,'quinary change 2011_15 num'!$D$5:$D$44,0) -> 11 | E22: =RANK('quinary change 2011_15 num'!E22,'quinary change 2011_15 num'!$E$5:$E$44,0) -> 31 | F22: =RANK('quinary change 2011_15 num'!F22,'quinary change 2011_15 num'!$F$5:$F$44,0) -> 34 | G22: =RANK('quinary change 2011_15 num'!G22,'quinary change 2011_15 num'!$G$5:$G$44,0) -> 5 | H22: =RANK('quinary change 2011_15 num'!H22,'quinary change 2011_15 num'!$H$5:$H$44,0) -> 12 | I22: =RANK('quinary change 2011_15 num'!I22,'quinary change 2011_15 num'!$I$5:$I$44,0) -> 35 | J22: =RANK('quinary change 2011_15 num'!J22,'quinary change 2011_15 num'!$J$5:$J$44,0) -> 35 | K22: =RANK('quinary change 2011_15 num'!K22,'quinary change 2011_15 num'!$K$5:$K$44,0) -> 26 | L22: =RANK('quinary change 2011_15 num'!L22,'quinary change 2011_15 num'!$L$5:$L$44,0) -> 4 | M22: =RANK('quinary change 2011_15 num'!M22,'quinary change 2011_15 num'!$M$5:$M$44,0) -> 2 | N22: =RANK('quinary change 2011_15 num'!N22,'quinary change 2011_15 num'!$N$5:$N$44,0) -> 6 | O22: =RANK('quinary change 2011_15 num'!O22,'quinary change 2011_15 num'!$O$5:$O$44,0) -> 6 | P22: =RANK('quinary change 2011_15 num'!P22,'quinary change 2011_15 num'!$P$5:$P$44,0) -> 14 | Q22: =RANK('quinary change 2011_15 num'!Q22,'quinary change 2011_15 num'!$Q$5:$Q$44,0) -> 1 | R22: =RANK('quinary change 2011_15 num'!R22,'quinary change 2011_15 num'!$R$5:$R$44,0) -> 34 | S22: =RANK('quinary change 2011_15 num'!S22,'quinary change 2011_15 num'!$S$5:$S$44,0) -> 33 | T22: =RANK('quinary change 2011_15 num'!T22,'quinary change 2011_15 num'!$T$5:$T$44,0) -> 28 | U22: =RANK('quinary change 2011_15 num'!U22,'quinary change 2011_15 num'!$U$5:$U$44,0) -> 15 | V22: =RANK('quinary change 2011_15 num'!V22,'quinary change 2011_15 num'!$V$5:$V$44,0) -> 8
A23: Moseley and Kings Heath | B23: Hall Green | C23: E05001196 | D23: =RANK('quinary change 2011_15 num'!D23,'quinary change 2011_15 num'!$D$5:$D$44,0) -> 36 | E23: =RANK('quinary change 2011_15 num'!E23,'quinary change 2011_15 num'!$E$5:$E$44,0) -> 37 | F23: =RANK('quinary change 2011_15 num'!F23,'quinary change 2011_15 num'!$F$5:$F$44,0) -> 33 | G23: =RANK('quinary change 2011_15 num'!G23,'quinary change 2011_15 num'!$G$5:$G$44,0) -> 35 | H23: =RANK('quinary change 2011_15 num'!H23,'quinary change 2011_15 num'!$H$5:$H$44,0) -> 25 | I23: =RANK('quinary change 2011_15 num'!I23,'quinary change 2011_15 num'!$I$5:$I$44,0) -> 29 | J23: =RANK('quinary change 2011_15 num'!J23,'quinary change 2011_15 num'!$J$5:$J$44,0) -> 40 | K23: =RANK('quinary change 2011_15 num'!K23,'quinary change 2011_15 num'!$K$5:$K$44,0) -> 39 | L23: =RANK('quinary change 2011_15 num'!L23,'quinary change 2011_15 num'!$L$5:$L$44,0) -> 33 | M23: =RANK('quinary change 2011_15 num'!M23,'quinary change 2011_15 num'!$M$5:$M$44,0) -> 16 | N23: =RANK('quinary change 2011_15 num'!N23,'quinary change 2011_15 num'!$N$5:$N$44,0) -> 13 | O23: =RANK('quinary change 2011_15 num'!O23,'quinary change 2011_15 num'!$O$5:$O$44,0) -> 29 | P23: =RANK('quinary change 2011_15 num'!P23,'quinary change 2011_15 num'!$P$5:$P$44,0) -> 35 | Q23: =RANK('quinary change 2011_15 num'!Q23,'quinary change 2011_15 num'!$Q$5:$Q$44,0) -> 12 | R23: =RANK('quinary change 2011_15 num'!R23,'quinary change 2011_15 num'!$R$5:$R$44,0) -> 2 | S23: =RANK('quinary change 2011_15 num'!S23,'quinary change 2011_15 num'!$S$5:$S$44,0) -> 19 | T23: =RANK('quinary change 2011_15 num'!T23,'quinary change 2011_15 num'!$T$5:$T$44,0) -> 33 | U23: =RANK('quinary change 2011_15 num'!U23,'quinary change 2011_15 num'!$U$5:$U$44,0) -> 2 | V23: =RANK('quinary change 2011_15 num'!V23,'quinary change 2011_15 num'!$V$5:$V$44,0) -> 28
A24: Nechells | B24: Ladywood | C24: E05001197 | D24: =RANK('quinary change 2011_15 num'!D24,'quinary change 2011_15 num'!$D$5:$D$44,0) -> 2 | E24: =RANK('quinary change 2011_15 num'!E24,'quinary change 2011_15 num'!$E$5:$E$44,0) -> 17 | F24: =RANK('quinary change 2011_15 num'!F24,'quinary change 2011_15 num'!$F$5:$F$44,0) -> 15 | G24: =RANK('quinary change 2011_15 num'!G24,'quinary change 2011_15 num'!$G$5:$G$44,0) -> 8 | H24: =RANK('quinary change 2011_15 num'!H24,'quinary change 2011_15 num'!$H$5:$H$44,0) -> 1 | I24: =RANK('quinary change 2011_15 num'!I24,'quinary change 2011_15 num'!$I$5:$I$44,0) -> 2 | J24: =RANK('quinary change 2011_15 num'!J24,'quinary change 2011_15 num'!$J$5:$J$44,0) -> 2 | K24: =RANK('quinary change 2011_15 num'!K24,'quinary change 2011_15 num'!$K$5:$K$44,0) -> 3 | L24: =RANK('quinary change 2011_15 num'!L24,'quinary change 2011_15 num'!$L$5:$L$44,0) -> 3 | M24: =RANK('quinary change 2011_15 num'!M24,'quinary change 2011_15 num'!$M$5:$M$44,0) -> 12 | N24: =RANK('quinary change 2011_15 num'!N24,'quinary change 2011_15 num'!$N$5:$N$44,0) -> 5 | O24: =RANK('quinary change 2011_15 num'!O24,'quinary change 2011_15 num'!$O$5:$O$44,0) -> 11 | P24: =RANK('quinary change 2011_15 num'!P24,'quinary change 2011_15 num'!$P$5:$P$44,0) -> 3 | Q24: =RANK('quinary change 2011_15 num'!Q24,'quinary change 2011_15 num'!$Q$5:$Q$44,0) -> 9 | R24: =RANK('quinary change 2011_15 num'!R24,'quinary change 2011_15 num'!$R$5:$R$44,0) -> 33 | S24: =RANK('quinary change 2011_15 num'!S24,'quinary change 2011_15 num'!$S$5:$S$44,0) -> 36 | T24: =RANK('quinary change 2011_15 num'!T24,'quinary change 2011_15 num'!$T$5:$T$44,0) -> 21 | U24: =RANK('quinary change 2011_15 num'!U24,'quinary change 2011_15 num'!$U$5:$U$44,0) -> 6 | V24: =RANK('quinary change 2011_15 num'!V24,'quinary change 2011_15 num'!$V$5:$V$44,0) -> 16
A25: Northfield | B25: Northfield | C25: E05001198 | D25: =RANK('quinary change 2011_15 num'!D25,'quinary change 2011_15 num'!$D$5:$D$44,0) -> 27 | E25: =RANK('quinary change 2011_15 num'!E25,'quinary change 2011_15 num'!$E$5:$E$44,0) -> 6 | F25: =RANK('quinary change 2011_15 num'!F25,'quinary change 2011_15 num'!$F$5:$F$44,0) -> 35 | G25: =RANK('quinary change 2011_15 num'!G25,'quinary change 2011_15 num'!$G$5:$G$44,0) -> 26 | H25: =RANK('quinary change 2011_15 num'!H25,'quinary change 2011_15 num'!$H$5:$H$44,0) -> 40 | I25: =RANK('quinary change 2011_15 num'!I25,'quinary change 2011_15 num'!$I$5:$I$44,0) -> 27 | J25: =RANK('quinary change 2011_15 num'!J25,'quinary change 2011_15 num'!$J$5:$J$44,0) -> 5 | K25: =RANK('quinary change 2011_15 num'!K25,'quinary change 2011_15 num'!$K$5:$K$44,0) -> 20 | L25: =RANK('quinary change 2011_15 num'!L25,'quinary change 2011_15 num'!$L$5:$L$44,0) -> 37 | M25: =RANK('quinary change 2011_15 num'!M25,'quinary change 2011_15 num'!$M$5:$M$44,0) -> 21 | N25: =RANK('quinary change 2011_15 num'!N25,'quinary change 2011_15 num'!$N$5:$N$44,0) -> 38 | O25: =RANK('quinary change 2011_15 num'!O25,'quinary change 2011_15 num'!$O$5:$O$44,0) -> 8 | P25: =RANK('quinary change 2011_15 num'!P25,'quinary change 2011_15 num'!$P$5:$P$44,0) -> 16 | Q25: =RANK('quinary change 2011_15 num'!Q25,'quinary change 2011_15 num'!$Q$5:$Q$44,0) -> 31 | R25: =RANK('quinary change 2011_15 num'!R25,'quinary change 2011_15 num'!$R$5:$R$44,0) -> 8 | S25: =RANK('quinary change 2011_15 num'!S25,'quinary change 2011_15 num'!$S$5:$S$44,0) -> 8 | T25: =RANK('quinary change 2011_15 num'!T25,'quinary change 2011_15 num'!$T$5:$T$44,0) -> 10 | U25: =RANK('quinary change 2011_15 num'!U25,'quinary change 2011_15 num'!$U$5:$U$44,0) -> 3 | V25: =RANK('quinary change 2011_15 num'!V25,'quinary change 2011_15 num'!$V$5:$V$44,0) -> 37
A26: Oscott | B26: Perry Barr | C26: E05001199 | D26: =RANK('quinary change 2011_15 num'!D26,'quinary change 2011_15 num'!$D$5:$D$44,0) -> 29 | E26: =RANK('quinary change 2011_15 num'!E26,'quinary change 2011_15 num'!$E$5:$E$44,0) -> 10 | F26: =RANK('quinary change 2011_15 num'!F26,'quinary change 2011_15 num'!$F$5:$F$44,0) -> 19 | G26: =RANK('quinary change 2011_15 num'!G26,'quinary change 2011_15 num'!$G$5:$G$44,0) -> 37 | H26: =RANK('quinary change 2011_15 num'!H26,'quinary change 2011_15 num'!$H$5:$H$44,0) -> 29 | I26: =RANK('quinary change 2011_15 num'!I26,'quinary change 2011_15 num'!$I$5:$I$44,0) -> 15 | J26: =RANK('quinary change 2011_15 num'!J26,'quinary change 2011_15 num'!$J$5:$J$44,0) -> 8 | K26: =RANK('quinary change 2011_15 num'!K26,'quinary change 2011_15 num'!$K$5:$K$44,0) -> 10 | L26: =RANK('quinary change 2011_15 num'!L26,'quinary change 2011_15 num'!$L$5:$L$44,0) -> 34 | M26: =RANK('quinary change 2011_15 num'!M26,'quinary change 2011_15 num'!$M$5:$M$44,0) -> 40 | N26: =RANK('quinary change 2011_15 num'!N26,'quinary change 2011_15 num'!$N$5:$N$44,0) -> 31 | O26: =RANK('quinary change 2011_15 num'!O26,'quinary change 2011_15 num'!$O$5:$O$44,0) -> 10 | P26: =RANK('quinary change 2011_15 num'!P26,'quinary change 2011_15 num'!$P$5:$P$44,0) -> 8 | Q26: =RANK('quinary change 2011_15 num'!Q26,'quinary change 2011_15 num'!$Q$5:$Q$44,0) -> 26 | R26: =RANK('quinary change 2011_15 num'!R26,'quinary change 2011_15 num'!$R$5:$R$44,0) -> 37 | S26: =RANK('quinary change 2011_15 num'!S26,'quinary change 2011_15 num'!$S$5:$S$44,0) -> 10 | T26: =RANK('quinary change 2011_15 num'!T26,'quinary change 2011_15 num'!$T$5:$T$44,0) -> 24 | U26: =RANK('quinary change 2011_15 num'!U26,'quinary change 2011_15 num'!$U$5:$U$44,0) -> 14 | V26: =RANK('quinary change 2011_15 num'!V26,'quinary change 2011_15 num'!$V$5:$V$44,0) -> 23
A27: Perry Barr | B27: Perry Barr | C27: E05001200 | D27: =RANK('quinary change 2011_15 num'!D27,'quinary change 2011_15 num'!$D$5:$D$44,0) -> 26 | E27: =RANK('quinary change 2011_15 num'!E27,'quinary change 2011_15 num'!$E$5:$E$44,0) -> 22 | F27: =RANK('quinary change 2011_15 num'!F27,'quinary change 2011_15 num'!$F$5:$F$44,0) -> 22 | G27: =RANK('quinary change 2011_15 num'!G27,'quinary change 2011_15 num'!$G$5:$G$44,0) -> 13 | H27: =RANK('quinary change 2011_15 num'!H27,'quinary change 2011_15 num'!$H$5:$H$44,0) -> 19 | I27: =RANK('quinary change 2011_15 num'!I27,'quinary change 2011_15 num'!$I$5:$I$44,0) -> 26 | J27: =RANK('quinary change 2011_15 num'!J27,'quinary change 2011_15 num'!$J$5:$J$44,0) -> 17 | K27: =RANK('quinary change 2011_15 num'!K27,'quinary change 2011_15 num'!$K$5:$K$44,0) -> 18 | L27: =RANK('quinary change 2011_15 num'!L27,'quinary change 2011_15 num'!$L$5:$L$44,0) -> 19 | M27: =RANK('quinary change 2011_15 num'!M27,'quinary change 2011_15 num'!$M$5:$M$44,0) -> 28 | N27: =RANK('quinary change 2011_15 num'!N27,'quinary change 2011_15 num'!$N$5:$N$44,0) -> 26 | O27: =RANK('quinary change 2011_15 num'!O27,'quinary change 2011_15 num'!$O$5:$O$44,0) -> 21 | P27: =RANK('quinary change 2011_15 num'!P27,'quinary change 2011_15 num'!$P$5:$P$44,0) -> 11 | Q27: =RANK('quinary change 2011_15 num'!Q27,'quinary change 2011_15 num'!$Q$5:$Q$44,0) -> 33 | R27: =RANK('quinary change 2011_15 num'!R27,'quinary change 2011_15 num'!$R$5:$R$44,0) -> 40 | S27: =RANK('quinary change 2011_15 num'!S27,'quinary change 2011_15 num'!$S$5:$S$44,0) -> 23 | T27: =RANK('quinary change 2011_15 num'!T27,'quinary change 2011_15 num'!$T$5:$T$44,0) -> 12 | U27: =RANK('quinary change 2011_15 num'!U27,'quinary change 2011_15 num'!$U$5:$U$44,0) -> 9 | V27: =RANK('quinary change 2011_15 num'!V27,'quinary change 2011_15 num'!$V$5:$V$44,0) -> 22
A28: Quinton | B28: Edgbaston | C28: E05001201 | D28: =RANK('quinary change 2011_15 num'!D28,'quinary change 2011_15 num'!$D$5:$D$44,0) -> 32 | E28: =RANK('quinary change 2011_15 num'!E28,'quinary change 2011_15 num'!$E$5:$E$44,0) -> 23 | F28: =RANK('quinary change 2011_15 num'!F28,'quinary change 2011_15 num'!$F$5:$F$44,0) -> 23 | G28: =RANK('quinary change 2011_15 num'!G28,'quinary change 2011_15 num'!$G$5:$G$44,0) -> 22 | H28: =RANK('quinary change 2011_15 num'!H28,'quinary change 2011_15 num'!$H$5:$H$44,0) -> 22 | I28: =RANK('quinary change 2011_15 num'!I28,'quinary change 2011_15 num'!$I$5:$I$44,0) -> 31 | J28: =RANK('quinary change 2011_15 num'!J28,'quinary change 2011_15 num'!$J$5:$J$44,0) -> 31 | K28: =RANK('quinary change 2011_15 num'!K28,'quinary change 2011_15 num'!$K$5:$K$44,0) -> 24 | L28: =RANK('quinary change 2011_15 num'!L28,'quinary change 2011_15 num'!$L$5:$L$44,0) -> 38 | M28: =RANK('quinary change 2011_15 num'!M28,'quinary change 2011_15 num'!$M$5:$M$44,0) -> 18 | N28: =RANK('quinary change 2011_15 num'!N28,'quinary change 2011_15 num'!$N$5:$N$44,0) -> 18 | O28: =RANK('quinary change 2011_15 num'!O28,'quinary change 2011_15 num'!$O$5:$O$44,0) -> 23 | P28: =RANK('quinary change 2011_15 num'!P28,'quinary change 2011_15 num'!$P$5:$P$44,0) -> 30 | Q28: =RANK('quinary change 2011_15 num'!Q28,'quinary change 2011_15 num'!$Q$5:$Q$44,0) -> 35 | R28: =RANK('quinary change 2011_15 num'!R28,'quinary change 2011_15 num'!$R$5:$R$44,0) -> 30 | S28: =RANK('quinary change 2011_15 num'!S28,'quinary change 2011_15 num'!$S$5:$S$44,0) -> 24 | T28: =RANK('quinary change 2011_15 num'!T28,'quinary change 2011_15 num'!$T$5:$T$44,0) -> 22 | U28: =RANK('quinary change 2011_15 num'!U28,'quinary change 2011_15 num'!$U$5:$U$44,0) -> 4 | V28: =RANK('quinary change 2011_15 num'!V28,'quinary change 2011_15 num'!$V$5:$V$44,0) -> 33
A29: Selly Oak | B29: Selly Oak | C29: E05001202 | D29: =RANK('quinary change 2011_15 num'!D29,'quinary change 2011_15 num'!$D$5:$D$44,0) -> 4 | E29: =RANK('quinary change 2011_15 num'!E29,'quinary change 2011_15 num'!$E$5:$E$44,0) -> 20 | F29: =RANK('quinary change 2011_15 num'!F29,'quinary change 2011_15 num'!$F$5:$F$44,0) -> 20 | G29: =RANK('quinary change 2011_15 num'!G29,'quinary change 2011_15 num'!$G$5:$G$44,0) -> 21 | H29: =RANK('quinary change 2011_15 num'!H29,'quinary change 2011_15 num'!$H$5:$H$44,0) -> 7 | I29: =RANK('quinary change 2011_15 num'!I29,'quinary change 2011_15 num'!$I$5:$I$44,0) -> 1 | J29: =RANK('quinary change 2011_15 num'!J29,'quinary change 2011_15 num'!$J$5:$J$44,0) -> 34 | K29: =RANK('quinary change 2011_15 num'!K29,'quinary change 2011_15 num'!$K$5:$K$44,0) -> 40 | L29: =RANK('quinary change 2011_15 num'!L29,'quinary change 2011_15 num'!$L$5:$L$44,0) -> 14 | M29: =RANK('quinary change 2011_15 num'!M29,'quinary change 2011_15 num'!$M$5:$M$44,0) -> 11 | N29: =RANK('quinary change 2011_15 num'!N29,'quinary change 2011_15 num'!$N$5:$N$44,0) -> 15 | O29: =RANK('quinary change 2011_15 num'!O29,'quinary change 2011_15 num'!$O$5:$O$44,0) -> 40 | P29: =RANK('quinary change 2011_15 num'!P29,'quinary change 2011_15 num'!$P$5:$P$44,0) -> 38 | Q29: =RANK('quinary change 2011_15 num'!Q29,'quinary change 2011_15 num'!$Q$5:$Q$44,0) -> 16 | R29: =RANK('quinary change 2011_15 num'!R29,'quinary change 2011_15 num'!$R$5:$R$44,0) -> 30 | S29: =RANK('quinary change 2011_15 num'!S29,'quinary change 2011_15 num'!$S$5:$S$44,0) -> 29 | T29: =RANK('quinary change 2011_15 num'!T29,'quinary change 2011_15 num'!$T$5:$T$44,0) -> 15 | U29: =RANK('quinary change 2011_15 num'!U29,'quinary change 2011_15 num'!$U$5:$U$44,0) -> 22 | V29: =RANK('quinary change 2011_15 num'!V29,'quinary change 2011_15 num'!$V$5:$V$44,0) -> 34
A30: Shard End | B30: Hodge Hill | C30: E05001203 | D30: =RANK('quinary change 2011_15 num'!D30,'quinary change 2011_15 num'!$D$5:$D$44,0) -> 19 | E30: =RANK('quinary change 2011_15 num'!E30,'quinary change 2011_15 num'!$E$5:$E$44,0) -> 11 | F30: =RANK('quinary change 2011_15 num'!F30,'quinary change 2011_15 num'!$F$5:$F$44,0) -> 1 | G30: =RANK('quinary change 2011_15 num'!G30,'quinary change 2011_15 num'!$G$5:$G$44,0) -> 23 | H30: =RANK('quinary change 2011_15 num'!H30,'quinary change 2011_15 num'!$H$5:$H$44,0) -> 38 | I30: =RANK('quinary change 2011_15 num'!I30,'quinary change 2011_15 num'!$I$5:$I$44,0) -> 17 | J30: =RANK('quinary change 2011_15 num'!J30,'quinary change 2011_15 num'!$J$5:$J$44,0) -> 6 | K30: =RANK('quinary change 2011_15 num'!K30,'quinary change 2011_15 num'!$K$5:$K$44,0) -> 4 | L30: =RANK('quinary change 2011_15 num'!L30,'quinary change 2011_15 num'!$L$5:$L$44,0) -> 26 | M30: =RANK('quinary change 2011_15 num'!M30,'quinary change 2011_15 num'!$M$5:$M$44,0) -> 32 | N30: =RANK('quinary change 2011_15 num'!N30,'quinary change 2011_15 num'!$N$5:$N$44,0) -> 16 | O30: =RANK('quinary change 2011_15 num'!O30,'quinary change 2011_15 num'!$O$5:$O$44,0) -> 18 | P30: =RANK('quinary change 2011_15 num'!P30,'quinary change 2011_15 num'!$P$5:$P$44,0) -> 11 | Q30: =RANK('quinary change 2011_15 num'!Q30,'quinary change 2011_15 num'!$Q$5:$Q$44,0) -> 37 | R30: =RANK('quinary change 2011_15 num'!R30,'quinary change 2011_15 num'!$R$5:$R$44,0) -> 7 | S30: =RANK('quinary change 2011_15 num'!S30,'quinary change 2011_15 num'!$S$5:$S$44,0) -> 5 | T30: =RANK('quinary change 2011_15 num'!T30,'quinary change 2011_15 num'!$T$5:$T$44,0) -> 38 | U30: =RANK('quinary change 2011_15 num'!U30,'quinary change 2011_15 num'!$U$5:$U$44,0) -> 31 | V30: =RANK('quinary change 2011_15 num'!V30,'quinary change 2011_15 num'!$V$5:$V$44,0) -> 40
A31: Sheldon | B31: Yardley | C31: E05001204 | D31: =RANK('quinary change 2011_15 num'!D31,'quinary change 2011_15 num'!$D$5:$D$44,0) -> 17 | E31: =RANK('quinary change 2011_15 num'!E31,'quinary change 2011_15 num'!$E$5:$E$44,0) -> 3 | F31: =RANK('quinary change 2011_15 num'!F31,'quinary change 2011_15 num'!$F$5:$F$44,0) -> 26 | G31: =RANK('quinary change 2011_15 num'!G31,'quinary change 2011_15 num'!$G$5:$G$44,0) -> 16 | H31: =RANK('quinary change 2011_15 num'!H31,'quinary change 2011_15 num'!$H$5:$H$44,0) -> 20 | I31: =RANK('quinary change 2011_15 num'!I31,'quinary change 2011_15 num'!$I$5:$I$44,0) -> 9 | J31: =RANK('quinary change 2011_15 num'!J31,'quinary change 2011_15 num'!$J$5:$J$44,0) -> 4 | K31: =RANK('quinary change 2011_15 num'!K31,'quinary change 2011_15 num'!$K$5:$K$44,0) -> 7 | L31: =RANK('quinary change 2011_15 num'!L31,'quinary change 2011_15 num'!$L$5:$L$44,0) -> 20 | M31: =RANK('quinary change 2011_15 num'!M31,'quinary change 2011_15 num'!$M$5:$M$44,0) -> 37 | N31: =RANK('quinary change 2011_15 num'!N31,'quinary change 2011_15 num'!$N$5:$N$44,0) -> 28 | O31: =RANK('quinary change 2011_15 num'!O31,'quinary change 2011_15 num'!$O$5:$O$44,0) -> 3 | P31: =RANK('quinary change 2011_15 num'!P31,'quinary change 2011_15 num'!$P$5:$P$44,0) -> 7 | Q31: =RANK('quinary change 2011_15 num'!Q31,'quinary change 2011_15 num'!$Q$5:$Q$44,0) -> 29 | R31: =RANK('quinary change 2011_15 num'!R31,'quinary change 2011_15 num'!$R$5:$R$44,0) -> 39 | S31: =RANK('quinary change 2011_15 num'!S31,'quinary change 2011_15 num'!$S$5:$S$44,0) -> 15 | T31: =RANK('quinary change 2011_15 num'!T31,'quinary change 2011_15 num'!$T$5:$T$44,0) -> 20 | U31: =RANK('quinary change 2011_15 num'!U31,'quinary change 2011_15 num'!$U$5:$U$44,0) -> 10 | V31: =RANK('quinary change 2011_15 num'!V31,'quinary change 2011_15 num'!$V$5:$V$44,0) -> 39
A32: Soho | B32: Ladywood | C32: E05001205 | D32: =RANK('quinary change 2011_15 num'!D32,'quinary change 2011_15 num'!$D$5:$D$44,0) -> 5 | E32: =RANK('quinary change 2011_15 num'!E32,'quinary change 2011_15 num'!$E$5:$E$44,0) -> 12 | F32: =RANK('quinary change 2011_15 num'!F32,'quinary change 2011_15 num'!$F$5:$F$44,0) -> 13 | G32: =RANK('quinary change 2011_15 num'!G32,'quinary change 2011_15 num'!$G$5:$G$44,0) -> 3 | H32: =RANK('quinary change 2011_15 num'!H32,'quinary change 2011_15 num'!$H$5:$H$44,0) -> 11 | I32: =RANK('quinary change 2011_15 num'!I32,'quinary change 2011_15 num'!$I$5:$I$44,0) -> 39 | J32: =RANK('quinary change 2011_15 num'!J32,'quinary change 2011_15 num'!$J$5:$J$44,0) -> 28 | K32: =RANK('quinary change 2011_15 num'!K32,'quinary change 2011_15 num'!$K$5:$K$44,0) -> 15 | L32: =RANK('quinary change 2011_15 num'!L32,'quinary change 2011_15 num'!$L$5:$L$44,0) -> 2 | M32: =RANK('quinary change 2011_15 num'!M32,'quinary change 2011_15 num'!$M$5:$M$44,0) -> 6 | N32: =RANK('quinary change 2011_15 num'!N32,'quinary change 2011_15 num'!$N$5:$N$44,0) -> 10 | O32: =RANK('quinary change 2011_15 num'!O32,'quinary change 2011_15 num'!$O$5:$O$44,0) -> 9 | P32: =RANK('quinary change 2011_15 num'!P32,'quinary change 2011_15 num'!$P$5:$P$44,0) -> 13 | Q32: =RANK('quinary change 2011_15 num'!Q32,'quinary change 2011_15 num'!$Q$5:$Q$44,0) -> 5 | R32: =RANK('quinary change 2011_15 num'!R32,'quinary change 2011_15 num'!$R$5:$R$44,0) -> 27 | S32: =RANK('quinary change 2011_15 num'!S32,'quinary change 2011_15 num'!$S$5:$S$44,0) -> 30 | T32: =RANK('quinary change 2011_15 num'!T32,'quinary change 2011_15 num'!$T$5:$T$44,0) -> 14 | U32: =RANK('quinary change 2011_15 num'!U32,'quinary change 2011_15 num'!$U$5:$U$44,0) -> 8 | V32: =RANK('quinary change 2011_15 num'!V32,'quinary change 2011_15 num'!$V$5:$V$44,0) -> 10
A33: South Yardley | B33: Yardley | C33: E05001206 | D33: =RANK('quinary change 2011_15 num'!D33,'quinary change 2011_15 num'!$D$5:$D$44,0) -> 14 | E33: =RANK('quinary change 2011_15 num'!E33,'quinary change 2011_15 num'!$E$5:$E$44,0) -> 27 | F33: =RANK('quinary change 2011_15 num'!F33,'quinary change 2011_15 num'!$F$5:$F$44,0) -> 7 | G33: =RANK('quinary change 2011_15 num'!G33,'quinary change 2011_15 num'!$G$5:$G$44,0) -> 2 | H33: =RANK('quinary change 2011_15 num'!H33,'quinary change 2011_15 num'!$H$5:$H$44,0) -> 9 | I33: =RANK('quinary change 2011_15 num'!I33,'quinary change 2011_15 num'!$I$5:$I$44,0) -> 33 | J33: =RANK('quinary change 2011_15 num'!J33,'quinary change 2011_15 num'!$J$5:$J$44,0) -> 15 | K33: =RANK('quinary change 2011_15 num'!K33,'quinary change 2011_15 num'!$K$5:$K$44,0) -> 27 | L33: =RANK('quinary change 2011_15 num'!L33,'quinary change 2011_15 num'!$L$5:$L$44,0) -> 12 | M33: =RANK('quinary change 2011_15 num'!M33,'quinary change 2011_15 num'!$M$5:$M$44,0) -> 13 | N33: =RANK('quinary change 2011_15 num'!N33,'quinary change 2011_15 num'!$N$5:$N$44,0) -> 29 | O33: =RANK('quinary change 2011_15 num'!O33,'quinary change 2011_15 num'!$O$5:$O$44,0) -> 15 | P33: =RANK('quinary change 2011_15 num'!P33,'quinary change 2011_15 num'!$P$5:$P$44,0) -> 9 | Q33: =RANK('quinary change 2011_15 num'!Q33,'quinary change 2011_15 num'!$Q$5:$Q$44,0) -> 11 | R33: =RANK('quinary change 2011_15 num'!R33,'quinary change 2011_15 num'!$R$5:$R$44,0) -> 17 | S33: =RANK('quinary change 2011_15 num'!S33,'quinary change 2011_15 num'!$S$5:$S$44,0) -> 31 | T33: =RANK('quinary change 2011_15 num'!T33,'quinary change 2011_15 num'!$T$5:$T$44,0) -> 32 | U33: =RANK('quinary change 2011_15 num'!U33,'quinary change 2011_15 num'!$U$5:$U$44,0) -> 24 | V33: =RANK('quinary change 2011_15 num'!V33,'quinary change 2011_15 num'!$V$5:$V$44,0) -> 13
A34: Sparkbrook | B34: Hall Green | C34: E05001207 | D34: =RANK('quinary change 2011_15 num'!D34,'quinary change 2011_15 num'!$D$5:$D$44,0) -> 20 | E34: =RANK('quinary change 2011_15 num'!E34,'quinary change 2011_15 num'!$E$5:$E$44,0) -> 40 | F34: =RANK('quinary change 2011_15 num'!F34,'quinary change 2011_15 num'!$F$5:$F$44,0) -> 40 | G34: =RANK('quinary change 2011_15 num'!G34,'quinary change 2011_15 num'!$G$5:$G$44,0) -> 28 | H34: =RANK('quinary change 2011_15 num'!H34,'quinary change 2011_15 num'!$H$5:$H$44,0) -> 10 | I34: =RANK('quinary change 2011_15 num'!I34,'quinary change 2011_15 num'!$I$5:$I$44,0) -> 12 | J34: =RANK('quinary change 2011_15 num'!J34,'quinary change 2011_15 num'!$J$5:$J$44,0) -> 33 | K34: =RANK('quinary change 2011_15 num'!K34,'quinary change 2011_15 num'!$K$5:$K$44,0) -> 9 | L34: =RANK('quinary change 2011_15 num'!L34,'quinary change 2011_15 num'!$L$5:$L$44,0) -> 17 | M34: =RANK('quinary change 2011_15 num'!M34,'quinary change 2011_15 num'!$M$5:$M$44,0) -> 8 | N34: =RANK('quinary change 2011_15 num'!N34,'quinary change 2011_15 num'!$N$5:$N$44,0) -> 4 | O34: =RANK('quinary change 2011_15 num'!O34,'quinary change 2011_15 num'!$O$5:$O$44,0) -> 35 | P34: =RANK('quinary change 2011_15 num'!P34,'quinary change 2011_15 num'!$P$5:$P$44,0) -> 19 | Q34: =RANK('quinary change 2011_15 num'!Q34,'quinary change 2011_15 num'!$Q$5:$Q$44,0) -> 7 | R34: =RANK('quinary change 2011_15 num'!R34,'quinary change 2011_15 num'!$R$5:$R$44,0) -> 21 | S34: =RANK('quinary change 2011_15 num'!S34,'quinary change 2011_15 num'!$S$5:$S$44,0) -> 35 | T34: =RANK('quinary change 2011_15 num'!T34,'quinary change 2011_15 num'!$T$5:$T$44,0) -> 36 | U34: =RANK('quinary change 2011_15 num'!U34,'quinary change 2011_15 num'!$U$5:$U$44,0) -> 1 | V34: =RANK('quinary change 2011_15 num'!V34,'quinary change 2011_15 num'!$V$5:$V$44,0) -> 2
A35: Springfield | B35: Hall Green | C35: E05001208 | D35: =RANK('quinary change 2011_15 num'!D35,'quinary change 2011_15 num'!$D$5:$D$44,0) -> 8 | E35: =RANK('quinary change 2011_15 num'!E35,'quinary change 2011_15 num'!$E$5:$E$44,0) -> 35 | F35: =RANK('quinary change 2011_15 num'!F35,'quinary change 2011_15 num'!$F$5:$F$44,0) -> 27 | G35: =RANK('quinary change 2011_15 num'!G35,'quinary change 2011_15 num'!$G$5:$G$44,0) -> 1 | H35: =RANK('quinary change 2011_15 num'!H35,'quinary change 2011_15 num'!$H$5:$H$44,0) -> 6 | I35: =RANK('quinary change 2011_15 num'!I35,'quinary change 2011_15 num'!$I$5:$I$44,0) -> 20 | J35: =RANK('quinary change 2011_15 num'!J35,'quinary change 2011_15 num'!$J$5:$J$44,0) -> 38 | K35: =RANK('quinary change 2011_15 num'!K35,'quinary change 2011_15 num'!$K$5:$K$44,0) -> 19 | L35: =RANK('quinary change 2011_15 num'!L35,'quinary change 2011_15 num'!$L$5:$L$44,0) -> 8 | M35: =RANK('quinary change 2011_15 num'!M35,'quinary change 2011_15 num'!$M$5:$M$44,0) -> 5 | N35: =RANK('quinary change 2011_15 num'!N35,'quinary change 2011_15 num'!$N$5:$N$44,0) -> 3 | O35: =RANK('quinary change 2011_15 num'!O35,'quinary change 2011_15 num'!$O$5:$O$44,0) -> 37 | P35: =RANK('quinary change 2011_15 num'!P35,'quinary change 2011_15 num'!$P$5:$P$44,0) -> 40 | Q35: =RANK('quinary change 2011_15 num'!Q35,'quinary change 2011_15 num'!$Q$5:$Q$44,0) -> 8 | R35: =RANK('quinary change 2011_15 num'!R35,'quinary change 2011_15 num'!$R$5:$R$44,0) -> 13 | S35: =RANK('quinary change 2011_15 num'!S35,'quinary change 2011_15 num'!$S$5:$S$44,0) -> 32 | T35: =RANK('quinary change 2011_15 num'!T35,'quinary change 2011_15 num'!$T$5:$T$44,0) -> 26 | U35: =RANK('quinary change 2011_15 num'!U35,'quinary change 2011_15 num'!$U$5:$U$44,0) -> 18 | V35: =RANK('quinary change 2011_15 num'!V35,'quinary change 2011_15 num'!$V$5:$V$44,0) -> 15
A36: Stechford and Yardley North | B36: Yardley | C36: E05001209 | D36: =RANK('quinary change 2011_15 num'!D36,'quinary change 2011_15 num'!$D$5:$D$44,0) -> 15 | E36: =RANK('quinary change 2011_15 num'!E36,'quinary change 2011_15 num'!$E$5:$E$44,0) -> 7 | F36: =RANK('quinary change 2011_15 num'!F36,'quinary change 2011_15 num'!$F$5:$F$44,0) -> 6 | G36: =RANK('quinary change 2011_15 num'!G36,'quinary change 2011_15 num'!$G$5:$G$44,0) -> 13 | H36: =RANK('quinary change 2011_15 num'!H36,'quinary change 2011_15 num'!$H$5:$H$44,0) -> 20 | I36: =RANK('quinary change 2011_15 num'!I36,'quinary change 2011_15 num'!$I$5:$I$44,0) -> 14 | J36: =RANK('quinary change 2011_15 num'!J36,'quinary change 2011_15 num'!$J$5:$J$44,0) -> 7 | K36: =RANK('quinary change 2011_15 num'!K36,'quinary change 2011_15 num'!$K$5:$K$44,0) -> 6 | L36: =RANK('quinary change 2011_15 num'!L36,'quinary change 2011_15 num'!$L$5:$L$44,0) -> 22 | M36: =RANK('quinary change 2011_15 num'!M36,'quinary change 2011_15 num'!$M$5:$M$44,0) -> 27 | N36: =RANK('quinary change 2011_15 num'!N36,'quinary change 2011_15 num'!$N$5:$N$44,0) -> 27 | O36: =RANK('quinary change 2011_15 num'!O36,'quinary change 2011_15 num'!$O$5:$O$44,0) -> 21 | P36: =RANK('quinary change 2011_15 num'!P36,'quinary change 2011_15 num'!$P$5:$P$44,0) -> 15 | Q36: =RANK('quinary change 2011_15 num'!Q36,'quinary change 2011_15 num'!$Q$5:$Q$44,0) -> 21 | R36: =RANK('quinary change 2011_15 num'!R36,'quinary change 2011_15 num'!$R$5:$R$44,0) -> 20 | S36: =RANK('quinary change 2011_15 num'!S36,'quinary change 2011_15 num'!$S$5:$S$44,0) -> 21 | T36: =RANK('quinary change 2011_15 num'!T36,'quinary change 2011_15 num'!$T$5:$T$44,0) -> 18 | U36: =RANK('quinary change 2011_15 num'!U36,'quinary change 2011_15 num'!$U$5:$U$44,0) -> 26 | V36: =RANK('quinary change 2011_15 num'!V36,'quinary change 2011_15 num'!$V$5:$V$44,0) -> 28
A37: Stockland Green | B37: Erdington | C37: E05001210 | D37: =RANK('quinary change 2011_15 num'!D37,'quinary change 2011_15 num'!$D$5:$D$44,0) -> 12 | E37: =RANK('quinary change 2011_15 num'!E37,'quinary change 2011_15 num'!$E$5:$E$44,0) -> 15 | F37: =RANK('quinary change 2011_15 num'!F37,'quinary change 2011_15 num'!$F$5:$F$44,0) -> 8 | G37: =RANK('quinary change 2011_15 num'!G37,'quinary change 2011_15 num'!$G$5:$G$44,0) -> 10 | H37: =RANK('quinary change 2011_15 num'!H37,'quinary change 2011_15 num'!$H$5:$H$44,0) -> 18 | I37: =RANK('quinary change 2011_15 num'!I37,'quinary change 2011_15 num'!$I$5:$I$44,0) -> 10 | J37: =RANK('quinary change 2011_15 num'!J37,'quinary change 2011_15 num'!$J$5:$J$44,0) -> 21 | K37: =RANK('quinary change 2011_15 num'!K37,'quinary change 2011_15 num'!$K$5:$K$44,0) -> 2 | L37: =RANK('quinary change 2011_15 num'!L37,'quinary change 2011_15 num'!$L$5:$L$44,0) -> 10 | M37: =RANK('quinary change 2011_15 num'!M37,'quinary change 2011_15 num'!$M$5:$M$44,0) -> 18 | N37: =RANK('quinary change 2011_15 num'!N37,'quinary change 2011_15 num'!$N$5:$N$44,0) -> 31 | O37: =RANK('quinary change 2011_15 num'!O37,'quinary change 2011_15 num'!$O$5:$O$44,0) -> 2 | P37: =RANK('quinary change 2011_15 num'!P37,'quinary change 2011_15 num'!$P$5:$P$44,0) -> 2 | Q37: =RANK('quinary change 2011_15 num'!Q37,'quinary change 2011_15 num'!$Q$5:$Q$44,0) -> 20 | R37: =RANK('quinary change 2011_15 num'!R37,'quinary change 2011_15 num'!$R$5:$R$44,0) -> 12 | S37: =RANK('quinary change 2011_15 num'!S37,'quinary change 2011_15 num'!$S$5:$S$44,0) -> 25 | T37: =RANK('quinary change 2011_15 num'!T37,'quinary change 2011_15 num'!$T$5:$T$44,0) -> 23 | U37: =RANK('quinary change 2011_15 num'!U37,'quinary change 2011_15 num'!$U$5:$U$44,0) -> 32 | V37: =RANK('quinary change 2011_15 num'!V37,'quinary change 2011_15 num'!$V$5:$V$44,0) -> 19
A38: Sutton Four Oaks | B38: Sutton Coldfield | C38: E05001211 | D38: =RANK('quinary change 2011_15 num'!D38,'quinary change 2011_15 num'!$D$5:$D$44,0) -> 25 | E38: =RANK('quinary change 2011_15 num'!E38,'quinary change 2011_15 num'!$E$5:$E$44,0) -> 21 | F38: =RANK('quinary change 2011_15 num'!F38,'quinary change 2011_15 num'!$F$5:$F$44,0) -> 23 | G38: =RANK('quinary change 2011_15 num'!G38,'quinary change 2011_15 num'!$G$5:$G$44,0) -> 18 | H38: =RANK('quinary change 2011_15 num'!H38,'quinary change 2011_15 num'!$H$5:$H$44,0) -> 16 | I38: =RANK('quinary change 2011_15 num'!I38,'quinary change 2011_15 num'!$I$5:$I$44,0) -> 21 | J38: =RANK('quinary change 2011_15 num'!J38,'quinary change 2011_15 num'!$J$5:$J$44,0) -> 11 | K38: =RANK('quinary change 2011_15 num'!K38,'quinary change 2011_15 num'!$K$5:$K$44,0) -> 29 | L38: =RANK('quinary change 2011_15 num'!L38,'quinary change 2011_15 num'!$L$5:$L$44,0) -> 35 | M38: =RANK('quinary change 2011_15 num'!M38,'quinary change 2011_15 num'!$M$5:$M$44,0) -> 33 | N38: =RANK('quinary change 2011_15 num'!N38,'quinary change 2011_15 num'!$N$5:$N$44,0) -> 21 | O38: =RANK('quinary change 2011_15 num'!O38,'quinary change 2011_15 num'!$O$5:$O$44,0) -> 3 | P38: =RANK('quinary change 2011_15 num'!P38,'quinary change 2011_15 num'!$P$5:$P$44,0) -> 31 | Q38: =RANK('quinary change 2011_15 num'!Q38,'quinary change 2011_15 num'!$Q$5:$Q$44,0) -> 39 | R38: =RANK('quinary change 2011_15 num'!R38,'quinary change 2011_15 num'!$R$5:$R$44,0) -> 35 | S38: =RANK('quinary change 2011_15 num'!S38,'quinary change 2011_15 num'!$S$5:$S$44,0) -> 2 | T38: =RANK('quinary change 2011_15 num'!T38,'quinary change 2011_15 num'!$T$5:$T$44,0) -> 34 | U38: =RANK('quinary change 2011_15 num'!U38,'quinary change 2011_15 num'!$U$5:$U$44,0) -> 17 | V38: =RANK('quinary change 2011_15 num'!V38,'quinary change 2011_15 num'!$V$5:$V$44,0) -> 1
A39: Sutton New Hall | B39: Sutton Coldfield | C39: E05001212 | D39: =RANK('quinary change 2011_15 num'!D39,'quinary change 2011_15 num'!$D$5:$D$44,0) -> 40 | E39: =RANK('quinary change 2011_15 num'!E39,'quinary change 2011_15 num'!$E$5:$E$44,0) -> 34 | F39: =RANK('quinary change 2011_15 num'!F39,'quinary change 2011_15 num'!$F$5:$F$44,0) -> 37 | G39: =RANK('quinary change 2011_15 num'!G39,'quinary change 2011_15 num'!$G$5:$G$44,0) -> 39 | H39: =RANK('quinary change 2011_15 num'!H39,'quinary change 2011_15 num'!$H$5:$H$44,0) -> 26 | I39: =RANK('quinary change 2011_15 num'!I39,'quinary change 2011_15 num'!$I$5:$I$44,0) -> 37 | J39: =RANK('quinary change 2011_15 num'!J39,'quinary change 2011_15 num'!$J$5:$J$44,0) -> 32 | K39: =RANK('quinary change 2011_15 num'!K39,'quinary change 2011_15 num'!$K$5:$K$44,0) -> 33 | L39: =RANK('quinary change 2011_15 num'!L39,'quinary change 2011_15 num'!$L$5:$L$44,0) -> 40 | M39: =RANK('quinary change 2011_15 num'!M39,'quinary change 2011_15 num'!$M$5:$M$44,0) -> 34 | N39: =RANK('quinary change 2011_15 num'!N39,'quinary change 2011_15 num'!$N$5:$N$44,0) -> 37 | O39: =RANK('quinary change 2011_15 num'!O39,'quinary change 2011_15 num'!$O$5:$O$44,0) -> 38 | P39: =RANK('quinary change 2011_15 num'!P39,'quinary change 2011_15 num'!$P$5:$P$44,0) -> 37 | Q39: =RANK('quinary change 2011_15 num'!Q39,'quinary change 2011_15 num'!$Q$5:$Q$44,0) -> 36 | R39: =RANK('quinary change 2011_15 num'!R39,'quinary change 2011_15 num'!$R$5:$R$44,0) -> 1 | S39: =RANK('quinary change 2011_15 num'!S39,'quinary change 2011_15 num'!$S$5:$S$44,0) -> 1 | T39: =RANK('quinary change 2011_15 num'!T39,'quinary change 2011_15 num'!$T$5:$T$44,0) -> 7 | U39: =RANK('quinary change 2011_15 num'!U39,'quinary change 2011_15 num'!$U$5:$U$44,0) -> 30 | V39: =RANK('quinary change 2011_15 num'!V39,'quinary change 2011_15 num'!$V$5:$V$44,0) -> 4
A40: Sutton Trinity | B40: Sutton Coldfield | C40: E05001213 | D40: =RANK('quinary change 2011_15 num'!D40,'quinary change 2011_15 num'!$D$5:$D$44,0) -> 38 | E40: =RANK('quinary change 2011_15 num'!E40,'quinary change 2011_15 num'!$E$5:$E$44,0) -> 15 | F40: =RANK('quinary change 2011_15 num'!F40,'quinary change 2011_15 num'!$F$5:$F$44,0) -> 38 | G40: =RANK('quinary change 2011_15 num'!G40,'quinary change 2011_15 num'!$G$5:$G$44,0) -> 38 | H40: =RANK('quinary change 2011_15 num'!H40,'quinary change 2011_15 num'!$H$5:$H$44,0) -> 39 | I40: =RANK('quinary change 2011_15 num'!I40,'quinary change 2011_15 num'!$I$5:$I$44,0) -> 16 | J40: =RANK('quinary change 2011_15 num'!J40,'quinary change 2011_15 num'!$J$5:$J$44,0) -> 24 | K40: =RANK('quinary change 2011_15 num'!K40,'quinary change 2011_15 num'!$K$5:$K$44,0) -> 17 | L40: =RANK('quinary change 2011_15 num'!L40,'quinary change 2011_15 num'!$L$5:$L$44,0) -> 36 | M40: =RANK('quinary change 2011_15 num'!M40,'quinary change 2011_15 num'!$M$5:$M$44,0) -> 29 | N40: =RANK('quinary change 2011_15 num'!N40,'quinary change 2011_15 num'!$N$5:$N$44,0) -> 39 | O40: =RANK('quinary change 2011_15 num'!O40,'quinary change 2011_15 num'!$O$5:$O$44,0) -> 25 | P40: =RANK('quinary change 2011_15 num'!P40,'quinary change 2011_15 num'!$P$5:$P$44,0) -> 17 | Q40: =RANK('quinary change 2011_15 num'!Q40,'quinary change 2011_15 num'!$Q$5:$Q$44,0) -> 32 | R40: =RANK('quinary change 2011_15 num'!R40,'quinary change 2011_15 num'!$R$5:$R$44,0) -> 19 | S40: =RANK('quinary change 2011_15 num'!S40,'quinary change 2011_15 num'!$S$5:$S$44,0) -> 4 | T40: =RANK('quinary change 2011_15 num'!T40,'quinary change 2011_15 num'!$T$5:$T$44,0) -> 29 | U40: =RANK('quinary change 2011_15 num'!U40,'quinary change 2011_15 num'!$U$5:$U$44,0) -> 28 | V40: =RANK('quinary change 2011_15 num'!V40,'quinary change 2011_15 num'!$V$5:$V$44,0) -> 11
A41: Sutton Vesey | B41: Sutton Coldfield | C41: E05001214 | D41: =RANK('quinary change 2011_15 num'!D41,'quinary change 2011_15 num'!$D$5:$D$44,0) -> 39 | E41: =RANK('quinary change 2011_15 num'!E41,'quinary change 2011_15 num'!$E$5:$E$44,0) -> 14 | F41: =RANK('quinary change 2011_15 num'!F41,'quinary change 2011_15 num'!$F$5:$F$44,0) -> 32 | G41: =RANK('quinary change 2011_15 num'!G41,'quinary change 2011_15 num'!$G$5:$G$44,0) -> 36 | H41: =RANK('quinary change 2011_15 num'!H41,'quinary change 2011_15 num'!$H$5:$H$44,0) -> 36 | I41: =RANK('quinary change 2011_15 num'!I41,'quinary change 2011_15 num'!$I$5:$I$44,0) -> 36 | J41: =RANK('quinary change 2011_15 num'!J41,'quinary change 2011_15 num'!$J$5:$J$44,0) -> 30 | K41: =RANK('quinary change 2011_15 num'!K41,'quinary change 2011_15 num'!$K$5:$K$44,0) -> 22 | L41: =RANK('quinary change 2011_15 num'!L41,'quinary change 2011_15 num'!$L$5:$L$44,0) -> 32 | M41: =RANK('quinary change 2011_15 num'!M41,'quinary change 2011_15 num'!$M$5:$M$44,0) -> 31 | N41: =RANK('quinary change 2011_15 num'!N41,'quinary change 2011_15 num'!$N$5:$N$44,0) -> 40 | O41: =RANK('quinary change 2011_15 num'!O41,'quinary change 2011_15 num'!$O$5:$O$44,0) -> 30 | P41: =RANK('quinary change 2011_15 num'!P41,'quinary change 2011_15 num'!$P$5:$P$44,0) -> 21 | Q41: =RANK('quinary change 2011_15 num'!Q41,'quinary change 2011_15 num'!$Q$5:$Q$44,0) -> 34 | R41: =RANK('quinary change 2011_15 num'!R41,'quinary change 2011_15 num'!$R$5:$R$44,0) -> 18 | S41: =RANK('quinary change 2011_15 num'!S41,'quinary change 2011_15 num'!$S$5:$S$44,0) -> 12 | T41: =RANK('quinary change 2011_15 num'!T41,'quinary change 2011_15 num'!$T$5:$T$44,0) -> 9 | U41: =RANK('quinary change 2011_15 num'!U41,'quinary change 2011_15 num'!$U$5:$U$44,0) -> 21 | V41: =RANK('quinary change 2011_15 num'!V41,'quinary change 2011_15 num'!$V$5:$V$44,0) -> 7
A42: Tyburn | B42: Erdington | C42: E05001215 | D42: =RANK('quinary change 2011_15 num'!D42,'quinary change 2011_15 num'!$D$5:$D$44,0) -> 33 | E42: =RANK('quinary change 2011_15 num'!E42,'quinary change 2011_15 num'!$E$5:$E$44,0) -> 29 | F42: =RANK('quinary change 2011_15 num'!F42,'quinary change 2011_15 num'!$F$5:$F$44,0) -> 36 | G42: =RANK('quinary change 2011_15 num'!G42,'quinary change 2011_15 num'!$G$5:$G$44,0) -> 34 | H42: =RANK('quinary change 2011_15 num'!H42,'quinary change 2011_15 num'!$H$5:$H$44,0) -> 33 | I42: =RANK('quinary change 2011_15 num'!I42,'quinary change 2011_15 num'!$I$5:$I$44,0) -> 11 | J42: =RANK('quinary change 2011_15 num'!J42,'quinary change 2011_15 num'!$J$5:$J$44,0) -> 20 | K42: =RANK('quinary change 2011_15 num'!K42,'quinary change 2011_15 num'!$K$5:$K$44,0) -> 16 | L42: =RANK('quinary change 2011_15 num'!L42,'quinary change 2011_15 num'!$L$5:$L$44,0) -> 39 | M42: =RANK('quinary change 2011_15 num'!M42,'quinary change 2011_15 num'!$M$5:$M$44,0) -> 38 | N42: =RANK('quinary change 2011_15 num'!N42,'quinary change 2011_15 num'!$N$5:$N$44,0) -> 25 | O42: =RANK('quinary change 2011_15 num'!O42,'quinary change 2011_15 num'!$O$5:$O$44,0) -> 1 | P42: =RANK('quinary change 2011_15 num'!P42,'quinary change 2011_15 num'!$P$5:$P$44,0) -> 10 | Q42: =RANK('quinary change 2011_15 num'!Q42,'quinary change 2011_15 num'!$Q$5:$Q$44,0) -> 13 | R42: =RANK('quinary change 2011_15 num'!R42,'quinary change 2011_15 num'!$R$5:$R$44,0) -> 38 | S42: =RANK('quinary change 2011_15 num'!S42,'quinary change 2011_15 num'!$S$5:$S$44,0) -> 27 | T42: =RANK('quinary change 2011_15 num'!T42,'quinary change 2011_15 num'!$T$5:$T$44,0) -> 40 | U42: =RANK('quinary change 2011_15 num'!U42,'quinary change 2011_15 num'!$U$5:$U$44,0) -> 15 | V42: =RANK('quinary change 2011_15 num'!V42,'quinary change 2011_15 num'!$V$5:$V$44,0) -> 14
A43: Washwood Heath | B43: Hodge Hill | C43: E05001216 | D43: =RANK('quinary change 2011_15 num'!D43,'quinary change 2011_15 num'!$D$5:$D$44,0) -> 6 | E43: =RANK('quinary change 2011_15 num'!E43,'quinary change 2011_15 num'!$E$5:$E$44,0) -> 33 | F43: =RANK('quinary change 2011_15 num'!F43,'quinary change 2011_15 num'!$F$5:$F$44,0) -> 39 | G43: =RANK('quinary change 2011_15 num'!G43,'quinary change 2011_15 num'!$G$5:$G$44,0) -> 9 | H43: =RANK('quinary change 2011_15 num'!H43,'quinary change 2011_15 num'!$H$5:$H$44,0) -> 4 | I43: =RANK('quinary change 2011_15 num'!I43,'quinary change 2011_15 num'!$I$5:$I$44,0) -> 5 | J43: =RANK('quinary change 2011_15 num'!J43,'quinary change 2011_15 num'!$J$5:$J$44,0) -> 25 | K43: =RANK('quinary change 2011_15 num'!K43,'quinary change 2011_15 num'!$K$5:$K$44,0) -> 30 | L43: =RANK('quinary change 2011_15 num'!L43,'quinary change 2011_15 num'!$L$5:$L$44,0) -> 5 | M43: =RANK('quinary change 2011_15 num'!M43,'quinary change 2011_15 num'!$M$5:$M$44,0) -> 3 | N43: =RANK('quinary change 2011_15 num'!N43,'quinary change 2011_15 num'!$N$5:$N$44,0) -> 2 | O43: =RANK('quinary change 2011_15 num'!O43,'quinary change 2011_15 num'!$O$5:$O$44,0) -> 24 | P43: =RANK('quinary change 2011_15 num'!P43,'quinary change 2011_15 num'!$P$5:$P$44,0) -> 39 | Q43: =RANK('quinary change 2011_15 num'!Q43,'quinary change 2011_15 num'!$Q$5:$Q$44,0) -> 3 | R43: =RANK('quinary change 2011_15 num'!R43,'quinary change 2011_15 num'!$R$5:$R$44,0) -> 15 | S43: =RANK('quinary change 2011_15 num'!S43,'quinary change 2011_15 num'!$S$5:$S$44,0) -> 39 | T43: =RANK('quinary change 2011_15 num'!T43,'quinary change 2011_15 num'!$T$5:$T$44,0) -> 36 | U43: =RANK('quinary change 2011_15 num'!U43,'quinary change 2011_15 num'!$U$5:$U$44,0) -> 12 | V43: =RANK('quinary change 2011_15 num'!V43,'quinary change 2011_15 num'!$V$5:$V$44,0) -> 6
A44: Weoley | B44: Northfield | C44: E05001217 | D44: =RANK('quinary change 2011_15 num'!D44,'quinary change 2011_15 num'!$D$5:$D$44,0) -> 28 | E44: =RANK('quinary change 2011_15 num'!E44,'quinary change 2011_15 num'!$E$5:$E$44,0) -> 30 | F44: =RANK('quinary change 2011_15 num'!F44,'quinary change 2011_15 num'!$F$5:$F$44,0) -> 11 | G44: =RANK('quinary change 2011_15 num'!G44,'quinary change 2011_15 num'!$G$5:$G$44,0) -> 24 | H44: =RANK('quinary change 2011_15 num'!H44,'quinary change 2011_15 num'!$H$5:$H$44,0) -> 37 | I44: =RANK('quinary change 2011_15 num'!I44,'quinary change 2011_15 num'!$I$5:$I$44,0) -> 19 | J44: =RANK('quinary change 2011_15 num'!J44,'quinary change 2011_15 num'!$J$5:$J$44,0) -> 11 | K44: =RANK('quinary change 2011_15 num'!K44,'quinary change 2011_15 num'!$K$5:$K$44,0) -> 32 | L44: =RANK('quinary change 2011_15 num'!L44,'quinary change 2011_15 num'!$L$5:$L$44,0) -> 27 | M44: =RANK('quinary change 2011_15 num'!M44,'quinary change 2011_15 num'!$M$5:$M$44,0) -> 26 | N44: =RANK('quinary change 2011_15 num'!N44,'quinary change 2011_15 num'!$N$5:$N$44,0) -> 17 | O44: =RANK('quinary change 2011_15 num'!O44,'quinary change 2011_15 num'!$O$5:$O$44,0) -> 34 | P44: =RANK('quinary change 2011_15 num'!P44,'quinary change 2011_15 num'!$P$5:$P$44,0) -> 20 | Q44: =RANK('quinary change 2011_15 num'!Q44,'quinary change 2011_15 num'!$Q$5:$Q$44,0) -> 22 | R44: =RANK('quinary change 2011_15 num'!R44,'quinary change 2011_15 num'!$R$5:$R$44,0) -> 32 | S44: =RANK('quinary change 2011_15 num'!S44,'quinary change 2011_15 num'!$S$5:$S$44,0) -> 16 | T44: =RANK('quinary change 2011_15 num'!T44,'quinary change 2011_15 num'!$T$5:$T$44,0) -> 27 | U44: =RANK('quinary change 2011_15 num'!U44,'quinary change 2011_15 num'!$U$5:$U$44,0) -> 35 | V44: =RANK('quinary change 2011_15 num'!V44,'quinary change 2011_15 num'!$V$5:$V$44,0) -> 12
A46: Office for National Statistics, Crown Copyright 2017
A48: Service Development Team
A49: Planning & Regeneration
A50: www.birmingham.gov.uk/census
A51: population.census@birmingham.gov.uk
A52: 0121 303 4208

Sheet quinary change 2011_15 num (hidden)
A1: 2011 - 2015 Birmingham ward population change (number)
A2: five-year age groups
A3: Ward Name | B3: Constituency | C3: code | D3: All Ages | E3: 0-4 | F3: 5-9 | G3: 10-14 | H3: 15-19 | I3: 20-24 | J3: 25-29 | K3: 30-34 | L3: 35-39 | M3: 40-44 | N3: 45-49 | O3: 50-54 | P3: 55-59 | Q3: 60-64 | R3: 65-69 | S3: 70-74 | T3: 75-79 | U3: 80-84 | V3: 85-89 | W3: 90+
A5: Acocks Green | B5: Yardley | C5: E05001178 | D5: ='quinary 2016'!D5-'quinary 2011'!D5 -> 1076 | E5: ='quinary 2016'!E5-'quinary 2011'!E5 -> 55 | F5: ='quinary 2016'!F5-'quinary 2011'!F5 -> 329 | G5: ='quinary 2016'!G5-'quinary 2011'!G5 -> -68 | H5: ='quinary 2016'!H5-'quinary 2011'!H5 -> 18 | I5: ='quinary 2016'!I5-'quinary 2011'!I5 -> 103 | J5: ='quinary 2016'!J5-'quinary 2011'!J5 -> 126 | K5: ='quinary 2016'!K5-'quinary 2011'!K5 -> -1 | L5: ='quinary 2016'!L5-'quinary 2011'!L5 -> 111 | M5: ='quinary 2016'!M5-'quinary 2011'!M5 -> -214 | N5: ='quinary 2016'!N5-'quinary 2011'!N5 -> 92 | O5: ='quinary 2016'!O5-'quinary 2011'!O5 -> 233 | P5: ='quinary 2016'!P5-'quinary 2011'!P5 -> 253 | Q5: ='quinary 2016'!Q5-'quinary 2011'!Q5 -> 15 | R5: ='quinary 2016'!R5-'quinary 2011'!R5 -> 108 | S5: ='quinary 2016'!S5-'quinary 2011'!S5 -> -14 | T5: ='quinary 2016'!T5-'quinary 2011'!T5 -> -12 | U5: ='quinary 2016'!U5-'quinary 2011'!U5 -> -78 | V5: ='quinary 2016'!V5-'quinary 2011'!V5 -> 9 | W5: ='quinary 2016'!W5-'quinary 2011'!W5 -> 11
A6: Aston | B6: Ladywood | C6: E05001179 | D6: ='quinary 2016'!D6-'quinary 2011'!D6 -> 1942 | E6: ='quinary 2016'!E6-'quinary 2011'!E6 -> -101 | F6: ='quinary 2016'!F6-'quinary 2011'!F6 -> 104 | G6: ='quinary 2016'!G6-'quinary 2011'!G6 -> 114 | H6: ='quinary 2016'!H6-'quinary 2011'!H6 -> 195 | I6: ='quinary 2016'!I6-'quinary 2011'!I6 -> -19 | J6: ='quinary 2016'!J6-'quinary 2011'!J6 -> 52 | K6: ='quinary 2016'!K6-'quinary 2011'!K6 -> 111 | L6: ='quinary 2016'!L6-'quinary 2011'!L6 -> 237 | M6: ='quinary 2016'!M6-'quinary 2011'!M6 -> 163 | N6: ='quinary 2016'!N6-'quinary 2011'!N6 -> 214 | O6: ='quinary 2016'!O6-'quinary 2011'!O6 -> 291 | P6: ='quinary 2016'!P6-'quinary 2011'!P6 -> 137 | Q6: ='quinary 2016'!Q6-'quinary 2011'!Q6 -> 294 | R6: ='quinary 2016'!R6-'quinary 2011'!R6 -> 112 | S6: ='quinary 2016'!S6-'quinary 2011'!S6 -> -168 | T6: ='quinary 2016'!T6-'quinary 2011'!T6 -> -10 | U6: ='quinary 2016'!U6-'quinary 2011'!U6 -> 30 | V6: ='quinary 2016'!V6-'quinary 2011'!V6 -> 91 | W6: ='quinary 2016'!W6-'quinary 2011'!W6 -> 95
A7: Bartley Green | B7: Edgbaston | C7: E05001180 | D7: ='quinary 2016'!D7-'quinary 2011'!D7 -> 879 | E7: ='quinary 2016'!E7-'quinary 2011'!E7 -> 176 | F7: ='quinary 2016'!F7-'quinary 2011'!F7 -> 287 | G7: ='quinary 2016'!G7-'quinary 2011'!G7 -> -43 | H7: ='quinary 2016'!H7-'quinary 2011'!H7 -> -109 | I7: ='quinary 2016'!I7-'quinary 2011'!I7 -> 124 | J7: ='quinary 2016'!J7-'quinary 2011'!J7 -> 151 | K7: ='quinary 2016'!K7-'quinary 2011'!K7 -> -68 | L7: ='quinary 2016'!L7-'quinary 2011'!L7 -> 8 | M7: ='quinary 2016'!M7-'quinary 2011'!M7 -> -28 | N7: ='quinary 2016'!N7-'quinary 2011'!N7 -> -52 | O7: ='quinary 2016'!O7-'quinary 2011'!O7 -> 177 | P7: ='quinary 2016'!P7-'quinary 2011'!P7 -> 4 | Q7: ='quinary 2016'!Q7-'quinary 2011'!Q7 -> -173 | R7: ='quinary 2016'!R7-'quinary 2011'!R7 -> 235 | S7: ='quinary 2016'!S7-'quinary 2011'!S7 -> 235 | T7: ='quinary 2016'!T7-'quinary 2011'!T7 -> -13 | U7: ='quinary 2016'!U7-'quinary 2011'!U7 -> -59 | V7: ='quinary 2016'!V7-'quinary 2011'!V7 -> 16 | W7: ='quinary 2016'!W7-'quinary 2011'!W7 -> 11
A8: Billesley | B8: Selly Oak | C8: E05001181 | D8: ='quinary 2016'!D8-'quinary 2011'!D8 -> 371 | E8: ='quinary 2016'!E8-'quinary 2011'!E8 -> 252 | F8: ='quinary 2016'!F8-'quinary 2011'!F8 -> 191 | G8: ='quinary 2016'!G8-'quinary 2011'!G8 -> -193 | H8: ='quinary 2016'!H8-'quinary 2011'!H8 -> -148 | I8: ='quinary 2016'!I8-'quinary 2011'!I8 -> -30 | J8: ='quinary 2016'!J8-'quinary 2011'!J8 -> 207 | K8: ='quinary 2016'!K8-'quinary 2011'!K8 -> 156 | L8: ='quinary 2016'!L8-'quinary 2011'!L8 -> 71 | M8: ='quinary 2016'!M8-'quinary 2011'!M8 -> -388 | N8: ='quinary 2016'!N8-'quinary 2011'!N8 -> -161 | O8: ='quinary 2016'!O8-'quinary 2011'!O8 -> 120 | P8: ='quinary 2016'!P8-'quinary 2011'!P8 -> 118 | Q8: ='quinary 2016'!Q8-'quinary 2011'!Q8 -> 30 | R8: ='quinary 2016'!R8-'quinary 2011'!R8 -> 183 | S8: ='quinary 2016'!S8-'quinary 2011'!S8 -> -48 | T8: ='quinary 2016'!T8-'quinary 2011'!T8 -> -4 | U8: ='quinary 2016'!U8-'quinary 2011'!U8 -> -5 | V8: ='quinary 2016'!V8-'quinary 2011'!V8 -> -47 | W8: ='quinary 2016'!W8-'quinary 2011'!W8 -> 67
A9: Bordesley Green | B9: Hodge Hill | C9: E05001182 | D9: ='quinary 2016'!D9-'quinary 2011'!D9 -> 1946 | E9: ='quinary 2016'!E9-'quinary 2011'!E9 -> -54 | F9: ='quinary 2016'!F9-'quinary 2011'!F9 -> 112 | G9: ='quinary 2016'!G9-'quinary 2011'!G9 -> 207 | H9: ='quinary 2016'!H9-'quinary 2011'!H9 -> 381 | I9: ='quinary 2016'!I9-'quinary 2011'!I9 -> 244 | J9: ='quinary 2016'!J9-'quinary 2011'!J9 -> -78 | K9: ='quinary 2016'!K9-'quinary 2011'!K9 -> 16 | L9: ='quinary 2016'!L9-'quinary 2011'!L9 -> 139 | M9: ='quinary 2016'!M9-'quinary 2011'!M9 -> 120 | N9: ='quinary 2016'!N9-'quinary 2011'!N9 -> 485 | O9: ='quinary 2016'!O9-'quinary 2011'!O9 -> 93 | P9: ='quinary 2016'!P9-'quinary 2011'!P9 -> 97 | Q9: ='quinary 2016'!Q9-'quinary 2011'!Q9 -> 257 | R9: ='quinary 2016'!R9-'quinary 2011'!R9 -> 59 | S9: ='quinary 2016'!S9-'quinary 2011'!S9 -> -198 | T9: ='quinary 2016'!T9-'quinary 2011'!T9 -> -89 | U9: ='quinary 2016'!U9-'quinary 2011'!U9 -> 66 | V9: ='quinary 2016'!V9-'quinary 2011'!V9 -> 75 | W9: ='quinary 2016'!W9-'quinary 2011'!W9 -> 14
A10: Bournville | B10: Selly Oak | C10: E05001183 | D10: ='quinary 2016'!D10-'quinary 2011'!D10 -> -117 | E10: ='quinary 2016'!E10-'quinary 2011'!E10 -> 18 | F10: ='quinary 2016'!F10-'quinary 2011'!F10 -> 196 | G10: ='quinary 2016'!G10-'quinary 2011'!G10 -> -82 | H10: ='quinary 2016'!H10-'quinary 2011'!H10 -> -190 | I10: ='quinary 2016'!I10-'quinary 2011'!I10 -> 39 | J10: ='quinary 2016'!J10-'quinary 2011'!J10 -> -71 | K10: ='quinary 2016'!K10-'quinary 2011'!K10 -> -37 | L10: ='quinary 2016'!L10-'quinary 2011'!L10 -> -50 | M10: ='quinary 2016'!M10-'quinary 2011'!M10 -> -300 | N10: ='quinary 2016'!N10-'quinary 2011'!N10 -> -135 | O10: ='quinary 2016'!O10-'quinary 2011'!O10 -> 192 | P10: ='quinary 2016'!P10-'quinary 2011'!P10 -> 68 | Q10: ='quinary 2016'!Q10-'quinary 2011'!Q10 -> -90 | R10: ='quinary 2016'!R10-'quinary 2011'!R10 -> 210 | S10: ='quinary 2016'!S10-'quinary 2011'!S10 -> 112 | T10: ='quinary 2016'!T10-'quinary 2011'!T10 -> 32 | U10: ='quinary 2016'!U10-'quinary 2011'!U10 -> -43 | V10: ='quinary 2016'!V10-'quinary 2011'!V10 -> 0 | W10: ='quinary 2016'!W10-'quinary 2011'!W10 -> 14
A11: Brandwood | B11: Selly Oak | C11: E05001184 | D11: ='quinary 2016'!D11-'quinary 2011'!D11 -> 152 | E11: ='quinary 2016'!E11-'quinary 2011'!E11 -> 78 | F11: ='quinary 2016'!F11-'quinary 2011'!F11 -> 149 | G11: ='quinary 2016'!G11-'quinary 2011'!G11 -> -88 | H11: ='quinary 2016'!H11-'quinary 2011'!H11 -> -120 | I11: ='quinary 2016'!I11-'quinary 2011'!I11 -> 98 | J11: ='quinary 2016'!J11-'quinary 2011'!J11 -> 146 | K11: ='quinary 2016'!K11-'quinary 2011'!K11 -> -146 | L11: ='quinary 2016'!L11-'quinary 2011'!L11 -> -63 | M11: ='quinary 2016'!M11-'quinary 2011'!M11 -> -304 | N11: ='quinary 2016'!N11-'quinary 2011'!N11 -> -19 | O11: ='quinary 2016'!O11-'quinary 2011'!O11 -> 182 | P11: ='quinary 2016'!P11-'quinary 2011'!P11 -> 108 | Q11: ='quinary 2016'!Q11-'quinary 2011'!Q11 -> -84 | R11: ='quinary 2016'!R11-'quinary 2011'!R11 -> 71 | S11: ='quinary 2016'!S11-'quinary 2011'!S11 -> 57 | T11: ='quinary 2016'!T11-'quinary 2011'!T11 -> 63 | U11: ='quinary 2016'!U11-'quinary 2011'!U11 -> -53 | V11: ='quinary 2016'!V11-'quinary 2011'!V11 -> 30 | W11: ='quinary 2016'!W11-'quinary 2011'!W11 -> 47
A12: Edgbaston | B12: Edgbaston | C12: E05001185 | D12: ='quinary 2016'!D12-'quinary 2011'!D12 -> 3521 | E12: ='quinary 2016'!E12-'quinary 2011'!E12 -> 197 | F12: ='quinary 2016'!F12-'quinary 2011'!F12 -> 345 | G12: ='quinary 2016'!G12-'quinary 2011'!G12 -> 48 | H12: ='quinary 2016'!H12-'quinary 2011'!H12 -> 710 | I12: ='quinary 2016'!I12-'quinary 2011'!I12 -> 874 | J12: ='quinary 2016'!J12-'quinary 2011'!J12 -> 382 | K12: ='quinary 2016'!K12-'quinary 2011'!K12 -> 130 | L12: ='quinary 2016'!L12-'quinary 2011'!L12 -> 189 | M12: ='quinary 2016'!M12-'quinary 2011'!M12 -> 126 | N12: ='quinary 2016'!N12-'quinary 2011'!N12 -> 132 | O12: ='quinary 2016'!O12-'quinary 2011'!O12 -> 190 | P12: ='quinary 2016'!P12-'quinary 2011'!P12 -> 41 | Q12: ='quinary 2016'!Q12-'quinary 2011'!Q12 -> -79 | R12: ='quinary 2016'!R12-'quinary 2011'!R12 -> 45 | S12: ='quinary 2016'!S12-'quinary 2011'!S12 -> 42 | T12: ='quinary 2016'!T12-'quinary 2011'!T12 -> 113 | U12: ='quinary 2016'!U12-'quinary 2011'!U12 -> -33 | V12: ='quinary 2016'!V12-'quinary 2011'!V12 -> 37 | W12: ='quinary 2016'!W12-'quinary 2011'!W12 -> 32
A13: Erdington | B13: Erdington | C13: E05001186 | D13: ='quinary 2016'!D13-'quinary 2011'!D13 -> 1319 | E13: ='quinary 2016'!E13-'quinary 2011'!E13 -> 235 | F13: ='quinary 2016'!F13-'quinary 2011'!F13 -> 346 | G13: ='quinary 2016'!G13-'quinary 2011'!G13 -> 38 | H13: ='quinary 2016'!H13-'quinary 2011'!H13 -> -137 | I13: ='quinary 2016'!I13-'quinary 2011'!I13 -> 99 | J13: ='quinary 2016'!J13-'quinary 2011'!J13 -> 165 | K13: ='quinary 2016'!K13-'quinary 2011'!K13 -> 205 | L13: ='quinary 2016'!L13-'quinary 2011'!L13 -> 142 | M13: ='quinary 2016'!M13-'quinary 2011'!M13 -> -199 | N13: ='quinary 2016'!N13-'quinary 2011'!N13 -> -142 | O13: ='quinary 2016'!O13-'quinary 2011'!O13 -> 130 | P13: ='quinary 2016'!P13-'quinary 2011'!P13 -> 228 | Q13: ='quinary 2016'!Q13-'quinary 2011'!Q13 -> -7 | R13: ='quinary 2016'!R13-'quinary 2011'!R13 -> 72 | S13: ='quinary 2016'!S13-'quinary 2011'!S13 -> 128 | T13: ='quinary 2016'!T13-'quinary 2011'!T13 -> -63 | U13: ='quinary 2016'!U13-'quinary 2011'!U13 -> 70 | V13: ='quinary 2016'!V13-'quinary 2011'!V13 -> -27 | W13: ='quinary 2016'!W13-'quinary 2011'!W13 -> 36
A14: Hall Green | B14: Hall Green | C14: E05001187 | D14: ='quinary 2016'!D14-'quinary 2011'!D14 -> 710 | E14: ='quinary 2016'!E14-'quinary 2011'!E14 -> 68 | F14: ='quinary 2016'!F14-'quinary 2011'!F14 -> 161 | G14: ='quinary 2016'!G14-'quinary 2011'!G14 -> 36 | H14: ='quinary 2016'!H14-'quinary 2011'!H14 -> 49 | I14: ='quinary 2016'!I14-'quinary 2011'!I14 -> 78 | J14: ='quinary 2016'!J14-'quinary 2011'!J14 -> 96 | K14: ='quinary 2016'!K14-'quinary 2011'!K14 -> -24 | L14: ='quinary 2016'!L14-'quinary 2011'!L14 -> -5 | M14: ='quinary 2016'!M14-'quinary 2011'!M14 -> -105 | N14: ='quinary 2016'!N14-'quinary 2011'!N14 -> -11 | O14: ='quinary 2016'!O14-'quinary 2011'!O14 -> 57 | P14: ='quinary 2016'!P14-'quinary 2011'!P14 -> 78 | Q14: ='quinary 2016'!Q14-'quinary 2011'!Q14 -> 5 | R14: ='quinary 2016'!R14-'quinary 2011'!R14 -> 58 | S14: ='quinary 2016'!S14-'quinary 2011'!S14 -> 146 | T14: ='quinary 2016'!T14-'quinary 2011'!T14 -> -74 | U14: ='quinary 2016'!U14-'quinary 2011'!U14 -> 20 | V14: ='quinary 2016'!V14-'quinary 2011'!V14 -> 83 | W14: ='quinary 2016'!W14-'quinary 2011'!W14 -> -6
A15: Handsworth Wood | B15: Perry Barr | C15: E05001188 | D15: ='quinary 2016'!D15-'quinary 2011'!D15 -> 828 | E15: ='quinary 2016'!E15-'quinary 2011'!E15 -> 108 | F15: ='quinary 2016'!F15-'quinary 2011'!F15 -> 70 | G15: ='quinary 2016'!G15-'quinary 2011'!G15 -> 64 | H15: ='quinary 2016'!H15-'quinary 2011'!H15 -> -195 | I15: ='quinary 2016'!I15-'quinary 2011'!I15 -> 34 | J15: ='quinary 2016'!J15-'quinary 2011'!J15 -> -132 | K15: ='quinary 2016'!K15-'quinary 2011'!K15 -> 111 | L15: ='quinary 2016'!L15-'quinary 2011'!L15 -> 159 | M15: ='quinary 2016'!M15-'quinary 2011'!M15 -> -25 | N15: ='quinary 2016'!N15-'quinary 2011'!N15 -> -98 | O15: ='quinary 2016'!O15-'quinary 2011'!O15 -> 221 | P15: ='quinary 2016'!P15-'quinary 2011'!P15 -> 118 | Q15: ='quinary 2016'!Q15-'quinary 2011'!Q15 -> 251 | R15: ='quinary 2016'!R15-'quinary 2011'!R15 -> 261 | S15: ='quinary 2016'!S15-'quinary 2011'!S15 -> -147 | T15: ='quinary 2016'!T15-'quinary 2011'!T15 -> -55 | U15: ='quinary 2016'!U15-'quinary 2011'!U15 -> 41 | V15: ='quinary 2016'!V15-'quinary 2011'!V15 -> 9 | W15: ='quinary 2016'!W15-'quinary 2011'!W15 -> 33
A16: Harborne | B16: Edgbaston | C16: E05001189 | D16: ='quinary 2016'!D16-'quinary 2011'!D16 -> 2021 | E16: ='quinary 2016'!E16-'quinary 2011'!E16 -> 283 | F16: ='quinary 2016'!F16-'quinary 2011'!F16 -> 225 | G16: ='quinary 2016'!G16-'quinary 2011'!G16 -> 90 | H16: ='quinary 2016'!H16-'quinary 2011'!H16 -> 30 | I16: ='quinary 2016'!I16-'quinary 2011'!I16 -> 312 | J16: ='quinary 2016'!J16-'quinary 2011'!J16 -> 64 | K16: ='quinary 2016'!K16-'quinary 2011'!K16 -> -98 | L16: ='quinary 2016'!L16-'quinary 2011'!L16 -> 281 | M16: ='quinary 2016'!M16-'quinary 2011'!M16 -> 143 | N16: ='quinary 2016'!N16-'quinary 2011'!N16 -> 109 | O16: ='quinary 2016'!O16-'quinary 2011'!O16 -> 115 | P16: ='quinary 2016'!P16-'quinary 2011'!P16 -> 24 | Q16: ='quinary 2016'!Q16-'quinary 2011'!Q16 -> -11 | R16: ='quinary 2016'!R16-'quinary 2011'!R16 -> 230 | S16: ='quinary 2016'!S16-'quinary 2011'!S16 -> 77 | T16: ='quinary 2016'!T16-'quinary 2011'!T16 -> 115 | U16: ='quinary 2016'!U16-'quinary 2011'!U16 -> -10 | V16: ='quinary 2016'!V16-'quinary 2011'!V16 -> 8 | W16: ='quinary 2016'!W16-'quinary 2011'!W16 -> 34
A17: Hodge Hill | B17: Hodge Hill | C17: E05001190 | D17: ='quinary 2016'!D17-'quinary 2011'!D17 -> 1697 | E17: ='quinary 2016'!E17-'quinary 2011'!E17 -> 68 | F17: ='quinary 2016'!F17-'quinary 2011'!F17 -> 195 | G17: ='quinary 2016'!G17-'quinary 2011'!G17 -> 252 | H17: ='quinary 2016'!H17-'quinary 2011'!H17 -> 329 | I17: ='quinary 2016'!I17-'quinary 2011'!I17 -> 268 | J17: ='quinary 2016'!J17-'quinary 2011'!J17 -> 158 | K17: ='quinary 2016'!K17-'quinary 2011'!K17 -> 93 | L17: ='quinary 2016'!L17-'quinary 2011'!L17 -> 290 | M17: ='quinary 2016'!M17-'quinary 2011'!M17 -> -155 | N17: ='quinary 2016'!N17-'quinary 2011'!N17 -> 204 | O17: ='quinary 2016'!O17-'quinary 2011'!O17 -> 115 | P17: ='quinary 2016'!P17-'quinary 2011'!P17 -> 66 | Q17: ='quinary 2016'!Q17-'quinary 2011'!Q17 -> -109 | R17: ='quinary 2016'!R17-'quinary 2011'!R17 -> 43 | S17: ='quinary 2016'!S17-'quinary 2011'!S17 -> -112 | T17: ='quinary 2016'!T17-'quinary 2011'!T17 -> 47 | U17: ='quinary 2016'!U17-'quinary 2011'!U17 -> -50 | V17: ='quinary 2016'!V17-'quinary 2011'!V17 -> -4 | W17: ='quinary 2016'!W17-'quinary 2011'!W17 -> -1
A18: Kings Norton | B18: Northfield | C18: E05001191 | D18: ='quinary 2016'!D18-'quinary 2011'!D18 -> 131 | E18: ='quinary 2016'!E18-'quinary 2011'!E18 -> -34 | F18: ='quinary 2016'!F18-'quinary 2011'!F18 -> 276 | G18: ='quinary 2016'!G18-'quinary 2011'!G18 -> -80 | H18: ='quinary 2016'!H18-'quinary 2011'!H18 -> -147 | I18: ='quinary 2016'!I18-'quinary 2011'!I18 -> 11 | J18: ='quinary 2016'!J18-'quinary 2011'!J18 -> 166 | K18: ='quinary 2016'!K18-'quinary 2011'!K18 -> -85 | L18: ='quinary 2016'!L18-'quinary 2011'!L18 -> -75 | M18: ='quinary 2016'!M18-'quinary 2011'!M18 -> -252 | N18: ='quinary 2016'!N18-'quinary 2011'!N18 -> -8 | O18: ='quinary 2016'!O18-'quinary 2011'!O18 -> 135 | P18: ='quinary 2016'!P18-'quinary 2011'!P18 -> 84 | Q18: ='quinary 2016'!Q18-'quinary 2011'!Q18 -> -345 | R18: ='quinary 2016'!R18-'quinary 2011'!R18 -> 191 | S18: ='quinary 2016'!S18-'quinary 2011'!S18 -> 169 | T18: ='quinary 2016'!T18-'quinary 2011'!T18 -> 27 | U18: ='quinary 2016'!U18-'quinary 2011'!U18 -> 42 | V18: ='quinary 2016'!V18-'quinary 2011'!V18 -> -16 | W18: ='quinary 2016'!W18-'quinary 2011'!W18 -> 72
A19: Kingstanding | B19: Erdington | C19: E05001192 | D19: ='quinary 2016'!D19-'quinary 2011'!D19 -> 421 | E19: ='quinary 2016'!E19-'quinary 2011'!E19 -> 106 | F19: ='quinary 2016'!F19-'quinary 2011'!F19 -> 111 | G19: ='quinary 2016'!G19-'quinary 2011'!G19 -> -92 | H19: ='quinary 2016'!H19-'quinary 2011'!H19 -> -63 | I19: ='quinary 2016'!I19-'quinary 2011'!I19 -> 29 | J19: ='quinary 2016'!J19-'quinary 2011'!J19 -> 220 | K19: ='quinary 2016'!K19-'quinary 2011'!K19 -> 27 | L19: ='quinary 2016'!L19-'quinary 2011'!L19 -> -2 | M19: ='quinary 2016'!M19-'quinary 2011'!M19 -> -194 | N19: ='quinary 2016'!N19-'quinary 2011'!N19 -> -179 | O19: ='quinary 2016'!O19-'quinary 2011'!O19 -> 214 | P19: ='quinary 2016'!P19-'quinary 2011'!P19 -> 220 | Q19: ='quinary 2016'!Q19-'quinary 2011'!Q19 -> 52 | R19: ='quinary 2016'!R19-'quinary 2011'!R19 -> -22 | S19: ='quinary 2016'!S19-'quinary 2011'!S19 -> 93 | T19: ='quinary 2016'!T19-'quinary 2011'!T19 -> -23 | U19: ='quinary 2016'!U19-'quinary 2011'!U19 -> -70 | V19: ='quinary 2016'!V19-'quinary 2011'!V19 -> -3 | W19: ='quinary 2016'!W19-'quinary 2011'!W19 -> -3
A20: Ladywood | B20: Ladywood | C20: E05001193 | D20: ='quinary 2016'!D20-'quinary 2011'!D20 -> 6244 | E20: ='quinary 2016'!E20-'quinary 2011'!E20 -> 331 | F20: ='quinary 2016'!F20-'quinary 2011'!F20 -> 344 | G20: ='quinary 2016'!G20-'quinary 2011'!G20 -> 264 | H20: ='quinary 2016'!H20-'quinary 2011'!H20 -> 45 | I20: ='quinary 2016'!I20-'quinary 2011'!I20 -> 1100 | J20: ='quinary 2016'!J20-'quinary 2011'!J20 -> 1278 | K20: ='quinary 2016'!K20-'quinary 2011'!K20 -> 863 | L20: ='quinary 2016'!L20-'quinary 2011'!L20 -> 705 | M20: ='quinary 2016'!M20-'quinary 2011'!M20 -> 346 | N20: ='quinary 2016'!N20-'quinary 2011'!N20 -> 182 | O20: ='quinary 2016'!O20-'quinary 2011'!O20 -> 297 | P20: ='quinary 2016'!P20-'quinary 2011'!P20 -> 273 | Q20: ='quinary 2016'!Q20-'quinary 2011'!Q20 -> 111 | R20: ='quinary 2016'!R20-'quinary 2011'!R20 -> 52 | S20: ='quinary 2016'!S20-'quinary 2011'!S20 -> 49 | T20: ='quinary 2016'!T20-'quinary 2011'!T20 -> -6 | U20: ='quinary 2016'!U20-'quinary 2011'!U20 -> 13 | V20: ='quinary 2016'!V20-'quinary 2011'!V20 -> 4 | W20: ='quinary 2016'!W20-'quinary 2011'!W20 -> -7
A21: Longbridge | B21: Northfield | C21: E05001194 | D21: ='quinary 2016'!D21-'quinary 2011'!D21 -> 817 | E21: ='quinary 2016'!E21-'quinary 2011'!E21 -> 157 | F21: ='quinary 2016'!F21-'quinary 2011'!F21 -> 236 | G21: ='quinary 2016'!G21-'quinary 2011'!G21 -> -48 | H21: ='quinary 2016'!H21-'quinary 2011'!H21 -> -71 | I21: ='quinary 2016'!I21-'quinary 2011'!I21 -> 158 | J21: ='quinary 2016'!J21-'quinary 2011'!J21 -> 121 | K21: ='quinary 2016'!K21-'quinary 2011'!K21 -> -136 | L21: ='quinary 2016'!L21-'quinary 2011'!L21 -> -30 | M21: ='quinary 2016'!M21-'quinary 2011'!M21 -> -215 | N21: ='quinary 2016'!N21-'quinary 2011'!N21 -> -48 | O21: ='quinary 2016'!O21-'quinary 2011'!O21 -> 132 | P21: ='quinary 2016'!P21-'quinary 2011'!P21 -> 38 | Q21: ='quinary 2016'!Q21-'quinary 2011'!Q21 -> 34 | R21: ='quinary 2016'!R21-'quinary 2011'!R21 -> 294 | S21: ='quinary 2016'!S21-'quinary 2011'!S21 -> 154 | T21: ='quinary 2016'!T21-'quinary 2011'!T21 -> 19 | U21: ='quinary 2016'!U21-'quinary 2011'!U21 -> -44 | V21: ='quinary 2016'!V21-'quinary 2011'!V21 -> 36 | W21: ='quinary 2016'!W21-'quinary 2011'!W21 -> 30
A22: Lozells and East Handsworth | B22: Perry Barr | C22: E05001195 | D22: ='quinary 2016'!D22-'quinary 2011'!D22 -> 1921 | E22: ='quinary 2016'!E22-'quinary 2011'!E22 -> 18 | F22: ='quinary 2016'!F22-'quinary 2011'!F22 -> 58 | G22: ='quinary 2016'!G22-'quinary 2011'!G22 -> 253 | H22: ='quinary 2016'!H22-'quinary 2011'!H22 -> 76 | I22: ='quinary 2016'!I22-'quinary 2011'!I22 -> -8 | J22: ='quinary 2016'!J22-'quinary 2011'!J22 -> -39 | K22: ='quinary 2016'!K22-'quinary 2011'!K22 -> -5 | L22: ='quinary 2016'!L22-'quinary 2011'!L22 -> 305 | M22: ='quinary 2016'!M22-'quinary 2011'!M22 -> 251 | N22: ='quinary 2016'!N22-'quinary 2011'!N22 -> 216 | O22: ='quinary 2016'!O22-'quinary 2011'!O22 -> 296 | P22: ='quinary 2016'!P22-'quinary 2011'!P22 -> 180 | Q22: ='quinary 2016'!Q22-'quinary 2011'!Q22 -> 324 | R22: ='quinary 2016'!R22-'quinary 2011'!R22 -> 9 | S22: ='quinary 2016'!S22-'quinary 2011'!S22 -> -105 | T22: ='quinary 2016'!T22-'quinary 2011'!T22 -> -51 | U22: ='quinary 2016'!U22-'quinary 2011'!U22 -> 37 | V22: ='quinary 2016'!V22-'quinary 2011'!V22 -> 78 | W22: ='quinary 2016'!W22-'quinary 2011'!W22 -> 28
A23: Moseley and Kings Heath | B23: Hall Green | C23: E05001196 | D23: ='quinary 2016'!D23-'quinary 2011'!D23 -> -80 | E23: ='quinary 2016'!E23-'quinary 2011'!E23 -> -45 | F23: ='quinary 2016'!F23-'quinary 2011'!F23 -> 62 | G23: ='quinary 2016'!G23-'quinary 2011'!G23 -> -126 | H23: ='quinary 2016'!H23-'quinary 2011'!H23 -> -95 | I23: ='quinary 2016'!I23-'quinary 2011'!I23 -> 36 | J23: ='quinary 2016'!J23-'quinary 2011'!J23 -> -228 | K23: ='quinary 2016'!K23-'quinary 2011'!K23 -> -204 | L23: ='quinary 2016'!L23-'quinary 2011'!L23 -> -92 | M23: ='quinary 2016'!M23-'quinary 2011'!M23 -> -94 | N23: ='quinary 2016'!N23-'quinary 2011'!N23 -> 102 | O23: ='quinary 2016'!O23-'quinary 2011'!O23 -> 129 | P23: ='quinary 2016'!P23-'quinary 2011'!P23 -> 9 | Q23: ='quinary 2016'!Q23-'quinary 2011'!Q23 -> 70 | R23: ='quinary 2016'!R23-'quinary 2011'!R23 -> 307 | S23: ='quinary 2016'!S23-'quinary 2011'!S23 -> 56 | T23: ='quinary 2016'!T23-'quinary 2011'!T23 -> -67 | U23: ='quinary 2016'!U23-'quinary 2011'!U23 -> 83 | V23: ='quinary 2016'!V23-'quinary 2011'!V23 -> 0 | W23: ='quinary 2016'!W23-'quinary 2011'!W23 -> 17
A24: Nechells | B24: Ladywood | C24: E05001197 | D24: ='quinary 2016'!D24-'quinary 2011'!D24 -> 5051 | E24: ='quinary 2016'!E24-'quinary 2011'!E24 -> 121 | F24: ='quinary 2016'!F24-'quinary 2011'!F24 -> 223 | G24: ='quinary 2016'!G24-'quinary 2011'!G24 -> 196 | H24: ='quinary 2016'!H24-'quinary 2011'!H24 -> 801 | I24: ='quinary 2016'!I24-'quinary 2011'!I24 -> 1502 | J24: ='quinary 2016'!J24-'quinary 2011'!J24 -> 645 | K24: ='quinary 2016'!K24-'quinary 2011'!K24 -> 288 | L24: ='quinary 2016'!L24-'quinary 2011'!L24 -> 313 | M24: ='quinary 2016'!M24-'quinary 2011'!M24 -> 86 | N24: ='quinary 2016'!N24-'quinary 2011'!N24 -> 221 | O24: ='quinary 2016'!O24-'quinary 2011'!O24 -> 251 | P24: ='quinary 2016'!P24-'quinary 2011'!P24 -> 254 | Q24: ='quinary 2016'!Q24-'quinary 2011'!Q24 -> 137 | R24: ='quinary 2016'!R24-'quinary 2011'!R24 -> 23 | S24: ='quinary 2016'!S24-'quinary 2011'!S24 -> -131 | T24: ='quinary 2016'!T24-'quinary 2011'!T24 -> -17 | U24: ='quinary 2016'!U24-'quinary 2011'!U24 -> 66 | V24: ='quinary 2016'!V24-'quinary 2011'!V24 -> 40 | W24: ='quinary 2016'!W24-'quinary 2011'!W24 -> 32
A25: Northfield | B25: Northfield | C25: E05001198 | D25: ='quinary 2016'!D25-'quinary 2011'!D25 -> 538 | E25: ='quinary 2016'!E25-'quinary 2011'!E25 -> 217 | F25: ='quinary 2016'!F25-'quinary 2011'!F25 -> 38 | G25: ='quinary 2016'!G25-'quinary 2011'!G25 -> -45 | H25: ='quinary 2016'!H25-'quinary 2011'!H25 -> -277 | I25: ='quinary 2016'!I25-'quinary 2011'!I25 -> 54 | J25: ='quinary 2016'!J25-'quinary 2011'!J25 -> 312 | K25: ='quinary 2016'!K25-'quinary 2011'!K25 -> 29 | L25: ='quinary 2016'!L25-'quinary 2011'!L25 -> -141 | M25: ='quinary 2016'!M25-'quinary 2011'!M25 -> -187 | N25: ='quinary 2016'!N25-'quinary 2011'!N25 -> -209 | O25: ='quinary 2016'!O25-'quinary 2011'!O25 -> 287 | P25: ='quinary 2016'!P25-'quinary 2011'!P25 -> 158 | Q25: ='quinary 2016'!Q25-'quinary 2011'!Q25 -> -130 | R25: ='quinary 2016'!R25-'quinary 2011'!R25 -> 214 | S25: ='quinary 2016'!S25-'quinary 2011'!S25 -> 148 | T25: ='quinary 2016'!T25-'quinary 2011'!T25 -> 6 | U25: ='quinary 2016'!U25-'quinary 2011'!U25 -> 73 | V25: ='quinary 2016'!V25-'quinary 2011'!V25 -> -28 | W25: ='quinary 2016'!W25-'quinary 2011'!W25 -> 19
